{"text_format":"1","workbook":"xlsx","n_sheets":27,"sheets":["SafetySummary","RISeg","StateBasic","Ellis","Pavement","Bridge","AssetSQL","CamSQL","ODPS_Data","RefTables","Data","DataText","GCAT_Queries","Map","Crash Data","Data Analysis","Graphical Analysis","Histograms","DecisionTree","Collision Diagram","Diagram Data","Resurfacing Analysis","Rate Calc Sheet","Severity Calc Sheet","ROR Analysis","Safety App","CRF Table_Rev"],"not_rendered":{"charts":32,"images":67,"macros":1,"external_links":0,"defined_names":69,"comments":4,"pivot_tables":86},"unopened":[],"bounds":{"document_bytes":16777216,"sheet_cells":100000,"rows_first":2000,"rows_last":500,"rows_between":2000,"halvings":0,"cell_chars":16384,"cell_head_chars":4096},"cells_cut":0,"cells_raw":0,"read":"whole","date_system":"1900"}

{"sheet":"SafetySummary","index":0,"n_rows":18,"n_cols":206,"rows_kept":18,"cut":false,"hidden":true,"merged":[[14,110,14,132],[14,133,14,135],[14,136,14,138],[14,77,14,81],[14,82,14,88],[14,89,14,100],[14,101,14,104],[14,105,14,106],[14,107,14,109],[14,72,14,76],[14,31,14,32],[14,33,14,35],[14,36,14,45],[14,46,14,52],[14,53,14,71]]}
[]
[]
[]
[null,null,null,null,null,null,null,null,null,null,null,null,null,null,null,null,null,null,null,null,null,null,null,null,null,null,null,null,null,null,null,null,null,null,null,null,null,null,null,null,null,null,null,null,null,null,null,null,null,null,null,null,null,null,null,null,null,null,null,null,null,null,null,null,null,null,null,null,null,null,null,null,null,null,null,null,null,null,null,null,null,null,null,null,null,null,null,null,null,null,null,null,null,null,null,null,null,null,null,null,null,null,null,null,null,null,null,null,null,null,null,null,null,null,null,null,null,null,null,null,null,null,null,null,null,null,null,null,null,null,null,null,null,null,null,null,null,null,null,null,null,null,null,null,null,null,null,null,null,null,null,null,null,null,null,null,null,null,null,null,null,null,null,null,null,null,null,null,null,null,null,null,null,null,null,null,null,null,null,null,null,null,null,null,null,null,null,null,null,null,null,null,null,"NLF_ID","BLOG","ELOG"]
[]
[]
[null,null,null,null,"Current File Name","CAM Tool FS"]
[null,null,null,null,"Current File Path","C:\\Temp\\"]
[null,null,null,null,"Run CAM Tool Crash Data for Desired Sections","X"]
[null,null,null,null,"Run Congestion Model Weighted Average Data for Desired Sections","X",null,null,null,null,null,null,null,null,null,null,null,null,null,null,null,null,null,null,null,null,null,null,null,null,null,null,null,null,null,null,null,null,null,null,null,null,null,null,null,null,null,null,null,null,null,null,null,null,null,null,null,null,null,null,null,null,null,null,null,null,null,null,null,null,null,null,null,null,null,null,null,null,null,null,null,null,null,null,null,null,null,null,null,null,null,null,null,null,null,null,null,null,null,null,null,null,null,null,null,null,null,null,null,null,null,null,null,null,null,null,null,null,null,null,null,null,null,null,null,null,null,null,null,null,null,null,null,null,null,null,null,null,null,null,null,null,null,null,null,null,null,null,null,null,null,null,null,null,null,null,null,null,null,null,null,null,null,null,null,null,null,null,null,null,null,null,null,null,null,null,null,null,null,null,null,null,null,null,null,null,null,null,null,null,null,null,null,"NLF_ID","Min(BTRS_LOG_POINTS6.LOGPOINT_COUNTY_NBR)","Max(BTRS_LOG_POINTS6.LOGPOINT_COUNTY_NBR)","Avg(BTRS_CONGESTION_SEGMENTS6.TOTAL_VOLUME_NBR)","Avg(BTRS_CONGESTION_SEGMENTS6.TRUCK_VOLUME_NBR)","Avg(BTRS_CONGESTION_SEGMENTS6.VOLUME_CAPACITY_RATIO_NBR)","Min(BTRS_LOG_POINTS6.FUNCTIONAL_CLASS_CD)","Max(BTRS_LOG_POINTS6.FUNCTIONAL_CLASS_CD)","SUM(BTRS_LOG_POINTS6.SECTION_LENGTH_NBR)"]
[null,null,null,null,"Run Road Inventory Segment Data (State & Local) for Desired Sections","X"]
[1,null,null,null,"Run State System Basic Expanded Inventory Data for Desired Sections","X",7,8,9,10,11,12,13,14,15,16,17,18,19,20,21,22,23,24,25,26,27,28,29,30,31,32,33,34,35,36,37,38,39,40,41,42,43,44,45,46,47,48,49,50,51,52,53,54,55,56,57,58,59,60,61,62,63,64,65,66,67,68,69,70,71,72,73,74,75,76,77,78,79,80,81,82,83,84,85,86,87,88,89,90,91,92,93,94,95,96,97,98,99,100,101,102,103,104,105,106,107,108,109,110,111,112,113,114,115,116,117,118,119,120,121,122,123,124,125,126,127,128,129,130,131,132,133,134,135,136,137,138,139,140,141,142,143,144,145,146,147,148,149,150,151,152,153,154,155,156,157,158,159,160,161,162,163,164,165,166,167,168,169,170,171,172,173,174,175,176,177,178,179,180,181,182,183,184,185,186,187,188,189,190,191,192,193,194,195,196,197,198,199,200,201,202,203,204,205,206]
[null,null,null,null,"Run Ellis Project Info for Desired Sections","X"]
[null,null,null,null,"Run Current Pavement Condition Data for Desired Sections","X"]
[null,null,null,null,"Run Current Bridge Condition Data for Desired Sections","X",null,null,null,null,null,null,null,null,null,null,null,null,null,null,null,null,null,null,null,null,null,null,null,null,null,"People",null,"Crash Severity",null,null,"Year",null,null,null,null,null,null,null,null,null,"Day",null,null,null,null,null,null,"Crash Type",null,null,null,null,null,null,null,null,null,null,null,null,null,null,null,null,null,null,"Road Condition",null,null,null,null,"Light Condition",null,null,null,null,"Location",null,null,null,null,null,null,"Crash Month",null,null,null,null,null,null,null,null,null,null,null,"Road Contour",null,null,null,"Special Area",null,"Animal Type",null,null,"Contributing Factor_1",null,null,null,null,null,null,null,null,null,null,null,null,null,null,null,null,null,null,null,null,null,null,"Driver Alcohol_1",null,null,"Driver Alcohol_2",null,null,null,null,null,null,null,null,null,null,null,null,null,{"$f":"IF(K15=\"\",\"\",(ET15*1000000)/(#REF!*365*EY15*3))","v":""},null,null,null,null,null,null,null,null,null,null,null,null,null,null,null,null,null,null,null,null,null,null,null,null,null,null,null,null,null,null,null,null,null,null,null,null,null,null,null,null,null,null,null,null,null,null,null,null,null,{"$f":"MID(GT15,(FIND(\"[\",GT15)+1),(FIND(\"]\",GT15)-1)-(FIND(\"[\",GT15)))","v":"CAM Tool_GEA608_2014 revised.xlsm"},{"$f":"CELL(\"filename\")","v":"L:\\ODOT\\16683-02_D12and3GES\\13_103884_GEA-608_Buggy\\Planning\\Traffic\\[CAM Tool_GEA608_2014 revised.xlsm]Crash Data"}]
[21,{"$f":"IF(C16=C14,B14,B14+1)","v":0},null,"Require User to Manually Select File Path and Name for Desired Sections Where a CAM Tool is \"X\"ed in Column B",null,null,null,null,null,null,{"$f":"IF(H16=\"\",\"\",IF(D16=\"I\",1,H16-G16))","v":""},null,{"$f":"IF(GK16=\"\",\"\",HYPERLINK(GK16))","v":""},"Default is Blank - Logged",null,{"$f":"IF(GO16 = \"\",\"\",GO16)","v":""},{"$f":"IF(GP16 = \"\",\"\",GP16)","v":""},{"$f":"IF(GQ16 = \"\",\"\",GQ16)","v":""},{"$f":"IF(GR16 = \"\",\"\",GR16)","v":""},{"$f":"IF(GS16 = \"\",\"\",GS16)","v":""},null,null,null,null,{"$f":"IF(ISERROR((X16*1000000)/(K16*365*GO16*(J16-I16+1))),\"\",(X16*1000000)/(K16*365*GO16*(J16-I16+1)))","v":""},{"$f":"IF(D16=\"S\",IF(ISERROR(X16/K16/(J16-I16+1)),\"\",X16/K16/(J16-I16+1)),\"\")","v":""},{"$f":"IF(X16=\"\",\"\",IF(ISERROR(AH16*'Safety App'!$AI$36+AI16*'Safety App'!$AI$37+AJ16*'Safety App'!$AI$38),0,AH16*'Safety App'!$AI$36+AI16*'Safety App'!$AI$37+AJ16*'Safety App'!$AI$38))","v":""},null,null,null,null,{"$f":"SUM('Crash Data'!$AS$21:$AS$64998)","v":0},{"$f":"SUM('Crash Data'!$AT$21:$AT$64998)","v":0},{"$f":"COUNTIF('Crash Data'!$O$21:$O$64998,AH17)","v":0},{"$f":"COUNTIF('Crash Data'!$O$21:$O$64998,AI17)","v":5},{"$f":"COUNTIF('Crash Data'!$O$21:$O$64998,AJ17)","v":14},{"$f":"COUNTIF('Crash Data'!$BD$21:$BD$64998,AK17)","v":0},{"$f":"COUNTIF('Crash Data'!$BD$21:$BD$64998,AL17)","v":0},{"$f":"COUNTIF('Crash Data'!$BD$21:$BD$64998,AM17)","v":0},{"$f":"COUNTIF('Crash Data'!$BD$21:$BD$64998,AN17)","v":0},{"$f":"COUNTIF('Crash Data'!$BD$21:$BD$64998,AO17)","v":0},{"$f":"COUNTIF('Crash Data'!$BD$21:$BD$64998,AP17)","v":0},{"$f":"COUNTIF('Crash Data'!$BD$21:$BD$64998,AQ17)","v":0},{"$f":"COUNTIF('Crash Data'!$BD$21:$BD$64998,AR17)","v":0},{"$f":"COUNTIF('Crash Data'!$BD$21:$BD$64998,AS17)","v":0},{"$f":"COUNTIF('Crash Data'!$BD$21:$BD$64998,AT17)","v":0},{"$f":"COUNTIF('Crash Data'!$J$21:$J$64998,AU17)","v":0},{"$f":"COUNTIF('Crash Data'!$J$21:$J$64998,AV17)","v":1},{"$f":"COUNTIF('Crash Data'!$J$21:$J$64998,AW17)","v":1},{"$f":"COUNTIF('Crash Data'!$J$21:$J$64998,AX17)","v":2},{"$f":"COUNTIF('Crash Data'!$J$21:$J$64998,AY17)","v":7},{"$f":"COUNTIF('Crash Data'!$J$21:$J$64998,AZ17)","v":5},{"$f":"COUNTIF('Crash Data'!$J$21:$J$64998,BA17)","v":3},{"$f":"COUNTIF('Crash Data'!$M$21:$M$64998,BB17)","v":4},{"$f":"COUNTIF('Crash Data'!$M$21:$M$64998,BC17)","v":5},{"$f":"COUNTIF('Crash Data'!$M$21:$M$64998,BD17)","v":4},{"$f":"COUNTIF('Crash Data'!$M$21:$M$64998,BE17)","v":2},{"$f":"COUNTIF('Crash Data'!$M$21:$M$64998,BF17)","v":2},{"$f":"COUNTIF('Crash Data'!$M$21:$M$64998,BG17)","v":0},{"$f":"COUNTIF('Crash Data'!$M$21:$M$64998,BH17)","v":2},{"$f":"COUNTIF('Crash Data'!$M$21:$M$64998,BI17)","v":0},{"$f":"COUNTIF('Crash Data'!$M$21:$M$64998,BJ17)","v":0},{"$f":"COUNTIF('Crash Data'!$M$21:$M$64998,BK17)","v":0},{"$f":"COUNTIF('Crash Data'!$M$21:$M$64998,BL17)","v":0},{"$f":"COUNTIF('Crash Data'!$M$21:$M$64998,BM17)","v":0},{"$f":"COUNTIF('Crash Data'!$M$21:$M$64998,BN17)","v":0},{"$f":"COUNTIF('Crash Data'!$M$21:$M$64998,BO17)","v":0},{"$f":"COUNTIF('Crash Data'!$M$21:$M$64998,BP17)","v":0},{"$f":"COUNTIF('Crash Data'!$M$21:$M$64998,BQ17)","v":0},{"$f":"COUNTIF('Crash Data'!$M$21:$M$64998,BR17)","v":0},{"$f":"COUNTIF('Crash Data'!$M$21:$M$64998,BS17)","v":0},{"$f":"COUNTIF('Crash Data'!$M$21:$M$64998,BT17)","v":0},{"$f":"COUNTIF('Crash Data'!$Q$21:$Q$64998,BU17)","v":8},{"$f":"COUNTIF('Crash Data'!$Q$21:$Q$64998,BV17)","v":3},{"$f":"COUNTIF('Crash Data'!$Q$21:$Q$64998,BW17)","v":7},{"$f":"COUNTIF('Crash Data'!$Q$21:$Q$64998,BX17)","v":1},{"$f":"COUNTIF('Crash Data'!$Q$21:$Q$64998,BY17)","v":0},{"$f":"COUNTIF('Crash Data'!$L$21:$L$64998,BZ17)","v":13},{"$f":"COUNTIF('Crash Data'!$L$21:$L$64998,CA17)","v":1},{"$f":"COUNTIF('Crash Data'!$L$21:$L$64998,CB17)","v":2},{"$f":"COUNTIF('Crash Data'!$L$21:$L$64998,CC17)","v":0},{"$f":"COUNTIF('Crash Data'!$L$21:$L$64998,CD17)","v":2},{"$f":"COUNTIF('Crash Data'!$R$21:$R$64998,CE17)","v":0},{"$f":"COUNTIF('Crash Data'!$R$21:$R$64998,CF17)","v":0},{"$f":"COUNTIF('Crash Data'!$R$21:$R$64998,CG17)","v":0},{"$f":"COUNTIF('Crash Data'!$R$21:$R$64998,CH17)","v":0},{"$f":"COUNTIF('Crash Data'!$R$21:$R$64998,CI17)","v":0},{"$f":"COUNTIF('Crash Data'!$R$21:$R$64998,CJ17)","v":0},{"$f":"COUNTIF('Crash Data'!$R$21:$R$64998,CK17)","v":0},{"$f":"COUNTIF('Crash Data'!$BE$21:$BE$64998,CL17)","v":5},{"$f":"COUNTIF('Crash Data'!$BE$21:$BE$64998,CM17)","v":4},{"$f":"COUNTIF('Crash Data'!$BE$21:$BE$64998,CN17)","v":0},{"$f":"COUNTIF('Crash Data'!$BE$21:$BE$64998,CO17)","v":1},{"$f":"COUNTIF('Crash Data'!$BE$21:$BE$64998,CP17)","v":4},{"$f":"COUNTIF('Crash Data'!$BE$21:$BE$64998,CQ17)","v":0},{"$f":"COUNTIF('Crash Data'!$BE$21:$BE$64998,CR17)","v":0},{"$f":"COUNTIF('Crash Data'!$BE$21:$BE$64998,CS17)","v":0},{"$f":"COUNTIF('Crash Data'!$BE$21:$BE$64998,CT17)","v":0},{"$f":"COUNTIF('Crash Data'!$BE$21:$BE$64998,CU17)","v":3},{"$f":"COUNTIF('Crash Data'!$BE$21:$BE$64998,CV17)","v":2},{"$f":"COUNTIF('Crash Data'!$BE$21:$BE$64998,CW17)","v":0},{"$f":"COUNTIF('Crash Data'!$AR$21:$AR$64998,CX17)","v":5},{"$f":"COUNTIF('Crash Data'!$AR$21:$AR$64998,CY17)","v":13},{"$f":"COUNTIF('Crash Data'!$AR$21:$AR$64998,CZ17)","v":0},{"$f":"COUNTIF('Crash Data'!$AR$21:$AR$64998,DA17)","v":1},{"$f":"COUNTIF('Crash Data'!$AO$21:$AO$64998,DB17)","v":0},{"$f":"COUNTIF('Crash Data'!$AO$21:$AO$64998,DC17)","v":0},{"$f":"COUNTIF('Crash Data'!$AP$21:$AP$64998,DD17)","v":1},{"$f":"COUNTIF('Crash Data'!$AP$21:$AP$64998,DE17)","v":1},{"$f":"COUNTIF('Crash Data'!$AP$21:$AP$64998,DF17)","v":0},{"$f":"COUNTIF('Crash Data'!$S$21:$S$64998,DG17)","v":0},{"$f":"COUNTIF('Crash Data'!$S$21:$S$64998,DH17)","v":2},{"$f":"COUNTIF('Crash Data'!$S$21:$S$64998,DI17)","v":4},{"$f":"COUNTIF('Crash Data'!$S$21:$S$64998,DJ17)","v":0},{"$f":"COUNTIF('Crash Data'!$S$21:$S$64998,DK17)","v":0},{"$f":"COUNTIF('Crash Data'!$S$21:$S$64998,DL17)","v":0},{"$f":"COUNTIF('Crash Data'!$S$21:$S$64998,DM17)","v":0},{"$f":"COUNTIF('Crash Data'!$S$21:$S$64998,DN17)","v":0},{"$f":"COUNTIF('Crash Data'!$S$21:$S$64998,DO17)","v":0},{"$f":"COUNTIF('Crash Data'!$S$21:$S$64998,DP17)","v":0},{"$f":"COUNTIF('Crash Data'!$S$21:$S$64998,DQ17)","v":0},{"$f":"COUNTIF('Crash Data'!$S$21:$S$64998,DR17)","v":0},{"$f":"COUNTIF('Crash Data'!$S$21:$S$64998,DS17)","v":0},{"$f":"COUNTIF('Crash Data'!$S$21:$S$64998,DT17)","v":0},{"$f":"COUNTIF('Crash Data'!$S$21:$S$64998,DU17)","v":0},{"$f":"COUNTIF('Crash Data'!$S$21:$S$64998,DV17)","v":0},{"$f":"COUNTIF('Crash Data'!$S$21:$S$64998,DW17)","v":0},{"$f":"COUNTIF('Crash Data'!$S$21:$S$64998,DX17)","v":0},{"$f":"COUNTIF('Crash Data'!$S$21:$S$64998,DY17)","v":0},{"$f":"COUNTIF('Crash Data'!$S$21:$S$64998,DZ17)","v":0},{"$f":"COUNTIF('Crash Data'!$S$21:$S$64998,EA17)","v":0},{"$f":"COUNTIF('Crash Data'!$S$21:$S$64998,EB17)","v":0},{"$f":"COUNTIF('Crash Data'!$S$21:$S$64998,EC17)","v":0},{"$f":"COUNTIF('Crash Data'!$AB$21:$AB$64998,ED17)","v":0},{"$f":"COUNTIF('Crash Data'!$AB$21:$AB$64998,EE17)","v":0},{"$f":"COUNTIF('Crash Data'!$AB$21:$AB$64998,EF17)","v":0},{"$f":"COUNTIF('Crash Data'!$AM$21:$AM$64998,EG17)","v":0},{"$f":"COUNTIF('Crash Data'!$AM$21:$AM$64998,EH17)","v":0},{"$f":"COUNTIF('Crash Data'!$AM$21:$AM$64998,EI17)","v":0},null,null,null,null,null,null,null,{"$f":"IF(C16=C15,\"\",C16)","v":""},{"$f":"IF(EQ16=\"\",\"\",IF(D16=\"I\",\"Intersection\",\"Section\"))","v":""},{"$f":"IF($EQ16=\"\",\"\",SUMIF($C$18:$C$65536,$EQ16,$K$18:$K$65536))","v":""},{"$f":"IF($EQ16=\"\",\"\",SUMIF($C$18:$C$65536,$EQ16,$X$18:$X$65536))","v":""},{"$f":"IF(EQ16=\"\",\"\",IF(ISERROR((ET16*1000000)/(ES16*365*EY16*(J16-I16+1))),VALUE(0),(ET16*1000000)/(ES16*365*EY16*(J16-I16+1))))","v":""},{"$f":"IFERROR(IF($EQ16=\"\",\"\",ET16/ES16/(J16-I16+1)),0)","v":""},{"$f":"IF($EQ16=\"\",\"\",SUMIF($C$18:$C$65536,$EQ16,$AA$18:$AA$65536))","v":""},{"$f":"IF($EQ16=\"\",\"\",IF(ISERROR((SUMIF($C$18:$C$65536,$EQ16,$GU$18:$GU$65536)/ET16)),VALUE(0),(SUMIF($C$18:$C$65536,$EQ16,$GU$18:$GU$65536)/ET16)))","v":""},{"$f":"IFERROR(IF($EQ16=\"\",\"\",(SUMIF($C$18:$C$65536,$EQ16,$GV$18:$GV$65536)/$ES16)),0)","v":""},{"$f":"IFERROR(IF($EQ16=\"\",\"\",IF(ISERROR(FA16/EY16),VALUE(0),FA16/EY16)),0)","v":""},{"$f":"IFERROR(IF($EQ16=\"\",\"\",(SUMIF($C$18:$C$65536,$EQ16,$GW$18:$GW$65536)/$ES16)),0)","v":""},{"$f":"IFERROR(IF($EQ16=\"\",\"\",(SUMIF($C$18:$C$65536,$EQ16,$GX$18:$GX$65536)/$ES16)),0)","v":""},null,null,null,null,null,null,null,null,null,null,null,null,null,null,null,null,null,null,null,null,null,null,null,null,null,null,null,null,null,null,null,null,{"$f":"IF(ISERROR(GI15+1),VALUE(1),GI15+1)","v":1},{"$f":"IF(A16=\"\",\"\",C16&\"_\"&MID(F16,2,3)&MID(F16,5,2)&MID(F16,9,3)&IF(MID(F16,13,1)=\"*\",\"\",MID(F16,13,1))&IF(MID(F16,12,1)=\"*\",\"\",MID(F16,12,1))&\"; \"&G16&\"-\"&H16&\"_\"&GI16)","v":"_; -_1"},{"$f":"IF(C16=\"\",\"\",L16&GJ16&\".xlsm\")","v":""},"Do not modify cells below",null,null,null,null,null,null,null,null,{"$f":"IF(ISERROR(AB16*X16),VALUE(0),AB16*X16)","v":0},{"$f":"IF(ISERROR(GO16*K16),VALUE(0),GO16*K16)","v":0},{"$f":"IF(ISERROR(GP16*K16),VALUE(0),GP16*K16)","v":0},{"$f":"IF(ISERROR(GQ16*K16),VALUE(0),GQ16*K16)","v":0}]
["RunNewData","CreateCamTool","Project_ID \n(Do Not Leave Blank)","\n\n\n\n\n\n\n\nDefault is S - Section\n\n\n\n\n\n\n\nIntersection (I) Or Section (S)","Rural Non-Freeway\nUrban Non-Freeway\nFreeway\n\n\n\nDefault is Rural Non-Freeway\n\n\n\n\n\nRSI_Location_Type","Example:   SFRAUS00040**C \n\n\n\n\n\n\nNLF_ID","BEGIN_LOG","END_LOG","BEGIN_YEAR","END_YEAR","Length","FilePath","File Hyperlink","Logged Crashes Only (Default - Leave Blank)\n\n\nFor Logged and Unlogged Enter \"U\" in This Column","Run All Crashes (Default - Leave Blank)\n\nTo Exclude Animal Crashes Enter \"A\" in This Column\n\nTo Exclude Work Zone Crashes Enter \"W\" in This Column\n\nTo Exclude Both Animal & Work Zone Crashes Enter \"B\" in This Column","WAADT","WATADT","WA_VC","MinFC","MaxFC",null,null,null,"Total Crashes","Crash Rate","Crash Density (Crashes Per Mile Per Year)","EPDO","RSI",null,null,null,"Fatalities","Incapacitating Injuries","FATAL CRASH","INJURY CRASH","PROPERTY DAMAGE CRASH","2004","2005","2006","2007","2008","2009","2010",2011,2012,2013,"SUNDAY","MONDAY","TUESDAY","WEDNESDAY","THURSDAY","FRIDAY","SATURDAY","REAR END","FIXED OBJECT","ANGLE","SIDESWIPE - PASSING","ANIMAL","PARKED VEHICLE","LEFT TURN","BACKING","SIDESWIPE - MEETING","OTHER NON-COLLISION","PEDESTRIAN","OVERTURNING","OTHER OBJECT","HEAD ON","PEDALCYCLES","NOT STATED","TRAIN","OTHER NON-VEHICLE","FALLING FROM OR IN VEHICLE","ROAD - DRY","ROAD - WET","ROAD - SNOW","ROAD - ICE","ROAD - MUD/SAND","DAYLIGHT","DARK - LIGHTED","DARK - NO LIGHTS","DUSK","DAWN","NON-INTERSECTION","INTERSECTION","INTERSECTION RELATED","DRIVEWAY ACCESS","BRIDGE PASSING OVER","RAILROAD CROSSING","BRIDGE PASSING UNDER","1","2","3","4","5","6","7","8","9","10","11","12","STRAIGHT - LEVEL","STRAIGHT - GRADE","CURVE - LEVEL","CURVE - GRADE","ROAD CONSTRUCTION/MAINTENANCE AREA","SCHOOL ZONE","DEER HIT","OTHER ANIMAL","FARM ANIMAL HIT","FOLLOWING TOO CLOSE","FAILURE TO CONTROL","FAILURE TO YIELD","NO DRIVER ERRORS","OTHER DRIVER ERROR","EXCESSIVE SPEED","DRIVER INATTENTION","IMPROPER BACKING","IMPROPER LANE CHANGE","RAN RED LIGHT","DROVE OFF ROAD-REASON UNKNOWN","IMPROPER TURNING","LEFT OF CENTER","RAN STOP SIGN OR YIELD SIGN","VEHICLE DEFECT","IMPROPER PASSING","IMPROPER START FROM PARKED POS","LOAD SHIFT - FALL - SPILL","VIEW OBSTRUCTED","STOPPED - PARKED ILLEGALLY","DOWNED TRAFFIC SIGN OR DEVICE","DEBRIS ON ROAD","PAVEMENT DEFECT","HBD - ABILITY IMPAIRED","HBD - ABILITY NOT IMPAIRED","HBD - ABILITY UNKNOWN","HBD - ABILITY IMPAIRED","HBD - ABILITY NOT IMPAIRED","HBD - ABILITY UNKNOWN",null,null,null,null,null,null,null,"PrjID","PrjType","SumPrjLen","SumPrjCrash","PrjCrRate","PrjCrDensity (Crashes Per Mile Per Year)","PrjEPDO","PrjRSI","PrjADT","PrjPercentTruck","PrjTADT","PrjV/C",null,null,null,null,null,null,null,null,null,null,null,null,null,null,null,null,null,null,null,null,null,null,null,null,null,null,null,null,null,null,null,null,"Row","FileName","FileName_Path","NLF_ID","BLOG","ELOG","WAADT","WATADT","WA_VC","MinFC","MaxFC","CongLen","RSI*Crashes","ADT*Miles","TADT*Miles","V/C*Miles"]
["X"]

{"sheet":"RISeg","index":1,"n_rows":7,"n_cols":25,"rows_kept":7,"cut":false,"hidden":true,"merged":[]}
[]
[]
[]
[]
[]
[]
[null,null,null,null,"LocID","NLF_ID","LOGPOINT_COUNTY_BEGIN_NBR","LOGPOINT_COUNTY_END_NBR","SEGMENT_LENGTH_NBR","FUNCTIONAL_CLASS_CD","FED_AID_PRIMARY_CD","NATIONAL_HIGHWAY_SYSTEM_CD","PRIORITY_SYSTEM_CD","AREA_CODE_NUM","MUNICIPALITY_NME","LANES_NBR","DIVIDED_HIGHWAY_IND","MEDIAN_WIDTH_NBR","FHWA_SURFACE_TYPE_CD","SURFACE_WIDTH_NBR","ROADWAY_WIDTH_NBR","ACCESS_CONTROL_CD","SPEED_LIMIT_NUM","LANE_WIDTH_NBR","ADT_TOT"]

{"sheet":"StateBasic","index":2,"n_rows":7,"n_cols":43,"rows_kept":7,"cut":false,"hidden":true,"merged":[]}
[]
[]
[]
[]
[]
[]
[null,null,null,null,"LocID","NLF_ID","LOGPOINT_COUNTY_BEGIN_NBR","RI_STATE_BASIC.LOGPOINT_COUNTY_BEGIN_NBR+RI_STATE_BASIC.SEGMENT_LENGTH_NBR","SEGMENT_LENGTH_NBR","ADT_PSNGRCAR_TYPE_A_TRK_NBR","ADT_TOT","ADT_YR","FUNCTIONAL_CLASS_CD","LANES_NBR","DIVIDED_HIGHWAY_IND","PRIORITY_SYSTEM_CD","SPEED_LIMIT_NBR","RT_NME_DIRECTION_PREFIX_CD","RT_STREET_NME","RT_NME_SUFFIX_CD","RT_NME_DIRECTION_SUFFIX_CD","RT_NME_SPEC_SUFFIX_CD","MUNICIPALITY_NME","ACCESS_CONTROL_CD","NATIONAL_HIGHWAY_SYSTEM_CD","MILE_CLASS_CD","POPULATION_NBR","NHS_INTERMODAL_NUM","FHWA_SURFACE_TYPE_CD","STD_SURFACE_CLASS_CD","SURFACE_WIDTH_NBR","ROADWAY_WIDTH_NBR","SHOULDER_LT_OUTSIDE_NBR","LT_SHD_SURFACE_CLASS_CD","LT_SURFACE_WIDTH_NBR","SHOULDER_LT_INSIDE_NBR","SHOULDER_RT_INSIDE_NBR","RT_SHD_SURFACE_CLASS_CD","RT_SURFACE_WIDTH_NBR","SHOULDER_RT_OUTSIDE_NBR","MEDIAN_WIDTH_NBR","HPMS_MEDIAN_WIDTH_NBR","MEDIAN_TYPE_CD"]

{"sheet":"Ellis","index":3,"n_rows":7,"n_cols":71,"rows_kept":7,"cut":false,"hidden":true,"merged":[]}
[]
[]
[]
[]
[]
[]
[null,null,null,null,"LocID","NLF_ID","LOGPOINT_COUNTY_BEGIN_NBR","LOGPOINT_COUNTY_END_NBR","PID_NBR","AWARD_ENC_REQ_SFY","LOCATION_TYPE","PRIMARY_LOCATION_IND","LATITUDE_BEGIN_NBR","LONGITUDE_BEGIN_NBR","LATITUDE_END_NBR","LONGITUDE_END_NBR","DISTRICT_NBR","LOCALE_SHORT_NME","PROJECT_NME","PROJ_STATUS_TXT","PROJ_LETTING_TYPE","PRIMARY_WORK_CATEGORY","TRAC_TIER_SHORT_NME","PROGRAM_FAMILY_SHORT_NME","PROJECT_MGR_NME","ARRA_PROJECT_IND","MPO_STIMULUS_ALLOC","ODOT_STIMULUS_PROJ","RURAL_TRANSIT_STIMULUS_PROJ","URBAN_TRANSIT_STIMULUS_PROJ","AWARD_AMT","COMMITTED_EST_AMT","UNCOMMITTED_EST_AMT","TOTAL_EST_AMT","TOTAL_AWARD_EST_AMT","COMMITTED_IND","ACT_CUR_AWARD_DT","PROJ_START_EST_DT","PROJ_START_ACTUAL_DT","PROJ_COMPL_EST_DT","PROJ_COMPL_ACTUAL_DT","ACTUAL_PRIORITY_MILES","ACTUAL_URBAN_MILES","ACTUAL_GENERAL_MILES","TOTAL_LANE_MILES","SLM_MILES","IMPROVED_PCR","PVMNT_TRTMNT_CAT_LONG_NME","STRUCTURE_FILE_NBR","BRG_STAT_DESC","MAJOR_BRG_SW","MAINT_RESP_DESC","MAIN_STRUC_TYPE","MAIN_SPAN_MATL_DESC","MAIN_SPAN_TYPE_DESC","MAIN_SPAN_DESC","DECK_AREA","OVRL_STR_LEN","SUFF_RATING","DEF_FUNC_RATING_DESC","BRG_DEF_CD_IND","GENERAL_APPRAISAL_IND","FLOOR_CONDITION_IND","WEARING_SURFACE_IND","PAINT_IND","GENERAL_APPRAISAL_RATING","FLOOR_CONDITION_RATING","WEARING_SURFACE_RATING","PAINT_CONDITION_RATING","SPOT_LOCATION_TYPE","SPOT_LOCATION_DESC"]

{"sheet":"Pavement","index":4,"n_rows":7,"n_cols":33,"rows_kept":7,"cut":false,"hidden":true,"merged":[]}
[]
[]
[]
[]
[]
[]
[null,null,null,null,"LocID","NLF_ID","LOGPOINT_COUNTY_BEGIN_NBR","LOGPOINT_COUNTY_END_NBR","SEGMENT_LENGTH_NBR","PCR_NBR","DEDUCT_TOTAL_NBR","DEDUCT_STRUCTURAL_NBR","DIVIDED_UNDIVIDED_IND","DIRECTION_TXT","PAVEMENT_TYPE_CD","PAVEMENT_TYPE_TXT","CODE_1","CODE_2","CODE_3","CODE_4","CODE_5","CODE_6","CODE_7","CODE_8","CODE_9","CODE_10","CODE_11","CODE_12","CODE_13","CODE_14","CODE_15","CODE_16","CODE_17"]

{"sheet":"Bridge","index":5,"n_rows":7,"n_cols":22,"rows_kept":7,"cut":false,"hidden":true,"merged":[]}
[]
[]
[]
[]
[]
[]
[null,null,null,null,"LocID","NLF_ID_INV","LOGPOINT_COUNTY_INV_NBR","LATITUDE_INV_NBR","LONGITUDE_INV_NBR","sfn","DECK_AREA","GEN_APPRAISAL","DECK_FLOOR","DECK_WEAR_SURF","PAINT","DEFIC_FUNC_RATING","SUFF_RATING","MAINT_RESP_CD","OVRL_STR_LEN","GEN_OPR_STATUS","YR_BUILT","MAIN_STRUC_TYPE"]

{"sheet":"AssetSQL","index":6,"n_rows":20,"n_cols":201,"rows_kept":20,"cut":false,"hidden":true,"merged":[]}
[]
[]
[]
[]
[]
[]
[]
[]
[]
[]
[null,null,3,4,5,6,7,8,9,10,11,12,13,14,15,16,17,18,19,20,21,22,23,24,25,26,27,28,29,30,31,32,33,34,35,36,37,38,39,40,41,42,43,44,45,46,47,48,49,50,51,52,53,54,55,56,57,58,59,60,61,62,63,64,65,66,67,68,69,70,71,72,73,74,75,76,77,78,79,80,81,82,83,84,85,86,87,88,89,90,91,92,93,94,95,96,97,98,99,100,101,102,103,104,105,106,107,108,109,110,111,112,113,114,115,116,117,118,119,120,121,122,123,124,125,126,127,128,129,130,131,132,133,134,135,136,137,138,139,140,141,142,143,144,145,146,147,148,149,150,151,152,153,154,155,156,157,158,159,160,161,162,163,164,165,166,167,168,169,170,171,172,173,174,175,176,177,178,179,180,181,182,183,184,185,186,187,188,189,190,191,192,193,194,195,196,197,198,199,200,201]
[]
[]
[]
[]
[]
[]
["RI Segments",null,null,null,null,null,null,null,null,null,null,null,null,null,null,null,null,null,null,null,null,null,null,null,null,null,null,null,"State Basic",null,null,null,null,null,null,null,null,null,null,null,null,null,null,null,null,null,null,null,null,null,null,null,null,null,null,null,null,null,null,null,null,null,null,null,null,null,null,null,null,null,null,null,null,null,"EllisProjLocation",null,null,null,null,null,null,null,null,null,null,null,null,null,null,null,null,null,null,null,null,null,null,null,null,null,null,null,null,null,null,null,null,null,null,null,null,null,null,null,null,null,null,null,null,null,null,null,null,null,null,null,null,null,null,null,null,null,null,null,null,null,null,null,null,null,null,null,null,null,null,null,null,null,"Pavement",null,null,null,null,null,null,null,null,null,null,null,null,null,null,null,null,null,null,null,null,null,null,null,null,null,null,null,null,null,null,null,null,null,null,"Bridge"]
[]
["LocID","NLF_ID","LOGPOINT_COUNTY_BEGIN_NBR","LOGPOINT_COUNTY_END_NBR","SEGMENT_LENGTH_NBR","FUNCTIONAL_CLASS_CD","FED_AID_PRIMARY_CD","NATIONAL_HIGHWAY_SYSTEM_CD","PRIORITY_SYSTEM_CD","AREA_CODE_NUM","MUNICIPALITY_NME","LANES_NBR","DIVIDED_HIGHWAY_IND","MEDIAN_WIDTH_NBR","FHWA_SURFACE_TYPE_CD","SURFACE_WIDTH_NBR","ROADWAY_WIDTH_NBR","ACCESS_CONTROL_CD","SPEED_LIMIT_NUM","LANE_WIDTH_NBR","ADT_TOT",null,null,null,null,null,null,null,"LocID","NLF_ID","LOGPOINT_COUNTY_BEGIN_NBR","RI_STATE_BASIC.LOGPOINT_COUNTY_BEGIN_NBR+RI_STATE_BASIC.SEGMENT_LENGTH_NBR","SEGMENT_LENGTH_NBR","ADT_PSNGRCAR_TYPE_A_TRK_NBR","ADT_TOT","ADT_YR","FUNCTIONAL_CLASS_CD","LANES_NBR","DIVIDED_HIGHWAY_IND","PRIORITY_SYSTEM_CD","SPEED_LIMIT_NBR","RT_NME_DIRECTION_PREFIX_CD","RT_STREET_NME","RT_NME_SUFFIX_CD","RT_NME_DIRECTION_SUFFIX_CD","RT_NME_SPEC_SUFFIX_CD","MUNICIPALITY_NME","ACCESS_CONTROL_CD","NATIONAL_HIGHWAY_SYSTEM_CD","MILE_CLASS_CD","POPULATION_NBR","NHS_INTERMODAL_NUM","FHWA_SURFACE_TYPE_CD","STD_SURFACE_CLASS_CD","SURFACE_WIDTH_NBR","ROADWAY_WIDTH_NBR","SHOULDER_LT_OUTSIDE_NBR","LT_SHD_SURFACE_CLASS_CD","LT_SURFACE_WIDTH_NBR","SHOULDER_LT_INSIDE_NBR","SHOULDER_RT_INSIDE_NBR","RT_SHD_SURFACE_CLASS_CD","RT_SURFACE_WIDTH_NBR","SHOULDER_RT_OUTSIDE_NBR","MEDIAN_WIDTH_NBR","HPMS_MEDIAN_WIDTH_NBR","MEDIAN_TYPE_CD",null,null,null,null,null,null,null,"LocID","NLF_ID","LOGPOINT_COUNTY_BEGIN_NBR","LOGPOINT_COUNTY_END_NBR","PID_NBR","AWARD_ENC_REQ_SFY","LOCATION_TYPE","PRIMARY_LOCATION_IND","LATITUDE_BEGIN_NBR","LONGITUDE_BEGIN_NBR","LATITUDE_END_NBR","LONGITUDE_END_NBR","DISTRICT_NBR","LOCALE_SHORT_NME","PROJECT_NME","PROJ_STATUS_TXT","PROJ_LETTING_TYPE","PRIMARY_WORK_CATEGORY","TRAC_TIER_SHORT_NME","PROGRAM_FAMILY_SHORT_NME","PROJECT_MGR_NME","ARRA_PROJECT_IND","MPO_STIMULUS_ALLOC","ODOT_STIMULUS_PROJ","RURAL_TRANSIT_STIMULUS_PROJ","URBAN_TRANSIT_STIMULUS_PROJ","AWARD_AMT","COMMITTED_EST_AMT","UNCOMMITTED_EST_AMT","TOTAL_EST_AMT","TOTAL_AWARD_EST_AMT","COMMITTED_IND","ACT_CUR_AWARD_DT","PROJ_START_EST_DT","PROJ_START_ACTUAL_DT","PROJ_COMPL_EST_DT","PROJ_COMPL_ACTUAL_DT","ACTUAL_PRIORITY_MILES","ACTUAL_URBAN_MILES","ACTUAL_GENERAL_MILES","TOTAL_LANE_MILES","SLM_MILES","IMPROVED_PCR","PVMNT_TRTMNT_CAT_LONG_NME","STRUCTURE_FILE_NBR","BRG_STAT_DESC","MAJOR_BRG_SW","MAINT_RESP_DESC","MAIN_STRUC_TYPE","MAIN_SPAN_MATL_DESC","MAIN_SPAN_TYPE_DESC","MAIN_SPAN_DESC","DECK_AREA","OVRL_STR_LEN","SUFF_RATING","DEF_FUNC_RATING_DESC","BRG_DEF_CD_IND","GENERAL_APPRAISAL_IND","FLOOR_CONDITION_IND","WEARING_SURFACE_IND","PAINT_IND","GENERAL_APPRAISAL_RATING","FLOOR_CONDITION_RATING","WEARING_SURFACE_RATING","PAINT_CONDITION_RATING","SPOT_LOCATION_TYPE","SPOT_LOCATION_DESC",null,null,null,null,null,null,null,"LocID","NLF_ID","LOGPOINT_COUNTY_BEGIN_NBR","LOGPOINT_COUNTY_END_NBR","SEGMENT_LENGTH_NBR","PCR_NBR","DEDUCT_TOTAL_NBR","DEDUCT_STRUCTURAL_NBR","DIVIDED_UNDIVIDED_IND","DIRECTION_TXT","PAVEMENT_TYPE_CD","PAVEMENT_TYPE_TXT","CODE_1","CODE_2","CODE_3","CODE_4","CODE_5","CODE_6","CODE_7","CODE_8","CODE_9","CODE_10","CODE_11","CODE_12","CODE_13","CODE_14","CODE_15","CODE_16","CODE_17",null,null,null,null,null,null,"LocID","NLF_ID_INV","LOGPOINT_COUNTY_INV_NBR","LATITUDE_INV_NBR","LONGITUDE_INV_NBR","sfn","DECK_AREA","GEN_APPRAISAL","DECK_FLOOR","DECK_WEAR_SURF","PAINT","DEFIC_FUNC_RATING","SUFF_RATING","MAINT_RESP_CD","OVRL_STR_LEN","GEN_OPR_STATUS","YR_BUILT","MAIN_STRUC_TYPE"]

{"sheet":"CamSQL","index":7,"n_rows":20,"n_cols":200,"rows_kept":20,"cut":false,"hidden":true,"merged":[[18,164,18,165],[18,148,18,149],[18,150,18,151],[18,152,18,153],[18,154,18,155],[18,156,18,157],[18,158,18,159],[17,135,17,140],[17,141,17,146],[17,147,17,166],[18,134,18,135],[18,136,18,137],[18,138,18,139],[18,140,18,141],[18,142,18,143],[18,144,18,145],[18,146,18,147],[18,160,18,161],[18,162,18,163]]}
[]
[]
[{"$f":"D12&\"-\"&D13&D14&\" - (\"&D15&\"-\"&D16&\")  \"&\"From \"&D17&\" to \"&D18","v":"CLE-IR-275R - (8.95-10.4)  From 2007 to 2009"}]
[]
[]
[]
[]
[]
[]
[]
[null,22,3,4,5,6,7,8,9,10,11,12,13,14,15,16,17,18,19,20,21,22,23,24,25,26,27,28,29,30,31,32,33,34,35,36,37,38,39,40,41,42,43,44,45,46,47,48,49,50,51,52,53,54,55,56,57,58,59,60,61,62,63,64,65,66,67,68,69,70,71,72,73,74,75,76,77,78,79,80,81,82,83,84,85,86,87,88,89,90,91,92,93,94,95,96,97,98,99,100,101,102,103,104,105,106,107,108,109,110,111,112,113,114,115,116,117,118,119,120,121,122,123,124,125,126,127,128,129,130,131,132,133,134,135,136,137,138,139,140,141,142,143,144,145,146,147,148,149,150,151,152,153,154,155,156,157,158,159,160,161,162,163,164,165,166,167,168,169,170,171,172,173,174,175,176,177,178,179,180,181,182,183,184,185,186,187,188,189,190,191,192,193,194,195,196,197,198,199,200]
[null,"Slm!1County","1",{"$f":"MID(H13,2,3)","v":"CLE"},null,null,null,"NLF_ID","BEGIN_LOG","END_LOG","BEGIN_YEAR","END_YEAR"]
[null,"Slm!2Route","1",{"$f":"MID(H13,5,2)&\"-\"&MID(H13,9,3)","v":"IR-275"},null,null,null,"SCLEIR00275**C",8.9499999999999993,10.4,2007,2009]
[null,"Slm!31RouteSuffix","1",{"$f":"IF(MID(H13,13,1)=\"*\",\"R\",(MID(H13,13,1)))","v":"R"}]
[null,"Slm!3Begin","1",{"$f":"I13","v":8.9499999999999993}]
[null,"Slm!4End","1",{"$f":"J13","v":10.4}]
[null,"TCrashDte!1Begin","1",{"$f":"K13","v":2007}]
[null,"TCrashDte!2End","1",{"$f":"L13","v":2009}]
[{"$f":"IF(AQ19=\"\",\"\",HYPERLINK(AQ19,\"Crash Report\"))","v":""},"Logged or Unlogged","1","L"]
["HYPERLINK","ACCIDENTS_POINTS_NBR","LOCAL_REPORT_NBR","NLF_ID","LOGPOINT_SLM_NBR","CRASH_DT","STREET1","STREET2_REFERENCE","DISTANCE_OFFSET","DAY_OF_WEEK_TXT","HOUR_OF_DAY","LIGHT_CONDITION_TXT","TYPE_OF_CRASH_TXT","NUMBER_OF_VEHICLES","CRASH_SEVERITY_TXT","WEATHER_CONDITION_TXT","ROAD_CONDITION_TXT","LOCATION_TXT","CONTRIBUTING_FACTOR1_TXT","ACTION1_TXT","OBJECT_STRUCK1_TXT","VEHICLE_TYPE1_TXT","DIRECTION_FROM1_TXT","DIRECTION_TO1_TXT","DRIVER_AGE1","DRIVER_GENDER1_TXT","TRAFFIC_CONTROL1_TXT","DRIVER_ALCOHOL1_TXT","DRIVER_DRUGS1_TXT","ESTIMATED_SPEED1_TXT","POSTED_SPEED1_TXT","CONTRIBUTING_FACTOR2_TXT","ACTION2_TXT","VEHICLE_TYPE2_TXT","DRIVER_AGE2","DRIVER_GENDER2_TXT","DIRECTION_FROM2_TXT","DIRECTION_TO2_TXT","DRIVER_ALCOHOL2_TXT","DRIVER_DRUGS2_TXT","SPECIAL_AREA_TXT","ANIMAL_TYPE_TXT","FILENAME_NME","ROAD_CONTOUR_TXT","INJ_TYPE1_FATAL","INJ_TYPE2_SERIOUS_VISIBLE","INJ_TYPE3_MINOR_VISIBLE","INJ_TYPE4_NO_VISIBLE","DIRECTION_FROM_REF_TXT","DISTRICT_NBR","COUNTY_CD","CITY_VILLAGE_TWP_CD","CITY_VILLAGE_TWP_NME","LATITUDE_NBR","LONGITUDE_NBR","TRAFFIC_CRASH_YEAR","CRASH_MONTH_NBR","TRAFFIC_CONTROL2_TXT","VIOLATOR_CD","FUNCTIONAL_CLASS_CD","CRASH_PREFIX_CD","CRASH_LOCATION_TXT","CRASH_LOC_ROAD_TYPE_CD","TYPE_LOCATION_PT_USED_CD","DISTANCE_FROM_REF_NBR","DIRECTION_FROM_REF_CD","REFERENCE_PREFIX_CD","REFERENCE_POINT_TXT","REFERENCE_TYPE_CD","REFERENCE_POINT_USED_CD","TYPE_OF_INTERSECTION_CD"]

{"sheet":"ODPS_Data","index":8,"n_rows":20,"n_cols":255,"rows_kept":20,"cut":false,"hidden":true,"merged":[]}
[]
[]
[]
[]
[]
[]
[]
[]
[]
[]
[]
[]
[]
[]
[]
[]
[]
[]
[]
[null,null,null,null,null,"DocumentNumber","LocalReportNumber","NCIC","NumberOfUnits","ErrorUnitNumber","SeverityID","HitSkipID","COUNTYID","FIPSPlaceCode","CityVillageTownshipId","CITY","CrashDate","CrashTime","CrashDay","CrashPrefix","LocationRoadName","LocationRoadType","DistanceFromReference","DirectionReference","ReferencePrefix","ReferenceRoadName","ReferenceRoadType","ReferencePointUsedID","LATITUDE","LONGITUDE","WeatherConditionID","PrimaryRoadConditionID","SecondaryRoadConditionID","PrimaryLightConditionID","SecondaryLightConditionID","RoadContourID","LocationFirstHarmfulEvent","CollisionTypeID","DividedUnDividedRoadway","DIVIDEDLANEDIRECTION","DistanceReferenceMeasurement","ReferenceRouteType","ReferenceRouteNumber","LocationRouteType","LocationRouteNumber","IsIntersectionRelated","IsSchoolZoneRelated","LawEnforcementPresentID","IsWorkerPresent","WorkZoneLocationID","WorkZoneType","ROADSURFACE","NUMBEROFLANES","CrashLocation","SchoolBusRelatedID","IsWorkZoneRelated","UnitNumber_1","OCCUPANTS_1","ISPROOFOFINSURANCESHOWN_1","IsTowedFlag_1","FromDirectionID_1","ToDirectionID_1","MostDamagedAreaID_1","DamageScaleID_1","UnitTypeID_1","UnitSpeed_1","PostedSpeed_1","PreCrashActionID_1","TrafficControlID_1","CircumstanceID_1","DefectCodeID_1","SequenceEvent1ID_1","SequenceEvent2ID_1","SequenceEvent3ID_1","SequenceEvent4ID_1","SequenceEvent5ID_1","SequenceEvent6ID_1","FirstHarmfulEventID_1","MostHarmfulEventID_1","ActionTypeID_1","ImpactAreaID_1","NonMotoristLocationID_1","CargoBodyTypeID_1","WeightClassID_1","OLClass_1","HasHMPlacard_1","IsHazardousMaterialReleased_1","AGE_1","GenderID_1","InjuredTakenBy_1","SafetyEquipmentTypeID_1","AirbagDeployTypeID_1","InjuryTypeID_1","DriverConditionID_1","AlcoholDrugSuspectTypeID_1","TrafficwayDescriptionId_1","IsHitAndRun_1","SpecialFunctionId_1","CIRCUMSTANCE2ID_1","DOTCompMotorCycleHelmet_1","DriverDistractedBy1Id_1","DriverDistractedBy2Id_1","HandsFreeDeviceUsed_1","IsValidOPeratorLicense_1","TypeOfUseID_1","MotorcycleEndorsementID_1","UnitNumber_2","OCCUPANTS_2","IsProofOfInsuranceShown_2","IsTowedFlag_2","FromDirectionID_2","ToDirectionID_2","MostDamagedAreaID_2","DamageScaleID_2","UnitTypeID_2","UnitSpeed_2","PostedSpeed_2","PreCrashActionID_2","TrafficControlID_2","CircumstanceID_2","DefectCodeID_2","SequenceEvent1ID_2","SequenceEvent2ID_2","SequenceEvent3ID_2","SequenceEvent4ID_2","SequenceEvent5ID_2","SequenceEvent6ID_2","FirstHarmfulEventID_2","MostHarmfulEventID_2","ActionTypeID_2","ImpactAreaID_2","NonMotoristLocationID_2","CargoBodyTypeID_2","WeightClassID_2","OLClass_2","HasHMPlacard_2","IsHazardousMaterialReleased_2","AGE_2","GenderID_2","InjuredTakenBy_2","SafetyEquipmentTypeID_2","AirbagDeployTypeID_2","InjuryTypeID_2","DriverConditionID_2","AlcoholDrugSuspectTypeID_2","TrafficwayDescriptionId_2","IsHitAndRun_2","SpecialFunctionId_2","CIRCUMSTANCE2ID_2","DOTCompMotorCycleHelmet_2","DriverDistractedBy1Id_2","DriverDistractedBy2Id_2","HandsFreeDeviceUsed_2","IsValidOPeratorLicense_2","TypeOfUseID_2","MotorcycleEndorsementID_2","UnitNumber_3","OCCUPANTS_3","IsProofOfInsuranceShown_3","IsTowedFlag_3","FromDirectionID_3","ToDirectionID_3","MostDamagedAreaID_3","DamageScaleID_3","UnitTypeID_3","UnitSpeed_3","PostedSpeed_3","PreCrashActionID_3","TrafficControlID_3","CircumstanceID_3","DefectCodeID_3","SequenceEvent1ID_3","SequenceEvent2ID_3","SequenceEvent3ID_3","SequenceEvent4ID_3","SequenceEvent5ID_3","SequenceEvent6ID_3","FirstHarmfulEventID_3","MostHarmfulEventID_3","ActionTypeID_3","ImpactAreaID_3","NonMotoristLocationID_3","CargoBodyTypeID_3","WeightClassID_3","OLClass_3","HasHMPlacard_3","IsHazardousMaterialReleased_3","AGE_3","GenderID_3","InjuredTakenBy_3","SafetyEquipmentTypeID_3","AirbagDeployTypeID_3","InjuryTypeID_3","DriverConditionID_3","AlcoholDrugSuspectTypeID_3","TrafficwayDescriptionId_3","IsHitAndRun_3","SpecialFunctionId_3","Circumstance2Id_3","DOTCompMotorCycleHelmet_3","DriverDistractedBy1Id_3","DriverDistractedBy2Id_3","HandsFreeDeviceUsed_3","IsValidOPeratorLicense_3","TypeOfUseID_3","MotorcycleEndorsementID_3","PED_AGE","PED_GenderID","PED_InjuredTakenBy","PED_InjuryTypeID","PED_ConditionID","PED_AlcoholDrugSuspectTypeID","PED_PreCrashActionID","PED_CircumstanceID","PED_ActionTypeID","PED_NonMotoristLocationID","TotalInjured","TotalKilled","TotalInjuries_1","TotalInjuries_2","TotalInjuries_3","TotalInjuries_4","TotalInjuries_5","TotalInjuries_6","Total_Pedestrians","Total_PedestrianInjuries","Total_PedestrianDeaths","IsAlcoholRelated","IsDrugRelated","AnimalRelated","IsBicycleRelated","IsMotorcycleRelated","IsSpeedRelated","IsPedestrianRelated","IsSemiTruckRelated","IsSmallTruckRelated","IsYouthRelated","IsTeenRelated","IsDUI21Related","IsSeniorRelated","OD_DOCNO","NLF_ID","DISTRICT","OD_COUNTY","ROUTE_TYPE","ROUTE_SUFFIX","SLM_LOG","COUNTY_TRUE_LOG","STATE_TRUE_LOG","OD_LATITUDE","OD_LONGITUDE","FIPS_CODE","FLIP_INDICATOR","PROBABLE_INTERSECT_REL","CRASH_TYPE"]

{"sheet":"RefTables","index":9,"n_rows":680,"n_cols":33,"rows_kept":680,"cut":false,"hidden":true,"merged":[]}
[null,null,null,null,null,null,"Header","Category Txt","Code ID","LookVal","Code Text","Active Inc","Sort Nbr","Code Text (NEW)",null,null,null,null,null,"ODPS Lookup","Vehicle Type",null,null,"Contributing Circumstances",null,null,"Action",null,null,"Unit Speed Range"]
[null,null,null,null,null,null,"CRASH_SEVERITY_CD","CRASH_SEVERITY_CD_FRM",1,"CRASH_SEVERITY_CD1","Fatal Crash","N",null,"Fatal Crash",null,null,null,null,null,null,"Old","New",null,"Old","New",null,"Old","New",null,"Range Num","Code"]
[null,null,null,null,null,null,"CRASH_SEVERITY_CD","CRASH_SEVERITY_CD_FRM",2,"CRASH_SEVERITY_CD2","Injury Crash","N",null,"Injury Crash",null,null,null,null,null,null,1,1,"Sub-Compact",1,1,"None",1,1,"Straight Ahead",0,1,"U1_UNIT_SPEED_RANGE_CD1","Unit Speed 20 and Under"]
[null,null,null,null,null,null,"CRASH_SEVERITY_CD","CRASH_SEVERITY_CD_FRM",3,"CRASH_SEVERITY_CD3","Property Damage Crash","N",null,"Property Damage Only Crash",null,null,null,null,null,null,2,2,"Compact",2,2,"Failure To Yield",2,2,"Backing",21,2,"U1_UNIT_SPEED_RANGE_CD2","Unit Speed 21-25"]
[null,null,null,null,null,null,"SEVERITY_BY_TYPE_CD","Crash Severity",1,"SEVERITY_BY_TYPE_CD1","PDO/No Injury","Y",5,"PDO/No Injury",null,null,null,null,null,null,3,3,"Mid Size",3,3,"Ran Red Light",3,3,"Changing Lanes",26,3,"U1_UNIT_SPEED_RANGE_CD3","Unit Speed 26-30"]
[null,null,null,null,null,null,"SEVERITY_BY_TYPE_CD","Crash Severity",2,"SEVERITY_BY_TYPE_CD2","Possible","Y",4,"Possible",null,null,null,null,null,null,24,12,"Other Passenger Vehicle",3,4,"Ran Stop Sign",4,4,"Overtaking/Passing",31,4,"U1_UNIT_SPEED_RANGE_CD4","Unit Speed 31-35"]
[null,null,null,null,null,null,"SEVERITY_BY_TYPE_CD","Crash Severity",3,"SEVERITY_BY_TYPE_CD3","Non-Incapacitating","Y",3,"Non-Incapacitating",null,null,null,null,null,null,27,12,"Other Passenger Vehicle",4,5,"Exceeded Speed Limit",5,5,"Making Right Turn",36,5,"U1_UNIT_SPEED_RANGE_CD5","Unit Speed 36-40"]
[null,null,null,null,null,null,"SEVERITY_BY_TYPE_CD","Crash Severity",4,"SEVERITY_BY_TYPE_CD4","Incapacitating","Y",2,"Incapacitating",null,null,null,null,null,null,4,4,"Full Size",5,6,"Unsafe Speed",6,6,"Making Left Turn",41,6,"U1_UNIT_SPEED_RANGE_CD6","Unit Speed 41-45"]
[null,null,null,null,null,null,"SEVERITY_BY_TYPE_CD","Crash Severity",5,"SEVERITY_BY_TYPE_CD5","Fatal","Y",1,"Fatal",null,null,null,null,null,null,5,5,"Minivan",6,7,"Improper Turn",7,7,"Making U-Turn",46,7,"U1_UNIT_SPEED_RANGE_CD7","Unit Speed 46-50"]
[null,null,null,null,null,null,"CRASH_TYPE_CD","Crash Type",0,"CRASH_TYPE_CD0","Unknown","Y",1,"Unknown",null,null,null,null,null,null,6,6,"Sport Utility Vehicle",7,8,"Left Of Center",8,8,"Entering Traffic Lane",51,8,"U1_UNIT_SPEED_RANGE_CD8","Unit Speed 51-55"]
[null,null,null,null,null,null,"CRASH_TYPE_CD","Crash Type",1,"CRASH_TYPE_CD1","Head On","Y",2,"Head On",null,null,null,null,null,null,7,7,"Pickup",8,9,"Followed To Closely/ACDA",9,9,"Leaving Traffic Lane",56,9,"U1_UNIT_SPEED_RANGE_CD9","Unit Speed 56-60"]
[null,null,null,null,null,null,"CRASH_TYPE_CD","Crash Type",2,"CRASH_TYPE_CD2","Rear End","Y",3,"Rear End",null,null,null,null,null,null,8,8,"Van",9,10,"Improper Lane Change/Passing/Offroad",10,10,"Parked",61,10,"U1_UNIT_SPEED_RANGE_CD10","Unit Speed 61-65"]
[null,null,null,null,null,null,"CRASH_TYPE_CD","Crash Type",3,"CRASH_TYPE_CD3","Backing","Y",4,"Backing",null,null,null,null,null,null,18,9,"Motorcycle",10,11,"Improper Backing",11,11,"Slowing Or Stopped In Traffic",66,11,"U1_UNIT_SPEED_RANGE_CD11","Unit Speed Over 65"]
[null,null,null,null,null,null,"CRASH_TYPE_CD","Crash Type",4,"CRASH_TYPE_CD4","Sideswipe - Meeting","Y",5,"Sideswipe - Meeting",null,null,null,null,null,null,19,10,"Motorized Bicycle",11,12,"Improper Start From Parked Position",12,12,"Driverless",null,0,"U1_UNIT_SPEED_RANGE_CD0","Unit Speed Not Stated"]
[null,null,null,null,null,null,"CRASH_TYPE_CD","Crash Type",5,"CRASH_TYPE_CD5","Sideswipe - Passing","Y",6,"Sideswipe - Passing",null,null,null,null,null,null,32,11,"Snowmobile/ATV",12,13,"Stopped Or Parked Illegally",13,14,"Other Motorist Action"]
[null,null,null,null,null,null,"CRASH_TYPE_CD","Crash Type",6,"CRASH_TYPE_CD6","Angle","Y",7,"Angle",null,null,null,null,null,null,9,13,"Single Unit Truck Or Van 2 Axle, 6 Tires",13,14,"Operating Vehicle In Negligent Manner",15,15,"Entering Or Crossing Specified Location"]
[null,null,null,null,null,null,"CRASH_TYPE_CD","Crash Type",7,"CRASH_TYPE_CD7","Parked Vehicle","Y",8,"Parked Vehicle",null,null,null,null,null,null,10,14,"Single Unit Truck; 3+ Axles",14,15,"Swerving To Avoid",16,16,"Walking, Running, Jogging, Playing, Cycling"]
[null,null,null,null,null,null,"CRASH_TYPE_CD","Crash Type",8,"CRASH_TYPE_CD8","Pedestrian","Y",9,"Pedestrian",null,null,null,null,null,null,11,15,"Single Unit Truck/Trailer",15,17,"Failure To Control",17,17,"Working"]
[null,null,null,null,null,null,"CRASH_TYPE_CD","Crash Type",9,"CRASH_TYPE_CD9","Animal","Y",10,"Animal",null,null,null,null,null,null,12,16,"Truck/Tractor (Bobtail)",16,18,"Vision Obstruction",20,17,"Working"]
[null,null,null,null,null,null,"CRASH_TYPE_CD","Crash Type",10,"CRASH_TYPE_CD10","Train","Y",11,"Train",null,null,null,null,null,null,13,17,"Tractor/Semi-Trailer",19,19,"Operating Defective Equipment",18,18,"Pushing Vehicle"]
[null,null,null,null,null,null,"CRASH_TYPE_CD","Crash Type",11,"CRASH_TYPE_CD11","Pedalcycles","Y",12,"Pedalcycles",null,null,null,null,null,null,14,18,"Tractor/Double",20,20,"Load Shifting/Falling/Spilling",19,19,"Approaching Or Leaving Vehicle"]
[null,null,null,null,null,null,"CRASH_TYPE_CD","Crash Type",12,"CRASH_TYPE_CD12","Other Non-Vehicle","Y",13,"Other Non-Vehicle",null,null,null,null,null,null,15,18,"Tractor/Double",21,21,"Other Improper Action",21,20,"Standing"]
[null,null,null,null,null,null,"CRASH_TYPE_CD","Crash Type",13,"CRASH_TYPE_CD13","Fixed Object","Y",14,"Fixed Object",null,null,null,null,null,null,17,19,"Tractor/Triples",17,21,"Other Improper Action",22,21,"Other Non-Motorist Action"]
[null,null,null,null,null,null,"CRASH_TYPE_CD","Crash Type",14,"CRASH_TYPE_CD14","Other Object","Y",15,"Other Object",null,null,null,null,null,null,16,20,"Other Med/Heavy Vehicle",18,21,"Other Improper Action",14,99,"Unknown"]
[null,null,null,null,null,null,"CRASH_TYPE_CD","Crash Type",15,"CRASH_TYPE_CD15","Falling From Or In Vehicle","Y",16,"Falling From Or In Vehicle",null,null,null,null,null,null,25,20,"Other Med/Heavy Vehicle",23,22,"None Non-Motorist",23,99,"Unknown"]
[null,null,null,null,null,null,"CRASH_TYPE_CD","Crash Type",16,"CRASH_TYPE_CD16","Overturning","Y",17,"Overturning",null,null,null,null,null,null,26,20,"Other Med/Heavy Vehicle",24,23,"Improper Crossing"]
[null,null,null,null,null,null,"CRASH_TYPE_CD","Crash Type",17,"CRASH_TYPE_CD17","Other Non-Collision","Y",18,"Other Non-Collision",null,null,null,null,null,null,28,20,"Other Med/Heavy Vehicle",25,24,"Darting"]
[null,null,null,null,null,null,"CRASH_TYPE_CD","Crash Type",18,"CRASH_TYPE_CD18","Left Turn","Y",19,"Left Turn",null,null,null,null,null,null,29,20,"Other Med/Heavy Vehicle",26,25,"Lying And/Or Illegally In Roadway"]
[null,null,null,null,null,null,"FUNCTIONAL_CLASS_CD","FUNCTIONAL_CLASS_CD_FRM",1,"FUNCTIONAL_CLASS_CD1","Principal Arterial-Interstate Rural","N",null,"Principal Arterial-Interstate Rural",null,null,null,null,null,null,30,20,"Other Med/Heavy Vehicle",27,26,"Failure To Yield Right Of Way"]
[null,null,null,null,null,null,"FUNCTIONAL_CLASS_CD","FUNCTIONAL_CLASS_CD_FRM",2,"FUNCTIONAL_CLASS_CD2","Principal Arterial-Other Rural","N",null,"Principal Arterial-Other Rural",null,null,null,null,null,null,31,20,"Other Med/Heavy Vehicle",28,27,"Not Visible (Dark Clothing)"]
[null,null,null,null,null,null,"FUNCTIONAL_CLASS_CD","FUNCTIONAL_CLASS_CD_FRM",6,"FUNCTIONAL_CLASS_CD6","Minor Arterial-Rural","N",null,"Minor Arterial-Rural",null,null,null,null,null,null,33,20,"Other Med/Heavy Vehicle",29,28,"Inattentive"]
[null,null,null,null,null,null,"FUNCTIONAL_CLASS_CD","FUNCTIONAL_CLASS_CD_FRM",7,"FUNCTIONAL_CLASS_CD7","Major Collector-Rural","N",null,"Major Collector-Rural",null,null,null,null,null,null,20,22,"Bus (16+ Seats, Inc Driver)",30,29,"Failure To Obey Signs/Signals/Officer"]
[null,null,null,null,null,null,"FUNCTIONAL_CLASS_CD","FUNCTIONAL_CLASS_CD_FRM",8,"FUNCTIONAL_CLASS_CD8","Minor Collector-Rural","N",null,"Minor Collector-Rural",null,null,null,null,null,null,21,22,"Bus (16+ Seats, Inc Driver)",31,30,"Wrong Side Of The Road"]
[null,null,null,null,null,null,"FUNCTIONAL_CLASS_CD","FUNCTIONAL_CLASS_CD_FRM",9,"FUNCTIONAL_CLASS_CD9","Local-Rural","N",null,"MLocal-Rural",null,null,null,null,null,null,22,22,"Bus (16+ Seats, Inc Driver)",32,31,"Other Non-Motorist"]
[null,null,null,null,null,null,"FUNCTIONAL_CLASS_CD","FUNCTIONAL_CLASS_CD_FRM",11,"FUNCTIONAL_CLASS_CD11","Principal Arterial-Interstate Urban","N",null,"Principal Arterial-Interstate Urban",null,null,null,null,null,null,23,22,"Bus (16+ Seats, Inc Driver)",22,99,"Unknown"]
[null,null,null,null,null,null,"FUNCTIONAL_CLASS_CD","FUNCTIONAL_CLASS_CD_FRM",12,"FUNCTIONAL_CLASS_CD12","Principal Arterial-Other Frwy Urban","N",null,"Principal Arterial-Other Frwy Urban",null,null,null,null,null,null,35,23,"Animal With Rider",33,99,"Unknown"]
[null,null,null,null,null,null,"FUNCTIONAL_CLASS_CD","FUNCTIONAL_CLASS_CD_FRM",14,"FUNCTIONAL_CLASS_CD14","Principal Arterial-Other Urban","N",null,"Principal Arterial-Other Urban",null,null,null,null,null,null,36,24,"Animal With Buggy, Wagon, Surrey"]
[null,null,null,null,null,null,"FUNCTIONAL_CLASS_CD","FUNCTIONAL_CLASS_CD_FRM",16,"FUNCTIONAL_CLASS_CD16","Minor Collector-Urban","N",null,"Minor Collector-Urban",null,null,null,null,null,null,37,25,"Bicycle/Pedacyclist"]
[null,null,null,null,null,null,"FUNCTIONAL_CLASS_CD","FUNCTIONAL_CLASS_CD_FRM",17,"FUNCTIONAL_CLASS_CD17","Collector-Urban","N",null,"Collector-Urban",null,null,null,null,null,null,39,25,"Bicycle/Pedacyclist"]
[null,null,null,null,null,null,"FUNCTIONAL_CLASS_CD","FUNCTIONAL_CLASS_CD_FRM",19,"FUNCTIONAL_CLASS_CD19","Local-Urban","N",null,"Local-Urban",null,null,null,null,null,null,38,26,"Pedestrian/Skater"]
[null,null,null,null,null,null,"DAY_IN_WEEK_CD","WEEK_DAY_NBR_FRM",1,"DAY_IN_WEEK_CD1","Sunday","N",null,"Sunday",null,null,null,null,null,null,40,26,"Pedestrian/Skater"]
[null,null,null,null,null,null,"DAY_IN_WEEK_CD","WEEK_DAY_NBR_FRM",2,"DAY_IN_WEEK_CD2","Monday","N",null,"Monday",null,null,null,null,null,null,41,27,"Other Non-Motorist"]
[null,null,null,null,null,null,"DAY_IN_WEEK_CD","WEEK_DAY_NBR_FRM",3,"DAY_IN_WEEK_CD3","Tuesday","N",null,"Tuesday",null,null,null,null,null,null,34,99,"Unknown Or Hit/Skip"]
[null,null,null,null,null,null,"DAY_IN_WEEK_CD","WEEK_DAY_NBR_FRM",4,"DAY_IN_WEEK_CD4","Wednesday","N",null,"Wednesday",null,null,null,null,null,null,42,99,"Unknown Or Hit/Skip"]
[null,null,null,null,null,null,"DAY_IN_WEEK_CD","WEEK_DAY_NBR_FRM",5,"DAY_IN_WEEK_CD5","Thursday","N",null,"Thursday",null,null,null,null,null,null,null,21,"Bus/Van (9-15 Seats Inc Driver)"]
[null,null,null,null,null,null,"DAY_IN_WEEK_CD","WEEK_DAY_NBR_FRM",6,"DAY_IN_WEEK_CD6","Friday","N",null,"Friday"]
[null,null,null,null,null,null,"DAY_IN_WEEK_CD","WEEK_DAY_NBR_FRM",7,"DAY_IN_WEEK_CD7","Saturday","N",null,"Saturday"]
[null,null,null,null,null,null,"ODPS_CRASH_LOCATION_CD","Crash Location",1,"ODPS_CRASH_LOCATION_CD1","Not An Intersection","Y",1,"Not An Intersection"]
[null,null,null,null,null,null,"ODPS_CRASH_LOCATION_CD","Crash Location",2,"ODPS_CRASH_LOCATION_CD2","Four-Way Intersection","Y",2,"Four-Way Intersection"]
[null,null,null,null,null,null,"ODPS_CRASH_LOCATION_CD","Crash Location",3,"ODPS_CRASH_LOCATION_CD3","T-Intersection","Y",3,"T-Intersection"]
[null,null,null,null,null,null,"ODPS_CRASH_LOCATION_CD","Crash Location",4,"ODPS_CRASH_LOCATION_CD4","Y-Intersection","Y",4,"Y-Intersection"]
[null,null,null,null,null,null,"ODPS_CRASH_LOCATION_CD","Crash Location",5,"ODPS_CRASH_LOCATION_CD5","Traffic Circle/Roundabout","Y",5,"Traffic Circle/Roundabout"]
[null,null,null,null,null,null,"ODPS_CRASH_LOCATION_CD","Crash Location",6,"ODPS_CRASH_LOCATION_CD6","5 Or More Point Intersection","Y",6,"5 Or More Point Intersection"]
[null,null,null,null,null,null,"ODPS_CRASH_LOCATION_CD","Crash Location",7,"ODPS_CRASH_LOCATION_CD7","On Ramp","Y",7,"On Ramp"]
[null,null,null,null,null,null,"ODPS_CRASH_LOCATION_CD","Crash Location",8,"ODPS_CRASH_LOCATION_CD8","Off Ramp","Y",8,"Off Ramp"]
[null,null,null,null,null,null,"ODPS_CRASH_LOCATION_CD","Crash Location",9,"ODPS_CRASH_LOCATION_CD9","Crossover","Y",9,"Crossover"]
[null,null,null,null,null,null,"ODPS_CRASH_LOCATION_CD","Crash Location",10,"ODPS_CRASH_LOCATION_CD10","Driveway/Alley Access","Y",10,"Driveway/Alley Access"]
[null,null,null,null,null,null,"ODPS_CRASH_LOCATION_CD","Crash Location",11,"ODPS_CRASH_LOCATION_CD11","Railroad Grade Crossing","Y",11,"Railroad Grade Crossing"]
[null,null,null,null,null,null,"ODPS_CRASH_LOCATION_CD","Crash Location",12,"ODPS_CRASH_LOCATION_CD12","Shared-Use Paths Or Trails","Y",12,"Shared-Use Paths Or Trails"]
[null,null,null,null,null,null,"ODPS_CRASH_LOCATION_CD","Crash Location",99,"ODPS_CRASH_LOCATION_CD99","Unknown","Y",13,"Unknown"]
[null,null,null,null,null,null,"WEATHER_COND_CD","Weather Conditions",1,"WEATHER_COND_CD1","Clear","Y",1,"Clear"]
[null,null,null,null,null,null,"WEATHER_COND_CD","Weather Conditions",2,"WEATHER_COND_CD2","Cloudy","Y",2,"Cloudy"]
[null,null,null,null,null,null,"WEATHER_COND_CD","Weather Conditions",3,"WEATHER_COND_CD3","Fog, Smog, Smoke","Y",3,"Fog, Smog, Smoke"]
[null,null,null,null,null,null,"WEATHER_COND_CD","Weather Conditions",4,"WEATHER_COND_CD4","Rain","Y",4,"Rain"]
[null,null,null,null,null,null,"WEATHER_COND_CD","Weather Conditions",5,"WEATHER_COND_CD5","Sleet, Hail","Y",5,"Sleet, Hail"]
[null,null,null,null,null,null,"WEATHER_COND_CD","Weather Conditions",6,"WEATHER_COND_CD6","Snow","Y",6,"Snow"]
[null,null,null,null,null,null,"WEATHER_COND_CD","Weather Conditions",7,"WEATHER_COND_CD7","Severe Crosswinds","Y",7,"Severe Crosswinds"]
[null,null,null,null,null,null,"WEATHER_COND_CD","Weather Conditions",8,"WEATHER_COND_CD8","Blowing Sand, Soil, Dirt, Snow","Y",8,"Blowing Sand, Soil, Dirt, Snow"]
[null,null,null,null,null,null,"WEATHER_COND_CD","Weather Conditions",9,"WEATHER_COND_CD9","Other/Unknown","Y",9,"Other/Unknown"]
[null,null,null,null,null,null,"ROAD_COND_PRIMARY_CD","Road Conditions",1,"ROAD_COND_PRIMARY_CD1","Road - Dry","Y",1,"Dry"]
[null,null,null,null,null,null,"ROAD_COND_PRIMARY_CD","Road Conditions",2,"ROAD_COND_PRIMARY_CD2","Road - Wet","Y",2,"Wet"]
[null,null,null,null,null,null,"ROAD_COND_PRIMARY_CD","Road Conditions",3,"ROAD_COND_PRIMARY_CD3","Road - Snow","Y",3,"Snow"]
[null,null,null,null,null,null,"ROAD_COND_PRIMARY_CD","Road Conditions",4,"ROAD_COND_PRIMARY_CD4","Road - Ice","Y",4,"Ice"]
[null,null,null,null,null,null,"ROAD_COND_PRIMARY_CD","Road Conditions",5,"ROAD_COND_PRIMARY_CD5","Road - Mud/Sand","Y",5,"Sand, Mud, Dirt, Oil, Gravel"]
[null,null,null,null,null,null,"ROAD_COND_PRIMARY_CD","Road Conditions",6,"ROAD_COND_PRIMARY_CD6","Road - Wet","Y",6,"Water (Standing, Moving)"]
[null,null,null,null,null,null,"ROAD_COND_PRIMARY_CD","Road Conditions",7,"ROAD_COND_PRIMARY_CD7","Road - Snow","Y",7,"Slush"]
[null,null,null,null,null,null,"ROAD_COND_PRIMARY_CD","Road Conditions",8,"ROAD_COND_PRIMARY_CD8","Other Road Condition","Y",8,"Debris"]
[null,null,null,null,null,null,"ROAD_COND_PRIMARY_CD","Road Conditions",9,"ROAD_COND_PRIMARY_CD9","Other Road Condition","Y",9,"Ruts, Holes, Bumps, Uneven Pavement"]
[null,null,null,null,null,null,"ROAD_COND_PRIMARY_CD","Road Conditions",10,"ROAD_COND_PRIMARY_CD10","Other Road Condition","Y",10,"Other"]
[null,null,null,null,null,null,"ROAD_COND_PRIMARY_CD","Road Conditions",99,"ROAD_COND_PRIMARY_CD99","Road Condition Not Stated","Y",11,"Unknown"]
[null,null,null,null,null,null,"LIGHT_COND_PRIMARY_CD","Lighting Conditions",1,"LIGHT_COND_PRIMARY_CD1","Daylight","Y",1,"Daylight"]
[null,null,null,null,null,null,"LIGHT_COND_PRIMARY_CD","Lighting Conditions",2,"LIGHT_COND_PRIMARY_CD2","Dawn","Y",2,"Dawn"]
[null,null,null,null,null,null,"LIGHT_COND_PRIMARY_CD","Lighting Conditions",3,"LIGHT_COND_PRIMARY_CD3","Dusk","Y",3,"Dusk"]
[null,null,null,null,null,null,"LIGHT_COND_PRIMARY_CD","Lighting Conditions",4,"LIGHT_COND_PRIMARY_CD4","Dark - Lighted","Y",4,"Dark - Lighted Roadway"]
[null,null,null,null,null,null,"LIGHT_COND_PRIMARY_CD","Lighting Conditions",5,"LIGHT_COND_PRIMARY_CD5","Dark - No Lights","Y",5,"Dark - Roadway Not Lighted"]
[null,null,null,null,null,null,"LIGHT_COND_PRIMARY_CD","Lighting Conditions",6,"LIGHT_COND_PRIMARY_CD6","Dark - No Lights","Y",6,"Dark - Unknown Roadway Lighting"]
[null,null,null,null,null,null,"LIGHT_COND_PRIMARY_CD","Lighting Conditions",7,"LIGHT_COND_PRIMARY_CD7","Other","Y",7,"Glare"]
[null,null,null,null,null,null,"LIGHT_COND_PRIMARY_CD","Lighting Conditions",8,"LIGHT_COND_PRIMARY_CD8","Other","Y",8,"Other"]
[null,null,null,null,null,null,"LIGHT_COND_PRIMARY_CD","Lighting Conditions",9,"LIGHT_COND_PRIMARY_CD9","Light Not Stated","Y",9,"Unknown"]
[null,null,null,null,null,null,"ROAD_CONTOUR_CD","Road Contours",1,"ROAD_CONTOUR_CD1","Straight - Level","Y",1,"Straight Level"]
[null,null,null,null,null,null,"ROAD_CONTOUR_CD","Road Contours",2,"ROAD_CONTOUR_CD2","Straight - Grade","Y",2,"Straight Grade"]
[null,null,null,null,null,null,"ROAD_CONTOUR_CD","Road Contours",3,"ROAD_CONTOUR_CD3","Curve - Level","Y",3,"Curve Level"]
[null,null,null,null,null,null,"ROAD_CONTOUR_CD","Road Contours",4,"ROAD_CONTOUR_CD4","Curve - Grade","Y",4,"Curve Grade"]
[null,null,null,null,null,null,"ROAD_CONTOUR_CD","Road Contours",9,"ROAD_CONTOUR_CD9","Contour Not Stated","Y",5,"Unknown"]
[null,null,null,null,null,null,"ODPS_SCHOOL_BUS_REL_CD","ODPS_SCHOOL_BUS_REL_CD_FRM",1,"ODPS_SCHOOL_BUS_REL_CD1","No","N",null,"No"]
[null,null,null,null,null,null,"ODPS_SCHOOL_BUS_REL_CD","ODPS_SCHOOL_BUS_REL_CD_FRM",2,"ODPS_SCHOOL_BUS_REL_CD2","School Bus Directly Involved","N",null,"School Bus Directly Involved"]
[null,null,null,null,null,null,"ODPS_SCHOOL_BUS_REL_CD","ODPS_SCHOOL_BUS_REL_CD_FRM",3,"ODPS_SCHOOL_BUS_REL_CD3","School Bus Indirectly Involved","N",null,"School Bus Indirectly Involved"]
[null,null,null,null,null,null,"ODPS_ANIMAL_REL_CD","Animal Type",0,"ODPS_ANIMAL_REL_CD0","Animal Not Stated","Y",1,"No Animal Involved"]
[null,null,null,null,null,null,"ODPS_ANIMAL_REL_CD","Animal Type",1,"ODPS_ANIMAL_REL_CD1","Deer Hit","Y",2,"Animal-Deer"]
[null,null,null,null,null,null,"ODPS_ANIMAL_REL_CD","Animal Type",2,"ODPS_ANIMAL_REL_CD2","Farm Animal Hit","Y",3,"Animal-Farm"]
[null,null,null,null,null,null,"ODPS_ANIMAL_REL_CD","Animal Type",3,"ODPS_ANIMAL_REL_CD3","Other Animal","Y",4,"Animal-Other"]
[null,null,null,null,null,null,"ODPS_LOC_IN_WORK_ZONE_CD","ODPS_LOC_IN_WORK_ZONE_CD_FRM",0,"ODPS_LOC_IN_WORK_ZONE_CD0","Unknown or Not in Work Zone","N",null,"Unknown or Not in Work Zone"]
[null,null,null,null,null,null,"ODPS_LOC_IN_WORK_ZONE_CD","ODPS_LOC_IN_WORK_ZONE_CD_FRM",1,"ODPS_LOC_IN_WORK_ZONE_CD1","Before First Work Zone Warning Sign","N",null,"Before First Work Zone Warning Sign"]
[null,null,null,null,null,null,"ODPS_LOC_IN_WORK_ZONE_CD","ODPS_LOC_IN_WORK_ZONE_CD_FRM",2,"ODPS_LOC_IN_WORK_ZONE_CD2","Advance Warning Area","N",null,"Advance Warning Area"]
[null,null,null,null,null,null,"ODPS_LOC_IN_WORK_ZONE_CD","ODPS_LOC_IN_WORK_ZONE_CD_FRM",3,"ODPS_LOC_IN_WORK_ZONE_CD3","Transition Area","N",null,"Transition Area"]
[null,null,null,null,null,null,"ODPS_LOC_IN_WORK_ZONE_CD","ODPS_LOC_IN_WORK_ZONE_CD_FRM",4,"ODPS_LOC_IN_WORK_ZONE_CD4","Activity Area","N",null,"Activity Area"]
[null,null,null,null,null,null,"ODPS_LOC_IN_WORK_ZONE_CD","ODPS_LOC_IN_WORK_ZONE_CD_FRM",5,"ODPS_LOC_IN_WORK_ZONE_CD5","Termination Area","N",null,"Termination Area"]
[null,null,null,null,null,null,"","ODPS_WORK_ZONE_LAWENFOR_CD_FRM",0,"0","Unknown/Missing","N",null,"Unknown/Missing"]
[null,null,null,null,null,null,"","ODPS_WORK_ZONE_LAWENFOR_CD_FRM",1,"1","No","N",null,"No"]
[null,null,null,null,null,null,"","ODPS_WORK_ZONE_LAWENFOR_CD_FRM",2,"2","Officer Present","N",null,"Officer Present"]
[null,null,null,null,null,null,"","ODPS_WORK_ZONE_LAWENFOR_CD_FRM",3,"3","Law Enforcement Vehicle Only","N",null,"Law Enforcement Vehicle Only"]
[null,null,null,null,null,null,"ODPS_TYPE_OF_WORK_ZONE_CD","ODPS_TYPE_OF_WORK_ZONE_CD",0,"ODPS_TYPE_OF_WORK_ZONE_CD0","Unknown or Not in Work Zone","N",null,"Unknown or Not in Work Zone"]
[null,null,null,null,null,null,"ODPS_TYPE_OF_WORK_ZONE_CD","ODPS_TYPE_OF_WORK_ZONE_CD",1,"ODPS_TYPE_OF_WORK_ZONE_CD1","Lane Closure","N",null,"Lane Closure"]
[null,null,null,null,null,null,"ODPS_TYPE_OF_WORK_ZONE_CD","ODPS_TYPE_OF_WORK_ZONE_CD",2,"ODPS_TYPE_OF_WORK_ZONE_CD2","Lane Shift/Crossover","N",null,"Lane Shift/Crossover"]
[null,null,null,null,null,null,"ODPS_TYPE_OF_WORK_ZONE_CD","ODPS_TYPE_OF_WORK_ZONE_CD",3,"ODPS_TYPE_OF_WORK_ZONE_CD3","Work On Shoulder or Median","N",null,"Work On Shoulder or Median"]
[null,null,null,null,null,null,"ODPS_TYPE_OF_WORK_ZONE_CD","ODPS_TYPE_OF_WORK_ZONE_CD",4,"ODPS_TYPE_OF_WORK_ZONE_CD4","Intermittent or Moving Work","N",null,"Intermittent or Moving Work"]
[null,null,null,null,null,null,"ODPS_TYPE_OF_WORK_ZONE_CD","ODPS_TYPE_OF_WORK_ZONE_CD",5,"ODPS_TYPE_OF_WORK_ZONE_CD5","Other","N",null,"Other"]
[null,null,null,null,null,null,"ODPS_REF_POINT_USED_CD","ODPS_REF_POINT_USED_CD_FRM",0,"ODPS_REF_POINT_USED_CD0","Street/Route Without Reference","N",null,"Street/Route Without Reference"]
[null,null,null,null,null,null,"ODPS_REF_POINT_USED_CD","ODPS_REF_POINT_USED_CD_FRM",1,"ODPS_REF_POINT_USED_CD1","Intersection","N",null,"Intersection"]
[null,null,null,null,null,null,"ODPS_REF_POINT_USED_CD","ODPS_REF_POINT_USED_CD_FRM",2,"ODPS_REF_POINT_USED_CD2","House Number","N",null,"House Number"]
[null,null,null,null,null,null,"ODPS_REF_POINT_USED_CD","ODPS_REF_POINT_USED_CD_FRM",3,"ODPS_REF_POINT_USED_CD3","Mile Post","N",null,"Mile Post"]
[null,null,null,null,null,null,"ODPS_REF_POINT_USED_CD","ODPS_REF_POINT_USED_CD_FRM",4,"ODPS_REF_POINT_USED_CD4","State Line","N",null,"State Line"]
[null,null,null,null,null,null,"ODPS_REF_POINT_USED_CD","ODPS_REF_POINT_USED_CD_FRM",5,"ODPS_REF_POINT_USED_CD5","County Line","N",null,"County Line"]
[null,null,null,null,null,null,"ODPS_REF_POINT_USED_CD","ODPS_REF_POINT_USED_CD_FRM",6,"ODPS_REF_POINT_USED_CD6","Township Boundary","N",null,"Township Boundary"]
[null,null,null,null,null,null,"ODPS_REF_POINT_USED_CD","ODPS_REF_POINT_USED_CD_FRM",7,"ODPS_REF_POINT_USED_CD7","Corporation Limit","N",null,"Corporation Limit"]
[null,null,null,null,null,null,"ODPS_REF_POINT_USED_CD","ODPS_REF_POINT_USED_CD_FRM",8,"ODPS_REF_POINT_USED_CD8","Place Name Without Reference","N",null,"Place Name Without Reference"]
[null,null,null,null,null,null,"ODPS_REF_POINT_USED_CD","ODPS_REF_POINT_USED_CD_FRM",9,"ODPS_REF_POINT_USED_CD9","Driveway","N",null,"Driveway"]
[null,null,null,null,null,null,"U1_DIRECTION_FROM_CD","Direction From",1,"U1_DIRECTION_FROM_CD1","North","Y",1,"North"]
[null,null,null,null,null,null,"U1_DIRECTION_FROM_CD","Direction From",2,"U1_DIRECTION_FROM_CD2","South","Y",2,"South"]
[null,null,null,null,null,null,"U1_DIRECTION_FROM_CD","Direction From",3,"U1_DIRECTION_FROM_CD3","East","Y",3,"East"]
[null,null,null,null,null,null,"U1_DIRECTION_FROM_CD","Direction From",4,"U1_DIRECTION_FROM_CD4","West","Y",4,"West"]
[null,null,null,null,null,null,"U1_DIRECTION_FROM_CD","Direction From",5,"U1_DIRECTION_FROM_CD5","Northeast","Y",5,"Northeast"]
[null,null,null,null,null,null,"U1_DIRECTION_FROM_CD","Direction From",6,"U1_DIRECTION_FROM_CD6","Northwest","Y",6,"Northwest"]
[null,null,null,null,null,null,"U1_DIRECTION_FROM_CD","Direction From",7,"U1_DIRECTION_FROM_CD7","Southeast","Y",7,"Southeast"]
[null,null,null,null,null,null,"U1_DIRECTION_FROM_CD","Direction From",8,"U1_DIRECTION_FROM_CD8","Southwest","Y",8,"Southwest"]
[null,null,null,null,null,null,"U1_DIRECTION_FROM_CD","Direction From",9,"U1_DIRECTION_FROM_CD9","Unknown","Y",9,"Unknown"]
[null,null,null,null,null,null,"U1_DIRECTION_TO_CD","Direction To",1,"U1_DIRECTION_TO_CD1","North","Y",1,"North"]
[null,null,null,null,null,null,"U1_DIRECTION_TO_CD","Direction To",2,"U1_DIRECTION_TO_CD2","South","Y",2,"South"]
[null,null,null,null,null,null,"U1_DIRECTION_TO_CD","Direction To",3,"U1_DIRECTION_TO_CD3","East","Y",3,"East"]
[null,null,null,null,null,null,"U1_DIRECTION_TO_CD","Direction To",4,"U1_DIRECTION_TO_CD4","West","Y",4,"West"]
[null,null,null,null,null,null,"U1_DIRECTION_TO_CD","Direction To",5,"U1_DIRECTION_TO_CD5","Northeast","Y",5,"Northeast"]
[null,null,null,null,null,null,"U1_DIRECTION_TO_CD","Direction To",6,"U1_DIRECTION_TO_CD6","Northwest","Y",6,"Northwest"]
[null,null,null,null,null,null,"U1_DIRECTION_TO_CD","Direction To",7,"U1_DIRECTION_TO_CD7","Southeast","Y",7,"Southeast"]
[null,null,null,null,null,null,"U1_DIRECTION_TO_CD","Direction To",8,"U1_DIRECTION_TO_CD8","Southwest","Y",8,"Southwest"]
[null,null,null,null,null,null,"U1_DIRECTION_TO_CD","Direction To",9,"U1_DIRECTION_TO_CD9","Unknown","Y",9,"Unknown"]
[null,null,null,null,null,null,"U1_TRAFFIC_WAY_DESC_CD","U1_TRAFFIC_WAY_DESC_CD_FRM",0,"U1_TRAFFIC_WAY_DESC_CD0","Old Data Not Available","N",null,"Old Data Not Available"]
[null,null,null,null,null,null,"U1_TRAFFIC_WAY_DESC_CD","U1_TRAFFIC_WAY_DESC_CD_FRM",1,"U1_TRAFFIC_WAY_DESC_CD1","Two-Way, Not Divided","N",null,"Two-Way, Not Divided"]
[null,null,null,null,null,null,"U1_TRAFFIC_WAY_DESC_CD","U1_TRAFFIC_WAY_DESC_CD_FRM",2,"U1_TRAFFIC_WAY_DESC_CD2","2-Way, undiv, Continuous Left Turn Lane","N",null,"2-Way, undiv, Continuous Left Turn Lane"]
[null,null,null,null,null,null,"U1_TRAFFIC_WAY_DESC_CD","U1_TRAFFIC_WAY_DESC_CD_FRM",3,"U1_TRAFFIC_WAY_DESC_CD3","2-Way, Div, Unprotected Median >4 ft","N",null,"2-Way, Div, Unprotected Median >4 ft"]
[null,null,null,null,null,null,"U1_TRAFFIC_WAY_DESC_CD","U1_TRAFFIC_WAY_DESC_CD_FRM",4,"U1_TRAFFIC_WAY_DESC_CD4","2-Way, Div, Positive Median Barrier","N",null,"2-Way, Div, Positive Median Barrier"]
[null,null,null,null,null,null,"U1_TRAFFIC_WAY_DESC_CD","U1_TRAFFIC_WAY_DESC_CD_FRM",5,"U1_TRAFFIC_WAY_DESC_CD5","One-Way Trafficway","N",null,"One-Way Trafficway"]
[null,null,null,null,null,null,"U1_TRAFFIC_WAY_DESC_CD","U1_TRAFFIC_WAY_DESC_CD_FRM",9,"U1_TRAFFIC_WAY_DESC_CD9","Unknown","N",null,"Unknown"]
[null,null,null,null,null,null,"U1_TRAFFIC_CONTROL_CD","Traffic Control Type",1,"U1_TRAFFIC_CONTROL_CD1","No Controls","Y",1,"No Controls"]
[null,null,null,null,null,null,"U1_TRAFFIC_CONTROL_CD","Traffic Control Type",2,"U1_TRAFFIC_CONTROL_CD2","Stop Sign","Y",2,"Stop Sign"]
[null,null,null,null,null,null,"U1_TRAFFIC_CONTROL_CD","Traffic Control Type",3,"U1_TRAFFIC_CONTROL_CD3","Yield Sign","Y",3,"Yield Sign"]
[null,null,null,null,null,null,"U1_TRAFFIC_CONTROL_CD","Traffic Control Type",4,"U1_TRAFFIC_CONTROL_CD4","Traffic Signal","Y",4,"Traffic Signal"]
[null,null,null,null,null,null,"U1_TRAFFIC_CONTROL_CD","Traffic Control Type",5,"U1_TRAFFIC_CONTROL_CD5","Traffic Flashers","Y",5,"Traffic Flashers"]
[null,null,null,null,null,null,"U1_TRAFFIC_CONTROL_CD","Traffic Control Type",6,"U1_TRAFFIC_CONTROL_CD6","School Zone","Y",6,"School Zone"]
[null,null,null,null,null,null,"U1_TRAFFIC_CONTROL_CD","Traffic Control Type",7,"U1_TRAFFIC_CONTROL_CD7","Railroad Crossbucks","Y",7,"Railroad Crossbucks"]
[null,null,null,null,null,null,"U1_TRAFFIC_CONTROL_CD","Traffic Control Type",8,"U1_TRAFFIC_CONTROL_CD8","Railroad Flashers","Y",8,"Railroad Flashers"]
[null,null,null,null,null,null,"U1_TRAFFIC_CONTROL_CD","Traffic Control Type",9,"U1_TRAFFIC_CONTROL_CD9","Railroad Gates","Y",9,"Railroad Gates"]
[null,null,null,null,null,null,"U1_TRAFFIC_CONTROL_CD","Traffic Control Type",10,"U1_TRAFFIC_CONTROL_CD10","Construction Barricade","Y",10,"Construction Barricade"]
[null,null,null,null,null,null,"U1_TRAFFIC_CONTROL_CD","Traffic Control Type",11,"U1_TRAFFIC_CONTROL_CD11","Person (Flagger, Officer)","Y",11,"Person (Flagger, Officer)"]
[null,null,null,null,null,null,"U1_TRAFFIC_CONTROL_CD","Traffic Control Type",12,"U1_TRAFFIC_CONTROL_CD12","Pavement Markings","Y",12,"Pavement Markings"]
[null,null,null,null,null,null,"U1_TRAFFIC_CONTROL_CD","Traffic Control Type",13,"U1_TRAFFIC_CONTROL_CD13","Crosswalk Lines","Y",13,"Crosswalk Lines"]
[null,null,null,null,null,null,"U1_TRAFFIC_CONTROL_CD","Traffic Control Type",14,"U1_TRAFFIC_CONTROL_CD14","Walk/Do Not Walk","Y",14,"Walk/Do Not Walk"]
[null,null,null,null,null,null,"U1_TRAFFIC_CONTROL_CD","Traffic Control Type",15,"U1_TRAFFIC_CONTROL_CD15","Other","Y",15,"Other"]
[null,null,null,null,null,null,"U1_TRAFFIC_CONTROL_CD","Traffic Control Type",16,"U1_TRAFFIC_CONTROL_CD16","Not Reported","Y",16,"Not Reported"]
[null,null,null,null,null,null,"U1_TYPE_OF_USE_CD","Type of Use",0,"U1_TYPE_OF_USE_CD0","Not Available","Y",4,"Not Available"]
[null,null,null,null,null,null,"U1_TYPE_OF_USE_CD","Type of Use",1,"U1_TYPE_OF_USE_CD1","Personal","Y",1,"Personal"]
[null,null,null,null,null,null,"U1_TYPE_OF_USE_CD","Type of Use",2,"U1_TYPE_OF_USE_CD2","Commercial","Y",2,"Commercial"]
[null,null,null,null,null,null,"U1_TYPE_OF_USE_CD","Type of Use",3,"U1_TYPE_OF_USE_CD3","Government","Y",3,"Government"]
[null,null,null,null,null,null,"U1_TYPE_OF_USE_CD","Type of Use",9,"U1_TYPE_OF_USE_CD9","Unknown","Y",5,"Unknown"]
[null,null,null,null,null,null,"U1_TYPE_OF_UNIT_CD","Type of Unit",1,"U1_TYPE_OF_UNIT_CD1","Sub-Compact","Y",1,"Sub-Compact"]
[null,null,null,null,null,null,"U1_TYPE_OF_UNIT_CD","Type of Unit",2,"U1_TYPE_OF_UNIT_CD2","Compact","Y",2,"Compact"]
[null,null,null,null,null,null,"U1_TYPE_OF_UNIT_CD","Type of Unit",3,"U1_TYPE_OF_UNIT_CD3","Mid Size","Y",3,"Mid Size"]
[null,null,null,null,null,null,"U1_TYPE_OF_UNIT_CD","Type of Unit",4,"U1_TYPE_OF_UNIT_CD4","Full Size","Y",4,"Full Size"]
[null,null,null,null,null,null,"U1_TYPE_OF_UNIT_CD","Type of Unit",5,"U1_TYPE_OF_UNIT_CD5","Minivan","Y",5,"Minivan"]
[null,null,null,null,null,null,"U1_TYPE_OF_UNIT_CD","Type of Unit",6,"U1_TYPE_OF_UNIT_CD6","Sport Utility Vehicle","Y",6,"Sport Utility Vehicle"]
[null,null,null,null,null,null,"U1_TYPE_OF_UNIT_CD","Type of Unit",7,"U1_TYPE_OF_UNIT_CD7","Pickup","Y",7,"Pickup"]
[null,null,null,null,null,null,"U1_TYPE_OF_UNIT_CD","Type of Unit",8,"U1_TYPE_OF_UNIT_CD8","Van","Y",8,"Van"]
[null,null,null,null,null,null,"U1_TYPE_OF_UNIT_CD","Type of Unit",9,"U1_TYPE_OF_UNIT_CD9","Motorcycle","Y",9,"Motorcycle"]
[null,null,null,null,null,null,"U1_TYPE_OF_UNIT_CD","Type of Unit",10,"U1_TYPE_OF_UNIT_CD10","Motorized Bicycle","Y",10,"Motorized Bicycle"]
[null,null,null,null,null,null,"U1_TYPE_OF_UNIT_CD","Type of Unit",11,"U1_TYPE_OF_UNIT_CD11","Snowmobile/ATV","Y",11,"Snowmobile/ATV"]
[null,null,null,null,null,null,"U1_TYPE_OF_UNIT_CD","Type of Unit",12,"U1_TYPE_OF_UNIT_CD12","Other Passenger Vehicle","Y",12,"Other Passenger Vehicle"]
[null,null,null,null,null,null,"U1_TYPE_OF_UNIT_CD","Type of Unit",13,"U1_TYPE_OF_UNIT_CD13","Single Unit Truck Or Van 2 Axle, 6 Tires","Y",13,"Single Unit Truck Or Van 2 Axle, 6 Tires"]
[null,null,null,null,null,null,"U1_TYPE_OF_UNIT_CD","Type of Unit",14,"U1_TYPE_OF_UNIT_CD14","Single Unit Truck; 3+ Axles","Y",14,"Single Unit Truck; 3+ Axles"]
[null,null,null,null,null,null,"U1_TYPE_OF_UNIT_CD","Type of Unit",15,"U1_TYPE_OF_UNIT_CD15","Single Unit Truck/Trailer","Y",15,"Single Unit Truck/Trailer"]
[null,null,null,null,null,null,"U1_TYPE_OF_UNIT_CD","Type of Unit",16,"U1_TYPE_OF_UNIT_CD16","Truck/Tractor (Bobtail)","Y",16,"Truck/Tractor (Bobtail)"]
[null,null,null,null,null,null,"U1_TYPE_OF_UNIT_CD","Type of Unit",17,"U1_TYPE_OF_UNIT_CD17","Tractor/Semi-Trailer","Y",17,"Tractor/Semi-Trailer"]
[null,null,null,null,null,null,"U1_TYPE_OF_UNIT_CD","Type of Unit",18,"U1_TYPE_OF_UNIT_CD18","Tractor/Double","Y",18,"Tractor/Double"]
[null,null,null,null,null,null,"U1_TYPE_OF_UNIT_CD","Type of Unit",19,"U1_TYPE_OF_UNIT_CD19","Tractor/Triples","Y",19,"Tractor/Triples"]
[null,null,null,null,null,null,"U1_TYPE_OF_UNIT_CD","Type of Unit",20,"U1_TYPE_OF_UNIT_CD20","Other Med/Heavy Vehicle","Y",20,"Other Med/Heavy Vehicle"]
[null,null,null,null,null,null,"U1_TYPE_OF_UNIT_CD","Type of Unit",21,"U1_TYPE_OF_UNIT_CD21","Bus/Van (9-15 Seats Inc Driver)","Y",21,"Bus/Van (9-15 Seats Inc Driver)"]
[null,null,null,null,null,null,"U1_TYPE_OF_UNIT_CD","Type of Unit",22,"U1_TYPE_OF_UNIT_CD22","Bus (16+ Seats, Inc Driver)","Y",22,"Bus (16+ Seats, Inc Driver)"]
[null,null,null,null,null,null,"U1_TYPE_OF_UNIT_CD","Type of Unit",23,"U1_TYPE_OF_UNIT_CD23","Animal With Rider","Y",23,"Animal With Rider"]
[null,null,null,null,null,null,"U1_TYPE_OF_UNIT_CD","Type of Unit",24,"U1_TYPE_OF_UNIT_CD24","Animal With Buggy, Wagon, Surrey","Y",24,"Animal With Buggy, Wagon, Surrey"]
[null,null,null,null,null,null,"U1_TYPE_OF_UNIT_CD","Type of Unit",25,"U1_TYPE_OF_UNIT_CD25","Bicycle/Pedacyclist","Y",25,"Bicycle/Pedacyclist"]
[null,null,null,null,null,null,"U1_TYPE_OF_UNIT_CD","Type of Unit",26,"U1_TYPE_OF_UNIT_CD26","Pedestrian/Skater","Y",26,"Pedestrian/Skater"]
[null,null,null,null,null,null,"U1_TYPE_OF_UNIT_CD","Type of Unit",27,"U1_TYPE_OF_UNIT_CD27","Other Non-Motorist","Y",27,"Other Non-Motorist"]
[null,null,null,null,null,null,"U1_TYPE_OF_UNIT_CD","Type of Unit",99,"U1_TYPE_OF_UNIT_CD99","Unknown Or Hit/Skip","Y",28,"Unknown Or Hit/Skip"]
[null,null,null,null,null,null,"U1_SPECIAL_FUNCTION_CD","Special Function",1,"U1_SPECIAL_FUNCTION_CD1","None","Y",1,"None"]
[null,null,null,null,null,null,"U1_SPECIAL_FUNCTION_CD","Special Function",2,"U1_SPECIAL_FUNCTION_CD2","Taxi","Y",2,"Taxi"]
[null,null,null,null,null,null,"U1_SPECIAL_FUNCTION_CD","Special Function",3,"U1_SPECIAL_FUNCTION_CD3","Rental Truck (Over 10,000 Lbs)","Y",3,"Rental Truck (Over 10,000 Lbs)"]
[null,null,null,null,null,null,"U1_SPECIAL_FUNCTION_CD","Special Function",4,"U1_SPECIAL_FUNCTION_CD4","Bus-School (Public Or Private)","Y",4,"Bus-School (Public Or Private)"]
[null,null,null,null,null,null,"U1_SPECIAL_FUNCTION_CD","Special Function",5,"U1_SPECIAL_FUNCTION_CD5","Bus-Transit","Y",5,"Bus-Transit"]
[null,null,null,null,null,null,"U1_SPECIAL_FUNCTION_CD","Special Function",6,"U1_SPECIAL_FUNCTION_CD6","Bus-Charter","Y",6,"Bus-Charter"]
[null,null,null,null,null,null,"U1_SPECIAL_FUNCTION_CD","Special Function",7,"U1_SPECIAL_FUNCTION_CD7","Bus-Shuttle","Y",7,"Bus-Shuttle"]
[null,null,null,null,null,null,"U1_SPECIAL_FUNCTION_CD","Special Function",8,"U1_SPECIAL_FUNCTION_CD8","Bus-Other","Y",8,"Bus-Other"]
[null,null,null,null,null,null,"U1_SPECIAL_FUNCTION_CD","Special Function",9,"U1_SPECIAL_FUNCTION_CD9","Ambulance","Y",9,"Ambulance"]
[null,null,null,null,null,null,"U1_SPECIAL_FUNCTION_CD","Special Function",10,"U1_SPECIAL_FUNCTION_CD10","Fire","Y",10,"Fire"]
[null,null,null,null,null,null,"U1_SPECIAL_FUNCTION_CD","Special Function",11,"U1_SPECIAL_FUNCTION_CD11","Highway/Maintenance","Y",11,"Highway/Maintenance"]
[null,null,null,null,null,null,"U1_SPECIAL_FUNCTION_CD","Special Function",12,"U1_SPECIAL_FUNCTION_CD12","Military","Y",12,"Military"]
[null,null,null,null,null,null,"U1_SPECIAL_FUNCTION_CD","Special Function",13,"U1_SPECIAL_FUNCTION_CD13","Police","Y",13,"Police"]
[null,null,null,null,null,null,"U1_SPECIAL_FUNCTION_CD","Special Function",14,"U1_SPECIAL_FUNCTION_CD14","Public Utility","Y",14,"Public Utility"]
[null,null,null,null,null,null,"U1_SPECIAL_FUNCTION_CD","Special Function",15,"U1_SPECIAL_FUNCTION_CD15","Other Government","Y",15,"Other Government"]
[null,null,null,null,null,null,"U1_SPECIAL_FUNCTION_CD","Special Function",16,"U1_SPECIAL_FUNCTION_CD16","Construction Equipment","Y",16,"Construction Equipment"]
[null,null,null,null,null,null,"U1_SPECIAL_FUNCTION_CD","Special Function",17,"U1_SPECIAL_FUNCTION_CD17","Farm Vehicle","Y",17,"Farm Vehicle"]
[null,null,null,null,null,null,"U1_SPECIAL_FUNCTION_CD","Special Function",18,"U1_SPECIAL_FUNCTION_CD18","Farm Equipment","Y",18,"Farm Equipment"]
[null,null,null,null,null,null,"U1_SPECIAL_FUNCTION_CD","Special Function",19,"U1_SPECIAL_FUNCTION_CD19","Motorhome","Y",19,"Motorhome"]
[null,null,null,null,null,null,"U1_SPECIAL_FUNCTION_CD","Special Function",20,"U1_SPECIAL_FUNCTION_CD20","Golf Cart","Y",20,"Golf Cart"]
[null,null,null,null,null,null,"U1_SPECIAL_FUNCTION_CD","Special Function",21,"U1_SPECIAL_FUNCTION_CD21","Train","Y",21,"Train"]
[null,null,null,null,null,null,"U1_SPECIAL_FUNCTION_CD","Special Function",22,"U1_SPECIAL_FUNCTION_CD22","Other","Y",22,"Other"]
[null,null,null,null,null,null,"U1_UNIT_SPEED_RANGE_CD","Unit Speed",0,"U1_UNIT_SPEED_RANGE_CD0","Unit Speed Not Stated","N",null,"Unit Speed Not Stated"]
[null,null,null,null,null,null,"U1_UNIT_SPEED_RANGE_CD","Unit Speed",1,"U1_UNIT_SPEED_RANGE_CD1","Unit Speed 20 and Under","Y",1,"Unit Speed 20 and Under"]
[null,null,null,null,null,null,"U1_UNIT_SPEED_RANGE_CD","Unit Speed",2,"U1_UNIT_SPEED_RANGE_CD2","Unit Speed 21-25","Y",2,"Unit Speed 21-25"]
[null,null,null,null,null,null,"U1_UNIT_SPEED_RANGE_CD","Unit Speed",3,"U1_UNIT_SPEED_RANGE_CD3","Unit Speed 26-30","Y",3,"Unit Speed 26-30"]
[null,null,null,null,null,null,"U1_UNIT_SPEED_RANGE_CD","Unit Speed",4,"U1_UNIT_SPEED_RANGE_CD4","Unit Speed 31-35","Y",4,"Unit Speed 31-35"]
[null,null,null,null,null,null,"U1_UNIT_SPEED_RANGE_CD","Unit Speed",5,"U1_UNIT_SPEED_RANGE_CD5","Unit Speed 36-40","Y",5,"Unit Speed 36-40"]
[null,null,null,null,null,null,"U1_UNIT_SPEED_RANGE_CD","Unit Speed",6,"U1_UNIT_SPEED_RANGE_CD6","Unit Speed 41-45","Y",6,"Unit Speed 41-45"]
[null,null,null,null,null,null,"U1_UNIT_SPEED_RANGE_CD","Unit Speed",7,"U1_UNIT_SPEED_RANGE_CD7","Unit Speed 46-50","Y",7,"Unit Speed 46-50"]
[null,null,null,null,null,null,"U1_UNIT_SPEED_RANGE_CD","Unit Speed",8,"U1_UNIT_SPEED_RANGE_CD8","Unit Speed 51-55","Y",8,"Unit Speed 51-55"]
[null,null,null,null,null,null,"U1_UNIT_SPEED_RANGE_CD","Unit Speed",9,"U1_UNIT_SPEED_RANGE_CD9","Unit Speed 56-60","Y",9,"Unit Speed 56-60"]
[null,null,null,null,null,null,"U1_UNIT_SPEED_RANGE_CD","Unit Speed",10,"U1_UNIT_SPEED_RANGE_CD10","Unit Speed 61-65","Y",10,"Unit Speed 61-65"]
[null,null,null,null,null,null,"U1_UNIT_SPEED_RANGE_CD","Unit Speed",11,"U1_UNIT_SPEED_RANGE_CD11","Unit Speed Over 65","Y",11,"Unit Speed Over 65"]
[null,null,null,null,null,null,"U1_POSTED_SPEED_RANGE_CD","Posted Speed",0,"U1_POSTED_SPEED_RANGE_CD0","Posted Speed Not Stated","N",null,"Posted Speed Not Stated"]
[null,null,null,null,null,null,"U1_POSTED_SPEED_RANGE_CD","Posted Speed",1,"U1_POSTED_SPEED_RANGE_CD1","Posted Speed 20 and Under","Y",1,"Posted Speed 20 and Under"]
[null,null,null,null,null,null,"U1_POSTED_SPEED_RANGE_CD","Posted Speed",2,"U1_POSTED_SPEED_RANGE_CD2","Posted Speed 21-25","Y",2,"Posted Speed 21-25"]
[null,null,null,null,null,null,"U1_POSTED_SPEED_RANGE_CD","Posted Speed",3,"U1_POSTED_SPEED_RANGE_CD3","Posted Speed 26-30","Y",3,"Posted Speed 26-30"]
[null,null,null,null,null,null,"U1_POSTED_SPEED_RANGE_CD","Posted Speed",4,"U1_POSTED_SPEED_RANGE_CD4","Posted Speed 31-35","Y",4,"Posted Speed 31-35"]
[null,null,null,null,null,null,"U1_POSTED_SPEED_RANGE_CD","Posted Speed",5,"U1_POSTED_SPEED_RANGE_CD5","Posted Speed 36-40","Y",5,"Posted Speed 36-40"]
[null,null,null,null,null,null,"U1_POSTED_SPEED_RANGE_CD","Posted Speed",6,"U1_POSTED_SPEED_RANGE_CD6","Posted Speed 41-45","Y",6,"Posted Speed 41-45"]
[null,null,null,null,null,null,"U1_POSTED_SPEED_RANGE_CD","Posted Speed",7,"U1_POSTED_SPEED_RANGE_CD7","Posted Speed 46-50","Y",7,"Posted Speed 46-50"]
[null,null,null,null,null,null,"U1_POSTED_SPEED_RANGE_CD","Posted Speed",8,"U1_POSTED_SPEED_RANGE_CD8","Posted Speed 51-55","Y",8,"Posted Speed 51-55"]
[null,null,null,null,null,null,"U1_POSTED_SPEED_RANGE_CD","Posted Speed",9,"U1_POSTED_SPEED_RANGE_CD9","Posted Speed 56-60","Y",9,"Posted Speed 56-60"]
[null,null,null,null,null,null,"U1_POSTED_SPEED_RANGE_CD","Posted Speed",10,"U1_POSTED_SPEED_RANGE_CD10","Posted Speed 61-65","Y",10,"Posted Speed 61-65"]
[null,null,null,null,null,null,"U1_POSTED_SPEED_RANGE_CD","Posted Speed",11,"U1_POSTED_SPEED_RANGE_CD11","Posted Speed Over 65","Y",11,"Posted Speed Over 65"]
[null,null,null,null,null,null,"U1_PRECRASH_ACTION_CD","Pre-Crash Action",1,"U1_PRECRASH_ACTION_CD1","Straight Ahead","Y",1,"Straight Ahead"]
[null,null,null,null,null,null,"U1_PRECRASH_ACTION_CD","Pre-Crash Action",2,"U1_PRECRASH_ACTION_CD2","Backing","Y",2,"Backing"]
[null,null,null,null,null,null,"U1_PRECRASH_ACTION_CD","Pre-Crash Action",3,"U1_PRECRASH_ACTION_CD3","Changing Lanes","Y",3,"Changing Lanes"]
[null,null,null,null,null,null,"U1_PRECRASH_ACTION_CD","Pre-Crash Action",4,"U1_PRECRASH_ACTION_CD4","Overtaking/Passing","Y",4,"Overtaking/Passing"]
[null,null,null,null,null,null,"U1_PRECRASH_ACTION_CD","Pre-Crash Action",5,"U1_PRECRASH_ACTION_CD5","Making Right Turn","Y",5,"Making Right Turn"]
[null,null,null,null,null,null,"U1_PRECRASH_ACTION_CD","Pre-Crash Action",6,"U1_PRECRASH_ACTION_CD6","Making Left Turn","Y",6,"Making Left Turn"]
[null,null,null,null,null,null,"U1_PRECRASH_ACTION_CD","Pre-Crash Action",7,"U1_PRECRASH_ACTION_CD7","Making U-Turn","Y",7,"Making U-Turn"]
[null,null,null,null,null,null,"U1_PRECRASH_ACTION_CD","Pre-Crash Action",8,"U1_PRECRASH_ACTION_CD8","Entering Traffic Lane","Y",8,"Entering Traffic Lane"]
[null,null,null,null,null,null,"U1_PRECRASH_ACTION_CD","Pre-Crash Action",9,"U1_PRECRASH_ACTION_CD9","Leaving Traffic Lane","Y",9,"Leaving Traffic Lane"]
[null,null,null,null,null,null,"U1_PRECRASH_ACTION_CD","Pre-Crash Action",10,"U1_PRECRASH_ACTION_CD10","Parked","Y",10,"Parked"]
[null,null,null,null,null,null,"U1_PRECRASH_ACTION_CD","Pre-Crash Action",11,"U1_PRECRASH_ACTION_CD11","Slowing Or Stopped In Traffic","Y",11,"Slowing Or Stopped In Traffic"]
[null,null,null,null,null,null,"U1_PRECRASH_ACTION_CD","Pre-Crash Action",12,"U1_PRECRASH_ACTION_CD12","Driverless","Y",12,"Driverless"]
[null,null,null,null,null,null,"U1_PRECRASH_ACTION_CD","Pre-Crash Action",13,"U1_PRECRASH_ACTION_CD13","Negotiating A Curve","Y",13,"Negotiating A Curve"]
[null,null,null,null,null,null,"U1_PRECRASH_ACTION_CD","Pre-Crash Action",14,"U1_PRECRASH_ACTION_CD14","Other Motorist Action","Y",14,"Other Motorist Action"]
[null,null,null,null,null,null,"U1_PRECRASH_ACTION_CD","Pre-Crash Action",15,"U1_PRECRASH_ACTION_CD15","Entering Or Crossing Specified Location","Y",15,"Entering Or Crossing Specified Location"]
[null,null,null,null,null,null,"U1_PRECRASH_ACTION_CD","Pre-Crash Action",16,"U1_PRECRASH_ACTION_CD16","Walking, Running, Jogging, Playing, Cycling","Y",16,"Walking, Running, Jogging, Playing, Cycling"]
[null,null,null,null,null,null,"U1_PRECRASH_ACTION_CD","Pre-Crash Action",17,"U1_PRECRASH_ACTION_CD17","Working","Y",17,"Working"]
[null,null,null,null,null,null,"U1_PRECRASH_ACTION_CD","Pre-Crash Action",18,"U1_PRECRASH_ACTION_CD18","Pushing Vehicle","Y",18,"Pushing Vehicle"]
[null,null,null,null,null,null,"U1_PRECRASH_ACTION_CD","Pre-Crash Action",19,"U1_PRECRASH_ACTION_CD19","Approaching Or Leaving Vehicle","Y",19,"Approaching Or Leaving Vehicle"]
[null,null,null,null,null,null,"U1_PRECRASH_ACTION_CD","Pre-Crash Action",20,"U1_PRECRASH_ACTION_CD20","Standing","Y",20,"Standing"]
[null,null,null,null,null,null,"U1_PRECRASH_ACTION_CD","Pre-Crash Action",21,"U1_PRECRASH_ACTION_CD21","Other Non-Motorist Action","Y",21,"Other Non-Motorist Action"]
[null,null,null,null,null,null,"U1_PRECRASH_ACTION_CD","Pre-Crash Action",99,"U1_PRECRASH_ACTION_CD99","Unknown","Y",22,"Unknown"]
[null,null,null,null,null,null,"U1_CONT_CIR_PRIMARY_CD","Contributing Circumstance",1,"U1_CONT_CIR_PRIMARY_CD1","None","Y",1,"None"]
[null,null,null,null,null,null,"U1_CONT_CIR_PRIMARY_CD","Contributing Circumstance",2,"U1_CONT_CIR_PRIMARY_CD2","Failure To Yield","Y",2,"Failure To Yield"]
[null,null,null,null,null,null,"U1_CONT_CIR_PRIMARY_CD","Contributing Circumstance",3,"U1_CONT_CIR_PRIMARY_CD3","Ran Red Light","Y",3,"Ran Red Light"]
[null,null,null,null,null,null,"U1_CONT_CIR_PRIMARY_CD","Contributing Circumstance",4,"U1_CONT_CIR_PRIMARY_CD4","Ran Stop Sign","Y",4,"Ran Stop Sign"]
[null,null,null,null,null,null,"U1_CONT_CIR_PRIMARY_CD","Contributing Circumstance",5,"U1_CONT_CIR_PRIMARY_CD5","Exceeded Speed Limit","Y",5,"Exceeded Speed Limit"]
[null,null,null,null,null,null,"U1_CONT_CIR_PRIMARY_CD","Contributing Circumstance",6,"U1_CONT_CIR_PRIMARY_CD6","Unsafe Speed","Y",6,"Unsafe Speed"]
[null,null,null,null,null,null,"U1_CONT_CIR_PRIMARY_CD","Contributing Circumstance",7,"U1_CONT_CIR_PRIMARY_CD7","Improper Turn","Y",7,"Improper Turn"]
[null,null,null,null,null,null,"U1_CONT_CIR_PRIMARY_CD","Contributing Circumstance",8,"U1_CONT_CIR_PRIMARY_CD8","Left Of Center","Y",8,"Left Of Center"]
[null,null,null,null,null,null,"U1_CONT_CIR_PRIMARY_CD","Contributing Circumstance",9,"U1_CONT_CIR_PRIMARY_CD9","Followed Too Closely/ACDA","Y",9,"Followed Too Closely/ACDA"]
[null,null,null,null,null,null,"U1_CONT_CIR_PRIMARY_CD","Contributing Circumstance",10,"U1_CONT_CIR_PRIMARY_CD10","Improper Lane Change/Passing/Offroad","Y",10,"Improper Lane Change/Passing/Offroad"]
[null,null,null,null,null,null,"U1_CONT_CIR_PRIMARY_CD","Contributing Circumstance",11,"U1_CONT_CIR_PRIMARY_CD11","Improper Backing","Y",11,"Improper Backing"]
[null,null,null,null,null,null,"U1_CONT_CIR_PRIMARY_CD","Contributing Circumstance",12,"U1_CONT_CIR_PRIMARY_CD12","Improper Start From Parked Position","Y",12,"Improper Start From Parked Position"]
[null,null,null,null,null,null,"U1_CONT_CIR_PRIMARY_CD","Contributing Circumstance",13,"U1_CONT_CIR_PRIMARY_CD13","Stopped Or Parked Illegally","Y",13,"Stopped Or Parked Illegally"]
[null,null,null,null,null,null,"U1_CONT_CIR_PRIMARY_CD","Contributing Circumstance",14,"U1_CONT_CIR_PRIMARY_CD14","Operating Vehicle In Negligent Manner","Y",14,"Operating Vehicle In Negligent Manner"]
[null,null,null,null,null,null,"U1_CONT_CIR_PRIMARY_CD","Contributing Circumstance",15,"U1_CONT_CIR_PRIMARY_CD15","Swerving To Avoid","Y",15,"Swerving To Avoid"]
[null,null,null,null,null,null,"U1_CONT_CIR_PRIMARY_CD","Contributing Circumstance",16,"U1_CONT_CIR_PRIMARY_CD16","Wrong Side/Wrong Way","Y",16,"Wrong Side/Wrong Way"]
[null,null,null,null,null,null,"U1_CONT_CIR_PRIMARY_CD","Contributing Circumstance",17,"U1_CONT_CIR_PRIMARY_CD17","Failure To Control","Y",17,"Failure To Control"]
[null,null,null,null,null,null,"U1_CONT_CIR_PRIMARY_CD","Contributing Circumstance",18,"U1_CONT_CIR_PRIMARY_CD18","Vision Obstruction","Y",18,"Vision Obstruction"]
[null,null,null,null,null,null,"U1_CONT_CIR_PRIMARY_CD","Contributing Circumstance",19,"U1_CONT_CIR_PRIMARY_CD19","Operating Defective Equipment","Y",19,"Operating Defective Equipment"]
[null,null,null,null,null,null,"U1_CONT_CIR_PRIMARY_CD","Contributing Circumstance",20,"U1_CONT_CIR_PRIMARY_CD20","Load Shifting/Falling/Spilling","Y",20,"Load Shifting/Falling/Spilling"]
[null,null,null,null,null,null,"U1_CONT_CIR_PRIMARY_CD","Contributing Circumstance",21,"U1_CONT_CIR_PRIMARY_CD21","Other Improper Action","Y",21,"Other Improper Action"]
[null,null,null,null,null,null,"U1_CONT_CIR_PRIMARY_CD","Contributing Circumstance",22,"U1_CONT_CIR_PRIMARY_CD22","None Non-Motorist","Y",22,"None Non-Motorist"]
[null,null,null,null,null,null,"U1_CONT_CIR_PRIMARY_CD","Contributing Circumstance",23,"U1_CONT_CIR_PRIMARY_CD23","Improper Crossing","Y",23,"Improper Crossing"]
[null,null,null,null,null,null,"U1_CONT_CIR_PRIMARY_CD","Contributing Circumstance",24,"U1_CONT_CIR_PRIMARY_CD24","Darting","Y",24,"Darting"]
[null,null,null,null,null,null,"U1_CONT_CIR_PRIMARY_CD","Contributing Circumstance",25,"U1_CONT_CIR_PRIMARY_CD25","Lying And/Or Illegally In Roadway","Y",25,"Lying And/Or Illegally In Roadway"]
[null,null,null,null,null,null,"U1_CONT_CIR_PRIMARY_CD","Contributing Circumstance",26,"U1_CONT_CIR_PRIMARY_CD26","Failure To Yield Right Of Way","Y",26,"Failure To Yield Right Of Way"]
[null,null,null,null,null,null,"U1_CONT_CIR_PRIMARY_CD","Contributing Circumstance",27,"U1_CONT_CIR_PRIMARY_CD27","Not Visible (Dark Clothing)","Y",27,"Not Visible (Dark Clothing)"]
[null,null,null,null,null,null,"U1_CONT_CIR_PRIMARY_CD","Contributing Circumstance",28,"U1_CONT_CIR_PRIMARY_CD28","Inattentive","Y",28,"Inattentive"]
[null,null,null,null,null,null,"U1_CONT_CIR_PRIMARY_CD","Contributing Circumstance",29,"U1_CONT_CIR_PRIMARY_CD29","Failure To Obey Signs/Signals/Officer","Y",29,"Failure To Obey Signs/Signals/Officer"]
[null,null,null,null,null,null,"U1_CONT_CIR_PRIMARY_CD","Contributing Circumstance",30,"U1_CONT_CIR_PRIMARY_CD30","Wrong Side Of The Road","Y",30,"Wrong Side Of The Road"]
[null,null,null,null,null,null,"U1_CONT_CIR_PRIMARY_CD","Contributing Circumstance",31,"U1_CONT_CIR_PRIMARY_CD31","Other Non-Motorist","Y",31,"Other Non-Motorist"]
[null,null,null,null,null,null,"U1_CONT_CIR_PRIMARY_CD","Contributing Circumstance",99,"U1_CONT_CIR_PRIMARY_CD99","Unknown","Y",32,"Unknown"]
[null,null,null,null,null,null,"U1_SEQ_OF_EVENTS_1_CD","Sequence of Events",1,"U1_SEQ_OF_EVENTS_1_CD1","Overturn/Rollover","Y",1,"Overturn/Rollover"]
[null,null,null,null,null,null,"U1_SEQ_OF_EVENTS_1_CD","Sequence of Events",2,"U1_SEQ_OF_EVENTS_1_CD2","Fire/Explosion","Y",2,"Fire/Explosion"]
[null,null,null,null,null,null,"U1_SEQ_OF_EVENTS_1_CD","Sequence of Events",3,"U1_SEQ_OF_EVENTS_1_CD3","Immersion","Y",3,"Immersion"]
[null,null,null,null,null,null,"U1_SEQ_OF_EVENTS_1_CD","Sequence of Events",4,"U1_SEQ_OF_EVENTS_1_CD4","Jackknife","Y",4,"Jackknife"]
[null,null,null,null,null,null,"U1_SEQ_OF_EVENTS_1_CD","Sequence of Events",5,"U1_SEQ_OF_EVENTS_1_CD5","Cargo/Equipment Loss Or Shift","Y",5,"Cargo/Equipment Loss Or Shift"]
[null,null,null,null,null,null,"U1_SEQ_OF_EVENTS_1_CD","Sequence of Events",6,"U1_SEQ_OF_EVENTS_1_CD6","Equipment Failure","Y",6,"Equipment Failure"]
[null,null,null,null,null,null,"U1_SEQ_OF_EVENTS_1_CD","Sequence of Events",7,"U1_SEQ_OF_EVENTS_1_CD7","Separation Of Units","Y",7,"Separation Of Units"]
[null,null,null,null,null,null,"U1_SEQ_OF_EVENTS_1_CD","Sequence of Events",8,"U1_SEQ_OF_EVENTS_1_CD8","Ran Off Road Right","Y",8,"Ran Off Road Right"]
[null,null,null,null,null,null,"U1_SEQ_OF_EVENTS_1_CD","Sequence of Events",9,"U1_SEQ_OF_EVENTS_1_CD9","Ran Off Road Left","Y",9,"Ran Off Road Left"]
[null,null,null,null,null,null,"U1_SEQ_OF_EVENTS_1_CD","Sequence of Events",10,"U1_SEQ_OF_EVENTS_1_CD10","Cross Median","Y",10,"Cross Median"]
[null,null,null,null,null,null,"U1_SEQ_OF_EVENTS_1_CD","Sequence of Events",11,"U1_SEQ_OF_EVENTS_1_CD11","Cross Centerline/Opp Dir Of Travel","Y",11,"Cross Centerline/Opp Dir Of Travel"]
[null,null,null,null,null,null,"U1_SEQ_OF_EVENTS_1_CD","Sequence of Events",12,"U1_SEQ_OF_EVENTS_1_CD12","Downhill Runaway","Y",12,"Downhill Runaway"]
[null,null,null,null,null,null,"U1_SEQ_OF_EVENTS_1_CD","Sequence of Events",13,"U1_SEQ_OF_EVENTS_1_CD13","Other Non-Collision","Y",13,"Other Non-Collision"]
[null,null,null,null,null,null,"U1_SEQ_OF_EVENTS_1_CD","Sequence of Events",14,"U1_SEQ_OF_EVENTS_1_CD14","Pedestrian","Y",14,"Pedestrian"]
[null,null,null,null,null,null,"U1_SEQ_OF_EVENTS_1_CD","Sequence of Events",15,"U1_SEQ_OF_EVENTS_1_CD15","Pedalcycle","Y",15,"Pedalcycle"]
[null,null,null,null,null,null,"U1_SEQ_OF_EVENTS_1_CD","Sequence of Events",16,"U1_SEQ_OF_EVENTS_1_CD16","Railway Vehicle (Train, Engine)","Y",16,"Railway Vehicle (Train, Engine)"]
[null,null,null,null,null,null,"U1_SEQ_OF_EVENTS_1_CD","Sequence of Events",17,"U1_SEQ_OF_EVENTS_1_CD17","Animal-Farm","Y",17,"Animal-Farm"]
[null,null,null,null,null,null,"U1_SEQ_OF_EVENTS_1_CD","Sequence of Events",18,"U1_SEQ_OF_EVENTS_1_CD18","Animal-Deer","Y",18,"Animal-Deer"]
[null,null,null,null,null,null,"U1_SEQ_OF_EVENTS_1_CD","Sequence of Events",19,"U1_SEQ_OF_EVENTS_1_CD19","Animal-Other","Y",19,"Animal-Other"]
[null,null,null,null,null,null,"U1_SEQ_OF_EVENTS_1_CD","Sequence of Events",20,"U1_SEQ_OF_EVENTS_1_CD20","Motor Vehicle In Transport","Y",20,"Motor Vehicle In Transport"]
[null,null,null,null,null,null,"U1_SEQ_OF_EVENTS_1_CD","Sequence of Events",21,"U1_SEQ_OF_EVENTS_1_CD21","Parked Motor Vehicle","Y",21,"Parked Motor Vehicle"]
[null,null,null,null,null,null,"U1_SEQ_OF_EVENTS_1_CD","Sequence of Events",22,"U1_SEQ_OF_EVENTS_1_CD22","WZ Maintenance Equip-Object Not Fixed","Y",22,"WZ Maintenance Equip-Object Not Fixed"]
[null,null,null,null,null,null,"U1_SEQ_OF_EVENTS_1_CD","Sequence of Events",23,"U1_SEQ_OF_EVENTS_1_CD23","Struck by Falling Cargo Set in Motion","Y",23,"Struck by Falling Cargo Set in Motion"]
[null,null,null,null,null,null,"U1_SEQ_OF_EVENTS_1_CD","Sequence of Events",24,"U1_SEQ_OF_EVENTS_1_CD24","Other Movable Object","Y",24,"Other Movable Object"]
[null,null,null,null,null,null,"U1_SEQ_OF_EVENTS_1_CD","Sequence of Events",25,"U1_SEQ_OF_EVENTS_1_CD25","Impact Attenuator/Crash Cushion","Y",25,"Impact Attenuator/Crash Cushion"]
[null,null,null,null,null,null,"U1_SEQ_OF_EVENTS_1_CD","Sequence of Events",26,"U1_SEQ_OF_EVENTS_1_CD26","Bridge Overhead Structure","Y",26,"Bridge Overhead Structure"]
[null,null,null,null,null,null,"U1_SEQ_OF_EVENTS_1_CD","Sequence of Events",27,"U1_SEQ_OF_EVENTS_1_CD27","Bridge Pier Or Abutment","Y",27,"Bridge Pier Or Abutment"]
[null,null,null,null,null,null,"U1_SEQ_OF_EVENTS_1_CD","Sequence of Events",28,"U1_SEQ_OF_EVENTS_1_CD28","Bridge Parapet","Y",28,"Bridge Parapet"]
[null,null,null,null,null,null,"U1_SEQ_OF_EVENTS_1_CD","Sequence of Events",29,"U1_SEQ_OF_EVENTS_1_CD29","Bridge Rail","Y",29,"Bridge Rail"]
[null,null,null,null,null,null,"U1_SEQ_OF_EVENTS_1_CD","Sequence of Events",30,"U1_SEQ_OF_EVENTS_1_CD30","Guardrail Face","Y",30,"Guardrail Face"]
[null,null,null,null,null,null,"U1_SEQ_OF_EVENTS_1_CD","Sequence of Events",31,"U1_SEQ_OF_EVENTS_1_CD31","Guardrail End","Y",31,"Guardrail End"]
[null,null,null,null,null,null,"U1_SEQ_OF_EVENTS_1_CD","Sequence of Events",32,"U1_SEQ_OF_EVENTS_1_CD32","Portable Barrier","Y",32,"Portable Barrier"]
[null,null,null,null,null,null,"U1_SEQ_OF_EVENTS_1_CD","Sequence of Events",33,"U1_SEQ_OF_EVENTS_1_CD33","Median Cable Barrier","Y",33,"Median Cable Barrier"]
[null,null,null,null,null,null,"U1_SEQ_OF_EVENTS_1_CD","Sequence of Events",34,"U1_SEQ_OF_EVENTS_1_CD34","Median Guardrail Barrier","Y",34,"Median Guardrail Barrier"]
[null,null,null,null,null,null,"U1_SEQ_OF_EVENTS_1_CD","Sequence of Events",35,"U1_SEQ_OF_EVENTS_1_CD35","Median Concrete Barrier","Y",35,"Median Concrete Barrier"]
[null,null,null,null,null,null,"U1_SEQ_OF_EVENTS_1_CD","Sequence of Events",36,"U1_SEQ_OF_EVENTS_1_CD36","Median Other Barrier","Y",36,"Median Other Barrier"]
[null,null,null,null,null,null,"U1_SEQ_OF_EVENTS_1_CD","Sequence of Events",37,"U1_SEQ_OF_EVENTS_1_CD37","Traffic Sign Post","Y",37,"Traffic Sign Post"]
[null,null,null,null,null,null,"U1_SEQ_OF_EVENTS_1_CD","Sequence of Events",38,"U1_SEQ_OF_EVENTS_1_CD38","Overhead Sign Post","Y",38,"Overhead Sign Post"]
[null,null,null,null,null,null,"U1_SEQ_OF_EVENTS_1_CD","Sequence of Events",39,"U1_SEQ_OF_EVENTS_1_CD39","Light/Luminaries Support","Y",39,"Light/Luminaries Support"]
[null,null,null,null,null,null,"U1_SEQ_OF_EVENTS_1_CD","Sequence of Events",40,"U1_SEQ_OF_EVENTS_1_CD40","Utility Pole","Y",40,"Utility Pole"]
[null,null,null,null,null,null,"U1_SEQ_OF_EVENTS_1_CD","Sequence of Events",41,"U1_SEQ_OF_EVENTS_1_CD41","Other Post, Pole Or Support","Y",41,"Other Post, Pole Or Support"]
[null,null,null,null,null,null,"U1_SEQ_OF_EVENTS_1_CD","Sequence of Events",42,"U1_SEQ_OF_EVENTS_1_CD42","Culvert","Y",42,"Culvert"]
[null,null,null,null,null,null,"U1_SEQ_OF_EVENTS_1_CD","Sequence of Events",43,"U1_SEQ_OF_EVENTS_1_CD43","Curb","Y",43,"Curb"]
[null,null,null,null,null,null,"U1_SEQ_OF_EVENTS_1_CD","Sequence of Events",44,"U1_SEQ_OF_EVENTS_1_CD44","Ditch","Y",44,"Ditch"]
[null,null,null,null,null,null,"U1_SEQ_OF_EVENTS_1_CD","Sequence of Events",45,"U1_SEQ_OF_EVENTS_1_CD45","Embankment","Y",45,"Embankment"]
[null,null,null,null,null,null,"U1_SEQ_OF_EVENTS_1_CD","Sequence of Events",46,"U1_SEQ_OF_EVENTS_1_CD46","Fence","Y",46,"Fence"]
[null,null,null,null,null,null,"U1_SEQ_OF_EVENTS_1_CD","Sequence of Events",47,"U1_SEQ_OF_EVENTS_1_CD47","Mailbox","Y",47,"Mailbox"]
[null,null,null,null,null,null,"U1_SEQ_OF_EVENTS_1_CD","Sequence of Events",48,"U1_SEQ_OF_EVENTS_1_CD48","Tree","Y",48,"Tree"]
[null,null,null,null,null,null,"U1_SEQ_OF_EVENTS_1_CD","Sequence of Events",49,"U1_SEQ_OF_EVENTS_1_CD49","Fire Hydrant","Y",49,"Fire Hydrant"]
[null,null,null,null,null,null,"U1_SEQ_OF_EVENTS_1_CD","Sequence of Events",50,"U1_SEQ_OF_EVENTS_1_CD50","WZ Maintenance Equip-Fixed Object","Y",50,"WZ Maintenance Equip-Fixed Object"]
[null,null,null,null,null,null,"U1_SEQ_OF_EVENTS_1_CD","Sequence of Events",51,"U1_SEQ_OF_EVENTS_1_CD51","Wall, Building, Tunnel","Y",51,"Wall, Building, Tunnel"]
[null,null,null,null,null,null,"U1_SEQ_OF_EVENTS_1_CD","Sequence of Events",52,"U1_SEQ_OF_EVENTS_1_CD52","Other Fixed Object","Y",52,"Other Fixed Object"]
[null,null,null,null,null,null,"U1_SEQ_OF_EVENTS_1_CD","Sequence of Events",99,"U1_SEQ_OF_EVENTS_1_CD99","Unknown","Y",53,"Unknown"]
[null,null,null,null,null,null,"U1_COLLISION_ACTION_CD","U1_COLLISION_ACTION_CD_FRM",1,"U1_COLLISION_ACTION_CD1","Non-Contact","N",null,"Non-Contact"]
[null,null,null,null,null,null,"U1_COLLISION_ACTION_CD","U1_COLLISION_ACTION_CD_FRM",2,"U1_COLLISION_ACTION_CD2","Non-Collision","N",null,"Non-Collision"]
[null,null,null,null,null,null,"U1_COLLISION_ACTION_CD","U1_COLLISION_ACTION_CD_FRM",3,"U1_COLLISION_ACTION_CD3","Striking","N",null,"Striking"]
[null,null,null,null,null,null,"U1_COLLISION_ACTION_CD","U1_COLLISION_ACTION_CD_FRM",4,"U1_COLLISION_ACTION_CD4","Struck","N",null,"Struck"]
[null,null,null,null,null,null,"U1_COLLISION_ACTION_CD","U1_COLLISION_ACTION_CD_FRM",5,"U1_COLLISION_ACTION_CD5","Both Striking and Struck","N",null,"Both Striking and Struck"]
[null,null,null,null,null,null,"U1_COLLISION_ACTION_CD","U1_COLLISION_ACTION_CD_FRM",9,"U1_COLLISION_ACTION_CD9","Unknown","N",null,"Unknown"]
[null,null,null,null,null,null,"U1_NON_MOTORIST_LOC_CD","U1_NON_MOTORIST_LOC_CD_FRM",1,"U1_NON_MOTORIST_LOC_CD1","Intersection-Marked Crosswalk","N",null,"Intersection-Marked Crosswalk"]
[null,null,null,null,null,null,"U1_NON_MOTORIST_LOC_CD","U1_NON_MOTORIST_LOC_CD_FRM",2,"U1_NON_MOTORIST_LOC_CD2","Intersection-No Crosswalk","N",null,"Intersection-No Crosswalk"]
[null,null,null,null,null,null,"U1_NON_MOTORIST_LOC_CD","U1_NON_MOTORIST_LOC_CD_FRM",3,"U1_NON_MOTORIST_LOC_CD3","Intersection-Other","N",null,"Intersection-Other"]
[null,null,null,null,null,null,"U1_NON_MOTORIST_LOC_CD","U1_NON_MOTORIST_LOC_CD_FRM",4,"U1_NON_MOTORIST_LOC_CD4","Midblock-Marked Crosswalk","N",null,"Midblock-Marked Crosswalk"]
[null,null,null,null,null,null,"U1_NON_MOTORIST_LOC_CD","U1_NON_MOTORIST_LOC_CD_FRM",5,"U1_NON_MOTORIST_LOC_CD5","Travel Lane-Other Location","N",null,"Travel Lane-Other Location"]
[null,null,null,null,null,null,"U1_NON_MOTORIST_LOC_CD","U1_NON_MOTORIST_LOC_CD_FRM",6,"U1_NON_MOTORIST_LOC_CD6","Bicycle Lane","N",null,"Bicycle Lane"]
[null,null,null,null,null,null,"U1_NON_MOTORIST_LOC_CD","U1_NON_MOTORIST_LOC_CD_FRM",7,"U1_NON_MOTORIST_LOC_CD7","Shoulder/Roadside","N",null,"Shoulder/Roadside"]
[null,null,null,null,null,null,"U1_NON_MOTORIST_LOC_CD","U1_NON_MOTORIST_LOC_CD_FRM",8,"U1_NON_MOTORIST_LOC_CD8","Sidewalk","N",null,"Sidewalk"]
[null,null,null,null,null,null,"U1_NON_MOTORIST_LOC_CD","U1_NON_MOTORIST_LOC_CD_FRM",9,"U1_NON_MOTORIST_LOC_CD9","Median/Crossing Island","N",null,"Median/Crossing Island"]
[null,null,null,null,null,null,"U1_NON_MOTORIST_LOC_CD","U1_NON_MOTORIST_LOC_CD_FRM",10,"U1_NON_MOTORIST_LOC_CD10","Driveway Access","N",null,"Driveway Access"]
[null,null,null,null,null,null,"U1_NON_MOTORIST_LOC_CD","U1_NON_MOTORIST_LOC_CD_FRM",11,"U1_NON_MOTORIST_LOC_CD11","Shared Use Paths or Trails","N",null,"Shared Use Paths or Trails"]
[null,null,null,null,null,null,"U1_NON_MOTORIST_LOC_CD","U1_NON_MOTORIST_LOC_CD_FRM",12,"U1_NON_MOTORIST_LOC_CD12","Non-Trafficway Area","N",null,"Non-Trafficway Area"]
[null,null,null,null,null,null,"U1_NON_MOTORIST_LOC_CD","U1_NON_MOTORIST_LOC_CD_FRM",99,"U1_NON_MOTORIST_LOC_CD99","Other/Unknown","N",null,"Other/Unknown"]
[null,null,null,null,null,null,"U1_ALCOH_DRUG_SUSPCTD_CD","Alcohol/Drug Suspected",1,"U1_ALCOH_DRUG_SUSPCTD_CD1","None","Y",1,"None"]
[null,null,null,null,null,null,"U1_ALCOH_DRUG_SUSPCTD_CD","Alcohol/Drug Suspected",2,"U1_ALCOH_DRUG_SUSPCTD_CD2","Yes - Alcohol Suspected","Y",2,"Yes - Alcohol Suspected"]
[null,null,null,null,null,null,"U1_ALCOH_DRUG_SUSPCTD_CD","Alcohol/Drug Suspected",3,"U1_ALCOH_DRUG_SUSPCTD_CD3","Yes - HBD Not Impaired","Y",3,"Yes - HBD Not Impaired"]
[null,null,null,null,null,null,"U1_ALCOH_DRUG_SUSPCTD_CD","Alcohol/Drug Suspected",4,"U1_ALCOH_DRUG_SUSPCTD_CD4","Yes - Drugs Suspected","Y",4,"Yes - Drugs Suspected"]
[null,null,null,null,null,null,"U1_ALCOH_DRUG_SUSPCTD_CD","Alcohol/Drug Suspected",5,"U1_ALCOH_DRUG_SUSPCTD_CD5","Yes - Alcohol And Drugs Suspected","Y",5,"Yes - Alcohol And Drugs Suspected"]
[null,null,null,null,null,null,"U1_DISTRACTED_BY_1_CD","Driver Distracted by",0,"U1_DISTRACTED_BY_1_CD0","Old Data Not Available","Y",8,"Old Data Not Available"]
[null,null,null,null,null,null,"U1_DISTRACTED_BY_1_CD","Driver Distracted by",1,"U1_DISTRACTED_BY_1_CD1","No Distraction Reported","Y",1,"No Distraction Reported"]
[null,null,null,null,null,null,"U1_DISTRACTED_BY_1_CD","Driver Distracted by",2,"U1_DISTRACTED_BY_1_CD2","Phone","Y",2,"Phone"]
[null,null,null,null,null,null,"U1_DISTRACTED_BY_1_CD","Driver Distracted by",3,"U1_DISTRACTED_BY_1_CD3","Texting/Emailing","Y",3,"Texting/Emailing"]
[null,null,null,null,null,null,"U1_DISTRACTED_BY_1_CD","Driver Distracted by",4,"U1_DISTRACTED_BY_1_CD4","Electronic Communication Device","Y",4,"Electronic Communication Device"]
[null,null,null,null,null,null,"U1_DISTRACTED_BY_1_CD","Driver Distracted by",5,"U1_DISTRACTED_BY_1_CD5","Other Electronic Device","Y",5,"Other Electronic Device"]
[null,null,null,null,null,null,"U1_DISTRACTED_BY_1_CD","Driver Distracted by",6,"U1_DISTRACTED_BY_1_CD6","Other Inside The Vehicle","Y",6,"Other Inside The Vehicle"]
[null,null,null,null,null,null,"U1_DISTRACTED_BY_1_CD","Driver Distracted by",7,"U1_DISTRACTED_BY_1_CD7","External Distraction","Y",7,"External Distraction"]
[null,null,null,null,null,null,"U1_DISTRACTED_BY_1_CD","Driver Distracted by",9,"U1_DISTRACTED_BY_1_CD9","Unknown","Y",9,"Unknown"]
[null,null,null,null,null,null,"","LOC_1ST_HARMFUL_EVENT_CD_FRM",1,"1","On Roadway","N",null,"On Roadway"]
[null,null,null,null,null,null,"","LOC_1ST_HARMFUL_EVENT_CD_FRM",6,"6","Outside Trafficway","N",null,"Outside Trafficway"]
[null,null,null,null,null,null,"","LOC_1ST_HARMFUL_EVENT_CD_FRM",2,"2","On Shoulder","N",null,"On Shoulder"]
[null,null,null,null,null,null,"","LOC_1ST_HARMFUL_EVENT_CD_FRM",5,"5","On Gore","N",null,"On Gore"]
[null,null,null,null,null,null,"","LOC_1ST_HARMFUL_EVENT_CD_FRM",9,"9","Unknown","N",null,"Unknown"]
[null,null,null,null,null,null,"","LOC_1ST_HARMFUL_EVENT_CD_FRM",3,"3","In Median","N",null,"In Median"]
[null,null,null,null,null,null,"","LOC_1ST_HARMFUL_EVENT_CD_FRM",4,"4","On Roadside","N",null,"On Roadside"]
[null,null,null,null,null,null,"","ROAD_SURFACE_CD_FRM",6,"6","Other","N",null,"Other"]
[null,null,null,null,null,null,"","ROAD_SURFACE_CD_FRM",5,"5","Dirt","N",null,"Dirt"]
[null,null,null,null,null,null,"","ROAD_SURFACE_CD_FRM",4,"4","Slag, Gravel, Stone","N",null,"Slag, Gravel, Stone"]
[null,null,null,null,null,null,"","ROAD_SURFACE_CD_FRM",3,"3","Brick/Block","N",null,"Brick/Block"]
[null,null,null,null,null,null,"","ROAD_SURFACE_CD_FRM",1,"1","Concrete","N",null,"Concrete"]
[null,null,null,null,null,null,"","ROAD_SURFACE_CD_FRM",0,"0","Unknown/Missing","N",null,"Unknown/Missing"]
[null,null,null,null,null,null,"","ROAD_SURFACE_CD_FRM",2,"2","Blacktop/Asphalt","N",null,"Blacktop/Asphalt"]
[null,null,null,null,null,null,"","U1_CONDITION_CD_FRM",1,"1","Apparently Normal","N",null,"Apparently Normal"]
[null,null,null,null,null,null,"","U1_CONDITION_CD_FRM",0,"0","Unknown","N",null,"Unknown"]
[null,null,null,null,null,null,"","U1_CONDITION_CD_FRM",5,"5","Fell Asleep, Fainted, Fatigued","N",null,"Fell Asleep, Fainted, Fatigued"]
[null,null,null,null,null,null,"","U1_CONDITION_CD_FRM",4,"4","Illness","N",null,"Illness"]
[null,null,null,null,null,null,"","U1_CONDITION_CD_FRM",3,"3","Emotional","N",null,"Emotional"]
[null,null,null,null,null,null,"","U1_CONDITION_CD_FRM",7,"7","Other","N",null,"Other"]
[null,null,null,null,null,null,"","U1_CONDITION_CD_FRM",2,"2","Physical Impairment","N",null,"Physical Impairment"]
[null,null,null,null,null,null,"","U1_CONDITION_CD_FRM",6,"6","Under the Influence of","N",null,"Under the Influence of"]
[null,null,null,null,null,null,"","U1_VEHICLE_DEFECTS_CD_FRM",8,"8","Trailer Equipment Defective","N",null,"Trailer Equipment Defective"]
[null,null,null,null,null,null,"","U1_VEHICLE_DEFECTS_CD_FRM",3,"3","Tail Lamps","N",null,"Tail Lamps"]
[null,null,null,null,null,null,"","U1_VEHICLE_DEFECTS_CD_FRM",2,"2","Head Lamps","N",null,"Head Lamps"]
[null,null,null,null,null,null,"","U1_VEHICLE_DEFECTS_CD_FRM",1,"1","Turn Signals","N",null,"Turn Signals"]
[null,null,null,null,null,null,"","U1_VEHICLE_DEFECTS_CD_FRM",4,"4","Brakes","N",null,"Brakes"]
[null,null,null,null,null,null,"","U1_VEHICLE_DEFECTS_CD_FRM",7,"7","Worn or Slick Tires","N",null,"Worn or Slick Tires"]
[null,null,null,null,null,null,"","U1_VEHICLE_DEFECTS_CD_FRM",9,"9","Motor Trouble","N",null,"Motor Trouble"]
[null,null,null,null,null,null,"","U1_VEHICLE_DEFECTS_CD_FRM",10,"10","Disabled from Prior Accident","N",null,"Disabled from Prior Accident"]
[null,null,null,null,null,null,"","U1_VEHICLE_DEFECTS_CD_FRM",11,"11","Other Defects","N",null,"Other Defects"]
[null,null,null,null,null,null,"","U1_VEHICLE_DEFECTS_CD_FRM",5,"5","Steering","N",null,"Steering"]
[null,null,null,null,null,null,"","U1_VEHICLE_DEFECTS_CD_FRM",6,"6","Tire Blowout","N",null,"Tire Blowout"]
[null,null,null,null,null,null,"U2_DIRECTION_FROM_CD","Direction From",1,"U2_DIRECTION_FROM_CD1","North","Y",null,"North"]
[null,null,null,null,null,null,"U2_DIRECTION_FROM_CD","Direction From",2,"U2_DIRECTION_FROM_CD2","South","Y",null,"South"]
[null,null,null,null,null,null,"U2_DIRECTION_FROM_CD","Direction From",3,"U2_DIRECTION_FROM_CD3","East","Y",null,"East"]
[null,null,null,null,null,null,"U2_DIRECTION_FROM_CD","Direction From",4,"U2_DIRECTION_FROM_CD4","West","Y",null,"West"]
[null,null,null,null,null,null,"U2_DIRECTION_FROM_CD","Direction From",5,"U2_DIRECTION_FROM_CD5","Northeast","Y",null,"Northeast"]
[null,null,null,null,null,null,"U2_DIRECTION_FROM_CD","Direction From",6,"U2_DIRECTION_FROM_CD6","Northwest","Y",null,"Northwest"]
[null,null,null,null,null,null,"U2_DIRECTION_FROM_CD","Direction From",7,"U2_DIRECTION_FROM_CD7","Southeast","Y",null,"Southeast"]
[null,null,null,null,null,null,"U2_DIRECTION_FROM_CD","Direction From",8,"U2_DIRECTION_FROM_CD8","Southwest","Y",null,"Southwest"]
[null,null,null,null,null,null,"U2_DIRECTION_FROM_CD","Direction From",9,"U2_DIRECTION_FROM_CD9","Unknown","Y",null,"Unknown"]
[null,null,null,null,null,null,"U2_DIRECTION_TO_CD","Direction To",1,"U2_DIRECTION_TO_CD1","North","Y",null,"North"]
[null,null,null,null,null,null,"U2_DIRECTION_TO_CD","Direction To",2,"U2_DIRECTION_TO_CD2","South","Y",null,"South"]
[null,null,null,null,null,null,"U2_DIRECTION_TO_CD","Direction To",3,"U2_DIRECTION_TO_CD3","East","Y",null,"East"]
[null,null,null,null,null,null,"U2_DIRECTION_TO_CD","Direction To",4,"U2_DIRECTION_TO_CD4","West","Y",null,"West"]
[null,null,null,null,null,null,"U2_DIRECTION_TO_CD","Direction To",5,"U2_DIRECTION_TO_CD5","Northeast","Y",null,"Northeast"]
[null,null,null,null,null,null,"U2_DIRECTION_TO_CD","Direction To",6,"U2_DIRECTION_TO_CD6","Northwest","Y",null,"Northwest"]
[null,null,null,null,null,null,"U2_DIRECTION_TO_CD","Direction To",7,"U2_DIRECTION_TO_CD7","Southeast","Y",null,"Southeast"]
[null,null,null,null,null,null,"U2_DIRECTION_TO_CD","Direction To",8,"U2_DIRECTION_TO_CD8","Southwest","Y",null,"Southwest"]
[null,null,null,null,null,null,"U2_DIRECTION_TO_CD","Direction To",9,"U2_DIRECTION_TO_CD9","Unknown","Y",null,"Unknown"]
[null,null,null,null,null,null,"U2_TRAFFIC_WAY_DESC_CD","U2_TRAFFIC_WAY_DESC_CD_FRM",0,"U2_TRAFFIC_WAY_DESC_CD0","Old Data Not Available","N",null,"Old Data Not Available"]
[null,null,null,null,null,null,"U2_TRAFFIC_WAY_DESC_CD","U2_TRAFFIC_WAY_DESC_CD_FRM",1,"U2_TRAFFIC_WAY_DESC_CD1","Two-Way, Not Divided","N",null,"Two-Way, Not Divided"]
[null,null,null,null,null,null,"U2_TRAFFIC_WAY_DESC_CD","U2_TRAFFIC_WAY_DESC_CD_FRM",2,"U2_TRAFFIC_WAY_DESC_CD2","2-Way, undiv, Continuous Left Turn Lane","N",null,"2-Way, undiv, Continuous Left Turn Lane"]
[null,null,null,null,null,null,"U2_TRAFFIC_WAY_DESC_CD","U2_TRAFFIC_WAY_DESC_CD_FRM",3,"U2_TRAFFIC_WAY_DESC_CD3","2-Way, Div, Unprotected Median >4 ft","N",null,"2-Way, Div, Unprotected Median >4 ft"]
[null,null,null,null,null,null,"U2_TRAFFIC_WAY_DESC_CD","U2_TRAFFIC_WAY_DESC_CD_FRM",4,"U2_TRAFFIC_WAY_DESC_CD4","2-Way, Div, Positive Median Barrier","N",null,"2-Way, Div, Positive Median Barrier"]
[null,null,null,null,null,null,"U2_TRAFFIC_WAY_DESC_CD","U2_TRAFFIC_WAY_DESC_CD_FRM",5,"U2_TRAFFIC_WAY_DESC_CD5","One-Way Trafficway","N",null,"One-Way Trafficway"]
[null,null,null,null,null,null,"U2_TRAFFIC_WAY_DESC_CD","U2_TRAFFIC_WAY_DESC_CD_FRM",9,"U2_TRAFFIC_WAY_DESC_CD9","Unknown","N",null,"Unknown"]
[null,null,null,null,null,null,"U2_TRAFFIC_CONTROL_CD","Traffic Control Type",1,"U2_TRAFFIC_CONTROL_CD1","No Controls","Y",null,"No Controls"]
[null,null,null,null,null,null,"U2_TRAFFIC_CONTROL_CD","Traffic Control Type",2,"U2_TRAFFIC_CONTROL_CD2","Stop Sign","Y",null,"Stop Sign"]
[null,null,null,null,null,null,"U2_TRAFFIC_CONTROL_CD","Traffic Control Type",3,"U2_TRAFFIC_CONTROL_CD3","Yield Sign","Y",null,"Yield Sign"]
[null,null,null,null,null,null,"U2_TRAFFIC_CONTROL_CD","Traffic Control Type",4,"U2_TRAFFIC_CONTROL_CD4","Traffic Signal","Y",null,"Traffic Signal"]
[null,null,null,null,null,null,"U2_TRAFFIC_CONTROL_CD","Traffic Control Type",5,"U2_TRAFFIC_CONTROL_CD5","Traffic Flashers","Y",null,"Traffic Flashers"]
[null,null,null,null,null,null,"U2_TRAFFIC_CONTROL_CD","Traffic Control Type",6,"U2_TRAFFIC_CONTROL_CD6","School Zone","Y",null,"School Zone"]
[null,null,null,null,null,null,"U2_TRAFFIC_CONTROL_CD","Traffic Control Type",7,"U2_TRAFFIC_CONTROL_CD7","Railroad Crossbucks","Y",null,"Railroad Crossbucks"]
[null,null,null,null,null,null,"U2_TRAFFIC_CONTROL_CD","Traffic Control Type",8,"U2_TRAFFIC_CONTROL_CD8","Railroad Flashers","Y",null,"Railroad Flashers"]
[null,null,null,null,null,null,"U2_TRAFFIC_CONTROL_CD","Traffic Control Type",9,"U2_TRAFFIC_CONTROL_CD9","Railroad Gates","Y",null,"Railroad Gates"]
[null,null,null,null,null,null,"U2_TRAFFIC_CONTROL_CD","Traffic Control Type",10,"U2_TRAFFIC_CONTROL_CD10","Construction Barricade","Y",null,"Construction Barricade"]
[null,null,null,null,null,null,"U2_TRAFFIC_CONTROL_CD","Traffic Control Type",11,"U2_TRAFFIC_CONTROL_CD11","Person (Flagger, Officer)","Y",null,"Person (Flagger, Officer)"]
[null,null,null,null,null,null,"U2_TRAFFIC_CONTROL_CD","Traffic Control Type",12,"U2_TRAFFIC_CONTROL_CD12","Pavement Markings","Y",null,"Pavement Markings"]
[null,null,null,null,null,null,"U2_TRAFFIC_CONTROL_CD","Traffic Control Type",13,"U2_TRAFFIC_CONTROL_CD13","Crosswalk Lines","Y",null,"Crosswalk Lines"]
[null,null,null,null,null,null,"U2_TRAFFIC_CONTROL_CD","Traffic Control Type",14,"U2_TRAFFIC_CONTROL_CD14","Walk/Do Not Walk","Y",null,"Walk/Do Not Walk"]
[null,null,null,null,null,null,"U2_TRAFFIC_CONTROL_CD","Traffic Control Type",15,"U2_TRAFFIC_CONTROL_CD15","Other","Y",null,"Other"]
[null,null,null,null,null,null,"U2_TRAFFIC_CONTROL_CD","Traffic Control Type",16,"U2_TRAFFIC_CONTROL_CD16","Not Reported","Y",null,"Not Reported"]
[null,null,null,null,null,null,"U2_TYPE_OF_USE_CD","Type of Use",0,"U2_TYPE_OF_USE_CD0","Not Available","Y",null,"Not Available"]
[null,null,null,null,null,null,"U2_TYPE_OF_USE_CD","Type of Use",1,"U2_TYPE_OF_USE_CD1","Personal","Y",null,"Personal"]
[null,null,null,null,null,null,"U2_TYPE_OF_USE_CD","Type of Use",2,"U2_TYPE_OF_USE_CD2","Commercial","Y",null,"Commercial"]
[null,null,null,null,null,null,"U2_TYPE_OF_USE_CD","Type of Use",3,"U2_TYPE_OF_USE_CD3","Government","Y",null,"Government"]
[null,null,null,null,null,null,"U2_TYPE_OF_USE_CD","Type of Use",9,"U2_TYPE_OF_USE_CD9","Unknown","Y",null,"Unknown"]
[null,null,null,null,null,null,"U2_TYPE_OF_UNIT_CD","Type of Unit",1,"U2_TYPE_OF_UNIT_CD1","Sub-Compact","Y",null,"Sub-Compact"]
[null,null,null,null,null,null,"U2_TYPE_OF_UNIT_CD","Type of Unit",2,"U2_TYPE_OF_UNIT_CD2","Compact","Y",null,"Compact"]
[null,null,null,null,null,null,"U2_TYPE_OF_UNIT_CD","Type of Unit",3,"U2_TYPE_OF_UNIT_CD3","Mid Size","Y",null,"Mid Size"]
[null,null,null,null,null,null,"U2_TYPE_OF_UNIT_CD","Type of Unit",4,"U2_TYPE_OF_UNIT_CD4","Full Size","Y",null,"Full Size"]
[null,null,null,null,null,null,"U2_TYPE_OF_UNIT_CD","Type of Unit",5,"U2_TYPE_OF_UNIT_CD5","Minivan","Y",null,"Minivan"]
[null,null,null,null,null,null,"U2_TYPE_OF_UNIT_CD","Type of Unit",6,"U2_TYPE_OF_UNIT_CD6","Sport Utility Vehicle","Y",null,"Sport Utility Vehicle"]
[null,null,null,null,null,null,"U2_TYPE_OF_UNIT_CD","Type of Unit",7,"U2_TYPE_OF_UNIT_CD7","Pickup","Y",null,"Pickup"]
[null,null,null,null,null,null,"U2_TYPE_OF_UNIT_CD","Type of Unit",8,"U2_TYPE_OF_UNIT_CD8","Van","Y",null,"Van"]
[null,null,null,null,null,null,"U2_TYPE_OF_UNIT_CD","Type of Unit",9,"U2_TYPE_OF_UNIT_CD9","Motorcycle","Y",null,"Motorcycle"]
[null,null,null,null,null,null,"U2_TYPE_OF_UNIT_CD","Type of Unit",10,"U2_TYPE_OF_UNIT_CD10","Motorized Bicycle","Y",null,"Motorized Bicycle"]
[null,null,null,null,null,null,"U2_TYPE_OF_UNIT_CD","Type of Unit",11,"U2_TYPE_OF_UNIT_CD11","Snowmobile/ATV","Y",null,"Snowmobile/ATV"]
[null,null,null,null,null,null,"U2_TYPE_OF_UNIT_CD","Type of Unit",12,"U2_TYPE_OF_UNIT_CD12","Other Passenger Vehicle","Y",null,"Other Passenger Vehicle"]
[null,null,null,null,null,null,"U2_TYPE_OF_UNIT_CD","Type of Unit",13,"U2_TYPE_OF_UNIT_CD13","Single Unit Truck Or Van 2 Axle, 6 Tires","Y",null,"Single Unit Truck Or Van 2 Axle, 6 Tires"]
[null,null,null,null,null,null,"U2_TYPE_OF_UNIT_CD","Type of Unit",14,"U2_TYPE_OF_UNIT_CD14","Single Unit Truck; 3+ Axles","Y",null,"Single Unit Truck; 3+ Axles"]
[null,null,null,null,null,null,"U2_TYPE_OF_UNIT_CD","Type of Unit",15,"U2_TYPE_OF_UNIT_CD15","Single Unit Truck/Trailer","Y",null,"Single Unit Truck/Trailer"]
[null,null,null,null,null,null,"U2_TYPE_OF_UNIT_CD","Type of Unit",16,"U2_TYPE_OF_UNIT_CD16","Truck/Tractor (Bobtail)","Y",null,"Truck/Tractor (Bobtail)"]
[null,null,null,null,null,null,"U2_TYPE_OF_UNIT_CD","Type of Unit",17,"U2_TYPE_OF_UNIT_CD17","Tractor/Semi-Trailer","Y",null,"Tractor/Semi-Trailer"]
[null,null,null,null,null,null,"U2_TYPE_OF_UNIT_CD","Type of Unit",18,"U2_TYPE_OF_UNIT_CD18","Tractor/Double","Y",null,"Tractor/Double"]
[null,null,null,null,null,null,"U2_TYPE_OF_UNIT_CD","Type of Unit",19,"U2_TYPE_OF_UNIT_CD19","Tractor/Triples","Y",null,"Tractor/Triples"]
[null,null,null,null,null,null,"U2_TYPE_OF_UNIT_CD","Type of Unit",20,"U2_TYPE_OF_UNIT_CD20","Other Med/Heavy Vehicle","Y",null,"Other Med/Heavy Vehicle"]
[null,null,null,null,null,null,"U2_TYPE_OF_UNIT_CD","Type of Unit",21,"U2_TYPE_OF_UNIT_CD21","Bus/Van (9-15 Seats Inc Driver)","Y",null,"Bus/Van (9-15 Seats Inc Driver)"]
[null,null,null,null,null,null,"U2_TYPE_OF_UNIT_CD","Type of Unit",22,"U2_TYPE_OF_UNIT_CD22","Bus (16+ Seats, Inc Driver)","Y",null,"Bus (16+ Seats, Inc Driver)"]
[null,null,null,null,null,null,"U2_TYPE_OF_UNIT_CD","Type of Unit",23,"U2_TYPE_OF_UNIT_CD23","Animal With Rider","Y",null,"Animal With Rider"]
[null,null,null,null,null,null,"U2_TYPE_OF_UNIT_CD","Type of Unit",24,"U2_TYPE_OF_UNIT_CD24","Animal With Buggy, Wagon, Surrey","Y",null,"Animal With Buggy, Wagon, Surrey"]
[null,null,null,null,null,null,"U2_TYPE_OF_UNIT_CD","Type of Unit",25,"U2_TYPE_OF_UNIT_CD25","Bicycle/Pedacyclist","Y",null,"Bicycle/Pedacyclist"]
[null,null,null,null,null,null,"U2_TYPE_OF_UNIT_CD","Type of Unit",26,"U2_TYPE_OF_UNIT_CD26","Pedestrian/Skater","Y",null,"Pedestrian/Skater"]
[null,null,null,null,null,null,"U2_TYPE_OF_UNIT_CD","Type of Unit",27,"U2_TYPE_OF_UNIT_CD27","Other Non-Motorist","Y",null,"Other Non-Motorist"]
[null,null,null,null,null,null,"U2_TYPE_OF_UNIT_CD","Type of Unit",99,"U2_TYPE_OF_UNIT_CD99","Unknown Or Hit/Skip","Y",null,"Unknown Or Hit/Skip"]
[null,null,null,null,null,null,"U2_SPECIAL_FUNCTION_CD","Special Function",1,"U2_SPECIAL_FUNCTION_CD1","None","Y",null,"None"]
[null,null,null,null,null,null,"U2_SPECIAL_FUNCTION_CD","Special Function",2,"U2_SPECIAL_FUNCTION_CD2","Taxi","Y",null,"Taxi"]
[null,null,null,null,null,null,"U2_SPECIAL_FUNCTION_CD","Special Function",3,"U2_SPECIAL_FUNCTION_CD3","Rental Truck (Over 10,000 Lbs)","Y",null,"Rental Truck (Over 10,000 Lbs)"]
[null,null,null,null,null,null,"U2_SPECIAL_FUNCTION_CD","Special Function",4,"U2_SPECIAL_FUNCTION_CD4","Bus-School (Public Or Private)","Y",null,"Bus-School (Public Or Private)"]
[null,null,null,null,null,null,"U2_SPECIAL_FUNCTION_CD","Special Function",5,"U2_SPECIAL_FUNCTION_CD5","Bus-Transit","Y",null,"Bus-Transit"]
[null,null,null,null,null,null,"U2_SPECIAL_FUNCTION_CD","Special Function",6,"U2_SPECIAL_FUNCTION_CD6","Bus-Charter","Y",null,"Bus-Charter"]
[null,null,null,null,null,null,"U2_SPECIAL_FUNCTION_CD","Special Function",7,"U2_SPECIAL_FUNCTION_CD7","Bus-Shuttle","Y",null,"Bus-Shuttle"]
[null,null,null,null,null,null,"U2_SPECIAL_FUNCTION_CD","Special Function",8,"U2_SPECIAL_FUNCTION_CD8","Bus-Other","Y",null,"Bus-Other"]
[null,null,null,null,null,null,"U2_SPECIAL_FUNCTION_CD","Special Function",9,"U2_SPECIAL_FUNCTION_CD9","Ambulance","Y",null,"Ambulance"]
[null,null,null,null,null,null,"U2_SPECIAL_FUNCTION_CD","Special Function",10,"U2_SPECIAL_FUNCTION_CD10","Fire","Y",null,"Fire"]
[null,null,null,null,null,null,"U2_SPECIAL_FUNCTION_CD","Special Function",11,"U2_SPECIAL_FUNCTION_CD11","Highway/Maintenance","Y",null,"Highway/Maintenance"]
[null,null,null,null,null,null,"U2_SPECIAL_FUNCTION_CD","Special Function",12,"U2_SPECIAL_FUNCTION_CD12","Military","Y",null,"Military"]
[null,null,null,null,null,null,"U2_SPECIAL_FUNCTION_CD","Special Function",13,"U2_SPECIAL_FUNCTION_CD13","Police","Y",null,"Police"]
[null,null,null,null,null,null,"U2_SPECIAL_FUNCTION_CD","Special Function",14,"U2_SPECIAL_FUNCTION_CD14","Public Utility","Y",null,"Public Utility"]
[null,null,null,null,null,null,"U2_SPECIAL_FUNCTION_CD","Special Function",15,"U2_SPECIAL_FUNCTION_CD15","Other Government","Y",null,"Other Government"]
[null,null,null,null,null,null,"U2_SPECIAL_FUNCTION_CD","Special Function",16,"U2_SPECIAL_FUNCTION_CD16","Construction Equipment","Y",null,"Construction Equipment"]
[null,null,null,null,null,null,"U2_SPECIAL_FUNCTION_CD","Special Function",17,"U2_SPECIAL_FUNCTION_CD17","Farm Vehicle","Y",null,"Farm Vehicle"]
[null,null,null,null,null,null,"U2_SPECIAL_FUNCTION_CD","Special Function",18,"U2_SPECIAL_FUNCTION_CD18","Farm Equipment","Y",null,"Farm Equipment"]
[null,null,null,null,null,null,"U2_SPECIAL_FUNCTION_CD","Special Function",19,"U2_SPECIAL_FUNCTION_CD19","Motorhome","Y",null,"Motorhome"]
[null,null,null,null,null,null,"U2_SPECIAL_FUNCTION_CD","Special Function",20,"U2_SPECIAL_FUNCTION_CD20","Golf Cart","Y",null,"Golf Cart"]
[null,null,null,null,null,null,"U2_SPECIAL_FUNCTION_CD","Special Function",21,"U2_SPECIAL_FUNCTION_CD21","Train","Y",null,"Train"]
[null,null,null,null,null,null,"U2_SPECIAL_FUNCTION_CD","Special Function",22,"U2_SPECIAL_FUNCTION_CD22","Other","Y",null,"Other"]
[null,null,null,null,null,null,"U2_UNIT_SPEED_RANGE_CD","Unit Speed",0,"U2_UNIT_SPEED_RANGE_CD0","Unit Speed Not Stated","N",null,"Unit Speed Not Stated"]
[null,null,null,null,null,null,"U2_UNIT_SPEED_RANGE_CD","Unit Speed",1,"U2_UNIT_SPEED_RANGE_CD1","Unit Speed 20 and Under","Y",null,"Unit Speed 20 and Under"]
[null,null,null,null,null,null,"U2_UNIT_SPEED_RANGE_CD","Unit Speed",2,"U2_UNIT_SPEED_RANGE_CD2","Unit Speed 21-25","Y",null,"Unit Speed 21-25"]
[null,null,null,null,null,null,"U2_UNIT_SPEED_RANGE_CD","Unit Speed",3,"U2_UNIT_SPEED_RANGE_CD3","Unit Speed 26-30","Y",null,"Unit Speed 26-30"]
[null,null,null,null,null,null,"U2_UNIT_SPEED_RANGE_CD","Unit Speed",4,"U2_UNIT_SPEED_RANGE_CD4","Unit Speed 31-35","Y",null,"Unit Speed 31-35"]
[null,null,null,null,null,null,"U2_UNIT_SPEED_RANGE_CD","Unit Speed",5,"U2_UNIT_SPEED_RANGE_CD5","Unit Speed 36-40","Y",null,"Unit Speed 36-40"]
[null,null,null,null,null,null,"U2_UNIT_SPEED_RANGE_CD","Unit Speed",6,"U2_UNIT_SPEED_RANGE_CD6","Unit Speed 41-45","Y",null,"Unit Speed 41-45"]
[null,null,null,null,null,null,"U2_UNIT_SPEED_RANGE_CD","Unit Speed",7,"U2_UNIT_SPEED_RANGE_CD7","Unit Speed 46-50","Y",null,"Unit Speed 46-50"]
[null,null,null,null,null,null,"U2_UNIT_SPEED_RANGE_CD","Unit Speed",8,"U2_UNIT_SPEED_RANGE_CD8","Unit Speed 51-55","Y",null,"Unit Speed 51-55"]
[null,null,null,null,null,null,"U2_UNIT_SPEED_RANGE_CD","Unit Speed",9,"U2_UNIT_SPEED_RANGE_CD9","Unit Speed 56-60","Y",null,"Unit Speed 56-60"]
[null,null,null,null,null,null,"U2_UNIT_SPEED_RANGE_CD","Unit Speed",10,"U2_UNIT_SPEED_RANGE_CD10","Unit Speed 61-65","Y",null,"Unit Speed 61-65"]
[null,null,null,null,null,null,"U2_UNIT_SPEED_RANGE_CD","Unit Speed",11,"U2_UNIT_SPEED_RANGE_CD11","Unit Speed Over 65","Y",null,"Unit Speed Over 65"]
[null,null,null,null,null,null,"U2_POSTED_SPEED_RANGE_CD","Posted Speed",0,"U2_POSTED_SPEED_RANGE_CD0","Posted Speed Not Stated","N",null,"Posted Speed Not Stated"]
[null,null,null,null,null,null,"U2_POSTED_SPEED_RANGE_CD","Posted Speed",1,"U2_POSTED_SPEED_RANGE_CD1","Posted Speed 20 and Under","Y",null,"Posted Speed 20 and Under"]
[null,null,null,null,null,null,"U2_POSTED_SPEED_RANGE_CD","Posted Speed",2,"U2_POSTED_SPEED_RANGE_CD2","Posted Speed 21-25","Y",null,"Posted Speed 21-25"]
[null,null,null,null,null,null,"U2_POSTED_SPEED_RANGE_CD","Posted Speed",3,"U2_POSTED_SPEED_RANGE_CD3","Posted Speed 26-30","Y",null,"Posted Speed 26-30"]
[null,null,null,null,null,null,"U2_POSTED_SPEED_RANGE_CD","Posted Speed",4,"U2_POSTED_SPEED_RANGE_CD4","Posted Speed 31-35","Y",null,"Posted Speed 31-35"]
[null,null,null,null,null,null,"U2_POSTED_SPEED_RANGE_CD","Posted Speed",5,"U2_POSTED_SPEED_RANGE_CD5","Posted Speed 36-40","Y",null,"Posted Speed 36-40"]
[null,null,null,null,null,null,"U2_POSTED_SPEED_RANGE_CD","Posted Speed",6,"U2_POSTED_SPEED_RANGE_CD6","Posted Speed 41-45","Y",null,"Posted Speed 41-45"]
[null,null,null,null,null,null,"U2_POSTED_SPEED_RANGE_CD","Posted Speed",7,"U2_POSTED_SPEED_RANGE_CD7","Posted Speed 46-50","Y",null,"Posted Speed 46-50"]
[null,null,null,null,null,null,"U2_POSTED_SPEED_RANGE_CD","Posted Speed",8,"U2_POSTED_SPEED_RANGE_CD8","Posted Speed 51-55","Y",null,"Posted Speed 51-55"]
[null,null,null,null,null,null,"U2_POSTED_SPEED_RANGE_CD","Posted Speed",9,"U2_POSTED_SPEED_RANGE_CD9","Posted Speed 56-60","Y",null,"Posted Speed 56-60"]
[null,null,null,null,null,null,"U2_POSTED_SPEED_RANGE_CD","Posted Speed",10,"U2_POSTED_SPEED_RANGE_CD10","Posted Speed 61-65","Y",null,"Posted Speed 61-65"]
[null,null,null,null,null,null,"U2_POSTED_SPEED_RANGE_CD","Posted Speed",11,"U2_POSTED_SPEED_RANGE_CD11","Posted Speed Over 65","Y",null,"Posted Speed Over 65"]
[null,null,null,null,null,null,"U2_PRECRASH_ACTION_CD","Pre-Crash Action",1,"U2_PRECRASH_ACTION_CD1","Straight Ahead","Y",null,"Straight Ahead"]
[null,null,null,null,null,null,"U2_PRECRASH_ACTION_CD","Pre-Crash Action",2,"U2_PRECRASH_ACTION_CD2","Backing","Y",null,"Backing"]
[null,null,null,null,null,null,"U2_PRECRASH_ACTION_CD","Pre-Crash Action",3,"U2_PRECRASH_ACTION_CD3","Changing Lanes","Y",null,"Changing Lanes"]
[null,null,null,null,null,null,"U2_PRECRASH_ACTION_CD","Pre-Crash Action",4,"U2_PRECRASH_ACTION_CD4","Overtaking/Passing","Y",null,"Overtaking/Passing"]
[null,null,null,null,null,null,"U2_PRECRASH_ACTION_CD","Pre-Crash Action",5,"U2_PRECRASH_ACTION_CD5","Making Right Turn","Y",null,"Making Right Turn"]
[null,null,null,null,null,null,"U2_PRECRASH_ACTION_CD","Pre-Crash Action",6,"U2_PRECRASH_ACTION_CD6","Making Left Turn","Y",null,"Making Left Turn"]
[null,null,null,null,null,null,"U2_PRECRASH_ACTION_CD","Pre-Crash Action",7,"U2_PRECRASH_ACTION_CD7","Making U-Turn","Y",null,"Making U-Turn"]
[null,null,null,null,null,null,"U2_PRECRASH_ACTION_CD","Pre-Crash Action",8,"U2_PRECRASH_ACTION_CD8","Entering Traffic Lane","Y",null,"Entering Traffic Lane"]
[null,null,null,null,null,null,"U2_PRECRASH_ACTION_CD","Pre-Crash Action",9,"U2_PRECRASH_ACTION_CD9","Leaving Traffic Lane","Y",null,"Leaving Traffic Lane"]
[null,null,null,null,null,null,"U2_PRECRASH_ACTION_CD","Pre-Crash Action",10,"U2_PRECRASH_ACTION_CD10","Parked","Y",null,"Parked"]
[null,null,null,null,null,null,"U2_PRECRASH_ACTION_CD","Pre-Crash Action",11,"U2_PRECRASH_ACTION_CD11","Slowing Or Stopped In Traffic","Y",null,"Slowing Or Stopped In Traffic"]
[null,null,null,null,null,null,"U2_PRECRASH_ACTION_CD","Pre-Crash Action",12,"U2_PRECRASH_ACTION_CD12","Driverless","Y",null,"Driverless"]
[null,null,null,null,null,null,"U2_PRECRASH_ACTION_CD","Pre-Crash Action",13,"U2_PRECRASH_ACTION_CD13","Negotiating A Curve","Y",null,"Negotiating A Curve"]
[null,null,null,null,null,null,"U2_PRECRASH_ACTION_CD","Pre-Crash Action",14,"U2_PRECRASH_ACTION_CD14","Other Motorist Action","Y",null,"Other Motorist Action"]
[null,null,null,null,null,null,"U2_PRECRASH_ACTION_CD","Pre-Crash Action",15,"U2_PRECRASH_ACTION_CD15","Entering Or Crossing Specified Location","Y",null,"Entering Or Crossing Specified Location"]
[null,null,null,null,null,null,"U2_PRECRASH_ACTION_CD","Pre-Crash Action",16,"U2_PRECRASH_ACTION_CD16","Walking, Running, Jogging, Playing, Cycling","Y",null,"Walking, Running, Jogging, Playing, Cycling"]
[null,null,null,null,null,null,"U2_PRECRASH_ACTION_CD","Pre-Crash Action",17,"U2_PRECRASH_ACTION_CD17","Working","Y",null,"Working"]
[null,null,null,null,null,null,"U2_PRECRASH_ACTION_CD","Pre-Crash Action",18,"U2_PRECRASH_ACTION_CD18","Pushing Vehicle","Y",null,"Pushing Vehicle"]
[null,null,null,null,null,null,"U2_PRECRASH_ACTION_CD","Pre-Crash Action",19,"U2_PRECRASH_ACTION_CD19","Approaching Or Leaving Vehicle","Y",null,"Approaching Or Leaving Vehicle"]
[null,null,null,null,null,null,"U2_PRECRASH_ACTION_CD","Pre-Crash Action",20,"U2_PRECRASH_ACTION_CD20","Standing","Y",null,"Standing"]
[null,null,null,null,null,null,"U2_PRECRASH_ACTION_CD","Pre-Crash Action",21,"U2_PRECRASH_ACTION_CD21","Other Non-Motorist Action","Y",null,"Other Non-Motorist Action"]
[null,null,null,null,null,null,"U2_PRECRASH_ACTION_CD","Pre-Crash Action",99,"U2_PRECRASH_ACTION_CD99","Unknown","Y",null,"Unknown"]
[null,null,null,null,null,null,"U2_CONT_CIR_PRIMARY_CD","Contributing Circumstance",1,"U2_CONT_CIR_PRIMARY_CD1","None","Y",null,"None"]
[null,null,null,null,null,null,"U2_CONT_CIR_PRIMARY_CD","Contributing Circumstance",2,"U2_CONT_CIR_PRIMARY_CD2","Failure To Yield","Y",null,"Failure To Yield"]
[null,null,null,null,null,null,"U2_CONT_CIR_PRIMARY_CD","Contributing Circumstance",3,"U2_CONT_CIR_PRIMARY_CD3","Ran Red Light","Y",null,"Ran Red Light"]
[null,null,null,null,null,null,"U2_CONT_CIR_PRIMARY_CD","Contributing Circumstance",4,"U2_CONT_CIR_PRIMARY_CD4","Ran Stop Sign","Y",null,"Ran Stop Sign"]
[null,null,null,null,null,null,"U2_CONT_CIR_PRIMARY_CD","Contributing Circumstance",5,"U2_CONT_CIR_PRIMARY_CD5","Exceeded Speed Limit","Y",null,"Exceeded Speed Limit"]
[null,null,null,null,null,null,"U2_CONT_CIR_PRIMARY_CD","Contributing Circumstance",6,"U2_CONT_CIR_PRIMARY_CD6","Unsafe Speed","Y",null,"Unsafe Speed"]
[null,null,null,null,null,null,"U2_CONT_CIR_PRIMARY_CD","Contributing Circumstance",7,"U2_CONT_CIR_PRIMARY_CD7","Improper Turn","Y",null,"Improper Turn"]
[null,null,null,null,null,null,"U2_CONT_CIR_PRIMARY_CD","Contributing Circumstance",8,"U2_CONT_CIR_PRIMARY_CD8","Left Of Center","Y",null,"Left Of Center"]
[null,null,null,null,null,null,"U2_CONT_CIR_PRIMARY_CD","Contributing Circumstance",9,"U2_CONT_CIR_PRIMARY_CD9","Followed To Closely/ACDA","Y",null,"Followed To Closely/ACDA"]
[null,null,null,null,null,null,"U2_CONT_CIR_PRIMARY_CD","Contributing Circumstance",10,"U2_CONT_CIR_PRIMARY_CD10","Improper Lane Change/Passing/Offroad","Y",null,"Improper Lane Change/Passing/Offroad"]
[null,null,null,null,null,null,"U2_CONT_CIR_PRIMARY_CD","Contributing Circumstance",11,"U2_CONT_CIR_PRIMARY_CD11","Improper Backing","Y",null,"Improper Backing"]
[null,null,null,null,null,null,"U2_CONT_CIR_PRIMARY_CD","Contributing Circumstance",12,"U2_CONT_CIR_PRIMARY_CD12","Improper Start From Parked Position","Y",null,"Improper Start From Parked Position"]
[null,null,null,null,null,null,"U2_CONT_CIR_PRIMARY_CD","Contributing Circumstance",13,"U2_CONT_CIR_PRIMARY_CD13","Stopped Or Parked Illegally","Y",null,"Stopped Or Parked Illegally"]
[null,null,null,null,null,null,"U2_CONT_CIR_PRIMARY_CD","Contributing Circumstance",14,"U2_CONT_CIR_PRIMARY_CD14","Operating Vehicle In Negligent Manner","Y",null,"Operating Vehicle In Negligent Manner"]
[null,null,null,null,null,null,"U2_CONT_CIR_PRIMARY_CD","Contributing Circumstance",15,"U2_CONT_CIR_PRIMARY_CD15","Swerving To Avoid","Y",null,"Swerving To Avoid"]
[null,null,null,null,null,null,"U2_CONT_CIR_PRIMARY_CD","Contributing Circumstance",16,"U2_CONT_CIR_PRIMARY_CD16","Wrong Side/Wrong Way","Y",null,"Wrong Side/Wrong Way"]
[null,null,null,null,null,null,"U2_CONT_CIR_PRIMARY_CD","Contributing Circumstance",17,"U2_CONT_CIR_PRIMARY_CD17","Failure To Control","Y",null,"Failure To Control"]
[null,null,null,null,null,null,"U2_CONT_CIR_PRIMARY_CD","Contributing Circumstance",18,"U2_CONT_CIR_PRIMARY_CD18","Vision Obstruction","Y",null,"Vision Obstruction"]
[null,null,null,null,null,null,"U2_CONT_CIR_PRIMARY_CD","Contributing Circumstance",19,"U2_CONT_CIR_PRIMARY_CD19","Operating Defective Equipment","Y",null,"Operating Defective Equipment"]
[null,null,null,null,null,null,"U2_CONT_CIR_PRIMARY_CD","Contributing Circumstance",20,"U2_CONT_CIR_PRIMARY_CD20","Load Shifting/Falling/Spilling","Y",null,"Load Shifting/Falling/Spilling"]
[null,null,null,null,null,null,"U2_CONT_CIR_PRIMARY_CD","Contributing Circumstance",21,"U2_CONT_CIR_PRIMARY_CD21","Other Improper Action","Y",null,"Other Improper Action"]
[null,null,null,null,null,null,"U2_CONT_CIR_PRIMARY_CD","Contributing Circumstance",22,"U2_CONT_CIR_PRIMARY_CD22","None Non-Motorist","Y",null,"None Non-Motorist"]
[null,null,null,null,null,null,"U2_CONT_CIR_PRIMARY_CD","Contributing Circumstance",23,"U2_CONT_CIR_PRIMARY_CD23","Improper Crossing","Y",null,"Improper Crossing"]
[null,null,null,null,null,null,"U2_CONT_CIR_PRIMARY_CD","Contributing Circumstance",24,"U2_CONT_CIR_PRIMARY_CD24","Darting","Y",null,"Darting"]
[null,null,null,null,null,null,"U2_CONT_CIR_PRIMARY_CD","Contributing Circumstance",25,"U2_CONT_CIR_PRIMARY_CD25","Lying And/Or Illegally In Roadway","Y",null,"Lying And/Or Illegally In Roadway"]
[null,null,null,null,null,null,"U2_CONT_CIR_PRIMARY_CD","Contributing Circumstance",26,"U2_CONT_CIR_PRIMARY_CD26","Failure To Yield Right Of Way","Y",null,"Failure To Yield Right Of Way"]
[null,null,null,null,null,null,"U2_CONT_CIR_PRIMARY_CD","Contributing Circumstance",27,"U2_CONT_CIR_PRIMARY_CD27","Not Visible (Dark Clothing)","Y",null,"Not Visible (Dark Clothing)"]
[null,null,null,null,null,null,"U2_CONT_CIR_PRIMARY_CD","Contributing Circumstance",28,"U2_CONT_CIR_PRIMARY_CD28","Inattentive","Y",null,"Inattentive"]
[null,null,null,null,null,null,"U2_CONT_CIR_PRIMARY_CD","Contributing Circumstance",29,"U2_CONT_CIR_PRIMARY_CD29","Failure To Obey Signs/Signals/Officer","Y",null,"Failure To Obey Signs/Signals/Officer"]
[null,null,null,null,null,null,"U2_CONT_CIR_PRIMARY_CD","Contributing Circumstance",30,"U2_CONT_CIR_PRIMARY_CD30","Wrong Side Of The Road","Y",null,"Wrong Side Of The Road"]
[null,null,null,null,null,null,"U2_CONT_CIR_PRIMARY_CD","Contributing Circumstance",31,"U2_CONT_CIR_PRIMARY_CD31","Other Non-Motorist","Y",null,"Other Non-Motorist"]
[null,null,null,null,null,null,"U2_CONT_CIR_PRIMARY_CD","Contributing Circumstance",99,"U2_CONT_CIR_PRIMARY_CD99","Unknown","Y",null,"Unknown"]
[null,null,null,null,null,null,"U2_SEQ_OF_EVENTS_1_CD","Sequence of Events",1,"U2_SEQ_OF_EVENTS_1_CD1","Overturn/Rollover","Y",null,"Overturn/Rollover"]
[null,null,null,null,null,null,"U2_SEQ_OF_EVENTS_1_CD","Sequence of Events",2,"U2_SEQ_OF_EVENTS_1_CD2","Fire/Explosion","Y",null,"Fire/Explosion"]
[null,null,null,null,null,null,"U2_SEQ_OF_EVENTS_1_CD","Sequence of Events",3,"U2_SEQ_OF_EVENTS_1_CD3","Immersion","Y",null,"Immersion"]
[null,null,null,null,null,null,"U2_SEQ_OF_EVENTS_1_CD","Sequence of Events",4,"U2_SEQ_OF_EVENTS_1_CD4","Jackknife","Y",null,"Jackknife"]
[null,null,null,null,null,null,"U2_SEQ_OF_EVENTS_1_CD","Sequence of Events",5,"U2_SEQ_OF_EVENTS_1_CD5","Cargo/Equipment Loss Or Shift","Y",null,"Cargo/Equipment Loss Or Shift"]
[null,null,null,null,null,null,"U2_SEQ_OF_EVENTS_1_CD","Sequence of Events",6,"U2_SEQ_OF_EVENTS_1_CD6","Equipment Failure","Y",null,"Equipment Failure"]
[null,null,null,null,null,null,"U2_SEQ_OF_EVENTS_1_CD","Sequence of Events",7,"U2_SEQ_OF_EVENTS_1_CD7","Separation Of Units","Y",null,"Separation Of Units"]
[null,null,null,null,null,null,"U2_SEQ_OF_EVENTS_1_CD","Sequence of Events",8,"U2_SEQ_OF_EVENTS_1_CD8","Ran Off Road Right","Y",null,"Ran Off Road Right"]
[null,null,null,null,null,null,"U2_SEQ_OF_EVENTS_1_CD","Sequence of Events",9,"U2_SEQ_OF_EVENTS_1_CD9","Ran Off Road Left","Y",null,"Ran Off Road Left"]
[null,null,null,null,null,null,"U2_SEQ_OF_EVENTS_1_CD","Sequence of Events",10,"U2_SEQ_OF_EVENTS_1_CD10","Cross Median","Y",null,"Cross Median"]
[null,null,null,null,null,null,"U2_SEQ_OF_EVENTS_1_CD","Sequence of Events",11,"U2_SEQ_OF_EVENTS_1_CD11","Cross Centerline/Opp Dir Of Travel","Y",null,"Cross Centerline/Opp Dir Of Travel"]
[null,null,null,null,null,null,"U2_SEQ_OF_EVENTS_1_CD","Sequence of Events",12,"U2_SEQ_OF_EVENTS_1_CD12","Downhill Runaway","Y",null,"Downhill Runaway"]
[null,null,null,null,null,null,"U2_SEQ_OF_EVENTS_1_CD","Sequence of Events",13,"U2_SEQ_OF_EVENTS_1_CD13","Other Non-Collision","Y",null,"Other Non-Collision"]
[null,null,null,null,null,null,"U2_SEQ_OF_EVENTS_1_CD","Sequence of Events",14,"U2_SEQ_OF_EVENTS_1_CD14","Pedestrian","Y",null,"Pedestrian"]
[null,null,null,null,null,null,"U2_SEQ_OF_EVENTS_1_CD","Sequence of Events",15,"U2_SEQ_OF_EVENTS_1_CD15","Pedalcycle","Y",null,"Pedalcycle"]
[null,null,null,null,null,null,"U2_SEQ_OF_EVENTS_1_CD","Sequence of Events",16,"U2_SEQ_OF_EVENTS_1_CD16","Railway Vehicle (Train, Engine)","Y",null,"Railway Vehicle (Train, Engine)"]
[null,null,null,null,null,null,"U2_SEQ_OF_EVENTS_1_CD","Sequence of Events",17,"U2_SEQ_OF_EVENTS_1_CD17","Animal-Farm","Y",null,"Animal-Farm"]
[null,null,null,null,null,null,"U2_SEQ_OF_EVENTS_1_CD","Sequence of Events",18,"U2_SEQ_OF_EVENTS_1_CD18","Animal-Deer","Y",null,"Animal-Deer"]
[null,null,null,null,null,null,"U2_SEQ_OF_EVENTS_1_CD","Sequence of Events",19,"U2_SEQ_OF_EVENTS_1_CD19","Animal-Other","Y",null,"Animal-Other"]
[null,null,null,null,null,null,"U2_SEQ_OF_EVENTS_1_CD","Sequence of Events",20,"U2_SEQ_OF_EVENTS_1_CD20","Motor Vehicle In Transport","Y",null,"Motor Vehicle In Transport"]
[null,null,null,null,null,null,"U2_SEQ_OF_EVENTS_1_CD","Sequence of Events",21,"U2_SEQ_OF_EVENTS_1_CD21","Parked Motor Vehicle","Y",null,"Parked Motor Vehicle"]
[null,null,null,null,null,null,"U2_SEQ_OF_EVENTS_1_CD","Sequence of Events",22,"U2_SEQ_OF_EVENTS_1_CD22","WZ Maintenance Equip-Object Not Fixed","Y",null,"WZ Maintenance Equip-Object Not Fixed"]
[null,null,null,null,null,null,"U2_SEQ_OF_EVENTS_1_CD","Sequence of Events",23,"U2_SEQ_OF_EVENTS_1_CD23","Struck by Falling Cargo Set in Motion","Y",null,"Struck by Falling Cargo Set in Motion"]
[null,null,null,null,null,null,"U2_SEQ_OF_EVENTS_1_CD","Sequence of Events",24,"U2_SEQ_OF_EVENTS_1_CD24","Other Movable Object","Y",null,"Other Movable Object"]
[null,null,null,null,null,null,"U2_SEQ_OF_EVENTS_1_CD","Sequence of Events",25,"U2_SEQ_OF_EVENTS_1_CD25","Impact Attenuator/Crash Cushion","Y",null,"Impact Attenuator/Crash Cushion"]
[null,null,null,null,null,null,"U2_SEQ_OF_EVENTS_1_CD","Sequence of Events",26,"U2_SEQ_OF_EVENTS_1_CD26","Bridge Overhead Structure","Y",null,"Bridge Overhead Structure"]
[null,null,null,null,null,null,"U2_SEQ_OF_EVENTS_1_CD","Sequence of Events",27,"U2_SEQ_OF_EVENTS_1_CD27","Bridge Pier Or Abutment","Y",null,"Bridge Pier Or Abutment"]
[null,null,null,null,null,null,"U2_SEQ_OF_EVENTS_1_CD","Sequence of Events",28,"U2_SEQ_OF_EVENTS_1_CD28","Bridge Parapet","Y",null,"Bridge Parapet"]
[null,null,null,null,null,null,"U2_SEQ_OF_EVENTS_1_CD","Sequence of Events",29,"U2_SEQ_OF_EVENTS_1_CD29","Bridge Rail","Y",null,"Bridge Rail"]
[null,null,null,null,null,null,"U2_SEQ_OF_EVENTS_1_CD","Sequence of Events",30,"U2_SEQ_OF_EVENTS_1_CD30","Guardrail Face","Y",null,"Guardrail Face"]
[null,null,null,null,null,null,"U2_SEQ_OF_EVENTS_1_CD","Sequence of Events",31,"U2_SEQ_OF_EVENTS_1_CD31","Guardrail End","Y",null,"Guardrail End"]
[null,null,null,null,null,null,"U2_SEQ_OF_EVENTS_1_CD","Sequence of Events",32,"U2_SEQ_OF_EVENTS_1_CD32","Portable Barrier","Y",null,"Portable Barrier"]
[null,null,null,null,null,null,"U2_SEQ_OF_EVENTS_1_CD","Sequence of Events",33,"U2_SEQ_OF_EVENTS_1_CD33","Median Cable Barrier","Y",null,"Median Cable Barrier"]
[null,null,null,null,null,null,"U2_SEQ_OF_EVENTS_1_CD","Sequence of Events",34,"U2_SEQ_OF_EVENTS_1_CD34","Median Guardrail Barrier","Y",null,"Median Guardrail Barrier"]
[null,null,null,null,null,null,"U2_SEQ_OF_EVENTS_1_CD","Sequence of Events",35,"U2_SEQ_OF_EVENTS_1_CD35","Median Concrete Barrier","Y",null,"Median Concrete Barrier"]
[null,null,null,null,null,null,"U2_SEQ_OF_EVENTS_1_CD","Sequence of Events",36,"U2_SEQ_OF_EVENTS_1_CD36","Median Other Barrier","Y",null,"Median Other Barrier"]
[null,null,null,null,null,null,"U2_SEQ_OF_EVENTS_1_CD","Sequence of Events",37,"U2_SEQ_OF_EVENTS_1_CD37","Traffic Sign Post","Y",null,"Traffic Sign Post"]
[null,null,null,null,null,null,"U2_SEQ_OF_EVENTS_1_CD","Sequence of Events",38,"U2_SEQ_OF_EVENTS_1_CD38","Overhead Sign Post","Y",null,"Overhead Sign Post"]
[null,null,null,null,null,null,"U2_SEQ_OF_EVENTS_1_CD","Sequence of Events",39,"U2_SEQ_OF_EVENTS_1_CD39","Light/Luminaries Support","Y",null,"Light/Luminaries Support"]
[null,null,null,null,null,null,"U2_SEQ_OF_EVENTS_1_CD","Sequence of Events",40,"U2_SEQ_OF_EVENTS_1_CD40","Utility Pole","Y",null,"Utility Pole"]
[null,null,null,null,null,null,"U2_SEQ_OF_EVENTS_1_CD","Sequence of Events",41,"U2_SEQ_OF_EVENTS_1_CD41","Other Post, Pole Or Support","Y",null,"Other Post, Pole Or Support"]
[null,null,null,null,null,null,"U2_SEQ_OF_EVENTS_1_CD","Sequence of Events",42,"U2_SEQ_OF_EVENTS_1_CD42","Culvert","Y",null,"Culvert"]
[null,null,null,null,null,null,"U2_SEQ_OF_EVENTS_1_CD","Sequence of Events",43,"U2_SEQ_OF_EVENTS_1_CD43","Curb","Y",null,"Curb"]
[null,null,null,null,null,null,"U2_SEQ_OF_EVENTS_1_CD","Sequence of Events",44,"U2_SEQ_OF_EVENTS_1_CD44","Ditch","Y",null,"Ditch"]
[null,null,null,null,null,null,"U2_SEQ_OF_EVENTS_1_CD","Sequence of Events",45,"U2_SEQ_OF_EVENTS_1_CD45","Embankment","Y",null,"Embankment"]
[null,null,null,null,null,null,"U2_SEQ_OF_EVENTS_1_CD","Sequence of Events",46,"U2_SEQ_OF_EVENTS_1_CD46","Fence","Y",null,"Fence"]
[null,null,null,null,null,null,"U2_SEQ_OF_EVENTS_1_CD","Sequence of Events",47,"U2_SEQ_OF_EVENTS_1_CD47","Mailbox","Y",null,"Mailbox"]
[null,null,null,null,null,null,"U2_SEQ_OF_EVENTS_1_CD","Sequence of Events",48,"U2_SEQ_OF_EVENTS_1_CD48","Tree","Y",null,"Tree"]
[null,null,null,null,null,null,"U2_SEQ_OF_EVENTS_1_CD","Sequence of Events",49,"U2_SEQ_OF_EVENTS_1_CD49","Fire Hydrant","Y",null,"Fire Hydrant"]
[null,null,null,null,null,null,"U2_SEQ_OF_EVENTS_1_CD","Sequence of Events",50,"U2_SEQ_OF_EVENTS_1_CD50","WZ Maintenance Equip-Fixed Object","Y",null,"WZ Maintenance Equip-Fixed Object"]
[null,null,null,null,null,null,"U2_SEQ_OF_EVENTS_1_CD","Sequence of Events",51,"U2_SEQ_OF_EVENTS_1_CD51","Wall, Building, Tunnel","Y",null,"Wall, Building, Tunnel"]
[null,null,null,null,null,null,"U2_SEQ_OF_EVENTS_1_CD","Sequence of Events",52,"U2_SEQ_OF_EVENTS_1_CD52","Other Fixed Object","Y",null,"Other Fixed Object"]
[null,null,null,null,null,null,"U2_SEQ_OF_EVENTS_1_CD","Sequence of Events",99,"U2_SEQ_OF_EVENTS_1_CD99","Unknown","Y",null,"Unknown"]
[null,null,null,null,null,null,"U2_COLLISION_ACTION_CD","U2_COLLISION_ACTION_CD_FRM",1,"U2_COLLISION_ACTION_CD1","Non-Contact","N",null,"Non-Contact"]
[null,null,null,null,null,null,"U2_COLLISION_ACTION_CD","U2_COLLISION_ACTION_CD_FRM",2,"U2_COLLISION_ACTION_CD2","Non-Collision","N",null,"Non-Collision"]
[null,null,null,null,null,null,"U2_COLLISION_ACTION_CD","U2_COLLISION_ACTION_CD_FRM",3,"U2_COLLISION_ACTION_CD3","Striking","N",null,"Striking"]
[null,null,null,null,null,null,"U2_COLLISION_ACTION_CD","U2_COLLISION_ACTION_CD_FRM",4,"U2_COLLISION_ACTION_CD4","Struck","N",null,"Struck"]
[null,null,null,null,null,null,"U2_COLLISION_ACTION_CD","U2_COLLISION_ACTION_CD_FRM",5,"U2_COLLISION_ACTION_CD5","Both Striking and Struck","N",null,"Both Striking and Struck"]
[null,null,null,null,null,null,"U2_COLLISION_ACTION_CD","U2_COLLISION_ACTION_CD_FRM",9,"U2_COLLISION_ACTION_CD9","Unknown","N",null,"Unknown"]
[null,null,null,null,null,null,"U2_NON_MOTORIST_LOC_CD","U2_NON_MOTORIST_LOC_CD_FRM",1,"U2_NON_MOTORIST_LOC_CD1","Intersection-Marked Crosswalk","N",null,"Intersection-Marked Crosswalk"]
[null,null,null,null,null,null,"U2_NON_MOTORIST_LOC_CD","U2_NON_MOTORIST_LOC_CD_FRM",2,"U2_NON_MOTORIST_LOC_CD2","Intersection-No Crosswalk","N",null,"Intersection-No Crosswalk"]
[null,null,null,null,null,null,"U2_NON_MOTORIST_LOC_CD","U2_NON_MOTORIST_LOC_CD_FRM",3,"U2_NON_MOTORIST_LOC_CD3","Intersection-Other","N",null,"Intersection-Other"]
[null,null,null,null,null,null,"U2_NON_MOTORIST_LOC_CD","U2_NON_MOTORIST_LOC_CD_FRM",4,"U2_NON_MOTORIST_LOC_CD4","Midblock-Marked Crosswalk","N",null,"Midblock-Marked Crosswalk"]
[null,null,null,null,null,null,"U2_NON_MOTORIST_LOC_CD","U2_NON_MOTORIST_LOC_CD_FRM",5,"U2_NON_MOTORIST_LOC_CD5","Travel Lane-Other Location","N",null,"Travel Lane-Other Location"]
[null,null,null,null,null,null,"U2_NON_MOTORIST_LOC_CD","U2_NON_MOTORIST_LOC_CD_FRM",6,"U2_NON_MOTORIST_LOC_CD6","Bicycle Lane","N",null,"Bicycle Lane"]
[null,null,null,null,null,null,"U2_NON_MOTORIST_LOC_CD","U2_NON_MOTORIST_LOC_CD_FRM",7,"U2_NON_MOTORIST_LOC_CD7","Shoulder/Roadside","N",null,"Shoulder/Roadside"]
[null,null,null,null,null,null,"U2_NON_MOTORIST_LOC_CD","U2_NON_MOTORIST_LOC_CD_FRM",8,"U2_NON_MOTORIST_LOC_CD8","Sidewalk","N",null,"Sidewalk"]
[null,null,null,null,null,null,"U2_NON_MOTORIST_LOC_CD","U2_NON_MOTORIST_LOC_CD_FRM",9,"U2_NON_MOTORIST_LOC_CD9","Median/Crossing Island","N",null,"Median/Crossing Island"]
[null,null,null,null,null,null,"U2_NON_MOTORIST_LOC_CD","U2_NON_MOTORIST_LOC_CD_FRM",10,"U2_NON_MOTORIST_LOC_CD10","Driveway Access","N",null,"Driveway Access"]
[null,null,null,null,null,null,"U2_NON_MOTORIST_LOC_CD","U2_NON_MOTORIST_LOC_CD_FRM",11,"U2_NON_MOTORIST_LOC_CD11","Shared Use Paths or Trails","N",null,"Shared Use Paths or Trails"]
[null,null,null,null,null,null,"U2_NON_MOTORIST_LOC_CD","U2_NON_MOTORIST_LOC_CD_FRM",12,"U2_NON_MOTORIST_LOC_CD12","Non-Trafficway Area","N",null,"Non-Trafficway Area"]
[null,null,null,null,null,null,"U2_NON_MOTORIST_LOC_CD","U2_NON_MOTORIST_LOC_CD_FRM",99,"U2_NON_MOTORIST_LOC_CD99","Other/Unknown","N",null,"Other/Unknown"]
[null,null,null,null,null,null,"U2_ALCOH_DRUG_SUSPCTD_CD","Alcohol/Drug Suspected",1,"U2_ALCOH_DRUG_SUSPCTD_CD1","None","Y",null,"None"]
[null,null,null,null,null,null,"U2_ALCOH_DRUG_SUSPCTD_CD","Alcohol/Drug Suspected",2,"U2_ALCOH_DRUG_SUSPCTD_CD2","Yes - Alcohol Suspected","Y",null,"Yes - Alcohol Suspected"]
[null,null,null,null,null,null,"U2_ALCOH_DRUG_SUSPCTD_CD","Alcohol/Drug Suspected",3,"U2_ALCOH_DRUG_SUSPCTD_CD3","Yes - HBD Not Impaired","Y",null,"Yes - HBD Not Impaired"]
[null,null,null,null,null,null,"U2_ALCOH_DRUG_SUSPCTD_CD","Alcohol/Drug Suspected",4,"U2_ALCOH_DRUG_SUSPCTD_CD4","Yes - Drugs Suspected","Y",null,"Yes - Drugs Suspected"]
[null,null,null,null,null,null,"U2_ALCOH_DRUG_SUSPCTD_CD","Alcohol/Drug Suspected",5,"U2_ALCOH_DRUG_SUSPCTD_CD5","Yes - Alcohol And Drugs Suspected","Y",null,"Yes - Alcohol And Drugs Suspected"]
[null,null,null,null,null,null,"U2_DISTRACTED_BY_1_CD","Driver Distracted by",0,"U2_DISTRACTED_BY_1_CD0","Old Data Not Available","Y",null,"Old Data Not Available"]
[null,null,null,null,null,null,"U2_DISTRACTED_BY_1_CD","Driver Distracted by",1,"U2_DISTRACTED_BY_1_CD1","No Distraction Reported","Y",null,"No Distraction Reported"]
[null,null,null,null,null,null,"U2_DISTRACTED_BY_1_CD","Driver Distracted by",2,"U2_DISTRACTED_BY_1_CD2","Phone","Y",null,"Phone"]
[null,null,null,null,null,null,"U2_DISTRACTED_BY_1_CD","Driver Distracted by",3,"U2_DISTRACTED_BY_1_CD3","Texting/Emailing","Y",null,"Texting/Emailing"]
[null,null,null,null,null,null,"U2_DISTRACTED_BY_1_CD","Driver Distracted by",4,"U2_DISTRACTED_BY_1_CD4","Electronic Communication Device","Y",null,"Electronic Communication Device"]
[null,null,null,null,null,null,"U2_DISTRACTED_BY_1_CD","Driver Distracted by",5,"U2_DISTRACTED_BY_1_CD5","Other Electronic Device","Y",null,"Other Electronic Device"]
[null,null,null,null,null,null,"U2_DISTRACTED_BY_1_CD","Driver Distracted by",6,"U2_DISTRACTED_BY_1_CD6","Other Inside The Vehicle","Y",null,"Other Inside The Vehicle"]
[null,null,null,null,null,null,"U2_DISTRACTED_BY_1_CD","Driver Distracted by",7,"U2_DISTRACTED_BY_1_CD7","External Distraction","Y",null,"External Distraction"]
[null,null,null,null,null,null,"U2_DISTRACTED_BY_1_CD","Driver Distracted by",9,"U2_DISTRACTED_BY_1_CD9","Unknown","Y",null,"Unknown"]

{"sheet":"Data","index":10,"n_rows":20,"n_cols":125,"rows_kept":20,"cut":false,"hidden":true,"merged":[]}
[null,null,null,null,null,"DOCUMENT_NBR","NLF_ID","COUNTY_LOG_NBR","ODOT_LATITUDE_NBR","ODOT_LONGITUDE_NBR","STREET_ON_TXT","REFERENCE_AT_TXT","SEVERITY_BY_TYPE_CD","CRASH_TYPE_CD","ODPS_CRASH_LOCATION_CD","OFFSET_DISTANCE_NBR","OFFSET_DIRECTION_CD","CRASH_SEVERITY_CD","FATALITIES_NBR","INCAPAC_INJURIES_NBR","NON_INCAPAC_INJURIES_NBR","POSSIBLE_INJURIES_NBR","ODOT_INTERSECTION_REL_IND","FUNCTIONAL_CLASS_CD","ODOT_MAINTAINED_HWY_IND","FHWA_LANE_DEPARTURE_IND","DISTRICT_NBR","NLF_COUNTY_CD","CITY_VILLAGE_TWNSHP_CD","CITY_VILLAGE_TWNSHP_NME","CRASH_DT","CRASH_YR","MONTH_OF_CRASH_NBR","HOUR_OF_CRASH_NBR","MINUTE_OF_CRASH_NBR","DAY_IN_WEEK_CD","ODPS_DIV_UNDIV_RDWY_CD","ODPS_DIVLANE_DIR_OF_TRAV_CD","WEATHER_COND_CD","ROAD_COND_PRIMARY_CD","ROAD_COND_PRIMARY_CD","LIGHT_COND_PRIMARY_CD","ROAD_CONTOUR_CD","ODPS_ALCOHOL_IND","ODPS_DRUG_IND","ODPS_SCHOOL_BUS_REL_CD","ODPS_SCHOOL_ZONE_IND","ODPS_ANIMAL_REL_CD","ODPS_MOTORCYCLE_IND","ODPS_SPEED_IND","ODPS_BICYCLE_IND","ODPS_PEDESTRIAN_IND","ODPS_WORK_ZONE_IND","ODPS_LOC_IN_WORK_ZONE_CD","ODPS_TYPE_OF_WORK_ZONE_CD","ODPS_LOC_ROAD_DIRECTION_CD","ODPS_LOC_ROAD_NAME_TXT","ODPS_LOC_ROAD_SUFFIX_CD","ODPS_LOC_ROUTE_PREFIX_CD","ODPS_LOC_ROUTE_NBR","ODPS_DIST_FROM_REF_NBR","ODPS_DIST_FROM_REF_UNITS_CD","ODPS_DIR_FROM_REF_CD","ODPS_REF_DIRECTION_CD","ODPS_REF_GIVEN_TXT","ODPS_REF_SUFFIX_CD","ODPS_REF_ROUTE_PREFIX_CD","ODPS_REF_ROUTE_NBR","ODPS_REF_POINT_USED_CD","LOCAL_REPORT_NUMBER_ID","U1_ODPS_UNIT_NBR","U1_DIRECTION_FROM_CD","U1_DIRECTION_TO_CD","U1_TRAFFIC_WAY_DESC_CD","U1_TRAFFIC_CONTROL_CD","U1_TYPE_OF_USE_CD","U1_TYPE_OF_UNIT_CD","U1_SPECIAL_FUNCTION_CD","U1_UNIT_SPEED_RANGE_CD","U1_POSTED_SPEED_RANGE_CD","U1_PRECRASH_ACTION_CD","U1_CONT_CIR_PRIMARY_CD","U1_CONT_CIR_SECONDARY_CD","U1_SEQ_OF_EVENTS_1_CD","U1_SEQ_OF_EVENTS_2_CD","U1_SEQ_OF_EVENTS_3_CD","U1_SEQ_OF_EVENTS_4_CD","U1_SEQ_OF_EVENTS_5_CD","U1_SEQ_OF_EVENTS_6_CD","U1_FIRST_HARMFUL_SEQ_NBR","U1_MOST_HARMFUL_SEQ_NBR","U1_COLLISION_ACTION_CD","U1_NON_MOTORIST_LOC_CD","U1_AGE_NBR","U1_GENDER_CD","U1_ALCOH_DRUG_SUSPCTD_CD","U1_DISTRACTED_BY_1_CD","U1_DISTRACTED_BY_2_CD","U2_ODPS_UNIT_NBR","U2_DIRECTION_FROM_CD","U2_DIRECTION_TO_CD","U2_TRAFFIC_CONTROL_CD","U2_TYPE_OF_USE_CD","U2_TYPE_OF_UNIT_CD","U2_SPECIAL_FUNCTION_CD","U2_UNIT_SPEED_RANGE_CD","U2_POSTED_SPEED_RANGE_CD","U2_PRECRASH_ACTION_CD","U2_CONT_CIR_PRIMARY_CD","U2_CONT_CIR_SECONDARY_CD","U2_SEQ_OF_EVENTS_1_CD","U2_SEQ_OF_EVENTS_2_CD","U2_SEQ_OF_EVENTS_3_CD","U2_SEQ_OF_EVENTS_4_CD","U2_SEQ_OF_EVENTS_5_CD","U2_SEQ_OF_EVENTS_6_CD","U2_FIRST_HARMFUL_SEQ_NBR","U2_MOST_HARMFUL_SEQ_NBR","U2_NON_MOTORIST_LOC_CD","U2_AGE_NBR","U2_GENDER_CD","U2_ALCOH_DRUG_SUSPCTD_CD","U2_DISTRACTED_BY_1_CD","U2_DISTRACTED_BY_2_CD","FILENAME_NME"]
[null,null,null,"ODPS",{"$f":"ODPS_Data!E2","v":0},{"$f":"ODPS_Data!F2","v":0},{"$f":"ODPS_Data!IH2","v":0},{"$f":"ODPS_Data!IN2","v":0},{"$f":"ODPS_Data!IP2","v":0},{"$f":"ODPS_Data!IQ2","v":0},{"$f":"TRIM(ODPS_Data!T2&\" \"&ODPS_Data!U2&\" \"&ODPS_Data!V2)","v":""},{"$f":"TRIM(ODPS_Data!Y2&\" \"&ODPS_Data!Z2&\" \"&ODPS_Data!AA2)","v":""},{"$f":"IF(ODPS_Data!HO2*1>0,5,IF(ODPS_Data!HN2*1>0,4,IF(ODPS_Data!HM2*1>0,3,IF(ODPS_Data!HL2*1>0,2,1))))","v":1},{"$f":"ODPS_Data!IU2*1","v":0},{"$f":"IF(ODPS_Data!BB2*1>12,99,ODPS_Data!BB2)","v":0},{"$f":"IF(ODPS_Data!W2=\"000000\",\"\",ODPS_Data!W2*1)","v":0},{"$f":"IF(ODPS_Data!X2=\"\",\"\",ODPS_Data!X2)","v":""},{"$f":"IF(ODPS_Data!K2*1>3,3,ODPS_Data!K2)","v":0},{"$f":"ODPS_Data!HO2*1","v":0},{"$f":"ODPS_Data!HN2*1","v":0},{"$f":"ODPS_Data!HM2*1","v":0},{"$f":"ODPS_Data!HL2*1","v":0},{"$f":"ODPS_Data!IT2","v":0},null,null,null,{"$f":"ODPS_Data!II2","v":0},{"$f":"ODPS_Data!IJ2","v":0},{"$f":"ODPS_Data!O2","v":0},{"$f":"ODPS_Data!P2","v":0},{"$f":"RIGHT(ODPS_Data!Q2,4)&LEFT(ODPS_Data!Q2,4)","v":""},{"$f":"RIGHT(ODPS_Data!Q2,4)*1","v":{"$error":"#VALUE!"}},{"$f":"LEFT(ODPS_Data!Q2,2)","v":""},{"$f":"LEFT(ODPS_Data!R2,2)","v":""},{"$f":"RIGHT(ODPS_Data!R2,2)","v":""},{"$f":"ODPS_Data!S2","v":0},{"$f":"ODPS_Data!AM2","v":0},{"$f":"ODPS_Data!AN2","v":0},{"$f":"IF(ODPS_Data!AE2*1>9,9,ODPS_Data!AE2)","v":0},{"$f":"IF(ODPS_Data!AF2*1<>99,IF(ODPS_Data!AF2*1>10,10,ODPS_Data!AF2),99)","v":0},{"$f":"IF(ODPS_Data!AG2*1<>99,IF(ODPS_Data!AG2*1>10,10,ODPS_Data!AG2),99)","v":0},{"$f":"IF(ODPS_Data!AH2*1>9,9,ODPS_Data!AH2)","v":0},{"$f":"IF(ODPS_Data!AJ2*1>4,9,ODPS_Data!AJ2)","v":0},{"$f":"ODPS_Data!HT2","v":0},{"$f":"ODPS_Data!HU2","v":0},{"$f":"ODPS_Data!BC2","v":0},{"$f":"ODPS_Data!AU2","v":0},{"$f":"ODPS_Data!HV2","v":0},{"$f":"ODPS_Data!HX2","v":0},{"$f":"ODPS_Data!HY2","v":0},{"$f":"ODPS_Data!HW2","v":0},{"$f":"ODPS_Data!HZ2","v":0},{"$f":"ODPS_Data!BD2","v":0},{"$f":"ODPS_Data!AX2","v":0},{"$f":"ODPS_Data!AY2","v":0},{"$f":"IF(ODPS_Data!T2=\"\",\"\",ODPS_Data!T2)","v":""},{"$f":"ODPS_Data!U2","v":0},{"$f":"ODPS_Data!V2","v":0},null,null,{"$f":"IF(ODPS_Data!W2=\"000000\",\"\",ODPS_Data!W2)","v":0},null,{"$f":"IF(ODPS_Data!X2=\"\",\"\",ODPS_Data!X2)","v":""},{"$f":"IF(ODPS_Data!Y2=\"\",\"\",ODPS_Data!Y2)","v":""},{"$f":"IF(ODPS_Data!Z2=\"\",\"\",ODPS_Data!Z2)","v":""},{"$f":"IF(ODPS_Data!AA2=\"\",\"\",ODPS_Data!AA2)","v":""},null,null,{"$f":"ODPS_Data!AB2","v":0},{"$f":"ODPS_Data!G2","v":0},{"$f":"ODPS_Data!BE2","v":0},{"$f":"ODPS_Data!BI2","v":0},{"$f":"ODPS_Data!BJ2","v":0},{"$f":"IF(ODPS_Data!CR2*1>5,\"\",ODPS_Data!CR2)","v":0},{"$f":"IF(ODPS_Data!BQ2*1>15,16,ODPS_Data!BQ2)","v":0},{"$f":"IF(ODPS_Data!DA2*1>3,1,ODPS_Data!DA2)","v":0},{"$f":"IF(ODPS_Data!BL2*1>27,99,ODPS_Data!BL2)","v":0},{"$f":"IF(ODPS_Data!CT2*1>21,22,ODPS_Data!CT2)","v":0},{"$f":"VLOOKUP(ODPS_Data!BN2*1,RefTables!$AD$3:$AG$13,2,TRUE)","v":1},{"$f":"VLOOKUP(ODPS_Data!BO2*1,RefTables!$AD$3:$AG$13,2,TRUE)","v":1},{"$f":"IF(ODPS_Data!BP2*1>21,99,ODPS_Data!BP2)","v":0},{"$f":"IF(ODPS_Data!BR2*1>31,99,ODPS_Data!BR2)","v":0},{"$f":"IF(ODPS_Data!CU2*1>31,99,ODPS_Data!CU2)","v":0},{"$f":"IF(ODPS_Data!BT2*1>52,99,ODPS_Data!BT2)","v":0},{"$f":"IF(ODPS_Data!BU2*1>52,99,ODPS_Data!BU2)","v":0},{"$f":"IF(ODPS_Data!BV2*1>52,99,ODPS_Data!BV2)","v":0},{"$f":"IF(ODPS_Data!BW2*1>52,99,ODPS_Data!BW2)","v":0},{"$f":"IF(ODPS_Data!BX2*1>52,99,ODPS_Data!BX2)","v":0},{"$f":"IF(ODPS_Data!BY2*1>52,99,ODPS_Data!BY2)","v":0},{"$f":"ODPS_Data!BZ2","v":0},{"$f":"ODPS_Data!CA2","v":0},{"$f":"IF(ODPS_Data!CB2*1>5,9,ODPS_Data!CB2)","v":0},{"$f":"IF(ODPS_Data!CD2*1>12,99,ODPS_Data!CD2)","v":0},{"$f":"ODPS_Data!CJ2","v":0},{"$f":"ODPS_Data!CK2","v":0},{"$f":"IF(ODPS_Data!CQ2*1=0,1,IF(ODPS_Data!CQ2*1>5,1,ODPS_Data!CQ2))","v":1},{"$f":"IF(ODPS_Data!CW2*1>7,1,ODPS_Data!CW2)","v":0},{"$f":"IF(ODPS_Data!CX2*1>7,1,ODPS_Data!CX2)","v":0},{"$f":"IF(ODPS_Data!$DC2*1=0,\"\",ODPS_Data!$DC2)","v":""},{"$f":"IF(ODPS_Data!$DC2*1=0,\"\",ODPS_Data!DG2)","v":""},{"$f":"IF(ODPS_Data!$DC2*1=0,\"\",ODPS_Data!DH2)","v":""},{"$f":"IF(ODPS_Data!$DC2*1=0,\"\",IF(ODPS_Data!DO2*1>15,16,ODPS_Data!DO2))","v":""},{"$f":"IF(ODPS_Data!$DC2*1=0,\"\",IF(ODPS_Data!EY2*1>3,1,ODPS_Data!EY2))","v":""},{"$f":"IF(ODPS_Data!$DC2*1=0,\"\",IF(ODPS_Data!DK2*1>27,99,ODPS_Data!DK2))","v":""},{"$f":"IF(ODPS_Data!$DC2*1=0,\"\",IF(ODPS_Data!ER2*1>21,22,ODPS_Data!ER2))","v":""},{"$f":"IF(ODPS_Data!$DC2*1=0,\"\",VLOOKUP(ODPS_Data!DL2*1,RefTables!$AD$3:$AG$13,2,TRUE))","v":""},{"$f":"IF(ODPS_Data!$DC2*1=0,\"\",VLOOKUP(ODPS_Data!DM2*1,RefTables!$AD$3:$AG$13,2,TRUE))","v":""},{"$f":"IF(ODPS_Data!$DC2*1=0,\"\",IF(ODPS_Data!DN2*1>21,99,ODPS_Data!DN2))","v":""},{"$f":"IF(ODPS_Data!$DC2*1=0,\"\",IF(ODPS_Data!DP2*1>31,99,ODPS_Data!DP2))","v":""},{"$f":"IF(ODPS_Data!$DC2*1=0,\"\",IF(ODPS_Data!ES2*1>31,99,ODPS_Data!ES2))","v":""},{"$f":"IF(ODPS_Data!$DC2*1=0,\"\",IF(ODPS_Data!DR2*1>52,99,ODPS_Data!DR2))","v":""},{"$f":"IF(ODPS_Data!$DC2*1=0,\"\",IF(ODPS_Data!DS2*1>52,99,ODPS_Data!DS2))","v":""},{"$f":"IF(ODPS_Data!$DC2*1=0,\"\",IF(ODPS_Data!DT2*1>52,99,ODPS_Data!DT2))","v":""},{"$f":"IF(ODPS_Data!$DC2*1=0,\"\",IF(ODPS_Data!DU2*1>52,99,ODPS_Data!DU2))","v":""},{"$f":"IF(ODPS_Data!$DC2*1=0,\"\",IF(ODPS_Data!DV2*1>52,99,ODPS_Data!DV2))","v":""},{"$f":"IF(ODPS_Data!$DC2*1=0,\"\",IF(ODPS_Data!DW2*1>52,99,ODPS_Data!DW2))","v":""},{"$f":"IF(ODPS_Data!$DC2*1=0,\"\",ODPS_Data!DX2)","v":""},{"$f":"IF(ODPS_Data!$DC2*1=0,\"\",ODPS_Data!DY2)","v":""},{"$f":"IF(ODPS_Data!$DC2*1=0,\"\",IF(ODPS_Data!EB2*1>12,99,ODPS_Data!EB2))","v":""},{"$f":"IF(ODPS_Data!$DC2*1=0,\"\",ODPS_Data!EH2)","v":""},{"$f":"IF(ODPS_Data!$DC2*1=0,\"\",ODPS_Data!EI2)","v":""},{"$f":"IF(ODPS_Data!$EO2*1=0,\"\",IF(ODPS_Data!EO2>5,1,ODPS_Data!EO2))","v":""},{"$f":"IF(ODPS_Data!$DC2*1=0,\"\",IF(ODPS_Data!EU2*1>7,1,ODPS_Data!EU2))","v":""},{"$f":"IF(ODPS_Data!$DC2*1=0,\"\",IF(ODPS_Data!EV2*1>7,1,ODPS_Data!EV2))","v":""}]
[]
[]
[]
[]
[]
[]
[]
[]
[]
[]
[]
[]
[]
[]
[]
[null,null,null,null,null,null,null,null,null,null,null,null,null,null,null,null,null,null,null,null,null,null,null,null,null,null,null,null,null,null,null,null,null,null,null,null,null,null,null,null,"ROAD_COND_SECONDARY_CD",null,null,null,null,null,null,null,null,null,null,null,null,null,null,null,null,null,null,null,null,null,null,null,null,null,null,null,null,null,null,null,null,null,null,null,null,null,null,null,null,null,"U1_CONT_CIR_SECONDARY_CD",null,"U1_SEQ_OF_EVENTS_2_CD","U1_SEQ_OF_EVENTS_3_CD","U1_SEQ_OF_EVENTS_4_CD","U1_SEQ_OF_EVENTS_5_CD","U1_SEQ_OF_EVENTS_6_CD",null,null,null,null,null,null,null,null,"U1_DISTRACTED_BY_2_CD",null,null,null,null,null,null,null,null,null,null,null,"U2_CONT_CIR_SECONDARY_CD",null,"U2_SEQ_OF_EVENTS_2_CD","U2_SEQ_OF_EVENTS_3_CD","U2_SEQ_OF_EVENTS_4_CD","U2_SEQ_OF_EVENTS_5_CD","U2_SEQ_OF_EVENTS_6_CD",null,null,null,null,null,null,null,"U2_DISTRACTED_BY_2_CD"]
[null,null,null,null,null,1,4,6,7,8,22,23,10,15,31,20,21,9,11,12,13,14,16,17,18,19,3,5,24,25,26,2,27,28,29,30,32,33,34,35,36,37,38,39,40,41,42,43,44,45,46,47,48,49,50,51,52,53,54,55,56,57,58,59,60,61,62,63,64,65,66,67,68,69,70,71,72,73,74,75,76,77,78,79,80,81,82,83,84,85,86,87,88,89,90,91,92,93,94,95,96,97,98,99,100,101,102,103,104,105,106,107,108,109,110,111,112,113,114,115,116,117,118,119,120]
[null,null,null,null,null,"DOCUMENT_NBR","NLF_ID","COUNTY_LOG_NBR","ODOT_LATITUDE_NBR","ODOT_LONGITUDE_NBR","STREET_ON_TXT","REFERENCE_AT_TXT","SEVERITY_BY_TYPE_CD","CRASH_TYPE_CD","ODPS_CRASH_LOCATION_CD","OFFSET_DISTANCE_NBR","OFFSET_DIRECTION_CD","CRASH_SEVERITY_CD","FATALITIES_NBR","INCAPAC_INJURIES_NBR","NON_INCAPAC_INJURIES_NBR","POSSIBLE_INJURIES_NBR","ODOT_INTERSECTION_REL_IND","FUNCTIONAL_CLASS_CD","ODOT_MAINTAINED_HWY_IND","FHWA_LANE_DEPARTURE_IND","DISTRICT_NBR","NLF_COUNTY_CD","CITY_VILLAGE_TWNSHP_CD","CITY_VILLAGE_TWNSHP_NME","CRASH_DT","CRASH_YR","MONTH_OF_CRASH_NBR","HOUR_OF_CRASH_NBR","MINUTE_OF_CRASH_NBR","DAY_IN_WEEK_CD","ODPS_DIV_UNDIV_RDWY_CD","ODPS_DIVLANE_DIR_OF_TRAV_CD","WEATHER_COND_CD","ROAD_COND_PRIMARY_CD","ROAD_COND_PRIMARY_CD","LIGHT_COND_PRIMARY_CD","ROAD_CONTOUR_CD","ODPS_ALCOHOL_IND","ODPS_DRUG_IND","ODPS_SCHOOL_BUS_REL_CD","ODPS_SCHOOL_ZONE_IND","ODPS_ANIMAL_REL_CD","ODPS_MOTORCYCLE_IND","ODPS_SPEED_IND","ODPS_BICYCLE_IND","ODPS_PEDESTRIAN_IND","ODPS_WORK_ZONE_IND","ODPS_LOC_IN_WORK_ZONE_CD","ODPS_TYPE_OF_WORK_ZONE_CD","ODPS_LOC_ROAD_DIRECTION_CD","ODPS_LOC_ROAD_NAME_TXT","ODPS_LOC_ROAD_SUFFIX_CD","ODPS_LOC_ROUTE_PREFIX_CD","ODPS_LOC_ROUTE_NBR","ODPS_DIST_FROM_REF_NBR","ODPS_DIST_FROM_REF_UNITS_CD","ODPS_DIR_FROM_REF_CD","ODPS_REF_DIRECTION_CD","ODPS_REF_GIVEN_TXT","ODPS_REF_SUFFIX_CD","ODPS_REF_ROUTE_PREFIX_CD","ODPS_REF_ROUTE_NBR","ODPS_REF_POINT_USED_CD","LOCAL_REPORT_NUMBER_ID","U1_ODPS_UNIT_NBR","U1_DIRECTION_FROM_CD","U1_DIRECTION_TO_CD","U1_TRAFFIC_WAY_DESC_CD","U1_TRAFFIC_CONTROL_CD","U1_TYPE_OF_USE_CD","U1_TYPE_OF_UNIT_CD","U1_SPECIAL_FUNCTION_CD","U1_UNIT_SPEED_RANGE_CD","U1_POSTED_SPEED_RANGE_CD","U1_PRECRASH_ACTION_CD","U1_CONT_CIR_PRIMARY_CD","U1_CONT_CIR_PRIMARY_CD","U1_SEQ_OF_EVENTS_1_CD","U1_SEQ_OF_EVENTS_1_CD","U1_SEQ_OF_EVENTS_1_CD","U1_SEQ_OF_EVENTS_1_CD","U1_SEQ_OF_EVENTS_1_CD","U1_SEQ_OF_EVENTS_1_CD","U1_FIRST_HARMFUL_SEQ_NBR","U1_MOST_HARMFUL_SEQ_NBR","U1_COLLISION_ACTION_CD","U1_NON_MOTORIST_LOC_CD","U1_AGE_NBR","U1_GENDER_CD","U1_ALCOH_DRUG_SUSPCTD_CD","U1_DISTRACTED_BY_1_CD","U1_DISTRACTED_BY_1_CD","U2_ODPS_UNIT_NBR","U2_DIRECTION_FROM_CD","U2_DIRECTION_TO_CD","U2_TRAFFIC_CONTROL_CD","U2_TYPE_OF_USE_CD","U2_TYPE_OF_UNIT_CD","U2_SPECIAL_FUNCTION_CD","U2_UNIT_SPEED_RANGE_CD","U2_POSTED_SPEED_RANGE_CD","U2_PRECRASH_ACTION_CD","U2_CONT_CIR_PRIMARY_CD","U2_CONT_CIR_PRIMARY_CD","U2_SEQ_OF_EVENTS_1_CD","U2_SEQ_OF_EVENTS_1_CD","U2_SEQ_OF_EVENTS_1_CD","U2_SEQ_OF_EVENTS_1_CD","U2_SEQ_OF_EVENTS_1_CD","U2_SEQ_OF_EVENTS_1_CD","U2_FIRST_HARMFUL_SEQ_NBR","U2_MOST_HARMFUL_SEQ_NBR","U2_NON_MOTORIST_LOC_CD","U2_AGE_NBR","U2_GENDER_CD","U2_ALCOH_DRUG_SUSPCTD_CD","U2_DISTRACTED_BY_1_CD","U2_DISTRACTED_BY_1_CD","FILENAME_NME"]

{"sheet":"DataText","index":11,"n_rows":20,"n_cols":125,"rows_kept":20,"cut":false,"hidden":true,"merged":[]}
[null,{"$f":"IF(ISERROR(VLOOKUP(Data!B$20&Data!B1,RefTables!$J$2:$K$680,2,FALSE)),IF(Data!B1=\"\",\"\",Data!B1),VLOOKUP(Data!B$20&Data!B1,RefTables!$J$2:$K$680,2,FALSE))","v":""},{"$f":"IFERROR(VLOOKUP(Data!C$20&Data!C1,RefTables!$J$2:$K$680,2,FALSE),IF(Data!C1=\"\",\"\",Data!C1))","v":""},{"$f":"IFERROR(VLOOKUP(Data!D$20&Data!D1,RefTables!$J$2:$K$680,2,FALSE),IF(Data!D1=\"\",\"\",Data!D1))","v":""},{"$f":"IFERROR(VLOOKUP(Data!E$20&Data!E1,RefTables!$J$2:$K$680,2,FALSE),IF(Data!E1=\"\",\"\",Data!E1))","v":""},{"$f":"IFERROR(VLOOKUP(Data!F$20&Data!F1,RefTables!$J$2:$K$680,2,FALSE),IF(Data!F1=\"\",\"\",Data!F1))","v":"DOCUMENT_NBR"},{"$f":"IFERROR(VLOOKUP(Data!G$20&Data!G1,RefTables!$J$2:$K$680,2,FALSE),IF(Data!G1=\"\",\"\",Data!G1))","v":"NLF_ID"},{"$f":"IFERROR(VLOOKUP(Data!H$20&Data!H1,RefTables!$J$2:$K$680,2,FALSE),IF(Data!H1=\"\",\"\",Data!H1))","v":"COUNTY_LOG_NBR"},{"$f":"IFERROR(VLOOKUP(Data!I$20&Data!I1,RefTables!$J$2:$K$680,2,FALSE),IF(Data!I1=\"\",\"\",Data!I1))","v":"ODOT_LATITUDE_NBR"},{"$f":"IFERROR(VLOOKUP(Data!J$20&Data!J1,RefTables!$J$2:$K$680,2,FALSE),IF(Data!J1=\"\",\"\",Data!J1))","v":"ODOT_LONGITUDE_NBR"},{"$f":"IFERROR(VLOOKUP(Data!K$20&Data!K1,RefTables!$J$2:$K$680,2,FALSE),IF(Data!K1=\"\",\"\",Data!K1))","v":"STREET_ON_TXT"},{"$f":"IFERROR(VLOOKUP(Data!L$20&Data!L1,RefTables!$J$2:$K$680,2,FALSE),IF(Data!L1=\"\",\"\",Data!L1))","v":"REFERENCE_AT_TXT"},{"$f":"IFERROR(VLOOKUP(Data!M$20&Data!M1,RefTables!$J$2:$K$680,2,FALSE),IF(Data!M1=\"\",\"\",Data!M1))","v":"SEVERITY_BY_TYPE_CD"},{"$f":"IFERROR(VLOOKUP(Data!N$20&Data!N1,RefTables!$J$2:$K$680,2,FALSE),IF(Data!N1=\"\",\"\",Data!N1))","v":"CRASH_TYPE_CD"},{"$f":"IFERROR(VLOOKUP(Data!O$20&Data!O1,RefTables!$J$2:$K$680,2,FALSE),IF(Data!O1=\"\",\"\",Data!O1))","v":"ODPS_CRASH_LOCATION_CD"},{"$f":"IFERROR(VLOOKUP(Data!P$20&Data!P1,RefTables!$J$2:$K$680,2,FALSE),IF(Data!P1=\"\",\"\",Data!P1))","v":"OFFSET_DISTANCE_NBR"},{"$f":"IFERROR(VLOOKUP(Data!Q$20&Data!Q1,RefTables!$J$2:$K$680,2,FALSE),IF(Data!Q1=\"\",\"\",Data!Q1))","v":"OFFSET_DIRECTION_CD"},{"$f":"IFERROR(VLOOKUP(Data!R$20&Data!R1,RefTables!$J$2:$K$680,2,FALSE),IF(Data!R1=\"\",\"\",Data!R1))","v":"CRASH_SEVERITY_CD"},{"$f":"IFERROR(VLOOKUP(Data!S$20&Data!S1,RefTables!$J$2:$K$680,2,FALSE),IF(Data!S1=\"\",\"\",Data!S1))","v":"FATALITIES_NBR"},{"$f":"IFERROR(VLOOKUP(Data!T$20&Data!T1,RefTables!$J$2:$K$680,2,FALSE),IF(Data!T1=\"\",\"\",Data!T1))","v":"INCAPAC_INJURIES_NBR"},{"$f":"IFERROR(VLOOKUP(Data!U$20&Data!U1,RefTables!$J$2:$K$680,2,FALSE),IF(Data!U1=\"\",\"\",Data!U1))","v":"NON_INCAPAC_INJURIES_NBR"},{"$f":"IFERROR(VLOOKUP(Data!V$20&Data!V1,RefTables!$J$2:$K$680,2,FALSE),IF(Data!V1=\"\",\"\",Data!V1))","v":"POSSIBLE_INJURIES_NBR"},{"$f":"IFERROR(VLOOKUP(Data!W$20&Data!W1,RefTables!$J$2:$K$680,2,FALSE),IF(Data!W1=\"\",\"\",Data!W1))","v":"ODOT_INTERSECTION_REL_IND"},{"$f":"IFERROR(VLOOKUP(Data!X$20&Data!X1,RefTables!$J$2:$K$680,2,FALSE),IF(Data!X1=\"\",\"\",Data!X1))","v":"FUNCTIONAL_CLASS_CD"},{"$f":"IFERROR(VLOOKUP(Data!Y$20&Data!Y1,RefTables!$J$2:$K$680,2,FALSE),IF(Data!Y1=\"\",\"\",Data!Y1))","v":"ODOT_MAINTAINED_HWY_IND"},{"$f":"IFERROR(VLOOKUP(Data!Z$20&Data!Z1,RefTables!$J$2:$K$680,2,FALSE),IF(Data!Z1=\"\",\"\",Data!Z1))","v":"FHWA_LANE_DEPARTURE_IND"},{"$f":"IFERROR(VLOOKUP(Data!AA$20&Data!AA1,RefTables!$J$2:$K$680,2,FALSE),IF(Data!AA1=\"\",\"\",Data!AA1))","v":"DISTRICT_NBR"},{"$f":"IFERROR(VLOOKUP(Data!AB$20&Data!AB1,RefTables!$J$2:$K$680,2,FALSE),IF(Data!AB1=\"\",\"\",Data!AB1))","v":"NLF_COUNTY_CD"},{"$f":"IFERROR(VLOOKUP(Data!AC$20&Data!AC1,RefTables!$J$2:$K$680,2,FALSE),IF(Data!AC1=\"\",\"\",Data!AC1))","v":"CITY_VILLAGE_TWNSHP_CD"},{"$f":"IFERROR(VLOOKUP(Data!AD$20&Data!AD1,RefTables!$J$2:$K$680,2,FALSE),IF(Data!AD1=\"\",\"\",Data!AD1))","v":"CITY_VILLAGE_TWNSHP_NME"},{"$f":"IFERROR(VLOOKUP(Data!AE$20&Data!AE1,RefTables!$J$2:$K$680,2,FALSE),IF(Data!AE1=\"\",\"\",Data!AE1))","v":"CRASH_DT"},{"$f":"IFERROR(VLOOKUP(Data!AF$20&Data!AF1,RefTables!$J$2:$K$680,2,FALSE),IF(Data!AF1=\"\",\"\",Data!AF1))","v":"CRASH_YR"},{"$f":"IFERROR(VLOOKUP(Data!AG$20&Data!AG1,RefTables!$J$2:$K$680,2,FALSE),IF(Data!AG1=\"\",\"\",Data!AG1))","v":"MONTH_OF_CRASH_NBR"},{"$f":"IFERROR(VLOOKUP(Data!AH$20&Data!AH1,RefTables!$J$2:$K$680,2,FALSE),IF(Data!AH1=\"\",\"\",Data!AH1))","v":"HOUR_OF_CRASH_NBR"},{"$f":"IFERROR(VLOOKUP(Data!AI$20&Data!AI1,RefTables!$J$2:$K$680,2,FALSE),IF(Data!AI1=\"\",\"\",Data!AI1))","v":"MINUTE_OF_CRASH_NBR"},{"$f":"IFERROR(VLOOKUP(Data!AJ$20&Data!AJ1,RefTables!$J$2:$K$680,2,FALSE),IF(Data!AJ1=\"\",\"\",Data!AJ1))","v":"DAY_IN_WEEK_CD"},{"$f":"IFERROR(VLOOKUP(Data!AK$20&Data!AK1,RefTables!$J$2:$K$680,2,FALSE),IF(Data!AK1=\"\",\"\",Data!AK1))","v":"ODPS_DIV_UNDIV_RDWY_CD"},{"$f":"IFERROR(VLOOKUP(Data!AL$20&Data!AL1,RefTables!$J$2:$K$680,2,FALSE),IF(Data!AL1=\"\",\"\",Data!AL1))","v":"ODPS_DIVLANE_DIR_OF_TRAV_CD"},{"$f":"IFERROR(VLOOKUP(Data!AM$20&Data!AM1,RefTables!$J$2:$K$680,2,FALSE),IF(Data!AM1=\"\",\"\",Data!AM1))","v":"WEATHER_COND_CD"},{"$f":"IFERROR(VLOOKUP(Data!AN$20&Data!AN1,RefTables!$J$2:$K$680,2,FALSE),IF(Data!AN1=\"\",\"\",Data!AN1))","v":"ROAD_COND_PRIMARY_CD"},{"$f":"IFERROR(VLOOKUP(Data!AO$20&Data!AO1,RefTables!$J$2:$K$680,2,FALSE),IF(Data!AO1=\"\",\"\",Data!AO1))","v":"ROAD_COND_PRIMARY_CD"},{"$f":"IFERROR(VLOOKUP(Data!AP$20&Data!AP1,RefTables!$J$2:$K$680,2,FALSE),IF(Data!AP1=\"\",\"\",Data!AP1))","v":"LIGHT_COND_PRIMARY_CD"},{"$f":"IFERROR(VLOOKUP(Data!AQ$20&Data!AQ1,RefTables!$J$2:$K$680,2,FALSE),IF(Data!AQ1=\"\",\"\",Data!AQ1))","v":"ROAD_CONTOUR_CD"},{"$f":"IFERROR(VLOOKUP(Data!AR$20&Data!AR1,RefTables!$J$2:$K$680,2,FALSE),IF(Data!AR1=\"\",\"\",Data!AR1))","v":"ODPS_ALCOHOL_IND"},{"$f":"IFERROR(VLOOKUP(Data!AS$20&Data!AS1,RefTables!$J$2:$K$680,2,FALSE),IF(Data!AS1=\"\",\"\",Data!AS1))","v":"ODPS_DRUG_IND"},{"$f":"IFERROR(VLOOKUP(Data!AT$20&Data!AT1,RefTables!$J$2:$K$680,2,FALSE),IF(Data!AT1=\"\",\"\",Data!AT1))","v":"ODPS_SCHOOL_BUS_REL_CD"},{"$f":"IFERROR(VLOOKUP(Data!AU$20&Data!AU1,RefTables!$J$2:$K$680,2,FALSE),IF(Data!AU1=\"\",\"\",Data!AU1))","v":"ODPS_SCHOOL_ZONE_IND"},{"$f":"IFERROR(VLOOKUP(Data!AV$20&Data!AV1,RefTables!$J$2:$K$680,2,FALSE),IF(Data!AV1=\"\",\"\",Data!AV1))","v":"ODPS_ANIMAL_REL_CD"},{"$f":"IFERROR(VLOOKUP(Data!AW$20&Data!AW1,RefTables!$J$2:$K$680,2,FALSE),IF(Data!AW1=\"\",\"\",Data!AW1))","v":"ODPS_MOTORCYCLE_IND"},{"$f":"IFERROR(VLOOKUP(Data!AX$20&Data!AX1,RefTables!$J$2:$K$680,2,FALSE),IF(Data!AX1=\"\",\"\",Data!AX1))","v":"ODPS_SPEED_IND"},{"$f":"IFERROR(VLOOKUP(Data!AY$20&Data!AY1,RefTables!$J$2:$K$680,2,FALSE),IF(Data!AY1=\"\",\"\",Data!AY1))","v":"ODPS_BICYCLE_IND"},{"$f":"IFERROR(VLOOKUP(Data!AZ$20&Data!AZ1,RefTables!$J$2:$K$680,2,FALSE),IF(Data!AZ1=\"\",\"\",Data!AZ1))","v":"ODPS_PEDESTRIAN_IND"},{"$f":"IFERROR(VLOOKUP(Data!BA$20&Data!BA1,RefTables!$J$2:$K$680,2,FALSE),IF(Data!BA1=\"\",\"\",Data!BA1))","v":"ODPS_WORK_ZONE_IND"},{"$f":"IFERROR(VLOOKUP(Data!BB$20&Data!BB1,RefTables!$J$2:$K$680,2,FALSE),IF(Data!BB1=\"\",\"\",Data!BB1))","v":"ODPS_LOC_IN_WORK_ZONE_CD"},{"$f":"IFERROR(VLOOKUP(Data!BC$20&Data!BC1,RefTables!$J$2:$K$680,2,FALSE),IF(Data!BC1=\"\",\"\",Data!BC1))","v":"ODPS_TYPE_OF_WORK_ZONE_CD"},{"$f":"IFERROR(VLOOKUP(Data!BD$20&Data!BD1,RefTables!$J$2:$K$680,2,FALSE),IF(Data!BD1=\"\",\"\",Data!BD1))","v":"ODPS_LOC_ROAD_DIRECTION_CD"},{"$f":"IFERROR(VLOOKUP(Data!BE$20&Data!BE1,RefTables!$J$2:$K$680,2,FALSE),IF(Data!BE1=\"\",\"\",Data!BE1))","v":"ODPS_LOC_ROAD_NAME_TXT"},{"$f":"IFERROR(VLOOKUP(Data!BF$20&Data!BF1,RefTables!$J$2:$K$680,2,FALSE),IF(Data!BF1=\"\",\"\",Data!BF1))","v":"ODPS_LOC_ROAD_SUFFIX_CD"},{"$f":"IFERROR(VLOOKUP(Data!BG$20&Data!BG1,RefTables!$J$2:$K$680,2,FALSE),IF(Data!BG1=\"\",\"\",Data!BG1))","v":"ODPS_LOC_ROUTE_PREFIX_CD"},{"$f":"IFERROR(VLOOKUP(Data!BH$20&Data!BH1,RefTables!$J$2:$K$680,2,FALSE),IF(Data!BH1=\"\",\"\",Data!BH1))","v":"ODPS_LOC_ROUTE_NBR"},{"$f":"IFERROR(VLOOKUP(Data!BI$20&Data!BI1,RefTables!$J$2:$K$680,2,FALSE),IF(Data!BI1=\"\",\"\",Data!BI1))","v":"ODPS_DIST_FROM_REF_NBR"},{"$f":"IFERROR(VLOOKUP(Data!BJ$20&Data!BJ1,RefTables!$J$2:$K$680,2,FALSE),IF(Data!BJ1=\"\",\"\",Data!BJ1))","v":"ODPS_DIST_FROM_REF_UNITS_CD"},{"$f":"IFERROR(VLOOKUP(Data!BK$20&Data!BK1,RefTables!$J$2:$K$680,2,FALSE),IF(Data!BK1=\"\",\"\",Data!BK1))","v":"ODPS_DIR_FROM_REF_CD"},{"$f":"IFERROR(VLOOKUP(Data!BL$20&Data!BL1,RefTables!$J$2:$K$680,2,FALSE),IF(Data!BL1=\"\",\"\",Data!BL1))","v":"ODPS_REF_DIRECTION_CD"},{"$f":"IFERROR(VLOOKUP(Data!BM$20&Data!BM1,RefTables!$J$2:$K$680,2,FALSE),IF(Data!BM1=\"\",\"\",Data!BM1))","v":"ODPS_REF_GIVEN_TXT"},{"$f":"IFERROR(VLOOKUP(Data!BN$20&Data!BN1,RefTables!$J$2:$K$680,2,FALSE),IF(Data!BN1=\"\",\"\",Data!BN1))","v":"ODPS_REF_SUFFIX_CD"},{"$f":"IFERROR(VLOOKUP(Data!BO$20&Data!BO1,RefTables!$J$2:$K$680,2,FALSE),IF(Data!BO1=\"\",\"\",Data!BO1))","v":"ODPS_REF_ROUTE_PREFIX_CD"},{"$f":"IFERROR(VLOOKUP(Data!BP$20&Data!BP1,RefTables!$J$2:$K$680,2,FALSE),IF(Data!BP1=\"\",\"\",Data!BP1))","v":"ODPS_REF_ROUTE_NBR"},{"$f":"IFERROR(VLOOKUP(Data!BQ$20&Data!BQ1,RefTables!$J$2:$K$680,2,FALSE),IF(Data!BQ1=\"\",\"\",Data!BQ1))","v":"ODPS_REF_POINT_USED_CD"},{"$f":"IFERROR(VLOOKUP(Data!BR$20&Data!BR1,RefTables!$J$2:$K$680,2,FALSE),IF(Data!BR1=\"\",\"\",Data!BR1))","v":"LOCAL_REPORT_NUMBER_ID"},{"$f":"IFERROR(VLOOKUP(Data!BS$20&Data!BS1,RefTables!$J$2:$K$680,2,FALSE),IF(Data!BS1=\"\",\"\",Data!BS1))","v":"U1_ODPS_UNIT_NBR"},{"$f":"IFERROR(VLOOKUP(Data!BT$20&Data!BT1,RefTables!$J$2:$K$680,2,FALSE),IF(Data!BT1=\"\",\"\",Data!BT1))","v":"U1_DIRECTION_FROM_CD"},{"$f":"IFERROR(VLOOKUP(Data!BU$20&Data!BU1,RefTables!$J$2:$K$680,2,FALSE),IF(Data!BU1=\"\",\"\",Data!BU1))","v":"U1_DIRECTION_TO_CD"},{"$f":"IFERROR(VLOOKUP(Data!BV$20&Data!BV1,RefTables!$J$2:$K$680,2,FALSE),IF(Data!BV1=\"\",\"\",Data!BV1))","v":"U1_TRAFFIC_WAY_DESC_CD"},{"$f":"IFERROR(VLOOKUP(Data!BW$20&Data!BW1,RefTables!$J$2:$K$680,2,FALSE),IF(Data!BW1=\"\",\"\",Data!BW1))","v":"U1_TRAFFIC_CONTROL_CD"},{"$f":"IFERROR(VLOOKUP(Data!BX$20&Data!BX1,RefTables!$J$2:$K$680,2,FALSE),IF(Data!BX1=\"\",\"\",Data!BX1))","v":"U1_TYPE_OF_USE_CD"},{"$f":"IFERROR(VLOOKUP(Data!BY$20&Data!BY1,RefTables!$J$2:$K$680,2,FALSE),IF(Data!BY1=\"\",\"\",Data!BY1))","v":"U1_TYPE_OF_UNIT_CD"},{"$f":"IFERROR(VLOOKUP(Data!BZ$20&Data!BZ1,RefTables!$J$2:$K$680,2,FALSE),IF(Data!BZ1=\"\",\"\",Data!BZ1))","v":"U1_SPECIAL_FUNCTION_CD"},{"$f":"IFERROR(VLOOKUP(Data!CA$20&Data!CA1,RefTables!$J$2:$K$680,2,FALSE),IF(Data!CA1=\"\",\"\",Data!CA1))","v":"U1_UNIT_SPEED_RANGE_CD"},{"$f":"IFERROR(VLOOKUP(Data!CB$20&Data!CB1,RefTables!$J$2:$K$680,2,FALSE),IF(Data!CB1=\"\",\"\",Data!CB1))","v":"U1_POSTED_SPEED_RANGE_CD"},{"$f":"IFERROR(VLOOKUP(Data!CC$20&Data!CC1,RefTables!$J$2:$K$680,2,FALSE),IF(Data!CC1=\"\",\"\",Data!CC1))","v":"U1_PRECRASH_ACTION_CD"},{"$f":"IFERROR(VLOOKUP(Data!CD$20&Data!CD1,RefTables!$J$2:$K$680,2,FALSE),IF(Data!CD1=\"\",\"\",Data!CD1))","v":"U1_CONT_CIR_PRIMARY_CD"},{"$f":"IFERROR(VLOOKUP(Data!CE$20&Data!CE1,RefTables!$J$2:$K$680,2,FALSE),IF(Data!CE1=\"\",\"\",Data!CE1))","v":"U1_CONT_CIR_SECONDARY_CD"},{"$f":"IFERROR(VLOOKUP(Data!CF$20&Data!CF1,RefTables!$J$2:$K$680,2,FALSE),IF(Data!CF1=\"\",\"\",Data!CF1))","v":"U1_SEQ_OF_EVENTS_1_CD"},{"$f":"IFERROR(VLOOKUP(Data!CG$20&Data!CG1,RefTables!$J$2:$K$680,2,FALSE),IF(Data!CG1=\"\",\"\",Data!CG1))","v":"U1_SEQ_OF_EVENTS_2_CD"},{"$f":"IFERROR(VLOOKUP(Data!CH$20&Data!CH1,RefTables!$J$2:$K$680,2,FALSE),IF(Data!CH1=\"\",\"\",Data!CH1))","v":"U1_SEQ_OF_EVENTS_3_CD"},{"$f":"IFERROR(VLOOKUP(Data!CI$20&Data!CI1,RefTables!$J$2:$K$680,2,FALSE),IF(Data!CI1=\"\",\"\",Data!CI1))","v":"U1_SEQ_OF_EVENTS_4_CD"},{"$f":"IFERROR(VLOOKUP(Data!CJ$20&Data!CJ1,RefTables!$J$2:$K$680,2,FALSE),IF(Data!CJ1=\"\",\"\",Data!CJ1))","v":"U1_SEQ_OF_EVENTS_5_CD"},{"$f":"IFERROR(VLOOKUP(Data!CK$20&Data!CK1,RefTables!$J$2:$K$680,2,FALSE),IF(Data!CK1=\"\",\"\",Data!CK1))","v":"U1_SEQ_OF_EVENTS_6_CD"},{"$f":"IFERROR(VLOOKUP(Data!CL$20&Data!CL1,RefTables!$J$2:$K$680,2,FALSE),IF(Data!CL1=\"\",\"\",Data!CL1))","v":"U1_FIRST_HARMFUL_SEQ_NBR"},{"$f":"IFERROR(VLOOKUP(Data!CM$20&Data!CM1,RefTables!$J$2:$K$680,2,FALSE),IF(Data!CM1=\"\",\"\",Data!CM1))","v":"U1_MOST_HARMFUL_SEQ_NBR"},{"$f":"IFERROR(VLOOKUP(Data!CN$20&Data!CN1,RefTables!$J$2:$K$680,2,FALSE),IF(Data!CN1=\"\",\"\",Data!CN1))","v":"U1_COLLISION_ACTION_CD"},{"$f":"IFERROR(VLOOKUP(Data!CO$20&Data!CO1,RefTables!$J$2:$K$680,2,FALSE),IF(Data!CO1=\"\",\"\",Data!CO1))","v":"U1_NON_MOTORIST_LOC_CD"},{"$f":"IFERROR(VLOOKUP(Data!CP$20&Data!CP1,RefTables!$J$2:$K$680,2,FALSE),IF(Data!CP1=\"\",\"\",Data!CP1))","v":"U1_AGE_NBR"},{"$f":"IFERROR(VLOOKUP(Data!CQ$20&Data!CQ1,RefTables!$J$2:$K$680,2,FALSE),IF(Data!CQ1=\"\",\"\",Data!CQ1))","v":"U1_GENDER_CD"},{"$f":"IFERROR(VLOOKUP(Data!CR$20&Data!CR1,RefTables!$J$2:$K$680,2,FALSE),IF(Data!CR1=\"\",\"\",Data!CR1))","v":"U1_ALCOH_DRUG_SUSPCTD_CD"},{"$f":"IFERROR(VLOOKUP(Data!CS$20&Data!CS1,RefTables!$J$2:$K$680,2,FALSE),IF(Data!CS1=\"\",\"\",Data!CS1))","v":"U1_DISTRACTED_BY_1_CD"},{"$f":"IFERROR(VLOOKUP(Data!CT$20&Data!CT1,RefTables!$J$2:$K$680,2,FALSE),IF(Data!CT1=\"\",\"\",Data!CT1))","v":"U1_DISTRACTED_BY_2_CD"},{"$f":"IFERROR(VLOOKUP(Data!CU$20&Data!CU1,RefTables!$J$2:$K$680,2,FALSE),IF(Data!CU1=\"\",\"\",Data!CU1))","v":"U2_ODPS_UNIT_NBR"},{"$f":"IFERROR(VLOOKUP(Data!CV$20&Data!CV1,RefTables!$J$2:$K$680,2,FALSE),IF(Data!CV1=\"\",\"\",Data!CV1))","v":"U2_DIRECTION_FROM_CD"},{"$f":"IFERROR(VLOOKUP(Data!CW$20&Data!CW1,RefTables!$J$2:$K$680,2,FALSE),IF(Data!CW1=\"\",\"\",Data!CW1))","v":"U2_DIRECTION_TO_CD"},{"$f":"IFERROR(VLOOKUP(Data!CX$20&Data!CX1,RefTables!$J$2:$K$680,2,FALSE),IF(Data!CX1=\"\",\"\",Data!CX1))","v":"U2_TRAFFIC_CONTROL_CD"},{"$f":"IFERROR(VLOOKUP(Data!CY$20&Data!CY1,RefTables!$J$2:$K$680,2,FALSE),IF(Data!CY1=\"\",\"\",Data!CY1))","v":"U2_TYPE_OF_USE_CD"},{"$f":"IFERROR(VLOOKUP(Data!CZ$20&Data!CZ1,RefTables!$J$2:$K$680,2,FALSE),IF(Data!CZ1=\"\",\"\",Data!CZ1))","v":"U2_TYPE_OF_UNIT_CD"},{"$f":"IFERROR(VLOOKUP(Data!DA$20&Data!DA1,RefTables!$J$2:$K$680,2,FALSE),IF(Data!DA1=\"\",\"\",Data!DA1))","v":"U2_SPECIAL_FUNCTION_CD"},{"$f":"IFERROR(VLOOKUP(Data!DB$20&Data!DB1,RefTables!$J$2:$K$680,2,FALSE),IF(Data!DB1=\"\",\"\",Data!DB1))","v":"U2_UNIT_SPEED_RANGE_CD"},{"$f":"IFERROR(VLOOKUP(Data!DC$20&Data!DC1,RefTables!$J$2:$K$680,2,FALSE),IF(Data!DC1=\"\",\"\",Data!DC1))","v":"U2_POSTED_SPEED_RANGE_CD"},{"$f":"IFERROR(VLOOKUP(Data!DD$20&Data!DD1,RefTables!$J$2:$K$680,2,FALSE),IF(Data!DD1=\"\",\"\",Data!DD1))","v":"U2_PRECRASH_ACTION_CD"},{"$f":"IFERROR(VLOOKUP(Data!DE$20&Data!DE1,RefTables!$J$2:$K$680,2,FALSE),IF(Data!DE1=\"\",\"\",Data!DE1))","v":"U2_CONT_CIR_PRIMARY_CD"},{"$f":"IFERROR(VLOOKUP(Data!DF$20&Data!DF1,RefTables!$J$2:$K$680,2,FALSE),IF(Data!DF1=\"\",\"\",Data!DF1))","v":"U2_CONT_CIR_SECONDARY_CD"},{"$f":"IFERROR(VLOOKUP(Data!DG$20&Data!DG1,RefTables!$J$2:$K$680,2,FALSE),IF(Data!DG1=\"\",\"\",Data!DG1))","v":"U2_SEQ_OF_EVENTS_1_CD"},{"$f":"IFERROR(VLOOKUP(Data!DH$20&Data!DH1,RefTables!$J$2:$K$680,2,FALSE),IF(Data!DH1=\"\",\"\",Data!DH1))","v":"U2_SEQ_OF_EVENTS_2_CD"},{"$f":"IFERROR(VLOOKUP(Data!DI$20&Data!DI1,RefTables!$J$2:$K$680,2,FALSE),IF(Data!DI1=\"\",\"\",Data!DI1))","v":"U2_SEQ_OF_EVENTS_3_CD"},{"$f":"IFERROR(VLOOKUP(Data!DJ$20&Data!DJ1,RefTables!$J$2:$K$680,2,FALSE),IF(Data!DJ1=\"\",\"\",Data!DJ1))","v":"U2_SEQ_OF_EVENTS_4_CD"},{"$f":"IFERROR(VLOOKUP(Data!DK$20&Data!DK1,RefTables!$J$2:$K$680,2,FALSE),IF(Data!DK1=\"\",\"\",Data!DK1))","v":"U2_SEQ_OF_EVENTS_5_CD"},{"$f":"IFERROR(VLOOKUP(Data!DL$20&Data!DL1,RefTables!$J$2:$K$680,2,FALSE),IF(Data!DL1=\"\",\"\",Data!DL1))","v":"U2_SEQ_OF_EVENTS_6_CD"},{"$f":"IFERROR(VLOOKUP(Data!DM$20&Data!DM1,RefTables!$J$2:$K$680,2,FALSE),IF(Data!DM1=\"\",\"\",Data!DM1))","v":"U2_FIRST_HARMFUL_SEQ_NBR"},{"$f":"IFERROR(VLOOKUP(Data!DN$20&Data!DN1,RefTables!$J$2:$K$680,2,FALSE),IF(Data!DN1=\"\",\"\",Data!DN1))","v":"U2_MOST_HARMFUL_SEQ_NBR"},{"$f":"IFERROR(VLOOKUP(Data!DO$20&Data!DO1,RefTables!$J$2:$K$680,2,FALSE),IF(Data!DO1=\"\",\"\",Data!DO1))","v":"U2_NON_MOTORIST_LOC_CD"},{"$f":"IFERROR(VLOOKUP(Data!DP$20&Data!DP1,RefTables!$J$2:$K$680,2,FALSE),IF(Data!DP1=\"\",\"\",Data!DP1))","v":"U2_AGE_NBR"},{"$f":"IFERROR(VLOOKUP(Data!DQ$20&Data!DQ1,RefTables!$J$2:$K$680,2,FALSE),IF(Data!DQ1=\"\",\"\",Data!DQ1))","v":"U2_GENDER_CD"},{"$f":"IFERROR(VLOOKUP(Data!DR$20&Data!DR1,RefTables!$J$2:$K$680,2,FALSE),IF(Data!DR1=\"\",\"\",Data!DR1))","v":"U2_ALCOH_DRUG_SUSPCTD_CD"},{"$f":"IFERROR(VLOOKUP(Data!DS$20&Data!DS1,RefTables!$J$2:$K$680,2,FALSE),IF(Data!DS1=\"\",\"\",Data!DS1))","v":"U2_DISTRACTED_BY_1_CD"},{"$f":"IFERROR(VLOOKUP(Data!DT$20&Data!DT1,RefTables!$J$2:$K$680,2,FALSE),IF(Data!DT1=\"\",\"\",Data!DT1))","v":"U2_DISTRACTED_BY_2_CD"},{"$f":"IFERROR(VLOOKUP(Data!DU$20&Data!DU1,RefTables!$J$2:$K$680,2,FALSE),IF(Data!DU1=\"\",\"\",Data!DU1))","v":"FILENAME_NME"}]
[null,null,null,"Codes",{"$f":"IF(Data!E2=\"\",\"\",Data!E2)","v":0},{"$f":"IF(Data!F2=\"\",\"\",Data!F2)","v":0},{"$f":"IF(Data!G2=\"\",\"\",Data!G2)","v":0},{"$f":"IF(Data!H2=\"\",\"\",Data!H2)","v":0},{"$f":"IF(Data!I2=\"\",\"\",Data!I2)","v":0},{"$f":"IF(Data!J2=\"\",\"\",Data!J2)","v":0},{"$f":"IF(Data!K2=\"\",\"\",Data!K2)","v":""},{"$f":"IF(Data!L2=\"\",\"\",Data!L2)","v":""},{"$f":"IF(Data!M2=\"\",\"\",Data!M2)","v":1},{"$f":"IF(Data!N2=\"\",\"\",Data!N2)","v":0},{"$f":"IF(Data!O2=\"\",\"\",Data!O2)","v":0},{"$f":"IF(Data!P2=\"\",\"\",Data!P2)","v":0},{"$f":"IF(Data!Q2=\"\",\"\",Data!Q2)","v":""},{"$f":"IF(Data!R2=\"\",\"\",Data!R2)","v":0},{"$f":"IF(Data!S2=\"\",\"\",Data!S2)","v":0},{"$f":"IF(Data!T2=\"\",\"\",Data!T2)","v":0},{"$f":"IF(Data!U2=\"\",\"\",Data!U2)","v":0},{"$f":"IF(Data!V2=\"\",\"\",Data!V2)","v":0},{"$f":"IF(Data!W2=\"\",\"\",Data!W2)","v":0},{"$f":"IF(Data!X2=\"\",\"\",Data!X2)","v":""},{"$f":"IF(Data!Y2=\"\",\"\",Data!Y2)","v":""},{"$f":"IF(Data!Z2=\"\",\"\",Data!Z2)","v":""},{"$f":"IF(Data!AA2=\"\",\"\",Data!AA2)","v":0},{"$f":"IF(Data!AB2=\"\",\"\",Data!AB2)","v":0},{"$f":"IF(Data!AC2=\"\",\"\",Data!AC2)","v":0},{"$f":"IF(Data!AD2=\"\",\"\",Data!AD2)","v":0},{"$f":"IF(Data!AE2=\"\",\"\",Data!AE2)","v":""},{"$f":"IF(Data!AF2=\"\",\"\",Data!AF2)","v":{"$error":"#VALUE!"}},{"$f":"IF(Data!AG2=\"\",\"\",Data!AG2)","v":""},{"$f":"IF(Data!AH2=\"\",\"\",Data!AH2)","v":""},{"$f":"IF(Data!AI2=\"\",\"\",Data!AI2)","v":""},{"$f":"IF(Data!AJ2=\"\",\"\",Data!AJ2)","v":0},{"$f":"IF(Data!AK2=\"\",\"\",Data!AK2)","v":0},{"$f":"IF(Data!AL2=\"\",\"\",Data!AL2)","v":0},{"$f":"IF(Data!AM2=\"\",\"\",Data!AM2)","v":0},{"$f":"IF(Data!AN2=\"\",\"\",Data!AN2)","v":0},{"$f":"IF(Data!AO2=\"\",\"\",Data!AO2)","v":0},{"$f":"IF(Data!AP2=\"\",\"\",Data!AP2)","v":0},{"$f":"IF(Data!AQ2=\"\",\"\",Data!AQ2)","v":0},{"$f":"IF(Data!AR2=\"\",\"\",Data!AR2)","v":0},{"$f":"IF(Data!AS2=\"\",\"\",Data!AS2)","v":0},{"$f":"IF(Data!AT2=\"\",\"\",Data!AT2)","v":0},{"$f":"IF(Data!AU2=\"\",\"\",Data!AU2)","v":0},{"$f":"IF(Data!AV2=\"\",\"\",Data!AV2)","v":0},{"$f":"IF(Data!AW2=\"\",\"\",Data!AW2)","v":0},{"$f":"IF(Data!AX2=\"\",\"\",Data!AX2)","v":0},{"$f":"IF(Data!AY2=\"\",\"\",Data!AY2)","v":0},{"$f":"IF(Data!AZ2=\"\",\"\",Data!AZ2)","v":0},{"$f":"IF(Data!BA2=\"\",\"\",Data!BA2)","v":0},{"$f":"IF(Data!BB2=\"\",\"\",Data!BB2)","v":0},{"$f":"IF(Data!BC2=\"\",\"\",Data!BC2)","v":0},{"$f":"IF(Data!BD2=\"\",\"\",Data!BD2)","v":""},{"$f":"IF(Data!BE2=\"\",\"\",Data!BE2)","v":0},{"$f":"IF(Data!BF2=\"\",\"\",Data!BF2)","v":0},{"$f":"IF(Data!BG2=\"\",\"\",Data!BG2)","v":""},{"$f":"IF(Data!BH2=\"\",\"\",Data!BH2)","v":""},{"$f":"IF(Data!BI2=\"\",\"\",Data!BI2)","v":0},{"$f":"IF(Data!BJ2=\"\",\"\",Data!BJ2)","v":""},{"$f":"IF(Data!BK2=\"\",\"\",Data!BK2)","v":""},{"$f":"IF(Data!BL2=\"\",\"\",Data!BL2)","v":""},{"$f":"IF(Data!BM2=\"\",\"\",Data!BM2)","v":""},{"$f":"IF(Data!BN2=\"\",\"\",Data!BN2)","v":""},{"$f":"IF(Data!BO2=\"\",\"\",Data!BO2)","v":""},{"$f":"IF(Data!BP2=\"\",\"\",Data!BP2)","v":""},{"$f":"IF(Data!BQ2=\"\",\"\",Data!BQ2)","v":0},{"$f":"IF(Data!BR2=\"\",\"\",Data!BR2)","v":0},{"$f":"IF(Data!BS2=\"\",\"\",Data!BS2)","v":0},{"$f":"IF(Data!BT2=\"\",\"\",Data!BT2)","v":0},{"$f":"IF(Data!BU2=\"\",\"\",Data!BU2)","v":0},{"$f":"IF(Data!BV2=\"\",\"\",Data!BV2)","v":0},{"$f":"IF(Data!BW2=\"\",\"\",Data!BW2)","v":0},{"$f":"IF(Data!BX2=\"\",\"\",Data!BX2)","v":0},{"$f":"IF(Data!BY2=\"\",\"\",Data!BY2)","v":0},{"$f":"IF(Data!BZ2=\"\",\"\",Data!BZ2)","v":0},{"$f":"IF(Data!CA3=\"\",\"\",Data!CA3)","v":""},{"$f":"IF(Data!CB2=\"\",\"\",Data!CB2)","v":1},{"$f":"IF(Data!CC2=\"\",\"\",Data!CC2)","v":0},{"$f":"IF(Data!CD2=\"\",\"\",Data!CD2)","v":0},{"$f":"IF(Data!CE2=\"\",\"\",Data!CE2)","v":0},{"$f":"IF(Data!CF2=\"\",\"\",Data!CF2)","v":0},{"$f":"IF(Data!CG2=\"\",\"\",Data!CG2)","v":0},{"$f":"IF(Data!CH2=\"\",\"\",Data!CH2)","v":0},{"$f":"IF(Data!CI2=\"\",\"\",Data!CI2)","v":0},{"$f":"IF(Data!CJ2=\"\",\"\",Data!CJ2)","v":0},{"$f":"IF(Data!CK2=\"\",\"\",Data!CK2)","v":0},{"$f":"IF(Data!CL2=\"\",\"\",Data!CL2)","v":0},{"$f":"IF(Data!CM2=\"\",\"\",Data!CM2)","v":0},{"$f":"IF(Data!CN2=\"\",\"\",Data!CN2)","v":0},{"$f":"IF(Data!CO2=\"\",\"\",Data!CO2)","v":0},{"$f":"IF(Data!CP2=\"\",\"\",Data!CP2)","v":0},{"$f":"IF(Data!CQ2=\"\",\"\",Data!CQ2)","v":0},{"$f":"IF(Data!CR2=\"\",\"\",Data!CR2)","v":1},{"$f":"IF(Data!CS2=\"\",\"\",Data!CS2)","v":0},{"$f":"IF(Data!CT2=\"\",\"\",Data!CT2)","v":0},{"$f":"IF(Data!CU2=\"\",\"\",Data!CU2)","v":""},{"$f":"IF(Data!CV2=\"\",\"\",Data!CV2)","v":""},{"$f":"IF(Data!CW2=\"\",\"\",Data!CW2)","v":""},{"$f":"IF(Data!CX2=\"\",\"\",Data!CX2)","v":""},{"$f":"IF(Data!CY2=\"\",\"\",Data!CY2)","v":""},{"$f":"IF(Data!CZ2=\"\",\"\",Data!CZ2)","v":""},{"$f":"IF(Data!DA2=\"\",\"\",Data!DA2)","v":""},{"$f":"IF(Data!DB2=\"\",\"\",Data!DB2)","v":""},{"$f":"IF(Data!DC2=\"\",\"\",Data!DC2)","v":""},{"$f":"IF(Data!DD2=\"\",\"\",Data!DD2)","v":""},{"$f":"IF(Data!DE2=\"\",\"\",Data!DE2)","v":""},{"$f":"IF(Data!DF2=\"\",\"\",Data!DF2)","v":""},{"$f":"IF(Data!DG2=\"\",\"\",Data!DG2)","v":""},{"$f":"IF(Data!DH2=\"\",\"\",Data!DH2)","v":""},{"$f":"IF(Data!DI2=\"\",\"\",Data!DI2)","v":""},{"$f":"IF(Data!DJ2=\"\",\"\",Data!DJ2)","v":""},{"$f":"IF(Data!DK2=\"\",\"\",Data!DK2)","v":""},{"$f":"IF(Data!DL2=\"\",\"\",Data!DL2)","v":""},{"$f":"IF(Data!DM2=\"\",\"\",Data!DM2)","v":""},{"$f":"IF(Data!DN2=\"\",\"\",Data!DN2)","v":""},{"$f":"IF(Data!DO2=\"\",\"\",Data!DO2)","v":""},{"$f":"IF(Data!DP2=\"\",\"\",Data!DP2)","v":""},{"$f":"IF(Data!DQ2=\"\",\"\",Data!DQ2)","v":""},{"$f":"IF(Data!DR2=\"\",\"\",Data!DR2)","v":""},{"$f":"IF(Data!DS2=\"\",\"\",Data!DS2)","v":""},{"$f":"IF(Data!DT2=\"\",\"\",Data!DT2)","v":""},{"$f":"IF(Data!DU2=\"\",\"\",Data!DU2)","v":""}]
[null,null,null,null,null,2,4,5,54,55,7,8,"X",13,18,9,49,15,45,46,47,48,116,"X","X","X",50,51,52,53,6,56,57,11,"X",10,"X","X",16,17,"X",12,44,"X","X","X","X",42,"X","X","X","X","X",41,"X","X","X","X","X","X","X","X","X","X","X","X","X","X","X",3,"X",23,24,"X",27,"X",22,"X",30,31,20,19,"X","X","X","X","X","X","X","X","X","X","X",25,26,28,"X","X","X",37,38,"X","X",34,"X","X","X",33,32,"X","X","X","X","X","X","X","X","X","X",35,36,39,"X","X",43]
[]
[]
[]
[]
[]
[]
[]
[]
[]
[]
[]
[]
[null,null,null,{"$f":"\"http://hsip.dot.state.oh.us/report/?docnbr=\"&IF(LEN(F16)=11,F16,\"20\"&F16)","v":"http://hsip.dot.state.oh.us/report/?docnbr=20"}]
[1,2,3,4,5,6,7,8,9,10,11,12,13,14,15,16,17,18,19,20,21,22,23,24,25,26,27,28,29,30,31,32,33,34,35,36,37,38,39,40,41,42,43,44,45,46,47,48,49,50,51,52,53,54,55,56,57,58,59,60,61,62,63,64,65,66,67,68,69,70,71,72,73,74,75,76,77,78,79,80,81,82,83,84,85,86,87,88,89,90,91,92,93,94,95,96,97,98,99,100,101,102,103,104,105,106,107,108,109,110,111,112,113,114,115,116,117,118,119,120,121,122,123,124,125]
[]
[null,null,null,null,{"$f":"IF(AF19*1>2010,HYPERLINK(D19,\"Crash Report\"),IF(DU19=\"\",\"\",HYPERLINK(DU19,\"Crash Report\")))","v":"Crash Report"},1,2,3,4,5,6,7,8,9,10,11,12,13,14,15,16,17,18,19,20,21,22,23,24,25,26,27,28,29,30,31,32,33,34,35,36,37,38,39,40,41,42,43,44,45,46,47,48,49,50,51,52,53,54,55,56,57,58,59,60,61,62,63,64,65,66,67,68,69,70,71,72,73,74,75,76,77,78,79,80,81,82,83,84,85,86,87,88,89,90,91,92,93,94,95,96,97,98,99,100,101,102,103,104,105,106,107,108,109,110,111,112,113,114,115,116,117,118,119,120]
[null,null,null,"PUBLIC_URL","HYPERLINK","DOCUMENT_NBR","NLF_ID","COUNTY_LOG_NBR","ODOT_LATITUDE_NBR","ODOT_LONGITUDE_NBR","STREET_ON_TXT","REFERENCE_AT_TXT","SEVERITY_BY_TYPE_CD","CRASH_TYPE_CD","ODPS_CRASH_LOCATION_CD","OFFSET_DISTANCE_NBR","OFFSET_DIRECTION_CD","CRASH_SEVERITY_CD","FATALITIES_NBR","INCAPAC_INJURIES_NBR","NON_INCAPAC_INJURIES_NBR","POSSIBLE_INJURIES_NBR","ODOT_INTERSECTION_REL_IND","FUNCTIONAL_CLASS_CD","ODOT_MAINTAINED_HWY_IND","FHWA_LANE_DEPARTURE_IND","DISTRICT_NBR","NLF_COUNTY_CD","CITY_VILLAGE_TWNSHP_CD","CITY_VILLAGE_TWNSHP_NME","CRASH_DT","CRASH_YR","MONTH_OF_CRASH_NBR","HOUR_OF_CRASH_NBR","MINUTE_OF_CRASH_NBR","DAY_IN_WEEK_CD","ODPS_DIV_UNDIV_RDWY_CD","ODPS_DIVLANE_DIR_OF_TRAV_CD","WEATHER_COND_CD","ROAD_COND_PRIMARY_CD","ROAD_COND_SECONDARY_CD","LIGHT_COND_PRIMARY_CD","ROAD_CONTOUR_CD","ODPS_ALCOHOL_IND","ODPS_DRUG_IND","ODPS_SCHOOL_BUS_REL_CD","ODPS_SCHOOL_ZONE_IND","ODPS_ANIMAL_REL_CD","ODPS_MOTORCYCLE_IND","ODPS_SPEED_IND","ODPS_BICYCLE_IND","ODPS_PEDESTRIAN_IND","ODPS_WORK_ZONE_IND","ODPS_LOC_IN_WORK_ZONE_CD","ODPS_TYPE_OF_WORK_ZONE_CD","ODPS_LOC_ROAD_DIRECTION_CD","ODPS_LOC_ROAD_NAME_TXT","ODPS_LOC_ROAD_SUFFIX_CD","ODPS_LOC_ROUTE_PREFIX_CD","ODPS_LOC_ROUTE_NBR","ODPS_DIST_FROM_REF_NBR","ODPS_DIST_FROM_REF_UNITS_CD","ODPS_DIR_FROM_REF_CD","ODPS_REF_DIRECTION_CD","ODPS_REF_GIVEN_TXT","ODPS_REF_SUFFIX_CD","ODPS_REF_ROUTE_PREFIX_CD","ODPS_REF_ROUTE_NBR","ODPS_REF_POINT_USED_CD","LOCAL_REPORT_NUMBER_ID","U1_ODPS_UNIT_NBR","U1_DIRECTION_FROM_CD","U1_DIRECTION_TO_CD","U1_TRAFFIC_WAY_DESC_CD","U1_TRAFFIC_CONTROL_CD","U1_TYPE_OF_USE_CD","U1_TYPE_OF_UNIT_CD","U1_SPECIAL_FUNCTION_CD","U1_UNIT_SPEED_RANGE_CD","U1_POSTED_SPEED_RANGE_CD","U1_PRECRASH_ACTION_CD","U1_CONT_CIR_PRIMARY_CD","U1_CONT_CIR_SECONDARY_CD","U1_SEQ_OF_EVENTS_1_CD","U1_SEQ_OF_EVENTS_2_CD","U1_SEQ_OF_EVENTS_3_CD","U1_SEQ_OF_EVENTS_4_CD","U1_SEQ_OF_EVENTS_5_CD","U1_SEQ_OF_EVENTS_6_CD","U1_FIRST_HARMFUL_SEQ_NBR","U1_MOST_HARMFUL_SEQ_NBR","U1_COLLISION_ACTION_CD","U1_NON_MOTORIST_LOC_CD","U1_AGE_NBR","U1_GENDER_CD","U1_ALCOH_DRUG_SUSPCTD_CD","U1_DISTRACTED_BY_1_CD","U1_DISTRACTED_BY_2_CD","U2_ODPS_UNIT_NBR","U2_DIRECTION_FROM_CD","U2_DIRECTION_TO_CD","U2_TRAFFIC_CONTROL_CD","U2_TYPE_OF_USE_CD","U2_TYPE_OF_UNIT_CD","U2_SPECIAL_FUNCTION_CD","U2_UNIT_SPEED_RANGE_CD","U2_POSTED_SPEED_RANGE_CD","U2_PRECRASH_ACTION_CD","U2_CONT_CIR_PRIMARY_CD","U2_CONT_CIR_SECONDARY_CD","U2_SEQ_OF_EVENTS_1_CD","U2_SEQ_OF_EVENTS_2_CD","U2_SEQ_OF_EVENTS_3_CD","U2_SEQ_OF_EVENTS_4_CD","U2_SEQ_OF_EVENTS_5_CD","U2_SEQ_OF_EVENTS_6_CD","U2_FIRST_HARMFUL_SEQ_NBR","U2_MOST_HARMFUL_SEQ_NBR","U2_NON_MOTORIST_LOC_CD","U2_AGE_NBR","U2_GENDER_CD","U2_ALCOH_DRUG_SUSPCTD_CD","U2_DISTRACTED_BY_1_CD","U2_DISTRACTED_BY_2_CD","FILENAME_NME"]

{"sheet":"GCAT_Queries","index":12,"n_rows":22,"n_cols":7,"rows_kept":22,"cut":false,"hidden":false,"merged":[]}
[]
[null,null,"Cells in Yellow Require User Input"]
[]
[]
[null,"Query Form Exports"]
[]
[null,null,"Copy export from GCAT and paste into cells below - DO NOT MODIFY ONCE QUERY IS PASTED IN",null,"Prepared by","Date","Comments/Notes for record tracking"]
[null,"Query Example","[{\"id\":3000,\"element\":\"Year\",\"val1\":2012,\"val4\":2012,\"val9\":\"query_form_when_occurred_year\",\"val10\":\"QueryForm\",\"group\":\"When Occurred\"},{\"id\":3001,\"element\":\"Year\",\"val1\":2011,\"val4\":2011,\"val9\":\"query_form_when_occurred_year\",\"val10\":\"QueryForm\",\"group\":\"When Occurred\"},{\"id\":3002,\"element\":\"Year\",\"val1\":2010,\"val4\":2010,\"val9\":\"query_form_when_occurred_year\",\"val10\":\"QueryForm\",\"group\":\"When Occurred\"},{\"id\":3003,\"element\":\"Hands Free Device\",\"val1\":\"All\",\"val9\":\"driver_vehicle_hands_free\",\"val10\":\"QueryForm\",\"group\":\"Driver / Vehicle\"},{\"id\":3004,\"element\":\"Loc / Unloc Crashes?\",\"val1\":\"Located\",\"val4\":\"Located\",\"val9\":\"location_locatedUnlocatedBoth\",\"val10\":\"QueryForm\",\"group\":\"Location\"}]",null,"MM","2013-01-01","Add any necessary comments in these boxes"]
[null,"Query Export 1"]
[null,"Query Export 2"]
[null,"Query Export 3"]
[null,"Query Export 4"]
[]
[]
[null,"Shape Exports"]
[]
[null,null,"Copy export from GCAT and paste into cells below - DO NOT MODIFY ONCE QUERY IS PASTED IN",null,"Prepared by","Date","Comments/Notes for record tracking"]
[null,"Shape Example","[{\"id\":0,\"type\":\"circle\",\"distance\":1206.841,\"points\":[{\"latitude\":40.457499,\"longitude\":-82.696646,\"lat_lon\":\"40.457499, -82.696646\"}]}]",null,"MM","2013-01-01","Add any necessary comments in these boxes"]
[null,"Shape Export 1"]
[null,"Shape Export 2"]
[null,"Shape Export 3"]
[null,"Shape Export 4"]

{"sheet":"Map","index":13,"n_rows":8,"n_cols":5,"rows_kept":8,"cut":false,"hidden":false,"merged":[]}
[]
[]
[]
[]
[]
[]
[null,null,null,null,"1. Copy/Paste GCAT image(s) from updated map into this frame"]
[null,null,null,null,"2. Once image is inserted, right click and select 'bring to front'"]

{"sheet":"Crash Data","index":14,"n_rows":39,"n_cols":191,"rows_kept":39,"cut":false,"hidden":false,"merged":[[18,69,18,70],[18,71,18,72],[18,73,18,74],[18,63,18,64],[18,87,18,88],[18,89,18,90],[17,61,17,66],[17,67,17,72],[17,73,17,92],[18,61,18,62],[18,91,18,92],[18,75,18,76],[18,77,18,78],[18,79,18,80],[18,81,18,82],[18,83,18,84],[18,85,18,86],[18,65,18,66],[18,67,18,68]]}
[null,null,null,null,null,null,null,"N",null,null,null,null,null,null,null,null,null,null,null,null,{"$f":"\"http://hsip.dot.state.oh.us/report/?docnbr=\"&IF(LEN(B1)=11,B1,\"20\"&B1)","v":"http://hsip.dot.state.oh.us/report/?docnbr=20"},null,null,null,null,null,null,null,null,null,null,null,null,null,null,null,null,null,null,null,null,null,null,null,null,null,null,null,null,null,null,null,null,null,null,null,null,null,null,null,null,null,null,null,null,null,null,null,null,null,null,null,null,null,null,null,null,null,null,null,null,null,null,null,null,null,null,null,null,null,null,null,null,null,"Toggle Map","N"]
[null,"version: 20160211"]
[{"$f":"D12&\"-\"&D13&D14&\" - (\"&D15&\"-\"&D16&\")     \"&\"From \"&MID(D17,5,2)&\"/\"&MID(D17,7,2)&\"/\"&LEFT(D17,4)&\" to \"&MID(D18,5,2)&\"/\"&MID(D18,7,2)&\"/\"&LEFT(D18,4)","v":"- - (-)     From // to //"}]
[]
[]
[]
[]
[]
[]
[]
[null,41]
[]
[]
[null,null,null,null,null,null,null,null,null,null,null,null,null,null,null,null,null,null,null,null,null,null,null,null,null,null,null,null,null,null,null,null,null,null,null,null,null,null,null,null,null,null,null,null,null,null,null,null,null,null,null,null,null,null,null,null,null,null,null,null,null,null,null,null,null,null,null,null,null,null,null,null,null,null,null,null,null,null,null,null,null,null,null,null,null,null,null,null,null,null,null,null,null,null,null,null,null,null,null,null,null,null,null,null,null,null,null,null,null,null,null,null,null,null,null,null,null,null,null,null,null,null,null,null,null,null,null,null,null,null,null,null,null,null,null,null,null,null,null,null,null,null,null,null,null,null,null,null,null,null,null,null,null,null,null,null,null,null,null,null,null,null,null,null,null,null,null,null,null,null,null,null,null,null,null,null,null,null,null,null,null,null,null,{"$f":"DecisionTree!AA2","v":0},{"$f":"DecisionTree!AB2","v":0},{"$f":"DecisionTree!AC2","v":0},{"$f":"DecisionTree!AD2","v":0},{"$f":"DecisionTree!AE2","v":0},{"$f":"DecisionTree!AF2","v":0},{"$f":"DecisionTree!AG2","v":0},{"$f":"DecisionTree!AH2","v":0}]
[null,null,null,null,null,null,null,null,null,null,null,null,null,null,null,null,null,null,null,null,null,null,null,null,null,null,null,null,null,null,null,null,null,null,null,null,null,null,null,null,null,null,null,null,null,null,null,null,null,null,null,null,null,null,null,null,null,null,null,null,null,null,null,null,null,null,null,null,null,null,null,null,null,"NO","YES","NO","YES","NO","YES","NO","YES","NO","YES","NO","YES","NO","YES","NO","YES","NO","YES","NO","YES",null,null,null,null,null,null,null,null,null,null,null,null,null,null,null,null,null,null,null,null,null,null,null,null,null,null,null,null,null,null,null,null,null,null,null,null,null,null,null,null,null,null,null,null,null,null,null,null,null,null,null,null,null,null,null,null,null,null,null,null,null,null,null,null,null,null,null,null,null,null,null,null,null,null,null,null,null,null,null,null,null,null,null,null,null,null,null,null,null,null,{"$f":"IF(DecisionTree!A31=\"\",\"?\",DecisionTree!A31)","v":"?"},{"$f":"IF(DecisionTree!C9=\"\",\"?\",DecisionTree!C9)","v":"?"},{"$f":"IF(DecisionTree!F3=\"\",\"?\",DecisionTree!F3)","v":"?"},{"$f":"IF(DecisionTree!F27=\"\",\"?\",DecisionTree!F27)","v":"?"},{"$f":"IF(DecisionTree!N5=\"\",\"?\",DecisionTree!N5)","v":"?"},{"$f":"IF(DecisionTree!N17=\"\",\"?\",DecisionTree!N17)","v":"?"},{"$f":"IF(DecisionTree!N29=\"\",\"?\",DecisionTree!N29)","v":"?"},{"$f":"IF(DecisionTree!N41=\"\",\"?\",DecisionTree!N41)","v":"?"}]
[null,null,null,null,null,null,null,null,null,null,null,null,null,null,null,null,null,null,null,null,null,null,null,null,null,null,null,null,null,null,null,null,null,null,null,null,null,null,null,null,null,null,null,null,null,null,null,null,null,null,null,null,null,null,null,null,null,null,null,null,null,null,null,null,null,null,null,null,null,null,null,null,null,"Rear End","Rear End","Left Turn","Left Turn","Right Turn","Right Turn","Angle","Angle","Head on","Head On","Sideswipe - Passing","Sideswipe - Passing","Fixed Object","Fixed Object","RAN OFF RD","RAN OFF RD","Pedestrian","Pedestrian","Other","Other",null,null,null,null,null,null,null,null,null,null,null,null,null,null,null,null,null,null,null,null,null,null,null,null,null,null,null,null,null,null,null,null,null,null,null,null,null,null,null,null,null,null,null,null,null,null,null,null,null,null,null,null,null,null,null,null,null,null,null,null,null,null,null,null,null,null,null,null,null,null,null,null,null,null,null,null,null,null,null,null,null,null,null,null,null,null,null,null,null,null,{"$f":"IF(DecisionTree!A32=\"\",\"?\",DecisionTree!A32)","v":"?"},{"$f":"IF(DecisionTree!C10=\"\",\"?\",DecisionTree!C10)","v":"?"},{"$f":"IF(DecisionTree!F4=\"\",\"?\",DecisionTree!F4)","v":"?"},{"$f":"IF(DecisionTree!F28=\"\",\"?\",DecisionTree!F28)","v":"?"},{"$f":"IF(DecisionTree!N6=\"\",\"?\",DecisionTree!N6)","v":"?"},{"$f":"IF(DecisionTree!N18=\"\",\"?\",DecisionTree!N18)","v":"?"},{"$f":"IF(DecisionTree!N30=\"\",\"?\",DecisionTree!N30)","v":"?"},{"$f":"IF(DecisionTree!N42=\"\",\"?\",DecisionTree!N42)","v":"?"}]
[null,null,null,null,null,null,null,null,null,null,null,null,null,null,null,null,null,null,null,null,null,null,null,null,null,null,null,null,null,null,null,null,null,null,null,null,null,null,null,null,null,null,null,null,null,null,null,null,null,null,null,null,null,null,null,null,null,{"$f":"IF(BD17=\"\",\"\",IF(OR(O17=\"INJURY CRASH\",O17=\"FATAL CRASH\"),\"YES\",\"NO\"))","v":""},{"$f":"IF(BD17=\"\",\"\",IF(OR(Q17=\"ROAD - SNOW\",Q17=\"ROAD - ICE\"),\"YES\",\"NO\"))","v":""},{"$f":"IF(BD17=\"\",\"\",IF(OR(L17=\"DAWN\",L17=\"DUSK\"),\"YES\",\"NO\"))","v":""},{"$f":"IF(BD17=\"\",\"\",IF(OR(L17=\"DARK - NO LIGHTS\",L17=\"DARK - LIGHTED\"),\"YES\",\"NO\"))","v":""},{"$f":"IF(BD17=\"\",\"\",IF(AND(BF17=\"NO\",L17=\"DAYLIGHT\"),$BD17,\"\"))","v":""},{"$f":"IF(BD17=\"\",\"\",IF(AND(BF17=\"YES\",L17=\"DAYLIGHT\"),$BD17,\"\"))","v":""},{"$f":"IF(BD17=\"\",\"\",IF(AND(BF17=\"NO\",BH17=\"YES\"),$BD17,\"\"))","v":""},{"$f":"IF(BD17=\"\",\"\",IF(AND(BD17=2012,BF17=\"YES\",BH17=\"YES\"),$BD17,\"\"))","v":""},{"$f":"IF(BD17=\"\",\"\",IF(AND(BF17=\"NO\",BI17=\"YES\"),$BD17,\"\"))","v":""},{"$f":"IF(BD17=\"\",\"\",IF(AND(BF17=\"YES\",BI17=\"YES\"),$BD17,\"\"))","v":""},{"$f":"IF(BD17=\"\",\"\",IF(AND(BF17=\"NO\",Q17=\"ROAD - DRY\"),$BD17,\"\"))","v":""},{"$f":"IF(BD17=\"\",\"\",IF(AND(BF17=\"YES\",Q17=\"ROAD - DRY\"),$BD17,\"\"))","v":""},{"$f":"IF(BD17=\"\",\"\",IF(AND(BF17=\"NO\",Q17=\"ROAD - WET\"),$BD17,\"\"))","v":""},{"$f":"IF(BD17=\"\",\"\",IF(AND(,BF17=\"YES\",Q17=\"ROAD - WET\"),$BD17,\"\"))","v":""},{"$f":"IF(BD17=\"\",\"\",IF(AND(BF17=\"NO\",BG17=\"YES\"),$BD17,\"\"))","v":""},{"$f":"IF(BD17=\"\",\"\",IF(AND(,BF17=\"YES\",BG17=\"YES\"),$BD17,\"\"))","v":""},{"$f":"IF($BD17=\"\",\"\",IF(AND($BF17=BV$15,$M17=BV$16),$BD17,\"\"))","v":""},{"$f":"IF($BD17=\"\",\"\",IF(AND($BF17=BW$15,$M17=BW$16),$BD17,\"\"))","v":""},"","","","","","","","","","","","","","","","",{"$f":"IF(BD17=\"\",\"\",IF(AND(BF17=\"NO\",CP17=\"1\"),BD17,\"\"))","v":""},{"$f":"IF(BD17=\"\",\"\",IF(AND(BF17=\"YES\",CP17=\"1\"),BD17,\"\"))","v":""},{"$f":"IF(BD17=\"\",\"\",IF(COUNT(BV17:CM17)>=1,\"\",\"1\"))","v":""},null,null,null,{"$f":"IF($DP$18=\"\",MID(DP17&$DS$18&DS17&$DQ$18&DQ17&$DR$18&DR17&$DT$18&DT17&$DU$18&DU17&$CY$18&CY17&$CZ$18&CZ17&$CX$18&CX17&$DE$18&DE17&$DF$18&DF17&$DG$18&DG17&$DH$18&DH17&$DV$18&DV17,2,150),DP17&$DS$18&DS17&$DQ$18&DQ17&$DR$18&DR17&$DT$18&DT17&$DU$18&DU17&$CY$18&CY17&$CZ$18&CZ17&$CX$18&CX17&$DE$18&DE17&$DF$18&DF17&$DG$18&DG17&$DH$18&DH17&$DV$18&DV17)","v":""},null,null,null,{"$f":"IF(CX21=\"\",\"\",CX20)","v":""},{"$f":"IF(CY21=\"\",\"\",CY20)","v":""},{"$f":"IF(CZ21=\"\",\"\",CZ20)","v":""},null,null,null,null,{"$f":"IF(DE21=\"\",\"\",DE20)","v":""},{"$f":"IF(DF21=\"\",\"\",DF20)","v":""},{"$f":"IF(DG21=\"\",\"\",DG20)","v":""},{"$f":"IF(DH21=\"\",\"\",DH20)","v":""},null,null,null,null,null,null,null,{"$f":"IF(DP21=\"\",\"\",DP20)","v":""},"","","","","",{"$f":"IF(DV21=\"\",\"\",DV20)","v":""},{"$f":"IF(DW21=\"\",\"\",DW20)","v":""},{"$f":"IF(DX21=\"\",\"\",DX20)","v":""},null,null,null,null,null,null,null,null,null,null,null,null,null,null,null,null,null,null,null,null,null,null,null,null,null,null,null,null,null,null,null,null,null,null,null,null,null,null,null,null,null,null,null,null,null,null,null,null,null,null,null,null,null,null,null,{"$f":"IF(DecisionTree!A33=\"\",\"?\",DecisionTree!A33)","v":"?"},{"$f":"IF(DecisionTree!C11=\"\",\"?\",DecisionTree!C11)","v":"?"},{"$f":"IF(DecisionTree!F5=\"\",\"?\",DecisionTree!F5)","v":"?"},{"$f":"IF(DecisionTree!F29=\"\",\"?\",DecisionTree!F29)","v":"?"},{"$f":"IF(DecisionTree!N7=\"\",\"?\",DecisionTree!N7)","v":"?"},{"$f":"IF(DecisionTree!N19=\"\",\"?\",DecisionTree!N19)","v":"?"},{"$f":"IF(DecisionTree!N31=\"\",\"?\",DecisionTree!N31)","v":"?"},{"$f":"IF(DecisionTree!N43=\"\",\"?\",DecisionTree!N43)","v":"?"}]
[null,null,null,null,null,null,null,null,null,null,null,null,null,null,null,null,null,null,null,null,null,null,null,null,null,null,null,null,null,null,null,null,null,null,null,null,null,null,null,null,null,null,null,null,null,null,null,null,null,null,null,null,null,null,null,null,null,null,null,null,null,"TIME OF DAY",null,null,null,null,null,"ROADWAY CONDITION",null,null,null,null,null,"CRASH TYPE",null,null,null,null,null,null,null,null,null,null,null,null,null,null,null,null,null,null,null,null,null,null,null,null,null,null,null,null,null,null,null,null,null,null,null,null,null,null,null,null,null,null,null,null,null,"/",null,null,null,null,null,null,null,null,null,null,null,null,null,null,null,null,null,null,null,null,null,null,null,null,null,null,null,null,null,null,null,null,null,null,null,null,null,null,null,null,null,null,null,null,null,null,null,null,null,null,null,null,null,null,null,null,null,null,null,null,null,null,null,{"$f":"IF(ISERROR(IF(OR($GB$15=OFFSET($A18:$AZ18,0,$GB$14-1,1,1),$GB$16=OFFSET($A18:$AZ18,0,$GB$14-1,1,1),$GB$17=OFFSET($A18:$AZ18,0,$GB$14-1,1,1)),1,\"X\")),1,IF(OR($GB$15=OFFSET($A18:$AZ18,0,$GB$14-1,1,1),$GB$16=OFFSET($A18:$AZ18,0,$GB$14-1,1,1),$GB$17=OFFSET($A18:$AZ18,0,$GB$14-1,1,1)),1,\"X\"))","v":1},{"$f":"IF(OR($GC$15=OFFSET($A18:$AZ18,0,$GC$14-1,1,1),$GC$16=OFFSET($A18:$AZ18,0,$GC$14-1,1,1),$GC$17=OFFSET($A18:$AZ18,0,$GC$14-1,1,1)),1,\"X\")","v":{"$error":"#REF!"}},{"$f":"IF(OR($GD$15=OFFSET($A18:$AZ18,0,$GD$14-1,1,1),$GD$16=OFFSET($A18:$AZ18,0,$GD$14-1,1,1),$GD$17=OFFSET($A18:$AZ18,0,$GD$14-1,1,1)),1,\"X\")","v":{"$error":"#REF!"}},{"$f":"IF(OR($GE$15=OFFSET($A18:$AZ18,0,$GE$14-1,1,1),$GE$16=OFFSET($A18:$AZ18,0,$GE$14-1,1,1),$GE$17=OFFSET($A18:$AZ18,0,$GE$14-1,1,1)),1,\"X\")","v":{"$error":"#REF!"}},{"$f":"IF(OR($GF$15=OFFSET($A18:$AZ18,0,$GF$14-1,1,1),$GF$16=OFFSET($A18:$AZ18,0,$GF$14-1,1,1),$GF$17=OFFSET($A18:$AZ18,0,$GF$14-1,1,1)),1,\"X\")","v":{"$error":"#REF!"}},{"$f":"IF(OR($GG$15=OFFSET($A18:$AZ18,0,$GG$14-1,1,1),$GG$16=OFFSET($A18:$AZ18,0,$GG$14-1,1,1),$GG$17=OFFSET($A18:$AZ18,0,$GG$14-1,1,1)),1,\"X\")","v":{"$error":"#REF!"}},{"$f":"IF(OR($GH$15=OFFSET($A18:$AZ18,0,$GH$14-1,1,1),$GH$16=OFFSET($A18:$AZ18,0,$GH$14-1,1,1),$GH$17=OFFSET($A18:$AZ18,0,$GH$14-1,1,1)),1,\"X\")","v":{"$error":"#REF!"}},{"$f":"IF(OR($GI$15=OFFSET($A18:$AZ18,0,$GI$14-1,1,1),$GI$16=OFFSET($A18:$AZ18,0,$GI$14-1,1,1),$GI$17=OFFSET($A18:$AZ18,0,$GI$14-1,1,1)),1,\"X\")","v":{"$error":"#REF!"}}]
[{"$f":"IF(BD19*1>2010,HYPERLINK(U19,\"Crash Report\"),IF(AQ19=\"\",\"\",HYPERLINK(AQ19,\"Crash Report\")))","v":""},null,null,null,null,null,null,null,null,null,null,null,null,null,null,null,null,null,null,null,null,null,null,null,null,null,null,null,null,null,null,null,null,null,null,null,null,null,null,null,null,null,null,null,null,null,null,null,null,null,null,null,null,null,null,null,null,null,null,null,null,"DAY",null,"DAWN/DUSK",null,"DARK",null,"DRY",null,"WET",null,"SNOW / ICE",null,"REAR END",null,"LEFT",null,"RIGHT",null,"ANGLE",null,"HEAD ON",null,"SS PASS",null,"FIXED OBJ",null,"RAN OFF RD",null,"PEDESTRIAN",null,"OTHER",null,null,{"$f":"+HYPERLINK(CONCATENATE(\"http://pathweb.pathwayservices.com/ohio/?nlfid='\",+D19,\"'&logpoint=\",+E19),\"Pathweb\")","v":"Pathweb"},{"$f":"HYPERLINK(CONCATENATE(\"http://maps.google.com/maps?q=\",+BB19,\",+\",+BC19,\"+(Crash+Location)&iwloc=A&hl=en\"),\"Google Maps\")","v":"Google Maps"},{"$f":"HYPERLINK(CONCATENATE(\"http://data.mashedworld.com/dualmaps/map.htm?x=\",BC19,\"&y=\",BB19,\"&z=15&gm=0&ve=5&gc=0&bz=1&bd=0&mw=1&sv=1&svb=0&svp=0&svz=0&svm=2&svf=0\"),\"Mashed Map\")","v":"Mashed Map"},{"$f":"IF($DP$18=\"\",MID(DP19&$DS$18&DS19&$DQ$18&DQ19&$DR$18&DR19&$DT$18&DT19&$DU$18&DU19&$CY$18&CY19&$CZ$18&CZ19&$CX$18&CX19&$DE$18&DE19&$DF$18&DF19&$DG$18&DG19&$DH$18&DH19&$DV$18&DV19&$DW$18&DW19&$DX$18&DX19,2,150),DP19&$DS$18&DS19&$DQ$18&DQ19&$DR$18&DR19&$DT$18&DT19&$DU$18&DU19&$CY$18&CY19&$CZ$18&CZ19&$CX$18&CX19&$DE$18&DE19&$DF$18&DF19&$DG$18&DG19&$DH$18&DH19&$DV$18&DV19&$DW$18&DW19&$DX$18&DX19)","v":"0"},null,null,null,{"$f":"IF($CX$18=\"\",\"\",LEFT(J19,2))","v":""},{"$f":"IF($CY$18=\"\",\"\",RIGHT(BD19,2))","v":""},{"$f":"IF($CZ$18=\"\",\"\",LEFT(O19,1))","v":""},{"$f":"IF(W19=\"\",\"\",UPPER(LEFT(W19,6)))","v":""},{"$f":"IF(AK19=\"\",\"\",UPPER(LEFT(AK19,6)))","v":""},{"$f":"IF(X19=\"\",\"\",UPPER(LEFT(X19,6)))","v":""},{"$f":"IF(AL19=\"\",\"\",UPPER(LEFT(AL19,6)))","v":""},{"$f":"IF($DE$18=\"\",\"\",G19)","v":""},{"$f":"IF($DF$18=\"\",\"\",E19)","v":""},{"$f":"IF($DG$18=\"\",\"\",H19)","v":""},{"$f":"IF($DH$18=\"\",\"\",I19/100)","v":""},null,null,{"$f":"IF(M19=\"\",\"\",UPPER(M19))","v":""},null,null,null,null,{"$f":"IF($DP$18=\"\",\"\",CU19)","v":0},{"$f":"IF($DQ$18=\"\",\"\",MID(F19,5,2)&\"-\"&MID(F19,7,2)&\"-\"&RIGHT(BD19,2))","v":""},{"$f":"IF($DR$18=\"\",\"\",K19)","v":""},{"$f":"IF($DS$18=\"\",\"\",B19)","v":""},{"$f":"IF($DT$18=\"\",\"\",IF(L19=\"DARK - LIGHTED\",\"N\",IF(L19=\"DARK - NO LIGHTS\",\"N\",IF(L19=\"DAYLIGHT\",\"D\",\"O\"))))","v":""},{"$f":"IF($DU$18=\"\",\"\",IF(Q19=\"ROAD - WET\",\"W\",IF(Q19=\"ROAD - SNOW\",\"S\",IF(Q19=\"ROAD - ICE\",\"I\",IF(Q19=\"ROAD - DRY\",\"D\",\"O\")))))","v":""},{"$f":"IF($DV$18=\"\",\"\",LEFT(AW19,6))","v":""},{"$f":"IF($DW$18=\"\",\"\",IF(W19=\"\",\"U\",VLOOKUP(W19,'Collision Diagram'!$BG$82:$BH$90,2,FALSE))&\" to \"&IF(X19=\"\",\"U\",VLOOKUP(X19,'Collision Diagram'!$BG$82:$BH$90,2,FALSE)))","v":""},{"$f":"IF($DX$18=\"\",\"\",IF(AK19=\"\",\"U\",VLOOKUP(AK19,'Collision Diagram'!$BG$82:$BH$90,2,FALSE))&\" to \"&IF(AL19=\"\",\"U\",VLOOKUP(AL19,'Collision Diagram'!$BG$82:$BH$90,2,FALSE)))","v":""}]
["HYPERLINK","ACCIDENTS_POINTS_NBR","LOCAL_REPORT_NBR","NLF ID","LOGPOINT_SLM_NBR","CRASH_DT","STREET1","STREET2_REFERENCE","DISTANCE_OFFSET","DAY_OF_WEEK_TXT","HOUR_OF_DAY","LIGHT_CONDITION_TXT","TYPE_OF_CRASH_TXT","NUMBER_OF_VEHICLES","CRASH_SEVERITY_TXT","WEATHER_CONDITION_TXT","ROAD_CONDITION_TXT","LOCATION_TXT","CONTRIBUTING_FACTOR1_TXT","ACTION1_TXT","PUBLIC_URL","VEHICLE_TYPE1_TXT","DIRECTION_FROM1_TXT","DIRECTION_TO1_TXT","DRIVER_AGE1","DRIVER_GENDER1_TXT","TRAFFIC_CONTROL1_TXT","DRIVER_ALCOHOL1_TXT","DRIVER_DRUGS1_TXT","ESTIMATED_SPEED1_TXT","POSTED_SPEED1_TXT","CONTRIBUTING_FACTOR2_TXT","ACTION2_TXT","VEHICLE_TYPE2_TXT","DRIVER_AGE2","DRIVER_GENDER2_TXT","DIRECTION_FROM2_TXT","DIRECTION_TO2_TXT","DRIVER_ALCOHOL2_TXT","DRIVER_DRUGS2_TXT","SPECIAL_AREA_TXT","ANIMAL_TYPE_TXT","Filename Nme","ROAD_CONTOUR_TXT","INJ_TYPE1_FATAL","INJ_TYPE2_SERIOUS_VISIBLE","INJ_TYPE3_MINOR_VISIBLE","INJ_TYPE4_NO_VISIBLE","DIRECTION_FROM_REF_TXT","DISTRICT_NBR","COUNTY_CD","City Village Twp Cd","City Village Twp Nme","Latitude Nbr","Longitude Nbr","TRAFFIC_CRASH_YEAR","CRASH_MONTH_NBR","INJ/FAT","SNOW/ICE","DAWN/DUSK","DARK","PDO","I/F","PDO","I/F","PDO","I/F","PDO","I/F","PDO","I/F","PDO","I/F","PDO","I/F","PDO","I/F","PDO","I/F","PDO","I/F","PDO","I/F","PDO","I/F","PDO","I/F","PDO","I/F","PDO","I/F","PDO","I/F","OTHER CRASH TYPE","Roadview","Google","Mashed Map","Label","ID","TYPE","Zone","Day","Year","Severity","DFrom1","DFrom2","DTo1","DTo2","StreetOn","LogPoint","StreetAt","Offset","Box","Symbol","CrashType","ODOT_INTERSECTION_REL_IND",null,null,null,"RowID","Date","Hour","DocNum","Light Cond","Road Cond","OffsetDirection","Direction1FromTo","Direction2FromTo",null,null,null,null,null,null,null,null,null,null,null,null,null,null,null,null,null,null,null,null,null,null,null,null,null,null,null,null,null,null,null,null,null,null,null,null,null,null,null,null,null,null,null,null,null,null,null,null,null,null,null,null,null,null,null,"Level 1","Level2","Level3A","Level3B","Level4A","Level4B","Level4C","Level4D"]
[{"$f":"IF(BD21*1>2010,HYPERLINK(U21,\"Crash Report\"),IF(AQ21=\"\",\"\",HYPERLINK(AQ21,\"Crash Report\")))","v":"Crash Report"},20166027827,"28-0248-28","SGEASR00608**C",3.7,20160226,"SR0608R","MP004.00",0.4,"Friday",0,"Dark - No Lights","Fixed Object",null,"Injury Crash","Cloudy","Road - Snow","Not An Intersection","Improper Lane Change/Passing/Offroad","Straight Ahead",{"$f":"\"http://hsip.dot.state.oh.us/report/?docnbr=\"&IF(LEN(B21)=11,B21,\"20\"&B21)","v":"http://hsip.dot.state.oh.us/report/?docnbr=20166027827"},"Mid Size","South","North",22,"F","Pavement Markings","None",null,"Unit Speed 41-45","Posted Speed 41-45","","","","","","","","",null,"Unknown or Not in Work Zone","Animal Not Stated","","Straight - Grade",0,0,1,0,"S",12,"GEA",2,"Middlefield",41.485109999999999,-81.081784999999996,2016,2,null,null,null,null,null,null,null,null,null,null,null,null,null,null,null,null,null,null,null,null,null,null,null,null,null,null,null,null,null,null,null,null,null,null,null,null,null,{"$f":"+HYPERLINK(CONCATENATE(\"http://pathweb.pathwayservices.com/ohio/?nlfid='\",+D21,\"'&logpoint=\",+E21),\"Pathweb\")","v":"Pathweb"},{"$f":"HYPERLINK(CONCATENATE(\"http://maps.google.com/maps?q=\",+BB21,\",+\",+BC21,\"+(Crash+Location)&iwloc=A&hl=en\"),\"Google Maps\")","v":"Google Maps"},{"$f":"HYPERLINK(CONCATENATE(\"http://data.mashedworld.com/dualmaps/map.htm?x=\",BC21,\"&y=\",BB21,\"&z=15&gm=0&ve=5&gc=0&bz=1&bd=0&mw=1&sv=1&svb=0&svp=0&svz=0&svm=2&svf=0\"),\"Mashed Map\")","v":"Mashed Map"},null,null,null,null,null,null,null,null,null,null,null,null,null,null,null,null,null,null,"N"]
["Crash Report",20146057830,"28-0532-28","SGEASR00608**C",3.08,20140530,"SR0608R","MP003.00",0.1,"Friday",23,"Dark - No Lights","Sideswipe - Passing",null,"Property Damage Crash","Clear","Road - Dry","Not An Intersection","Improper Lane Change/Passing/Offroad","Overtaking/Passing","http://hsip.dot.state.oh.us/report/?docnbr=20146057830","Pickup","South","North",18,"M","Pavement Markings","None",null,"Unit Speed 46-50","Posted Speed 41-45","None","Straight Ahead","Full Size",21,"M","South","North","None",null,"Unknown or Not in Work Zone","Animal Not Stated","","Straight - Level",0,0,0,0,"N",12,"GEA",3,"Middlefield (Township of)",41.476452000000002,-81.078084000000004,2014,5,null,null,null,null,null,null,null,null,null,null,null,null,null,null,null,null,null,null,null,null,null,null,null,null,null,null,null,null,null,null,null,null,null,null,null,null,null,"Pathweb","Google Maps","Mashed Map",null,null,null,null,null,null,null,null,null,null,null,null,null,null,null,null,null,null,"N"]
["Crash Report",20166138836,"28-0973-28","SGEASR00608**C",3.08,20161014,"SR0608R","MP003.00",0.1,"Friday",11,"Daylight","Left Turn",null,"Injury Crash","Clear","Road - Dry","Not An Intersection","Improper Turn","Making Left Turn","http://hsip.dot.state.oh.us/report/?docnbr=20166138836","Sport Utility Vehicle","North","East",67,"M","Pavement Markings","None",null,"Unit Speed 20 and Under","Posted Speed 41-45","None","Straight Ahead","Sport Utility Vehicle",68,"M","South","North","None",null,"Unknown or Not in Work Zone","Animal Not Stated","","Straight - Level",0,0,3,0,"N",12,"GEA",3,"Middlefield (Township of)",41.476452000000002,-81.078084000000004,2016,10,null,null,null,null,null,null,null,null,null,null,null,null,null,null,null,null,null,null,null,null,null,null,null,null,null,null,null,null,null,null,null,null,null,null,null,null,null,"Pathweb","Google Maps","Mashed Map",null,null,null,null,null,null,null,null,null,null,null,null,null,null,null,null,null,null,"Y"]
["Crash Report",20167012957,"G16-02133","SGEASR00608**C",3.91,20160216,"SR0608R","CR0014",0.11,"Tuesday",6,"Dawn","Fixed Object",null,"Property Damage Crash","Snow","Road - Snow","Not An Intersection","Failure To Control","Straight Ahead","http://hsip.dot.state.oh.us/report/?docnbr=20167012957","Sub-Compact","North","South",28,"F","Pavement Markings","None",null,"Unit Speed 20 and Under","Posted Speed 51-55","","","","","","","","",null,"Unknown or Not in Work Zone","Animal Not Stated","\\\\WEBIMG01\\HSIPPRD$\\2016\\ODPS_SCANS\\201670129572849714.PDF","Straight - Grade",0,0,0,0,"S",12,"GEA",3,"MIDDLEFIELD",41.487940000000002,-81.083518999999995,2016,2,null,null,null,null,null,null,null,null,null,null,null,null,null,null,null,null,null,null,null,null,null,null,null,null,null,null,null,null,null,null,null,null,null,null,null,null,null,"Pathweb","Google Maps","Mashed Map",null,null,null,null,null,null,null,null,null,null,null,null,null,null,null,null,null,null,"N"]
["Crash Report",20166062701,"28-0468-28","SGEASR00608**C",4.0199999999999996,20160512,"SR0608R","CR0014",0,"Thursday",6,"Daylight","Angle",null,"Property Damage Crash","Fog, Smog, Smoke","Road - Wet","Four-Way Intersection","Failure To Yield","Straight Ahead","http://hsip.dot.state.oh.us/report/?docnbr=20166062701","Mid Size","East","West",25,"M","Stop Sign","None",null,"Unit Speed 20 and Under","Posted Speed 41-45","None","Straight Ahead","Pickup",58,"M","North","South","None",null,"Unknown or Not in Work Zone","Animal Not Stated","","Straight - Grade",0,0,0,0,"",12,"GEA",2,"Middlefield",41.489424,-81.084421000000006,2016,5,null,null,null,null,null,null,null,null,null,null,null,null,null,null,null,null,null,null,null,null,null,null,null,null,null,null,null,null,null,null,null,null,null,null,null,null,null,"Pathweb","Google Maps","Mashed Map",null,null,null,null,null,null,null,null,null,null,null,null,null,null,null,null,null,null,"Y"]
["Crash Report",20166147276,"28-1035-28","SGEASR00608**C",4.0199999999999996,20161029,"SR0608R","CR0014",0,"Saturday",13,"Daylight","Angle",null,"Injury Crash","Clear","Road - Dry","Four-Way Intersection","Failure To Yield","Straight Ahead","http://hsip.dot.state.oh.us/report/?docnbr=20166147276","Compact","East","West",27,"F","Stop Sign","None",null,"Unit Speed 20 and Under","Posted Speed 51-55","None","Straight Ahead","Sub-Compact",63,"M","North","South","None",null,"Unknown or Not in Work Zone","Animal Not Stated","","Straight - Grade",0,0,0,2,"",12,"GEA",3,"Middlefield",41.489424,-81.084421000000006,2016,10,null,null,null,null,null,null,null,null,null,null,null,null,null,null,null,null,null,null,null,null,null,null,null,null,null,null,null,null,null,null,null,null,null,null,null,null,null,"Pathweb","Google Maps","Mashed Map",null,null,null,null,null,null,null,null,null,null,null,null,null,null,null,null,null,null,"Y"]
["Crash Report",20166157260,"28-1093-28","SGEASR00608**C",4,20161112,"SR0608R","MP004.00",0.1,"Saturday",15,"Daylight","Sideswipe - Passing",null,"Property Damage Crash","Clear","Road - Dry","Not An Intersection","Followed Too Closely/ACDA","Straight Ahead","http://hsip.dot.state.oh.us/report/?docnbr=20166157260","Minivan","South","North",34,"F","Pavement Markings","None",null,"Unit Speed 26-30","Posted Speed 41-45","None","Making Left Turn","Mid Size",66,"M","South","West","None",null,"Unknown or Not in Work Zone","Animal Not Stated","","Straight - Grade",0,0,0,0,"S",12,"GEA",3,"Middlefield",41.489153999999999,-81.084258000000005,2016,11,null,null,null,null,null,null,null,null,null,null,null,null,null,null,null,null,null,null,null,null,null,null,null,null,null,null,null,null,null,null,null,null,null,null,null,null,null,"Pathweb","Google Maps","Mashed Map",null,null,null,null,null,null,null,null,null,null,null,null,null,null,null,null,null,null,"Y"]
["Crash Report",20146041458,"28-0378-28","SGEASR00608**C",4.0199999999999996,20140409,"SR0608R","CR0014",0,"Wednesday",13,"Daylight","Left Turn",null,"Property Damage Crash","Clear","Road - Dry","Four-Way Intersection","Failure To Yield","Making Left Turn","http://hsip.dot.state.oh.us/report/?docnbr=20146041458","Minivan","East","South",41,"M","Stop Sign","None",null,"Unit Speed 20 and Under","Posted Speed 41-45","None","Straight Ahead","Minivan",82,"M","West","East","None",null,"Unknown or Not in Work Zone","Animal Not Stated","","Curve - Grade",0,0,0,0,"",12,"GEA",3,"Middlefield",41.489424,-81.084421000000006,2014,4,null,null,null,null,null,null,null,null,null,null,null,null,null,null,null,null,null,null,null,null,null,null,null,null,null,null,null,null,null,null,null,null,null,null,null,null,null,"Pathweb","Google Maps","Mashed Map",null,null,null,null,null,null,null,null,null,null,null,null,null,null,null,null,null,null,"Y"]
["Crash Report",20166020424,"28-0175-28","SGEASR00608**C",4.0999999999999996,20160210,"SR0608R","MP004.00",0,"Wednesday",13,"Daylight","Fixed Object",null,"Property Damage Crash","Snow","Road - Snow","Not An Intersection","Followed Too Closely/ACDA","Straight Ahead","http://hsip.dot.state.oh.us/report/?docnbr=20166020424","Sport Utility Vehicle","North","South",24,"F","Pavement Markings","None",null,"Unit Speed 31-35","Posted Speed 41-45","","","","","","","","",null,"Unknown or Not in Work Zone","Animal Not Stated","","Straight - Grade",0,0,0,0,"N",12,"GEA",3,"Middlefield",41.490470999999999,-81.085051000000007,2016,2,null,null,null,null,null,null,null,null,null,null,null,null,null,null,null,null,null,null,null,null,null,null,null,null,null,null,null,null,null,null,null,null,null,null,null,null,null,"Pathweb","Google Maps","Mashed Map",null,null,null,null,null,null,null,null,null,null,null,null,null,null,null,null,null,null,"N"]
["Crash Report",20146011183,"28-0099-28","SGEASR00608**C",4.0199999999999996,20140123,"SR0608R","CR0014",0,"Thursday",16,"Daylight","Angle",null,"Property Damage Crash","Snow","Road - Ice","Not An Intersection","Improper Turn","Making Right Turn","http://hsip.dot.state.oh.us/report/?docnbr=20146011183","Mid Size","North","West",41,"F","Pavement Markings","None",null,"Unit Speed 20 and Under","Posted Speed 41-45","None","Slowing Or Stopped In Traffic","Sport Utility Vehicle",51,"F","West","East","None",null,"Unknown or Not in Work Zone","Animal Not Stated","","Straight - Grade",0,0,0,0,"",12,"GEA",3,"Middlefield (Township of)",41.489424,-81.084421000000006,2014,1,null,null,null,null,null,null,null,null,null,null,null,null,null,null,null,null,null,null,null,null,null,null,null,null,null,null,null,null,null,null,null,null,null,null,null,null,null,"Pathweb","Google Maps","Mashed Map",null,null,null,null,null,null,null,null,null,null,null,null,null,null,null,null,null,null,"Y"]
["Crash Report",20146011244,"28-0127-28","SGEASR00608**C",4.2,20140123,"SR0608R","MP004.00",0.1,"Thursday",16,"Daylight","Rear End",null,"Property Damage Crash","Snow","Road - Snow","Not An Intersection","Followed Too Closely/ACDA","Straight Ahead","http://hsip.dot.state.oh.us/report/?docnbr=20146011244","Single Unit Truck; 3+ Axles","North","South",30,"M","Pavement Markings","None",null,"Unit Speed 21-25","Posted Speed 41-45","None","Slowing Or Stopped In Traffic","Minivan",43,"F","North","South","None",null,"Unknown or Not in Work Zone","Animal Not Stated","","Straight - Grade",0,0,0,0,"N",12,"GEA",3,"Middlefield",41.491779999999999,-81.085840000000005,2014,1,null,null,null,null,null,null,null,null,null,null,null,null,null,null,null,null,null,null,null,null,null,null,null,null,null,null,null,null,null,null,null,null,null,null,null,null,null,"Pathweb","Google Maps","Mashed Map",null,null,null,null,null,null,null,null,null,null,null,null,null,null,null,null,null,null,"N"]
["Crash Report",20146011250,"28-0101-28","SGEASR00608**C",4.2,20140123,"SR0608R","MP004.00",0.1,"Thursday",16,"Daylight","Rear End",null,"Property Damage Crash","Snow","Road - Snow","Not An Intersection","Unsafe Speed","Straight Ahead","http://hsip.dot.state.oh.us/report/?docnbr=20146011250","Compact","North","South",45,"F","Pavement Markings","None",null,"Unit Speed 21-25","Posted Speed 41-45","None","Slowing Or Stopped In Traffic","Single Unit Truck; 3+ Axles",30,"M","North","South","None",null,"Unknown or Not in Work Zone","Animal Not Stated","","Straight - Grade",0,0,0,0,"N",12,"GEA",3,"Middlefield",41.491779999999999,-81.085840000000005,2014,1,null,null,null,null,null,null,null,null,null,null,null,null,null,null,null,null,null,null,null,null,null,null,null,null,null,null,null,null,null,null,null,null,null,null,null,null,null,"Pathweb","Google Maps","Mashed Map",null,null,null,null,null,null,null,null,null,null,null,null,null,null,null,null,null,null,"N"]
["Crash Report",20146047224,"28-0439-28","SGEASR00608**C",4.3,20140503,"SR0608R","MP004.00",0.2,"Saturday",13,"Daylight","Angle",null,"Injury Crash","Rain","Road - Wet","Driveway/Alley Access","Failure To Yield","Entering Traffic Lane","http://hsip.dot.state.oh.us/report/?docnbr=20146047224","Mid Size","Southwest","Northwest",44,"F","Pavement Markings","None",null,"Unit Speed 20 and Under","Posted Speed 41-45","None","Straight Ahead","Full Size",71,"F","Southeast","Northwest","None",null,"Unknown or Not in Work Zone","Animal Not Stated","","Straight - Grade",0,0,0,1,"N",12,"GEA",3,"Middlefield",41.493009000000001,-81.086821,2014,5,null,null,null,null,null,null,null,null,null,null,null,null,null,null,null,null,null,null,null,null,null,null,null,null,null,null,null,null,null,null,null,null,null,null,null,null,null,"Pathweb","Google Maps","Mashed Map",null,null,null,null,null,null,null,null,null,null,null,null,null,null,null,null,null,null,"N"]
["Crash Report",20146115574,"28-1047-28","SGEASR00608**C",3.08,20141027,"SR0608R","MP003.00",0.1,"Monday",11,"Daylight","Animal",null,"Property Damage Crash","Clear","Road - Dry","Not An Intersection","Improper Lane Change/Passing/Offroad","Overtaking/Passing","http://hsip.dot.state.oh.us/report/?docnbr=20146115574","Pickup","Southeast","Northwest",44,"M","Pavement Markings","None",null,"Unit Speed 36-40","Posted Speed 41-45","None Non-Motorist","Other Non-Motorist Action","Animal With Buggy, Wagon, Surrey",61,"F","Southeast","Northwest","None",null,"Unknown or Not in Work Zone","Other Animal","","Straight - Level",0,0,0,0,"N",12,"GEA",3,"Middlefield",41.476452000000002,-81.078084000000004,2014,10,null,null,null,null,null,null,null,null,null,null,null,null,null,null,null,null,null,null,null,null,null,null,null,null,null,null,null,null,null,null,null,null,null,null,null,null,null,"Pathweb","Google Maps","Mashed Map",null,null,null,null,null,null,null,null,null,null,null,null,null,null,null,null,null,null,"N"]
["Crash Report",20146001667,"28-0011-28","SGEASR00608**C",4,20140102,"SR0608R","MP004.00",0.1,"Thursday",12,"Daylight","Fixed Object",null,"Property Damage Crash","Snow","Road - Snow","Not An Intersection","Unsafe Speed","Straight Ahead","http://hsip.dot.state.oh.us/report/?docnbr=20146001667","Pickup","North","South",66,"M","Pavement Markings","None",null,"Unit Speed 20 and Under","Posted Speed 41-45","","","","","","","","",null,"Unknown or Not in Work Zone","Animal Not Stated","","Straight - Grade",0,0,0,0,"S",12,"GEA",3,"Middlefield",41.489153999999999,-81.084258000000005,2014,1,null,null,null,null,null,null,null,null,null,null,null,null,null,null,null,null,null,null,null,null,null,null,null,null,null,null,null,null,null,null,null,null,null,null,null,null,null,"Pathweb","Google Maps","Mashed Map",null,null,null,null,null,null,null,null,null,null,null,null,null,null,null,null,null,null,"N"]
["Crash Report",20147004370,"G14-00968","SGEASR00608**C",3.99,20140123,"SR0608R","CR0014",0.03,"Thursday",15,"Daylight","Fixed Object",null,"Property Damage Crash","Snow","Road - Snow","Not An Intersection","Failure To Control","Straight Ahead","http://hsip.dot.state.oh.us/report/?docnbr=20147004370","Mid Size","North","South",17,"F","Pavement Markings","None",null,"Unit Speed 36-40","Posted Speed 41-45","","","","","","","","",null,"Unknown or Not in Work Zone","Animal Not Stated","\\\\WEBIMG01\\HSIPPRD$\\2014\\ODPS_SCANS\\201470043702849714.PDF","Straight - Grade",0,0,0,0,"S",12,"GEA",3,"MIDDLEFIELD",41.489018999999999,-81.084176999999997,2014,1,null,null,null,null,null,null,null,null,null,null,null,null,null,null,null,null,null,null,null,null,null,null,null,null,null,null,null,null,null,null,null,null,null,null,null,null,null,"Pathweb","Google Maps","Mashed Map",null,null,null,null,null,null,null,null,null,null,null,null,null,null,null,null,null,null,"N"]
["Crash Report",20147014590,"614-02648","SGEASR00608**C",4.32,20140228,"SR0608R","CR0014",0.3,"Friday",8,"Dawn","Rear End",null,"Injury Crash","Cloudy","Road - Dry","Four-Way Intersection","Followed Too Closely/ACDA","Straight Ahead","http://hsip.dot.state.oh.us/report/?docnbr=20147014590","Mid Size","South","North",34,"M","Pavement Markings","None",null,"Unit Speed 31-35","Posted Speed 51-55","None","Unknown","Van",44,"M","South","West","None",null,"Unknown or Not in Work Zone","Animal Not Stated","\\\\WEBIMG01\\HSIPPRD$\\2014\\ODPS_SCANS\\201470145902849714.PDF","Straight - Level",0,0,1,0,"N",12,"GEA",3,"MIDDLEFIELD",41.493248000000001,-81.087034000000003,2014,2,null,null,null,null,null,null,null,null,null,null,null,null,null,null,null,null,null,null,null,null,null,null,null,null,null,null,null,null,null,null,null,null,null,null,null,null,null,"Pathweb","Google Maps","Mashed Map",null,null,null,null,null,null,null,null,null,null,null,null,null,null,null,null,null,null,"Y"]
["Crash Report",20147073939,"G14-16710","SGEASR00608**C",3.1,20141120,"SR0608R","CR0041",0.18,"Thursday",20,"Dark - Lighted","Animal",null,"Property Damage Crash","Snow","Road - Wet","Not An Intersection","None","Straight Ahead","http://hsip.dot.state.oh.us/report/?docnbr=20147073939","Sport Utility Vehicle","South","North",43,"M","No Controls","None",null,"Unit Speed 41-45","Posted Speed 41-45","","","","","","","","",null,"Unknown or Not in Work Zone","Deer Hit","\\\\WEBIMG01\\HSIPPRD$\\2014\\ODPS_SCANS\\201470739392849714.PDF","Straight - Level",0,0,0,0,"S",12,"GEA",3,"MIDDLEFIELD",41.476728000000001,-81.078190000000006,2014,11,null,null,null,null,null,null,null,null,null,null,null,null,null,null,null,null,null,null,null,null,null,null,null,null,null,null,null,null,null,null,null,null,null,null,null,null,null,"Pathweb","Google Maps","Mashed Map",null,null,null,null,null,null,null,null,null,null,null,null,null,null,null,null,null,null,"N"]
["Crash Report",20157032549,"G15-06200","SGEASR00608**C",4.0199999999999996,20150515,"SR0608R","CR0014",0,"Friday",6,"Light Not Stated","Rear End",null,"Property Damage Crash","Cloudy","Road - Dry","Four-Way Intersection","Followed Too Closely/ACDA","Straight Ahead","http://hsip.dot.state.oh.us/report/?docnbr=20157032549","Sport Utility Vehicle","South","North",36,"M","Pavement Markings","None",null,"Unit Speed 31-35","Posted Speed 41-45","None","Straight Ahead","Mid Size",52,"F","South","North","None",null,"Unknown or Not in Work Zone","Animal Not Stated","\\\\WEBIMG01\\HSIPPRD$\\2015\\ODPS_SCANS\\201570325492849714.PDF","Straight - Grade",0,0,0,0,"",12,"GEA",3,"MIDDLEFIELD",41.489424,-81.084421000000006,2015,5,null,null,null,null,null,null,null,null,null,null,null,null,null,null,null,null,null,null,null,null,null,null,null,null,null,null,null,null,null,null,null,null,null,null,null,null,null,"Pathweb","Google Maps","Mashed Map",null,null,null,null,null,null,null,null,null,null,null,null,null,null,null,null,null,null,"Y"]

{"sheet":"Data Analysis","index":15,"n_rows":296,"n_cols":14,"rows_kept":296,"cut":false,"hidden":false,"merged":[]}
[{"$f":"'Crash Data'!A3","v":"- - (-)     From // to //"},null,null,null,null,null,null,null,null,null,{"$f":"A1","v":"- - (-)     From // to //"}]
[]
[null,null,null,null,null,null,null,null,null,null,"SEVERITY","CRASH_SEVERITY"]
[null,"Number",null,null,null,null,null,null,null,null,"TRAFFIC_CRASH_YEAR","Injury Crash","Property Damage Crash"]
["Total",21,null,null,null,null,null,null,null,null,2014,4,9]
[null,null,null,null,null,null,null,null,null,null,2015,0,1]
[null,null,null,null,null,null,null,null,null,null,2016,3,4]
[null,null,null,null,null,null,null,null,null,null,"Grand Total",7,14]
["CRASH_SEVERITY","Number","CRASH_SEVERITY","%",null,"TRAFFIC_CRASH_YEAR","Number","TRAFFIC_CRASH_YEAR","%"]
["Injury Crash",7,"Injury Crash",0.33333333333333331,null,2014,13,2014,0.61904761904761907]
["Property Damage Crash",14,"Property Damage Crash",0.66666666666666663,null,2015,1,2015,4.7619047619047616E-2]
["Grand Total",21,"Grand Total",1,null,2016,7,2016,0.33333333333333331]
[null,null,null,null,null,"Grand Total",21,"Grand Total",1]
[]
[]
[]
["DAY_OF_WEEK","Number","DAY_OF_WEEK","%"]
["Thursday",7,"Thursday",0.33333333333333331]
["Friday",5,"Friday",0.23809523809523808]
["Wednesday",3,"Wednesday",0.14285714285714285]
["Saturday",3,"Saturday",0.14285714285714285]
["Monday",2,"Monday",9.5238095238095233E-2,null,null,null,null,null,null,"TRAFFIC_CRASH_YEAR","Fatalities","Incapacitating Injuries"]
["Tuesday",1,"Tuesday",4.7619047619047616E-2,null,null,null,null,null,null,2014,0,0]
["Grand Total",21,"Grand Total",1,null,null,null,null,null,null,2015,0,0]
[null,null,null,null,null,null,null,null,null,null,2016,0,0]
[null,null,null,null,null,null,null,null,null,null,"Grand Total",0,0]
[]
[]
["HOUR_OF_DAY","Number","HOUR_OF_DAY","%",null,"TYPE_OF_CRASH","Number","TYPE_OF_CRASH","%"]
[0,1,0,4.7619047619047616E-2,null,"Rear End",6,"Rear End",0.2857142857142857]
[6,3,6,0.14285714285714285,null,"Fixed Object",5,"Fixed Object",0.23809523809523808]
[8,1,8,4.7619047619047616E-2,null,"Angle",4,"Angle",0.19047619047619047]
[9,1,9,4.7619047619047616E-2,null,"Left Turn",2,"Left Turn",9.5238095238095233E-2]
[11,2,11,9.5238095238095233E-2,null,"Animal",2,"Animal",9.5238095238095233E-2]
[12,1,12,4.7619047619047616E-2,null,"Sideswipe - Passing",2,"Sideswipe - Passing",9.5238095238095233E-2]
[13,4,13,0.19047619047619047,null,"Grand Total",21,"Grand Total",1]
[14,1,14,4.7619047619047616E-2]
[15,2,15,9.5238095238095233E-2]
[16,3,16,0.14285714285714285]
[20,1,20,4.7619047619047616E-2,null,null,null,null,null,null,"TRAFFIC_CRASH_YEAR","INJ_TYPE2_SERIOUS_VISIBLE","INJ_TYPE3_MINOR_VISIBLE","INJ_TYPE4_NO_VISIBLE"]
[23,1,23,4.7619047619047616E-2,null,null,null,null,null,null,2014,0,3,2]
["Grand Total",21,"Grand Total",1,null,null,null,null,null,null,2015,0,0,0]
[null,null,null,null,null,null,null,null,null,null,2016,0,4,2]
[null,null,null,null,null,null,null,null,null,null,"Grand Total",0,7,4]
[]
[]
[]
[]
[]
[]
[]
[]
[]
[]
[]
[]
[]
["WEATHER_CONDITION","Number","WEATHER_CONDITION","%",null,"ROAD_CONDITION","Number","ROAD_CONDITION","%",null,"TYPE_OF_CRASH","CRASH_SEVERITY","Number"]
["Snow",8,"Snow",0.38095238095238093,null,"Road - Dry",10,"Road - Dry",0.47619047619047616,null,"Rear End","Injury Crash",3]
["Clear",7,"Clear",0.33333333333333331,null,"Road - Snow",7,"Road - Snow",0.33333333333333331,null,null,"Property Damage Crash",3]
["Cloudy",4,"Cloudy",0.19047619047619047,null,"Road - Wet",3,"Road - Wet",0.14285714285714285,null,"Rear End Total",null,6]
["Rain",1,"Rain",4.7619047619047616E-2,null,"Road - Ice",1,"Road - Ice",4.7619047619047616E-2,null,"Fixed Object","Injury Crash",1]
["Fog, Smog, Smoke",1,"Fog, Smog, Smoke",4.7619047619047616E-2,null,"Grand Total",21,"Grand Total",1,null,null,"Property Damage Crash",4]
["Grand Total",21,"Grand Total",1,null,null,null,null,null,null,"Fixed Object Total",null,5]
[null,null,null,null,null,null,null,null,null,null,"Angle","Injury Crash",2]
[null,null,null,null,null,null,null,null,null,null,null,"Property Damage Crash",2]
[null,null,null,null,null,null,null,null,null,null,"Angle Total",null,4]
[null,null,null,null,null,null,null,null,null,null,"Left Turn","Injury Crash",1]
[null,null,null,null,null,null,null,null,null,null,null,"Property Damage Crash",1]
[null,null,null,null,null,null,null,null,null,null,"Left Turn Total",null,2]
["LIGHT_CONDITION","Number","LIGHT_CONDITION","%",null,"NUMBER_OF_VEHICLES","Number","NUMBER_OF_VEHICLES","%",null,"Animal","Property Damage Crash",2]
["Daylight",15,"Daylight",0.7142857142857143,null,"(blank)",21,"(blank)",1,null,"Animal Total",null,2]
["Dark - No Lights",2,"Dark - No Lights",9.5238095238095233E-2,null,"Grand Total",21,"Grand Total",1,null,"Sideswipe - Passing","Property Damage Crash",2]
["Dawn",2,"Dawn",9.5238095238095233E-2,null,null,null,null,null,null,"Sideswipe - Passing Total",null,2]
["Light Not Stated",1,"Light Not Stated",4.7619047619047616E-2,null,null,null,null,null,null,"Grand Total",null,21]
["Dark - Lighted",1,"Dark - Lighted",4.7619047619047616E-2]
["Grand Total",21,"Grand Total",1]
[]
[]
[]
[]
[]
[]
[]
["LOCATION","Number","LOCATION","%",null,"CRASH_MONTH_NBR","Number","CRASH_MONTH_NBR","%"]
["Not An Intersection",14,"Not An Intersection",0.66666666666666663,null,1,5,1,0.23809523809523808]
["Four-Way Intersection",5,"Four-Way Intersection",0.23809523809523808,null,2,4,2,0.19047619047619047]
["T-Intersection",1,"T-Intersection",4.7619047619047616E-2,null,4,2,4,9.5238095238095233E-2]
["Driveway/Alley Access",1,"Driveway/Alley Access",4.7619047619047616E-2,null,5,4,5,0.19047619047619047]
["Grand Total",21,"Grand Total",1,null,9,1,9,4.7619047619047616E-2]
[null,null,null,null,null,10,3,10,0.14285714285714285]
[null,null,null,null,null,11,2,11,9.5238095238095233E-2]
[null,null,null,null,null,"Grand Total",21,"Grand Total",1]
[]
[]
[]
[]
[]
[]
[]
[]
["ROAD_CONTOUR","Number","ROAD_CONTOUR","%"]
["Straight - Grade",13,"Straight - Grade",0.61904761904761907]
["Straight - Level",7,"Straight - Level",0.33333333333333331]
["Curve - Grade",1,"Curve - Grade",4.7619047619047616E-2]
["Grand Total",21,"Grand Total",1]
[]
[]
[]
[]
[]
[]
["SPECIAL_AREA","Number","SPECIAL_AREA","%",null,"ANIMAL_TYPE","Number","ANIMAL_TYPE","%"]
["Unknown or Not in Work Zone",21,"Unknown or Not in Work Zone",1,null,"Animal Not Stated",19,"Animal Not Stated",0.90476190476190477]
["Grand Total",21,"Grand Total",1,null,"Deer Hit",1,"Deer Hit",4.7619047619047616E-2]
[null,null,null,null,null,"Other Animal",1,"Other Animal",4.7619047619047616E-2]
[null,null,null,null,null,"Grand Total",21,"Grand Total",1]
[]
[]
[]
[]
["ACTION1","Number","ACTION1","%",null,"CONTRIBUTING_FACTOR1","Number","CONTRIBUTING_FACTOR1","%"]
["Straight Ahead",14,"Straight Ahead",0.66666666666666663,null,"Followed Too Closely/ACDA",6,"Followed Too Closely/ACDA",0.2857142857142857]
["Making Left Turn",2,"Making Left Turn",9.5238095238095233E-2,null,"Failure To Yield",4,"Failure To Yield",0.19047619047619047]
["Overtaking/Passing",2,"Overtaking/Passing",9.5238095238095233E-2,null,"Improper Lane Change/Passing/Offroad",3,"Improper Lane Change/Passing/Offroad",0.14285714285714285]
["Making Right Turn",1,"Making Right Turn",4.7619047619047616E-2,null,"Unsafe Speed",2,"Unsafe Speed",9.5238095238095233E-2]
["Entering Traffic Lane",1,"Entering Traffic Lane",4.7619047619047616E-2,null,"Improper Turn",2,"Improper Turn",9.5238095238095233E-2]
["Slowing Or Stopped In Traffic",1,"Slowing Or Stopped In Traffic",4.7619047619047616E-2,null,"Failure To Control",2,"Failure To Control",9.5238095238095233E-2]
["Grand Total",21,"Grand Total",1,null,"None",1,"None",4.7619047619047616E-2]
[null,null,null,null,null,"Unknown",1,"Unknown",4.7619047619047616E-2]
[null,null,null,null,null,"Grand Total",21,"Grand Total",1]
[]
[]
[]
[]
[]
[]
[]
[]
[]
[]
[]
[]
[]
[]
[]
[]
[]
[]
[null,"Number",null,"%"]
["Total",21,"Total",1]
[]
[]
[]
[]
[]
[null,null,null,null,null,"TRAFFIC_CONTROL1","Number","TRAFFIC_CONTROL1","%"]
[null,null,null,null,null,"Pavement Markings",15,"Pavement Markings",0.7142857142857143]
[null,null,null,null,null,"Stop Sign",5,"Stop Sign",0.23809523809523808]
[null,null,null,null,null,"No Controls",1,"No Controls",4.7619047619047616E-2]
[null,null,null,null,null,"Grand Total",21,"Grand Total",1]
[]
[]
[]
[]
[]
[]
[]
[]
[]
["DRIVER_ALCOHOL1","Number","DRIVER_ALCOHOL1","%"]
["None",21,"None",1]
["Grand Total",21,"Grand Total",1]
[]
[]
[null,null,null,null,null,"DRIVER_DRUGS1","Number","DRIVER_DRUGS1","%"]
[null,null,null,null,null,"(blank)",21,"(blank)",1]
[null,null,null,null,null,"Grand Total",21,"Grand Total",1]
[]
[]
[]
["DIRECTION_FROM1","Number","DIRECTION_FROM1","%",null,"DIRECTION_TO1","Number","DIRECTION_TO1","%",null,"TYPE_OF_CRASH","CRASH_SEVERITY","TRAFFIC_CRASH_YEAR","Number"]
["North",8,"North",0.38095238095238093,null,"South",7,"South",0.33333333333333331,null,"Animal","Property Damage Crash",2014,2]
["South",6,"South",0.2857142857142857,null,"North",6,"North",0.2857142857142857,null,"Animal Total",null,null,2]
["East",5,"East",0.23809523809523808,null,"West",5,"West",0.23809523809523808]
["Southeast",1,"Southeast",4.7619047619047616E-2,null,"Northwest",2,"Northwest",9.5238095238095233E-2,null,"Fixed Object","Injury Crash",2016,1]
["Southwest",1,"Southwest",4.7619047619047616E-2,null,"East",1,"East",4.7619047619047616E-2,null,null,"Property Damage Crash",2016,2]
["Grand Total",21,"Grand Total",1,null,"Grand Total",21,"Grand Total",1,null,null,null,2014,2]
[null,null,null,null,null,null,null,null,null,null,"Fixed Object Total",null,null,5]
[]
[null,null,null,null,null,null,null,null,null,null,"Sideswipe - Passing","Property Damage Crash",2016,1]
[null,null,null,null,null,null,null,null,null,null,null,null,2014,1]
[null,null,null,null,null,null,null,null,null,null,"Sideswipe - Passing Total",null,null,2]
[]
[null,null,null,null,null,null,null,null,null,null,"Rear End","Injury Crash",2014,3]
[null,null,null,null,null,null,null,null,null,null,null,"Property Damage Crash",2014,2]
["POSTED_SPEED1","Number","POSTED_SPEED1","%",null,"ESTIMATED_SPEED1","Number","ESTIMATED_SPEED1","%",null,null,null,2015,1]
["Posted Speed 41-45",17,"Posted Speed 41-45",0.80952380952380953,null,"Unit Speed 20 and Under",10,"Unit Speed 20 and Under",0.47619047619047616,null,"Rear End Total",null,null,6]
["Posted Speed 51-55",4,"Posted Speed 51-55",0.19047619047619047,null,"Unit Speed 31-35",3,"Unit Speed 31-35",0.14285714285714285]
["Grand Total",21,"Grand Total",1,null,"Unit Speed 21-25",2,"Unit Speed 21-25",9.5238095238095233E-2,null,"Left Turn","Injury Crash",2016,1]
[null,null,null,null,null,"Unit Speed 36-40",2,"Unit Speed 36-40",9.5238095238095233E-2,null,null,"Property Damage Crash",2014,1]
[null,null,null,null,null,"Unit Speed 41-45",2,"Unit Speed 41-45",9.5238095238095233E-2,null,"Left Turn Total",null,null,2]
[null,null,null,null,null,"Unit Speed 46-50",1,"Unit Speed 46-50",4.7619047619047616E-2]
[null,null,null,null,null,"Unit Speed 26-30",1,"Unit Speed 26-30",4.7619047619047616E-2,null,"Angle","Injury Crash",2016,1]
[null,null,null,null,null,"Grand Total",21,"Grand Total",1,null,null,null,2014,1]
[null,null,null,null,null,null,null,null,null,null,null,"Property Damage Crash",2016,1]
[null,null,null,null,null,null,null,null,null,null,null,null,2014,1]
[null,null,null,null,null,null,null,null,null,null,"Angle Total",null,null,4]
[]
[null,null,null,null,null,null,null,null,null,null,"Grand Total",null,null,21]
[]
[]
[]
["VEHICLE_TYPE1","Number","VEHICLE_TYPE1","%",null,"VEHICLE_TYPE2","Number","VEHICLE_TYPE2","%"]
["Mid Size",7,"Mid Size",0.33333333333333331,null,null,6,null,0.2857142857142857]
["Sport Utility Vehicle",5,"Sport Utility Vehicle",0.23809523809523808,null,"Minivan",3,"Minivan",0.14285714285714285]
["Pickup",3,"Pickup",0.14285714285714285,null,"Mid Size",3,"Mid Size",0.14285714285714285]
["Minivan",2,"Minivan",9.5238095238095233E-2,null,"Sport Utility Vehicle",2,"Sport Utility Vehicle",9.5238095238095233E-2]
["Compact",2,"Compact",9.5238095238095233E-2,null,"Full Size",2,"Full Size",9.5238095238095233E-2]
["Single Unit Truck; 3+ Axles",1,"Single Unit Truck; 3+ Axles",4.7619047619047616E-2,null,"Sub-Compact",1,"Sub-Compact",4.7619047619047616E-2]
["Sub-Compact",1,"Sub-Compact",4.7619047619047616E-2,null,"Single Unit Truck; 3+ Axles",1,"Single Unit Truck; 3+ Axles",4.7619047619047616E-2]
["Grand Total",21,"Grand Total",1,null,"Animal With Buggy, Wagon, Surrey",1,"Animal With Buggy, Wagon, Surrey",4.7619047619047616E-2]
[null,null,null,null,null,"Van",1,"Van",4.7619047619047616E-2]
[null,null,null,null,null,"Pickup",1,"Pickup",4.7619047619047616E-2]
[null,null,null,null,null,"Grand Total",21,"Grand Total",1]
[]
[]
[]
[]
[]
[]
[]
[]
[]
[]
[]
[]
[]
[]
[]
[]
[]
[]
[]
[]
[]
[]
[]
["ACTION2","Number","ACTION2","%",null,"CONTRIBUTING_FACTOR2","Number","CONTRIBUTING_FACTOR2","%"]
["Straight Ahead",7,"Straight Ahead",0.33333333333333331,null,"None",14,"None",0.66666666666666663]
[null,6,null,0.2857142857142857,null,null,6,null,0.2857142857142857]
["Slowing Or Stopped In Traffic",5,"Slowing Or Stopped In Traffic",0.23809523809523808,null,"None Non-Motorist",1,"None Non-Motorist",4.7619047619047616E-2]
["Making Left Turn",1,"Making Left Turn",4.7619047619047616E-2,null,"Grand Total",21,"Grand Total",1]
["Unknown",1,"Unknown",4.7619047619047616E-2]
["Other Non-Motorist Action",1,"Other Non-Motorist Action",4.7619047619047616E-2]
["Grand Total",21,"Grand Total",1]
[]
[]
[]
[]
[]
[]
[]
[]
[]
[]
[]
[]
[]
[]
[]
[]
[]
[]
[]
[]
["DIRECTION_FROM2","Number","DIRECTION_FROM2","%",null,"DIRECTION_TO2","Number","DIRECTION_TO2","%"]
[null,6,null,0.2857142857142857,null,null,6,null,0.2857142857142857]
["South",5,"South",0.23809523809523808,null,"South",5,"South",0.23809523809523808]
["North",4,"North",0.19047619047619047,null,"North",3,"North",0.14285714285714285]
["West",2,"West",9.5238095238095233E-2,null,"West",3,"West",0.14285714285714285]
["Southeast",2,"Southeast",9.5238095238095233E-2,null,"Northwest",2,"Northwest",9.5238095238095233E-2]
["East",2,"East",9.5238095238095233E-2,null,"East",2,"East",9.5238095238095233E-2]
["Grand Total",21,"Grand Total",1,null,"Grand Total",21,"Grand Total",1]
[]
[]
[]
[]
[]
[]
[]
[]
["DRIVER_ALCOHOL2","Number","DRIVER_ALCOHOL2","%",null,"DRIVER_DRUGS2","Number","DRIVER_DRUGS2","%"]
["None",15,"None",0.7142857142857143,null,"(blank)",21,"(blank)",1]
[null,6,null,0.2857142857142857,null,"Grand Total",21,"Grand Total",1]
["Grand Total",21,"Grand Total",1]

{"sheet":"Graphical Analysis","index":16,"n_rows":1,"n_cols":25,"rows_kept":1,"cut":false,"hidden":false,"merged":[]}
[{"$f":"'Crash Data'!A3","v":"- - (-)     From // to //"},null,null,null,null,null,null,null,null,null,null,null,{"$f":"A1","v":"- - (-)     From // to //"},null,null,null,null,null,null,null,null,null,null,null,{"$f":"A1","v":"- - (-)     From // to //"}]

{"sheet":"Histograms","index":17,"n_rows":700,"n_cols":174,"rows_kept":700,"cut":false,"hidden":false,"merged":[]}
["Default Bin Size is 0.1 Miles",null,null,{"$f":"'Crash Data'!$A$3","v":"- - (-)     From // to //"},null,null,null,null,null,null,null,null,null,null,null,null,null,null,null,null,null,null,null,null,null,null,null,null,null,null,null,null,"Click for Histogram 1 Graph",null,null,"Click for Histogram 2 Graph",null,null,null,null,"Click for Histogram 3 Graph",null,null,null,null,null,null,null,null,null,null,null,null,null,null,null,null,null,null,"Click for Histogram 4 Graph",null,null,null,null,null,null,null,"Click for Histogram 5 Graph",null,null,null,null,null,null,null,null,null,"Click for Histogram 6 Graph",null,null,null,null,null,"Click for Histogram 7 Graph",null,null,null,null,null,null,null,null,null,null,null,null,null,null,null,null,null,null,null,null,null,null,null,null,null,null,"Click for Histogram 8 Graph",null,null,null,null,null,null,null,null,null,null,null,null,null,null,null,null,null,null,"Click for Histogram 9 Graph",null,null,null,null,null,null,null,null,null,"Click for Histogram 10 Graph",null,null,null,null,null,null,null,null,null,null,null,null,null,null,null,null,null,null,null,null,null,null,null,null,null,null,"Click for Histogram 11 Graph"]
["Click Buttons Below to Modify",null,null,"Histogram 1",null,null,null,null,null,null,null,null,null,null,null,null,null,null,null,null,null,null,null,null,null,null,null,null,null,null,null,null,"Count of ACCIDENTS_POINTS_NBR",null,null,"Count of ACCIDENTS_POINTS_NBR","CRASH_SEVERITY_TXT",null,null,null,"Count of ACCIDENTS_POINTS_NBR","TYPE_OF_CRASH_TXT",null,null,null,null,null,null,null,null,null,null,null,null,null,null,null,null,null,"Count of ACCIDENTS_POINTS_NBR","ROAD_CONDITION_TXT",null,null,null,null,null,null,"Count of ACCIDENTS_POINTS_NBR","LIGHT_CONDITION_TXT",null,null,null,null,null,null,null,null,"Count of ACCIDENTS_POINTS_NBR","ANIMAL_TYPE_TXT",null,null,null,null,"Count of ACCIDENTS_POINTS_NBR","CONTRIBUTING_FACTOR1_TXT",null,null,null,null,null,null,null,null,null,null,null,null,null,null,null,null,null,null,null,null,null,null,null,null,null,"Count of ACCIDENTS_POINTS_NBR","ACTION1_TXT",null,null,null,null,null,null,null,null,null,null,null,null,null,null,null,null,null,"Count of ACCIDENTS_POINTS_NBR","DAY_OF_WEEK_TXT",null,null,null,null,null,null,null,null,"Count of ACCIDENTS_POINTS_NBR","HOUR_OF_DAY",null,null,null,null,null,null,null,null,null,null,null,null,null,null,null,null,null,null,null,null,null,null,null,null,null,"Count of ACCIDENTS_POINTS_NBR",null,"TYPE_OF_CRASH_TXT"]
[null,null,null,null,null,null,null,null,null,null,null,null,null,null,null,null,null,null,null,null,null,null,null,null,null,null,null,null,null,null,null,null,"LOGPOINT_SLM_NBR","Total",null,"LOGPOINT_SLM_NBR","Property Damage Crash","Injury Crash",null,null,"LOGPOINT_SLM_NBR","Rear End","Fixed Object","Angle","Sideswipe - Passing","Animal","Left Turn",null,null,null,null,null,null,null,null,null,null,null,null,"LOGPOINT_SLM_NBR","Road - Dry","Road - Snow","Road - Wet","Road - Ice",null,null,null,"LOGPOINT_SLM_NBR","Daylight","Dawn","Dark - No Lights","Dark - Lighted","Light Not Stated",null,null,null,null,"LOGPOINT_SLM_NBR","Animal Not Stated","Other Animal","Deer Hit",null,null,"LOGPOINT_SLM_NBR","Followed Too Closely/ACDA","Failure To Yield","Improper Lane Change/Passing/Offroad","Unsafe Speed","Failure To Control","Improper Turn","None","Unknown",null,null,null,null,null,null,null,null,null,null,null,null,null,null,null,null,null,null,"LOGPOINT_SLM_NBR","Straight Ahead","Making Left Turn","Overtaking/Passing","Slowing Or Stopped In Traffic","Entering Traffic Lane","Making Right Turn",null,null,null,null,null,null,null,null,null,null,null,null,"LOGPOINT_SLM_NBR","Thursday","Wednesday","Saturday","Friday","Monday","Tuesday",null,null,null,"LOGPOINT_SLM_NBR",0,6,8,9,11,12,13,14,15,16,20,23,null,null,null,null,null,null,null,null,null,null,null,null,null,null,"LOGPOINT_SLM_NBR","DIRECTION_TO1_TXT","Rear End","Fixed Object","Angle","Sideswipe - Passing","Animal","Left Turn"]
[null,null,null,null,null,null,null,null,null,null,null,null,null,null,null,null,null,null,null,null,null,null,null,null,null,null,null,null,null,null,null,null,"3.08-3.18",4,null,"3.08-3.18",3,1,null,null,"3.08-3.18",null,null,null,1,2,1,null,null,null,null,null,null,null,null,null,null,null,null,"3.08-3.18",3,null,1,null,null,null,null,"3.08-3.18",2,null,1,1,null,null,null,null,null,"3.08-3.18",2,1,1,null,null,"3.08-3.18",null,null,2,null,null,1,1,null,null,null,null,null,null,null,null,null,null,null,null,null,null,null,null,null,null,null,"3.08-3.18",1,1,2,null,null,null,null,null,null,null,null,null,null,null,null,null,null,null,"3.08-3.18",1,null,null,2,1,null,null,null,null,"3.08-3.18",null,null,null,null,2,null,null,null,null,null,1,1,null,null,null,null,null,null,null,null,null,null,null,null,null,null,"3.08-3.18","East",null,null,null,null,null,1]
[null,null,null,null,null,null,null,null,null,null,null,null,null,null,null,null,null,null,null,null,null,null,null,null,null,null,null,null,null,null,null,null,"3.28-3.38",2,null,"3.28-3.38",null,2,null,null,"3.28-3.38",2,null,null,null,null,null,null,null,null,null,null,null,null,null,null,null,null,null,"3.28-3.38",2,null,null,null,null,null,null,"3.28-3.38",2,null,null,null,null,null,null,null,null,"3.28-3.38",2,null,null,null,null,"3.28-3.38",1,null,null,null,null,null,null,1,null,null,null,null,null,null,null,null,null,null,null,null,null,null,null,null,null,null,"3.28-3.38",1,null,null,1,null,null,null,null,null,null,null,null,null,null,null,null,null,null,"3.28-3.38",null,1,null,null,1,null,null,null,null,"3.28-3.38",null,null,null,1,null,null,null,1,null,null,null,null,null,null,null,null,null,null,null,null,null,null,null,null,null,null,null,"North",null,null,null,1,1]
[null,null,null,null,null,null,null,null,null,null,null,null,null,null,null,null,null,null,null,null,null,null,null,null,null,null,null,null,null,null,null,null,"3.68-3.78",1,null,"3.68-3.78",null,1,null,null,"3.68-3.78",null,1,null,null,null,null,null,null,null,null,null,null,null,null,null,null,null,null,"3.68-3.78",null,1,null,null,null,null,null,"3.68-3.78",null,null,1,null,null,null,null,null,null,"3.68-3.78",1,null,null,null,null,"3.68-3.78",null,null,1,null,null,null,null,null,null,null,null,null,null,null,null,null,null,null,null,null,null,null,null,null,null,null,"3.68-3.78",1,null,null,null,null,null,null,null,null,null,null,null,null,null,null,null,null,null,"3.68-3.78",null,null,null,1,null,null,null,null,null,"3.68-3.78",1,null,null,null,null,null,null,null,null,null,null,null,null,null,null,null,null,null,null,null,null,null,null,null,null,null,null,"Northwest",null,null,null,null,1]
[null,null,null,null,null,null,null,null,null,null,null,null,null,null,null,null,null,null,null,null,null,null,null,null,null,null,"Copy and paste this call-out box for use on the chart",null,null,null,null,null,"3.88-3.98",1,null,"3.88-3.98",1,null,null,null,"3.88-3.98",null,1,null,null,null,null,null,null,null,null,null,null,null,null,null,null,null,null,"3.88-3.98",null,1,null,null,null,null,null,"3.88-3.98",null,1,null,null,null,null,null,null,null,"3.88-3.98",1,null,null,null,null,"3.88-3.98",null,null,null,null,1,null,null,null,null,null,null,null,null,null,null,null,null,null,null,null,null,null,null,null,null,null,"3.88-3.98",1,null,null,null,null,null,null,null,null,null,null,null,null,null,null,null,null,null,"3.88-3.98",null,null,null,null,null,1,null,null,null,"3.88-3.98",null,1,null,null,null,null,null,null,null,null,null,null,null,null,null,null,null,null,null,null,null,null,null,null,null,null,"3.08-3.18 Total",null,null,null,null,1,2,1]
[null,null,null,null,null,null,null,null,null,null,null,null,null,null,null,null,null,null,null,null,null,null,null,null,null,null,null,null,null,null,null,null,"3.98-4.08",8,null,"3.98-4.08",7,1,null,null,"3.98-4.08",1,2,3,1,null,1,null,null,null,null,null,null,null,null,null,null,null,null,"3.98-4.08",4,2,1,1,null,null,null,"3.98-4.08",7,null,null,null,1,null,null,null,null,"3.98-4.08",8,null,null,null,null,"3.98-4.08",2,3,null,1,1,1,null,null,null,null,null,null,null,null,null,null,null,null,null,null,null,null,null,null,null,null,"3.98-4.08",6,1,null,null,null,1,null,null,null,null,null,null,null,null,null,null,null,null,"3.98-4.08",4,1,2,1,null,null,null,null,null,"3.98-4.08",null,2,null,null,null,1,2,null,2,1,null,null,null,null,null,null,null,null,null,null,null,null,null,null,null,null,"3.28-3.38","West",2]
[null,null,null,null,null,null,null,null,null,null,null,null,null,null,null,null,null,null,null,null,null,null,null,null,null,null,null,null,null,null,null,null,"4.08-4.18",1,null,"4.08-4.18",1,null,null,null,"4.08-4.18",null,1,null,null,null,null,null,null,null,null,null,null,null,null,null,null,null,null,"4.08-4.18",null,1,null,null,null,null,null,"4.08-4.18",1,null,null,null,null,null,null,null,null,"4.08-4.18",1,null,null,null,null,"4.08-4.18",1,null,null,null,null,null,null,null,null,null,null,null,null,null,null,null,null,null,null,null,null,null,null,null,null,null,"4.08-4.18",1,null,null,null,null,null,null,null,null,null,null,null,null,null,null,null,null,null,"4.08-4.18",null,1,null,null,null,null,null,null,null,"4.08-4.18",null,null,null,null,null,null,1,null,null,null,null,null,null,null,null,null,null,null,null,null,null,null,null,null,null,null,"3.28-3.38 Total",null,2]
[null,null,null,null,null,null,null,null,null,null,null,null,null,null,null,null,null,null,null,null,null,null,null,null,null,null,null,null,null,null,null,null,"4.18-4.28",2,null,"4.18-4.28",2,null,null,null,"4.18-4.28",2,null,null,null,null,null,null,null,null,null,null,null,null,null,null,null,null,null,"4.18-4.28",null,2,null,null,null,null,null,"4.18-4.28",2,null,null,null,null,null,null,null,null,"4.18-4.28",2,null,null,null,null,"4.18-4.28",1,null,null,1,null,null,null,null,null,null,null,null,null,null,null,null,null,null,null,null,null,null,null,null,null,null,"4.18-4.28",2,null,null,null,null,null,null,null,null,null,null,null,null,null,null,null,null,null,"4.18-4.28",2,null,null,null,null,null,null,null,null,"4.18-4.28",null,null,null,null,null,null,null,null,null,2,null,null,null,null,null,null,null,null,null,null,null,null,null,null,null,null,"3.68-3.78","North",null,1]
[null,null,null,null,null,null,null,null,null,null,null,null,null,null,null,null,null,null,null,null,null,null,null,null,null,null,null,null,null,null,null,null,"4.28-4.38",2,null,"4.28-4.38",null,2,null,null,"4.28-4.38",1,null,1,null,null,null,null,null,null,null,null,null,null,null,null,null,null,null,"4.28-4.38",1,null,1,null,null,null,null,"4.28-4.38",1,1,null,null,null,null,null,null,null,"4.28-4.38",2,null,null,null,null,"4.28-4.38",1,1,null,null,null,null,null,null,null,null,null,null,null,null,null,null,null,null,null,null,null,null,null,null,null,null,"4.28-4.38",1,null,null,null,1,null,null,null,null,null,null,null,null,null,null,null,null,null,"4.28-4.38",null,null,1,1,null,null,null,null,null,"4.28-4.38",null,null,1,null,null,null,1,null,null,null,null,null,null,null,null,null,null,null,null,null,null,null,null,null,null,null,"3.68-3.78 Total",null,null,1]
[null,null,null,null,null,null,null,null,null,null,null,null,null,null,null,null,null,null,null,null,null,null,null,null,null,null,null,null,null,null,null,null,"Grand Total",21,null,"Grand Total",14,7,null,null,"Grand Total",6,5,4,2,2,2,null,null,null,null,null,null,null,null,null,null,null,null,"Grand Total",10,7,3,1,null,null,null,"Grand Total",15,2,2,1,1,null,null,null,null,"Grand Total",19,1,1,null,null,"Grand Total",6,4,3,2,2,2,1,1,null,null,null,null,null,null,null,null,null,null,null,null,null,null,null,null,null,null,"Grand Total",14,2,2,1,1,1,null,null,null,null,null,null,null,null,null,null,null,null,"Grand Total",7,3,3,5,2,1,null,null,null,"Grand Total",1,3,1,1,2,1,4,1,2,3,1,1,null,null,null,null,null,null,null,null,null,null,null,null,null,null,"3.88-3.98","South",null,1]
[null,null,null,null,null,null,null,null,null,null,null,null,null,null,null,null,null,null,null,null,null,null,null,null,null,null,null,null,null,null,null,null,null,null,null,null,null,null,null,null,null,null,null,null,null,null,null,null,null,null,null,null,null,null,null,null,null,null,null,null,null,null,null,null,null,null,null,null,null,null,null,null,null,null,null,null,null,null,null,null,null,null,null,null,null,null,null,null,null,null,null,null,null,null,null,null,null,null,null,null,null,null,null,null,null,null,null,null,null,null,null,null,null,null,null,null,null,null,null,null,null,null,null,null,null,null,null,null,null,null,null,null,null,null,null,null,null,null,null,null,null,null,null,null,null,null,null,null,null,null,null,null,null,null,null,null,null,null,null,null,null,null,null,null,null,null,"3.88-3.98 Total",null,null,1]
[null,null,null,null,null,null,null,null,null,null,null,null,null,null,null,null,null,null,null,null,null,null,null,null,null,null,null,null,null,null,null,null,null,null,null,null,null,null,null,null,null,null,null,null,null,null,null,null,null,null,null,null,null,null,null,null,null,null,null,null,null,null,null,null,null,null,null,null,null,null,null,null,null,null,null,null,null,null,null,null,null,null,null,null,null,null,null,null,null,null,null,null,null,null,null,null,null,null,null,null,null,null,null,null,null,null,null,null,null,null,null,null,null,null,null,null,null,null,null,null,null,null,null,null,null,null,null,null,null,null,null,null,null,null,null,null,null,null,null,null,null,null,null,null,null,null,null,null,null,null,null,null,null,null,null,null,null,null,null,null,null,null,null,null,null,null,"3.98-4.08","West",null,null,3]
[null,null,null,null,null,null,null,null,null,null,null,null,null,null,null,null,null,null,null,null,null,null,null,null,null,null,null,null,null,null,null,null,null,null,null,null,null,null,null,null,null,null,null,null,null,null,null,null,null,null,null,null,null,null,null,null,null,null,null,null,null,null,null,null,null,null,null,null,null,null,null,null,null,null,null,null,null,null,null,null,null,null,null,null,null,null,null,null,null,null,null,null,null,null,null,null,null,null,null,null,null,null,null,null,null,null,null,null,null,null,null,null,null,null,null,null,null,null,null,null,null,null,null,null,null,null,null,null,null,null,null,null,null,null,null,null,null,null,null,null,null,null,null,null,null,null,null,null,null,null,null,null,null,null,null,null,null,null,null,null,null,null,null,null,null,null,null,"North",1,null,null,1]
[null,null,null,null,null,null,null,null,null,null,null,null,null,null,null,null,null,null,null,null,null,null,null,null,null,null,null,null,null,null,null,null,null,null,null,null,null,null,null,null,null,null,null,null,null,null,null,null,null,null,null,null,null,null,null,null,null,null,null,null,null,null,null,null,null,null,null,null,null,null,null,null,null,null,null,null,null,null,null,null,null,null,null,null,null,null,null,null,null,null,null,null,null,null,null,null,null,null,null,null,null,null,null,null,null,null,null,null,null,null,null,null,null,null,null,null,null,null,null,null,null,null,null,null,null,null,null,null,null,null,null,null,null,null,null,null,null,null,null,null,null,null,null,null,null,null,null,null,null,null,null,null,null,null,null,null,null,null,null,null,null,null,null,null,null,null,null,"South",null,2,null,null,null,1]
[null,null,null,null,null,null,null,null,null,null,null,null,null,null,null,null,null,null,null,null,null,null,null,null,null,null,null,null,null,null,null,null,null,null,null,null,null,null,null,null,null,null,null,null,null,null,null,null,null,null,null,null,null,null,null,null,null,null,null,null,null,null,null,null,null,null,null,null,null,null,null,null,null,null,null,null,null,null,null,null,null,null,null,null,null,null,null,null,null,null,null,null,null,null,null,null,null,null,null,null,null,null,null,null,null,null,null,null,null,null,null,null,null,null,null,null,null,null,null,null,null,null,null,null,null,null,null,null,null,null,null,null,null,null,null,null,null,null,null,null,null,null,null,null,null,null,null,null,null,null,null,null,null,null,null,null,null,null,null,null,null,null,null,null,null,null,"3.98-4.08 Total",null,1,2,3,1,null,1]
[null,null,null,null,null,null,null,null,null,null,null,null,null,null,null,null,null,null,null,null,null,null,null,null,null,null,null,null,null,null,null,null,null,null,null,null,null,null,null,null,null,null,null,null,null,null,null,null,null,null,null,null,null,null,null,null,null,null,null,null,null,null,null,null,null,null,null,null,null,null,null,null,null,null,null,null,null,null,null,null,null,null,null,null,null,null,null,null,null,null,null,null,null,null,null,null,null,null,null,null,null,null,null,null,null,null,null,null,null,null,null,null,null,null,null,null,null,null,null,null,null,null,null,null,null,null,null,null,null,null,null,null,null,null,null,null,null,null,null,null,null,null,null,null,null,null,null,null,null,null,null,null,null,null,null,null,null,null,null,null,null,null,null,null,null,null,"4.08-4.18","South",null,1]
[null,null,null,null,null,null,null,null,null,null,null,null,null,null,null,null,null,null,null,null,null,null,null,null,null,null,null,null,null,null,null,null,null,null,null,null,null,null,null,null,null,null,null,null,null,null,null,null,null,null,null,null,null,null,null,null,null,null,null,null,null,null,null,null,null,null,null,null,null,null,null,null,null,null,null,null,null,null,null,null,null,null,null,null,null,null,null,null,null,null,null,null,null,null,null,null,null,null,null,null,null,null,null,null,null,null,null,null,null,null,null,null,null,null,null,null,null,null,null,null,null,null,null,null,null,null,null,null,null,null,null,null,null,null,null,null,null,null,null,null,null,null,null,null,null,null,null,null,null,null,null,null,null,null,null,null,null,null,null,null,null,null,null,null,null,null,"4.08-4.18 Total",null,null,1]
[null,null,null,null,null,null,null,null,null,null,null,null,null,null,null,null,null,null,null,null,null,null,null,null,null,null,null,null,null,null,null,null,null,null,null,null,null,null,null,null,null,null,null,null,null,null,null,null,null,null,null,null,null,null,null,null,null,null,null,null,null,null,null,null,null,null,null,null,null,null,null,null,null,null,null,null,null,null,null,null,null,null,null,null,null,null,null,null,null,null,null,null,null,null,null,null,null,null,null,null,null,null,null,null,null,null,null,null,null,null,null,null,null,null,null,null,null,null,null,null,null,null,null,null,null,null,null,null,null,null,null,null,null,null,null,null,null,null,null,null,null,null,null,null,null,null,null,null,null,null,null,null,null,null,null,null,null,null,null,null,null,null,null,null,null,null,"4.18-4.28","South",2]
[null,null,null,null,null,null,null,null,null,null,null,null,null,null,null,null,null,null,null,null,null,null,null,null,null,null,null,null,null,null,null,null,null,null,null,null,null,null,null,null,null,null,null,null,null,null,null,null,null,null,null,null,null,null,null,null,null,null,null,null,null,null,null,null,null,null,null,null,null,null,null,null,null,null,null,null,null,null,null,null,null,null,null,null,null,null,null,null,null,null,null,null,null,null,null,null,null,null,null,null,null,null,null,null,null,null,null,null,null,null,null,null,null,null,null,null,null,null,null,null,null,null,null,null,null,null,null,null,null,null,null,null,null,null,null,null,null,null,null,null,null,null,null,null,null,null,null,null,null,null,null,null,null,null,null,null,null,null,null,null,null,null,null,null,null,null,"4.18-4.28 Total",null,2]
[null,null,null,null,null,null,null,null,null,null,null,null,null,null,null,null,null,null,null,null,null,null,null,null,null,null,null,null,null,null,null,null,null,null,null,null,null,null,null,null,null,null,null,null,null,null,null,null,null,null,null,null,null,null,null,null,null,null,null,null,null,null,null,null,null,null,null,null,null,null,null,null,null,null,null,null,null,null,null,null,null,null,null,null,null,null,null,null,null,null,null,null,null,null,null,null,null,null,null,null,null,null,null,null,null,null,null,null,null,null,null,null,null,null,null,null,null,null,null,null,null,null,null,null,null,null,null,null,null,null,null,null,null,null,null,null,null,null,null,null,null,null,null,null,null,null,null,null,null,null,null,null,null,null,null,null,null,null,null,null,null,null,null,null,null,null,"4.28-4.38","North",1]
[null,null,null,null,null,null,null,null,null,null,null,null,null,null,null,null,null,null,null,null,null,null,null,null,null,null,null,null,null,null,null,null,null,null,null,null,null,null,null,null,null,null,null,null,null,null,null,null,null,null,null,null,null,null,null,null,null,null,null,null,null,null,null,null,null,null,null,null,null,null,null,null,null,null,null,null,null,null,null,null,null,null,null,null,null,null,null,null,null,null,null,null,null,null,null,null,null,null,null,null,null,null,null,null,null,null,null,null,null,null,null,null,null,null,null,null,null,null,null,null,null,null,null,null,null,null,null,null,null,null,null,null,null,null,null,null,null,null,null,null,null,null,null,null,null,null,null,null,null,null,null,null,null,null,null,null,null,null,null,null,null,null,null,null,null,null,null,"Northwest",null,null,1]
[null,null,null,null,null,null,null,null,null,null,null,null,null,null,null,null,null,null,null,null,null,null,null,null,null,null,null,null,null,null,null,null,null,null,null,null,null,null,null,null,null,null,null,null,null,null,null,null,null,null,null,null,null,null,null,null,null,null,null,null,null,null,null,null,null,null,null,null,null,null,null,null,null,null,null,null,null,null,null,null,null,null,null,null,null,null,null,null,null,null,null,null,null,null,null,null,null,null,null,null,null,null,null,null,null,null,null,null,null,null,null,null,null,null,null,null,null,null,null,null,null,null,null,null,null,null,null,null,null,null,null,null,null,null,null,null,null,null,null,null,null,null,null,null,null,null,null,null,null,null,null,null,null,null,null,null,null,null,null,null,null,null,null,null,null,null,"4.28-4.38 Total",null,1,null,1]
["Click to go to Histogram 1 data",null,null,null,null,null,null,null,null,null,null,null,null,null,null,null,null,null,null,null,null,null,null,null,null,null,null,null,null,null,null,null,null,null,null,null,null,null,null,null,null,null,null,null,null,null,null,null,null,null,null,null,null,null,null,null,null,null,null,null,null,null,null,null,null,null,null,null,null,null,null,null,null,null,null,null,null,null,null,null,null,null,null,null,null,null,null,null,null,null,null,null,null,null,null,null,null,null,null,null,null,null,null,null,null,null,null,null,null,null,null,null,null,null,null,null,null,null,null,null,null,null,null,null,null,null,null,null,null,null,null,null,null,null,null,null,null,null,null,null,null,null,null,null,null,null,null,null,null,null,null,null,null,null,null,null,null,null,null,null,null,null,null,null,null,null,"Grand Total",null,6,5,4,2,2,2]
["Click to go to Histogram 2 data"]
["Click to go to Histogram 3 data"]
["Click to go to Histogram 4 data"]
["Click to go to Histogram 5 data"]
["Click to go to Histogram 6 data"]
["Click to go to Histogram 7 data"]
["Click to go to Histogram 8 data"]
["Click to go to Histogram 9 data"]
["Click to go to Histogram 10 data"]
["Click to go to Histogram 11 data"]
["Click to go to Histogram 12 data"]
[]
[]
[]
[]
[]
[]
[]
[]
[]
[]
[]
[]
[]
[]
[]
[]
[]
[]
[]
[]
[]
[null,null,null,{"$f":"$D$1","v":"- - (-)     From // to //"}]
[null,null,null,"Histogram 2"]
[]
[]
[]
[]
[]
[]
[null,null,null,null,null,null,null,null,null,null,null,null,null,null,null,null,null,null,null,null,null,null,null,null,null,null,"Copy and paste this call-out box for use on the chart"]
[]
[]
[]
[]
[]
[]
[]
[]
[]
[]
[]
[]
[]
[]
[]
["Click to go to Histogram 1 data"]
["Click to go to Histogram 2 data"]
["Click to go to Histogram 3 data"]
["Click to go to Histogram 4 data"]
["Click to go to Histogram 5 data"]
["Click to go to Histogram 6 data"]
["Click to go to Histogram 7 data"]
["Click to go to Histogram 8 data"]
["Click to go to Histogram 9 data"]
["Click to go to Histogram 10 data"]
["Click to go to Histogram 11 data"]
["Click to go to Histogram 12 data"]
[]
[]
[]
[]
[]
[]
[]
[]
[]
[]
[]
[]
[]
[]
[]
[]
[]
[]
[]
[]
[]
[null,null,null,{"$f":"$D$1","v":"- - (-)     From // to //"}]
[null,null,null,"Histogram 3"]
[]
[]
[]
[]
[]
[null,null,null,null,null,null,null,null,null,null,null,null,null,null,null,null,null,null,null,null,null,null,null,null,null,null,"Copy and paste this call-out box for use on the chart"]
[]
[]
[]
[]
[]
[]
[]
[]
[]
[]
[]
[]
[]
[]
[]
[]
["Click to go to Histogram 1 data"]
["Click to go to Histogram 2 data"]
["Click to go to Histogram 3 data"]
["Click to go to Histogram 4 data"]
["Click to go to Histogram 5 data"]
["Click to go to Histogram 6 data"]
["Click to go to Histogram 7 data"]
["Click to go to Histogram 8 data"]
["Click to go to Histogram 9 data"]
["Click to go to Histogram 10 data"]
["Click to go to Histogram 11 data"]
["Click to go to Histogram 12 data"]
[]
[]
[]
[]
[]
[]
[]
[]
[]
[]
[]
[]
[]
[]
[]
[]
[]
[]
[]
[]
[]
[null,null,null,{"$f":"$D$1","v":"- - (-)     From // to //"}]
[null,null,null,"Histogram 4"]
[]
[]
[]
[null,null,null,null,null,null,null,null,null,null,null,null,null,null,null,null,null,null,null,null,null,null,null,null,null,null,"Copy and paste this call-out box for use on the chart"]
[]
[]
[]
[]
[]
[]
[]
[]
[]
[]
[]
[]
[]
[]
[]
[]
[]
[]
["Click to go to Histogram 1 data"]
["Click to go to Histogram 2 data"]
["Click to go to Histogram 3 data"]
["Click to go to Histogram 4 data"]
["Click to go to Histogram 5 data"]
["Click to go to Histogram 6 data"]
["Click to go to Histogram 7 data"]
["Click to go to Histogram 8 data"]
["Click to go to Histogram 9 data"]
["Click to go to Histogram 10 data"]
["Click to go to Histogram 11 data"]
["Click to go to Histogram 12 data"]
[]
[]
[]
[]
[]
[]
[]
[]
[]
[]
[]
[]
[]
[]
[]
[]
[]
[]
[]
[]
[]
[null,null,null,{"$f":"$D$1","v":"- - (-)     From // to //"}]
[null,null,null,"Histogram 5"]
[]
[]
[]
[null,null,null,null,null,null,null,null,null,null,null,null,null,null,null,null,null,null,null,null,null,null,null,null,null,null,"Copy and paste this call-out box for use on the chart"]
[]
[]
[]
[]
[]
[]
[]
[]
[]
[]
[]
[]
[]
[]
[]
[]
[]
[]
["Click to go to Histogram 1 data"]
["Click to go to Histogram 2 data"]
["Click to go to Histogram 3 data"]
["Click to go to Histogram 4 data"]
["Click to go to Histogram 5 data"]
["Click to go to Histogram 6 data"]
["Click to go to Histogram 7 data"]
["Click to go to Histogram 8 data"]
["Click to go to Histogram 9 data"]
["Click to go to Histogram 10 data"]
["Click to go to Histogram 11 data"]
["Click to go to Histogram 12 data"]
[]
[]
[]
[]
[]
[]
[]
[]
[]
[]
[]
[]
[]
[]
[]
[]
[]
[]
[]
[]
[]
[null,null,null,{"$f":"$D$1","v":"- - (-)     From // to //"}]
[null,null,null,"Histogram 6"]
[]
[]
[]
[]
[]
[]
[null,null,null,null,null,null,null,null,null,null,null,null,null,null,null,null,null,null,null,null,null,null,null,null,null,null,"Copy and paste this call-out box for use on the chart"]
[]
[]
[]
[]
[]
[]
[]
[]
[]
[]
[]
[]
[]
[]
[]
["Click to go to Histogram 1 data"]
["Click to go to Histogram 2 data"]
["Click to go to Histogram 3 data"]
["Click to go to Histogram 4 data"]
["Click to go to Histogram 5 data"]
["Click to go to Histogram 6 data"]
["Click to go to Histogram 7 data"]
["Click to go to Histogram 8 data"]
["Click to go to Histogram 9 data"]
["Click to go to Histogram 10 data"]
["Click to go to Histogram 11 data"]
["Click to go to Histogram 12 data"]
[]
[]
[]
[]
[]
[]
[]
[]
[]
[]
[]
[]
[]
[]
[]
[]
[]
[]
[]
[]
[]
[null,null,null,{"$f":"$D$1","v":"- - (-)     From // to //"}]
[null,null,null,"Histogram 7"]
[]
[]
[]
[]
[]
[null,null,null,null,null,null,null,null,null,null,null,null,null,null,null,null,null,null,null,null,null,null,null,null,null,null,"Copy and paste this call-out box for use on the chart"]
[]
[]
[]
[]
[]
[]
[]
[]
[]
[]
[]
[]
[]
[]
[]
[]
["Click to go to Histogram 1 data"]
["Click to go to Histogram 2 data"]
["Click to go to Histogram 3 data"]
["Click to go to Histogram 4 data"]
["Click to go to Histogram 5 data"]
["Click to go to Histogram 6 data"]
["Click to go to Histogram 7 data"]
["Click to go to Histogram 8 data"]
["Click to go to Histogram 9 data"]
["Click to go to Histogram 10 data"]
["Click to go to Histogram 11 data"]
["Click to go to Histogram 12 data"]
[]
[]
[]
[]
[]
[]
[]
[]
[]
[]
[]
[]
[]
[]
[]
[]
[]
[]
[]
[]
[]
[null,null,null,{"$f":"$D$1","v":"- - (-)     From // to //"}]
[null,null,null,"Histogram 8"]
[]
[]
[]
[]
[]
[]
[]
[]
[]
[]
[]
[]
[null,null,null,null,null,null,null,null,null,null,null,null,null,null,null,null,null,null,null,null,null,null,null,null,null,null,"Copy and paste this call-out box for use on the chart"]
[]
[]
[]
[]
[]
[]
[]
[]
[]
["Click to go to Histogram 1 data"]
["Click to go to Histogram 2 data"]
["Click to go to Histogram 3 data"]
["Click to go to Histogram 4 data"]
["Click to go to Histogram 5 data"]
["Click to go to Histogram 6 data"]
["Click to go to Histogram 7 data"]
["Click to go to Histogram 8 data"]
["Click to go to Histogram 9 data"]
["Click to go to Histogram 10 data"]
["Click to go to Histogram 11 data"]
["Click to go to Histogram 12 data"]
[]
[]
[]
[]
[]
[]
[]
[]
[]
[]
[]
[]
[]
[]
[]
[]
[]
[]
[]
[]
[]
[null,null,null,{"$f":"$D$1","v":"- - (-)     From // to //"}]
[null,null,null,"Histogram 9"]
[]
[]
[]
[]
[]
[]
[]
[]
[null,null,null,null,null,null,null,null,null,null,null,null,null,null,null,null,null,null,null,null,null,null,null,null,null,null,"Copy and paste this call-out box for use on the chart"]
[]
[]
[]
[]
[]
[]
[]
[]
[]
[]
[]
[]
[]
[]
["Click to go to Histogram 1 data"]
["Click to go to Histogram 2 data"]
["Click to go to Histogram 3 data"]
["Click to go to Histogram 4 data"]
["Click to go to Histogram 5 data"]
["Click to go to Histogram 6 data"]
["Click to go to Histogram 7 data"]
["Click to go to Histogram 8 data"]
["Click to go to Histogram 9 data"]
["Click to go to Histogram 10 data"]
["Click to go to Histogram 11 data"]
["Click to go to Histogram 12 data"]
[]
[]
[]
[]
[]
[]
[]
[]
[]
[]
[]
[]
[]
[]
[]
[]
[]
[]
[]
[]
[null,null,null,{"$f":"$D$1","v":"- - (-)     From // to //"}]
[null,null,null,"Histogram 10"]
[]
[]
[]
[]
[]
[]
[null,null,null,null,null,null,null,null,null,null,null,null,null,null,null,null,null,null,null,null,null,null,null,null,null,null,"Copy and paste this call-out box for use on the chart"]
[]
[]
[]
[]
[]
[]
[]
[]
[]
[]
[]
[]
[]
[]
[]
["Click to go to Histogram 1 data"]
["Click to go to Histogram 2 data"]
["Click to go to Histogram 3 data"]
["Click to go to Histogram 4 data"]
["Click to go to Histogram 5 data"]
["Click to go to Histogram 6 data"]
["Click to go to Histogram 7 data"]
["Click to go to Histogram 8 data"]
["Click to go to Histogram 9 data"]
["Click to go to Histogram 10 data"]
["Click to go to Histogram 11 data"]
["Click to go to Histogram 12 data"]
[]
[]
[]
[]
[]
[]
[]
[]
[]
[]
[]
[]
[]
[]
[]
[]
[]
[]
[]
[]
[]
[null,null,null,{"$f":"$D$1","v":"- - (-)     From // to //"}]
[null,null,null,"Histogram 11"]
[]
[]
[]
[]
[]
[]
[null,null,null,null,null,null,null,null,null,null,null,null,null,null,null,null,null,null,null,null,null,null,null,null,null,null,"Copy and paste this call-out box for use on the chart"]
[]
[]
[]
[]
[]
[]
[]
[]
[]
[]
[]
[]
[]
[]
[]
[]
["Click to go to Histogram 1 data"]
["Click to go to Histogram 2 data"]
["Click to go to Histogram 3 data"]
["Click to go to Histogram 4 data"]
["Click to go to Histogram 5 data"]
["Click to go to Histogram 6 data"]
["Click to go to Histogram 7 data"]
["Click to go to Histogram 8 data"]
["Click to go to Histogram 9 data"]
["Click to go to Histogram 10 data"]
["Click to go to Histogram 11 data"]
["Click to go to Histogram 12 data"]
[]
[]
[]
[]
[]
[]
[]
[]
[]
[]
[]
[]
[]
[]
[]
[]
[]
[]
[]
[]
[null,null,null,{"$f":"$D$1","v":"- - (-)     From // to //"}]
[null,null,null,"Histogram 12"]
[]
[]
[]
[]
[null,null,null,null,null,null,null,null,null,null,null,null,null,null,null,null,null,null,null,null,null,null,null,null,null,null,"Copy and paste this call-out box for use on the chart"]
[]
[]
[]
[]
[]
[]
[]
[]
[]
[]
[]
[]
[]
[]
[]
[]
[]
["Click to go to Histogram 1 data"]
["Click to go to Histogram 2 data"]
["Click to go to Histogram 3 data"]
["Click to go to Histogram 4 data"]
["Click to go to Histogram 5 data"]
["Click to go to Histogram 6 data"]
["Click to go to Histogram 7 data"]
["Click to go to Histogram 8 data"]
["Click to go to Histogram 9 data"]
["Click to go to Histogram 10 data"]
["Click to go to Histogram 11 data"]
["Click to go to Histogram 12 data"]
[]
[]
[]
[]
[]
[]
[]
[]
[]
[]
[]
[]
[]
[]
[]
[]
[]
[]
[]
[]
[]
[]
[]
[]
[]
["Click for Histogram 12 Graph"]
["Count of ACCIDENTS_POINTS_NBR","DIRECTION_TO1_TXT"]
["LOGPOINT_SLM_NBR","South","North","West","Northwest","East"]
["3.08-3.18",null,2,null,1,1]
["3.28-3.38",null,null,2]
["3.68-3.78",null,1]
["3.88-3.98",1]
["3.98-4.08",3,2,3]
["4.08-4.18",1]
["4.18-4.28",2]
["4.28-4.38",null,1,null,1]
["Grand Total",7,6,5,2,1]

{"sheet":"DecisionTree","index":18,"n_rows":48,"n_cols":43,"rows_kept":48,"cut":false,"hidden":false,"merged":[[45,10,45,11],[36,4,36,5],[39,10,39,11],[39,13,39,14],[40,13,40,14],[41,13,41,14],[42,7,42,8],[42,13,42,14],[30,0,30,1],[30,7,30,8],[30,13,30,14],[31,0,31,1],[32,0,32,1],[33,10,33,11],[27,5,27,7],[27,10,27,11],[27,13,27,14],[28,5,28,7],[28,13,28,14],[29,0,29,1],[29,13,29,14],[18,7,18,8],[18,13,18,14],[21,10,21,11],[24,1,24,2],[25,5,25,7],[26,5,26,7],[17,13,17,14],[5,13,5,14],[6,7,6,8],[6,13,6,14],[7,2,7,4],[8,2,8,4],[9,2,9,4],[9,10,9,11],[10,2,10,4],[12,4,12,5],[15,10,15,11],[15,13,15,14],[16,13,16,14],[4,5,4,7],[4,13,4,14],[1,5,1,7],[2,5,2,7],[3,5,3,7],[3,10,3,11],[3,13,3,14]]}
[null,null,null,null,null,null,null,null,null,null,null,null,null,null,null,null,null,null,null,null,null,null,null,null,null,null,{"$f":"A30","v":0},{"$f":"C8","v":0},{"$f":"F2","v":0},{"$f":"F26","v":0},{"$f":"N4","v":0},{"$f":"N16","v":0},{"$f":"N28","v":0},{"$f":"N40","v":0},null,"xxxxxx","xxxxxx","xxxxxx","xxxxxx","xxxxxx","xxxxxx","xxxxxx","xxxxxx"]
[null,null,null,null,null,null,null,null,null,null,null,null,null,null,null,null,null,null,null,null,null,null,null,null,null,null,{"$f":"IFERROR(MATCH(AA1,'Crash Data'!$20:$20,0),0)","v":0},{"$f":"IFERROR(MATCH(AB1,'Crash Data'!$20:$20,0),0)","v":0},{"$f":"IFERROR(MATCH(AC1,'Crash Data'!$20:$20,0),0)","v":0},{"$f":"IFERROR(MATCH(AD1,'Crash Data'!$20:$20,0),0)","v":0},{"$f":"IFERROR(MATCH(AE1,'Crash Data'!$20:$20,0),0)","v":0},{"$f":"IFERROR(MATCH(AF1,'Crash Data'!$20:$20,0),0)","v":0},{"$f":"IFERROR(MATCH(AG1,'Crash Data'!$20:$20,0),0)","v":0},{"$f":"IFERROR(MATCH(AH1,'Crash Data'!$20:$20,0),0)","v":0},null,"Attributes"]
[null,null,null,null,null,null,null,null,null,null,null,null,null,null,null,null,null,null,null,null,null,null,null,null,null,{"$f":"COUNTA('Crash Data'!B21:B999998)","v":19},"Level 1","Level2","Level3A","Level3B","Level4A","Level4B","Level4C","Level4D",null,"Level 1","Level2","Level3A","Level3B","Level4A","Level4B","Level4C","Level4D"]
[null,null,null,null,null,null,null,null,null,null,{"$f":"IF(N4=\"\",\"\",N4)","v":""},null,null,null,null,null,null,null,null,null,null,null,null,null,null,null,0,0,0,0,0,0,0,0]
[null,null,null,null,null,null,null,null,null,null,"Crashes:",{"$f":"COUNTIFS('Crash Data'!GB20:GB999998,1,'Crash Data'!GC20:GC999998,1,'Crash Data'!GD20:GD999998,1,'Crash Data'!GF20:GF999998,1)","v":0}]
[null,null,null,null,null,null,null,null,null,null,"% of Crashes:",{"$f":"ROUND(L5/$C$26,4)","v":{"$error":"#DIV/0!"}}]
[null,null,null,null,null,null,null,{"$f":"IF(F2=\"\",\"\",F2)","v":""}]
[null,null,null,null,null,null,null,"Crashes:",{"$f":"COUNTIFS('Crash Data'!GB20:GB999998,1,'Crash Data'!GC20:GC999998,1,'Crash Data'!GD20:GD999998,1)","v":0}]
[null,null,null,null,null,null,null,"% of Crashes:",{"$f":"ROUND(I8/$C$26,4)","v":{"$error":"#DIV/0!"}}]
[null,null,null,null,null,null,null,null,null,null,"Other"]
[null,null,null,null,null,null,null,null,null,null,"Crashes:",{"$f":"I8-L5","v":0}]
[null,null,null,null,null,null,null,null,null,null,"% of Crashes:",{"$f":"ROUND(L11/$C$26,4)","v":{"$error":"#DIV/0!"}}]
[null,null,null,null,{"$f":"IF(C8=\"\",\"\",C8)","v":""}]
[null,null,null,null,"Crashes:",{"$f":"COUNTIFS('Crash Data'!GB20:GB999998,1,'Crash Data'!GC20:GC999998,1)","v":0}]
[null,null,null,null,"% of Crashes:",{"$f":"ROUND(F14/$C$26,4)","v":{"$error":"#DIV/0!"}}]
[null,null,null,null,null,null,null,null,null,null,{"$f":"IF(N16=\"\",\"\",N16)","v":""}]
[null,null,null,null,null,null,null,null,null,null,"Crashes:",{"$f":"COUNTIFS('Crash Data'!GB20:GB999998,1,'Crash Data'!GC20:GC999998,1,'Crash Data'!GD20:GD999998,\"X\",'Crash Data'!GG20:GG999998,1)","v":0}]
[null,null,null,null,null,null,null,null,null,null,"% of Crashes:",{"$f":"ROUND(L17/$C$26,4)","v":{"$error":"#DIV/0!"}}]
[null,null,null,null,null,null,null,"Other"]
[null,null,null,null,null,null,null,"Crashes:",{"$f":"F14-I8","v":0}]
[null,null,null,null,null,null,null,"% of Crashes:",{"$f":"ROUND(I20/$C$26,4)","v":{"$error":"#DIV/0!"}}]
[null,null,null,null,null,null,null,null,null,null,"Other"]
[null,null,null,null,null,null,null,null,null,null,"Crashes:",{"$f":"I20-L17","v":0}]
[null,null,null,null,null,null,null,null,null,null,"% of Crashes:",{"$f":"ROUND(L23/$C$26,4)","v":{"$error":"#DIV/0!"}}]
[null,{"$f":"IF(A30=\"\",\"Total Crashes\",A30)","v":"Total Crashes"}]
[null,"Crashes:",{"$f":"COUNTIFS('Crash Data'!GB21:GB999998,1)","v":0}]
[null,"% of Crashes:",{"$f":"ROUND(C26/Z3,4)","v":0}]
[null,null,null,null,null,null,null,null,null,null,{"$f":"IF(N28=\"\",\"\",N28)","v":""}]
[null,null,null,null,null,null,null,null,null,null,"Crashes:",{"$f":"COUNTIFS('Crash Data'!GB20:GB999998,1,'Crash Data'!GC20:GC999998,\"X\",'Crash Data'!GE20:GE999998,1,'Crash Data'!GH20:GH999998,1)","v":0}]
[null,null,null,null,null,null,null,null,null,null,"% of Crashes:",{"$f":"ROUND(L29/$C$26,4)","v":{"$error":"#DIV/0!"}}]
[null,null,null,null,null,null,null,{"$f":"IF(F26=\"\",\"\",F26)","v":""}]
[null,null,null,null,null,null,null,"Crashes:",{"$f":"COUNTIFS('Crash Data'!GB20:GB999998,1,'Crash Data'!GC20:GC999998,\"X\",'Crash Data'!GE20:GE999998,1)","v":0}]
[null,null,null,null,null,null,null,"% of Crashes:",{"$f":"ROUND(I32/$C$26,4)","v":{"$error":"#DIV/0!"}}]
[null,null,null,null,null,null,null,null,null,null,"Other"]
[null,null,null,null,null,null,null,null,null,null,"Crashes:",{"$f":"I32-L29","v":0}]
[null,null,null,null,null,null,null,null,null,null,"% of Crashes:",{"$f":"ROUND(L35/$C$26,4)","v":{"$error":"#DIV/0!"}}]
[null,null,null,null,"Other"]
[null,null,null,null,"Crashes:",{"$f":"C26-F14","v":0}]
[null,null,null,null,"% of Crashes:",{"$f":"ROUND(F38/$C$26,4)","v":{"$error":"#DIV/0!"}}]
[null,null,null,null,null,null,null,null,null,null,{"$f":"IF(N40=\"\",\"\",N40)","v":""}]
[null,null,null,null,null,null,null,null,null,null,"Crashes:",{"$f":"COUNTIFS('Crash Data'!GB20:GB999998,1,'Crash Data'!GC20:GC999998,\"X\",'Crash Data'!GE20:GE999998,\"X\",'Crash Data'!GI20:GI999998,1)","v":0}]
[null,null,null,null,null,null,null,null,null,null,"% of Crashes:",{"$f":"ROUND(L41/$C$26,4)","v":{"$error":"#DIV/0!"}}]
[null,null,null,null,null,null,null,"Other"]
[null,null,null,null,null,null,null,"Crashes:",{"$f":"F38-I32","v":0}]
[null,null,null,null,null,null,null,"% of Crashes:",{"$f":"ROUND(I44/$C$26,4)","v":{"$error":"#DIV/0!"}}]
[null,null,null,null,null,null,null,null,null,null,"Other"]
[null,null,null,null,null,null,null,null,null,null,"Crashes:",{"$f":"I44-L41","v":0}]
[null,null,null,null,null,null,null,null,null,null,"% of Crashes:",{"$f":"ROUND(L47/$C$26,4)","v":{"$error":"#DIV/0!"}}]

{"sheet":"Collision Diagram","index":19,"n_rows":93,"n_cols":60,"rows_kept":93,"cut":false,"hidden":false,"merged":[]}
[null,null,null,null,null,null,null,null,null,null,null,null,null,null,null,null,null,null,null,null,null,null,null,null,null,null,null,null,null,null,null,null,null,null,null,null,null,null,null,null,null,{"$f":"LEFT(AO1,1)","v":""},{"$f":"RIGHT(AO1,1)","v":""}]
[null,null,null,null,null,null,null,null,null,null,null,null,null,null,null,null,null,null,null,null,null,null,null,null,null,null,null,null,null,null,null,null,null,null,null,null,null,null,null,null,null,{"$f":"LEFT(AO2,1)","v":""},{"$f":"RIGHT(AO2,1)","v":""}]
[null,null,null,null,null,null,null,null,null,null,null,null,null,null,null,null,null,null,null,null,null,null,null,null,null,null,null,null,null,null,null,null,null,null,null,null,null,null,null,null,null,{"$f":"LEFT(AO3,2)","v":""},{"$f":"RIGHT(AO3,2)","v":""}]
[null,null,null,null,null,null,null,null,null,null,null,null,null,null,null,null,null,null,null,null,null,null,null,null,null,null,null,null,null,null,null,null,null,null,null,null,null,null,null,null,null,{"$f":"LEFT(AO4,2)","v":""},{"$f":"RIGHT(AO4,2)","v":""}]
[]
[null,null,null,null,null,null,null,null,null,null,null,null,null,null,null,null,null,null,null,null,null,null,null,null,null,null,null,null,null,null,null,null,null,null,null,null,null,null,null,null,null,{"$f":"LEFT(AO6,1)","v":""},{"$f":"RIGHT(AO6,2)","v":""}]
[null,null,null,null,null,null,null,null,null,null,null,null,null,null,null,null,null,null,null,null,null,null,null,null,null,null,null,null,null,null,null,null,null,null,null,null,null,null,null,null,null,"",""]
[null,null,null,null,null,null,null,null,null,null,null,null,null,null,null,null,null,null,null,null,null,null,null,null,null,null,null,null,null,null,null,null,null,null,null,null,null,null,null,null,null,"",""]
[null,null,null,null,null,null,null,null,null,null,null,null,null,null,null,null,null,null,null,null,null,null,null,null,null,null,null,null,null,null,null,null,null,null,null,null,null,null,null,null,null,"",""]
[null,null,null,null,null,null,null,null,null,null,null,null,null,null,null,null,null,null,null,null,null,null,null,null,null,null,null,null,null,null,null,null,null,null,null,null,null,null,null,null,null,"",""]
[null,null,null,null,null,null,null,null,null,null,null,null,null,null,null,null,null,null,null,null,null,null,null,null,null,null,null,null,null,null,null,null,null,null,null,null,null,null,null,null,null,"",""]
[null,null,null,null,null,null,null,null,null,null,null,null,null,null,null,null,null,null,null,null,null,null,null,null,null,null,null,null,null,null,null,null,null,null,null,null,null,null,null,null,null,"",""]
[]
[]
[]
[]
[]
[]
[]
[]
[]
[]
[]
[]
[]
[]
[]
[]
[]
[]
[]
[]
[]
[]
[]
[]
[]
[]
[]
[]
[]
[]
[]
[]
[]
[]
[]
[]
[]
[]
[]
[]
[]
[]
[]
[]
[]
[]
[]
[]
[]
[]
[]
[]
[]
[]
[]
[]
[]
[]
[]
[]
[]
[]
[]
[]
[]
[]
[]
[]
[null,null,null,null,null,null,null,null,null,null,null,null,null,null,null,null,null,null,null,null,null,null,null,null,null,null,null,null,null,null,null,null,null,null,null,null,null,null,null,null,null,null,null,null,null,null,null,null,null,null,null,null,null,null,null,null,null,"Do Not Modify"]
[null,null,null,null,null,null,null,null,null,null,null,null,null,null,null,null,null,null,null,null,null,null,null,null,null,null,null,null,null,null,null,null,null,null,null,null,null,null,null,null,null,null,null,null,null,null,null,null,null,null,null,null,null,null,null,null,null,"REAR END","NORTH","N"]
[null,null,null,null,null,null,null,null,null,null,null,null,null,null,null,null,null,null,null,null,null,null,null,null,null,null,null,null,null,null,null,null,null,null,null,null,null,null,null,null,null,null,null,null,null,null,null,null,null,null,null,null,null,null,null,null,null,"FIXED OBJECT","SOUTH","S"]
[null,null,null,null,null,null,null,null,null,null,null,null,null,null,null,null,null,null,null,null,null,null,null,null,null,null,null,null,null,null,null,null,null,null,null,null,null,null,null,null,null,null,null,null,null,null,null,null,null,null,null,null,null,null,null,null,null,"ANGLE","EAST","E"]
[null,null,null,null,null,null,null,null,null,null,null,null,null,null,null,null,null,null,null,null,null,null,null,null,null,null,null,null,null,null,null,null,null,null,null,null,null,null,null,null,null,null,null,null,null,null,null,null,null,null,null,null,null,null,null,null,null,"ANIMAL","WEST","W"]
[null,null,null,null,null,null,null,null,null,null,null,null,null,null,null,null,null,null,null,null,null,null,null,null,null,null,null,null,null,null,null,null,null,null,null,null,null,null,null,null,null,null,null,null,null,null,null,null,null,null,null,null,null,null,null,null,null,"SIDESWIPE - PASSING","NORTHEAST","NE"]
[null,null,null,null,null,null,null,null,null,null,null,null,null,null,null,null,null,null,null,null,null,null,null,null,null,null,null,null,null,null,null,null,null,null,null,null,null,null,null,null,null,null,null,null,null,null,null,null,null,null,null,null,null,null,null,null,null,"HEAD ON","NORTHWEST","NW"]
[null,null,null,null,null,null,null,null,null,null,null,null,null,null,null,null,null,null,null,null,null,null,null,null,null,null,null,null,null,null,null,null,null,null,null,null,null,null,null,null,null,null,null,null,null,null,null,null,null,null,null,null,null,null,null,null,null,"SIDESWIPE - MEETING","SOUTHWEST","SW"]
[null,null,null,null,null,null,null,null,null,null,null,null,null,null,null,null,null,null,null,null,null,null,null,null,null,null,null,null,null,null,null,null,null,null,null,null,null,null,null,null,null,null,null,null,null,null,null,null,null,null,null,null,null,null,null,null,null,"BACKING","SOUTHEAST","SE"]
[null,null,null,null,null,null,null,null,null,null,null,null,null,null,null,null,null,null,null,null,null,null,null,null,null,null,null,null,null,null,null,null,null,null,null,null,null,null,null,null,null,null,null,null,null,null,null,null,null,null,null,null,null,null,null,null,null,"PEDESTRIAN","UNKNOWN","U"]
[null,null,null,null,null,null,null,null,null,null,null,null,null,null,null,null,null,null,null,null,null,null,null,null,null,null,null,null,null,null,null,null,null,null,null,null,null,null,null,null,null,null,null,null,null,null,null,null,null,null,null,null,null,null,null,null,null,"PARKED VEHICLE"]
[null,null,null,null,null,null,null,null,null,null,null,null,null,null,null,null,null,null,null,null,null,null,null,null,null,null,null,null,null,null,null,null,null,null,null,null,null,null,null,null,null,null,null,null,null,null,null,null,null,null,null,null,null,null,null,null,null,"LEFT TURN"]
[null,null,null,null,null,null,null,null,null,null,null,null,null,null,null,null,null,null,null,null,null,null,null,null,null,null,null,null,null,null,null,null,null,null,null,null,null,null,null,null,null,null,null,null,null,null,null,null,null,null,null,null,null,null,null,null,null,"RIGHT TURN"]

{"sheet":"Diagram Data","index":20,"n_rows":2,"n_cols":49,"rows_kept":2,"cut":false,"hidden":false,"merged":[]}
[{"$f":"IF('Crash Data'!$CU19=\"\",\"\",'Crash Data'!$CU19)","v":""},{"$f":"IF('Crash Data'!$O19=\"\",\"\",IF('Crash Data'!$O19=\"PROPERTY DAMAGE CRASH\",\"PDO\",'Crash Data'!$O19))","v":""},{"$f":"IF('Crash Data'!$M19=\"\",\"\",'Crash Data'!$M19)","v":""},{"$f":"IF('Crash Data'!$F19=\"\",\"\",'Crash Data'!$F19)","v":""},{"$f":"IF('Crash Data'!$K19=\"\",\"\",'Crash Data'!$K19)","v":""},{"$f":"IF('Crash Data'!$J19=\"\",\"\",'Crash Data'!$J19)","v":""},{"$f":"IF('Crash Data'!$L19=\"\",\"\",'Crash Data'!$L19)","v":""},{"$f":"IF('Crash Data'!$Q19=\"\",\"\",'Crash Data'!$Q19)","v":""},{"$f":"IF('Crash Data'!$R19=\"\",\"\",'Crash Data'!$R19)","v":""},{"$f":"IF('Crash Data'!$S19=\"\",\"\",'Crash Data'!$S19)","v":""},{"$f":"IF('Crash Data'!$T19=\"\",\"\",'Crash Data'!$T19)","v":""},{"$f":"IF('Crash Data'!$W19=\"\",\"\",'Crash Data'!$W19)","v":""},{"$f":"IF('Crash Data'!$X19=\"\",\"\",'Crash Data'!$X19)","v":""},{"$f":"IF('Crash Data'!$U19=\"\",\"\",IF('Crash Data'!$U19=\"NOTHING STRUCK\",\"\",'Crash Data'!$U19))","v":""},{"$f":"IF('Crash Data'!$AB19=\"\",\"\",IF('Crash Data'!$AB19=\"NO ALCOHOL DETECTED\",\"\",'Crash Data'!$AB19))","v":""},{"$f":"IF('Crash Data'!$AF19=\"\",\"\",IF('Crash Data'!$AF19=\"NO DRIVER ERRORS\",\"\",'Crash Data'!$AF19))","v":""},{"$f":"IF('Crash Data'!$AG19=\"\",\"\",'Crash Data'!$AG19)","v":""},{"$f":"IF('Crash Data'!$AK19=\"\",\"\",'Crash Data'!$AK19)","v":""},{"$f":"IF('Crash Data'!$AL19=\"\",\"\",'Crash Data'!$AL19)","v":""},{"$f":"IF('Crash Data'!$AM19=\"\",\"\",IF('Crash Data'!$AM19=\"NO ALCOHOL DETECTED\",\"\",'Crash Data'!$AM19))","v":""},{"$f":"IF('Crash Data'!$AR19=\"\",\"\",'Crash Data'!$AR19)","v":""},{"$f":"IF('Crash Data'!$AS19=\"\",\"\",'Crash Data'!$AS19)","v":""},{"$f":"IF('Crash Data'!$AT19=\"\",\"\",'Crash Data'!$AT19)","v":""},{"$f":"IF('Crash Data'!$AU19=\"\",\"\",'Crash Data'!$AU19)","v":""},{"$f":"IF('Crash Data'!$AV19=\"\",\"\",'Crash Data'!$AV19)","v":""},{"$f":"IF('Crash Data'!$B19=\"\",\"\",'Crash Data'!$B19)","v":""},{"$f":"IF('Crash Data'!$C19=\"\",\"\",'Crash Data'!$C19)","v":""},{"$f":"IF('Crash Data'!$D19=\"\",\"\",'Crash Data'!$D19)","v":""},{"$f":"IF('Crash Data'!$E19=\"\",\"\",'Crash Data'!$E19)","v":""},{"$f":"IF('Crash Data'!$G19=\"\",\"\",'Crash Data'!$G19)","v":""},{"$f":"IF('Crash Data'!$H19=\"\",\"\",'Crash Data'!$H19)","v":""},{"$f":"IF('Crash Data'!$I19=\"\",\"\",'Crash Data'!$I19)","v":""},{"$f":"IF('Crash Data'!$AW19=\"\",\"\",'Crash Data'!$AW19)","v":""},{"$f":"IF('Crash Data'!$N19=\"\",\"\",'Crash Data'!$N19)","v":""},{"$f":"IF('Crash Data'!$P19=\"\",\"\",'Crash Data'!$P19)","v":""},{"$f":"IF('Crash Data'!$V19=\"\",\"\",'Crash Data'!$V19)","v":""},{"$f":"IF('Crash Data'!$Y19=\"\",\"\",'Crash Data'!$Y19)","v":""},{"$f":"IF('Crash Data'!$Z19=\"\",\"\",'Crash Data'!$Z19)","v":""},{"$f":"IF('Crash Data'!$AA19=\"\",\"\",'Crash Data'!$AA19)","v":""},{"$f":"IF('Crash Data'!$AC19=\"\",\"\",IF('Crash Data'!$AC19=\"NO DRUGS DETECTED\",\"\",'Crash Data'!$AC19))","v":""},{"$f":"IF('Crash Data'!$AD19=\"\",\"\",'Crash Data'!$AD19)","v":""},{"$f":"IF('Crash Data'!$AE19=\"\",\"\",'Crash Data'!$AE19)","v":""},{"$f":"IF('Crash Data'!$AH19=\"\",\"\",'Crash Data'!$AH19)","v":""},{"$f":"IF('Crash Data'!$AI19=\"\",\"\",'Crash Data'!$AI19)","v":""},{"$f":"IF('Crash Data'!$AJ19=\"\",\"\",'Crash Data'!$AJ19)","v":""},{"$f":"IF('Crash Data'!$AN19=\"\",\"\",IF('Crash Data'!$AN19=\"NO DRUGS DETECTED\",\"\",'Crash Data'!$AN19))","v":""},{"$f":"IF('Crash Data'!$AO19=\"\",\"\",IF('Crash Data'!$AO19=\"SPECIAL AREA - NOT STATED\",\"\",'Crash Data'!$AO19))","v":""},{"$f":"IF('Crash Data'!$BD19=\"\",\"\",'Crash Data'!$BD19)","v":""},{"$f":"IF('Crash Data'!$BE19=\"\",\"\",'Crash Data'!$BE19)","v":""}]
["ROW ID","CRASH SEVERITY","TYPE OF CRASH","CRASH DT","HOUR","DAY","LIGHT CONDITION","ROAD CONDITION","LOCATION","CONTRIBUTING FACTOR1","ACTION1","DIRECTION FROM1","DIRECTION TO1","OBJECT STRUCK1","DRIVER ALCOHOL1","CONTRIBUTING FACTOR2","ACTION2","DIRECTION FROM2","DIRECTION TO2","DRIVER ALCOHOL2","ROAD CONTOUR","FATAL","SERIOUS INJ","MINOR INJ","NO VISIBLE INJ","ACCIDENT NBR","LOCAL REPORT NBR","NLFID","LOGPOINT","STREET1","STREET2 REFERENCE","DISTANCE OFFSET","DIRECTION FROM REF","NUMBER OF VEHICLES","WEATHER CONDITION","VEHICLE TYPE1","DRIVER AGE1","DRIVER GENDER1","TRAFFIC CONTROL1","DRIVER DRUGS1","ESTIMATED SPEED1","POSTED SPEED1","VEHICLE TYPE2","DRIVER AGE2","DRIVER GENDER2","DRIVER DRUGS2","SPECIAL AREA","YEAR","MONTH"]

{"sheet":"Resurfacing Analysis","index":21,"n_rows":212,"n_cols":86,"rows_kept":212,"cut":false,"hidden":true,"merged":[[23,79,24,79],[23,80,23,83],[0,79,0,83],[8,79,8,83],[16,79,16,83],[22,79,22,83],[1,79,2,79],[1,80,1,83],[9,79,10,79],[9,80,9,83],[17,79,18,79],[17,80,17,83]]}
[null,null,{"$f":"'Crash Data'!A3","v":"- - (-)     From // to //"},null,null,null,null,null,null,null,null,null,null,null,null,null,null,null,"This Pivot Table is used only if the data is",null,null,null,null,null,null,null,null,null,null,null,null,null,null,null,null,null,null,null,null,null,null,null,null,null,null,null,null,null,null,null,null,null,null,null,null,null,null,null,null,null,null,null,null,null,null,null,null,null,null,null,null,null,null,null,null,null,null,null,null,"State System Resurfacing Crash Analysis - Rural",null,null,null,null,null,{"$f":"IF(D4=\"ODOT Let Project\",\"ODOT Central Office\",\"ODOT District Office\")","v":"ODOT District Office"}]
[null,null,"Section NLFID",null,null,null,null,null,null,null,null,null,null,null,null,null,null,null,"imported is from the GCAT 2.0 system",null,null,null,null,null,null,null,null,null,null,null,null,null,null,null,null,null,null,null,null,null,null,null,null,null,null,null,null,null,null,null,null,null,null,null,null,null,null,null,null,null,null,null,null,null,null,null,null,null,null,null,null,null,null,null,null,null,null,null,null,"ADT Range","Data Values"]
[null,null,"Section System - State or Local",null,null,null,null,null,null,null,null,null,null,null,null,null,null,null,null,null,null,null,null,null,null,null,null,null,null,null,null,null,null,null,null,null,null,null,null,null,null,null,null,null,null,null,null,null,null,null,null,null,null,null,null,null,null,null,null,null,null,null,null,null,null,null,null,null,null,null,null,null,null,null,null,null,null,null,null,null,"A","B","C","D"]
[null,null,"Project Let Type - ODOT or Local",null,null,null,null,null,null,null,null,null,null,null,null,null,null,null,null,null,null,null,null,null,null,null,null,null,null,null,null,null,null,null,null,null,null,null,null,null,null,null,null,null,null,null,null,null,null,null,null,null,null,null,null,null,null,null,null,null,null,null,null,null,null,null,null,null,null,null,null,null,null,null,null,null,null,"StateRural",400,"400 - 1,000",4,4,4,2.5]
[null,null,"Section Begin Log",{"$f":"IF('Crash Data'!$D$15=\"\",\"None\",'Crash Data'!$D$15+0)","v":"None"},"    Update and Run Analysis",null,null,null,null,null,null,null,null,null,null,null,null,null,null,null,null,null,null,null,null,null,null,null,null,null,null,null,null,null,null,null,null,null,null,null,null,null,null,null,null,null,null,null,null,null,null,null,null,null,null,null,null,null,null,null,null,null,null,null,null,null,null,null,null,null,null,null,null,null,null,null,null,"StateRural",1001,"1,001 - 2,000",4,4,4,2]
[null,null,"Section End Log",{"$f":"IF('Crash Data'!$D$16=\"\",\"None\",'Crash Data'!$D$16+0)","v":"None"},null,null,null,null,null,null,null,null,null,null,null,null,null,null,null,null,null,null,null,null,null,null,null,null,null,null,null,null,null,null,null,null,null,null,null,null,null,null,null,null,null,null,null,null,null,null,null,null,null,null,null,null,null,null,null,null,null,null,null,null,null,null,null,null,null,null,null,null,null,null,null,null,null,"StateRural",2001,"2,001 - 3,000",4,4,4,1.75]
[null,null,"Bin Lenth (Miles)",0.5,"    Default = 0.5 Miles",null,null,null,null,null,null,null,null,null,null,null,null,null,null,null,null,null,null,null,null,null,null,null,null,null,null,null,null,null,null,null,null,null,null,null,null,null,null,null,null,null,null,null,null,null,null,null,null,null,null,null,null,null,null,null,null,null,null,null,null,null,null,null,null,null,null,null,null,null,null,null,null,"StateRural",3001,"3,001 - 6,000",4,4,4,1.5]
[null,null,null,null,null,null,null,null,null,null,null,null,null,null,null,null,null,null,"TYPE_OF_CRASH_TXT","(All)",null,null,null,null,null,"TYPE_OF_CRASH_TXT","(All)",null,null,null,null,null,null,null,null,null,null,null,null,null,null,null,null,null,null,null,null,null,null,null,null,null,null,null,null,null,null,null,null,null,null,null,null,null,null,null,null,null,null,null,null,null,null,null,null,null,null,"StateRural",6000.01,"> 6,000",5,4,4,1]
["Must Enter Data for Fields in Yellow!",null,null,null,null,null,null,null,null,null,null,null,null,null,null,null,null,null,"ODOT_INTERSECTION_REL_IND","Y",null,null,"TYPE_OF_CRASH_TXT","(All)",null,"Excludes Animal Crashes",null,null,null,null,null,null,null,null,null,null,null,null,null,null,null,null,null,null,null,null,null,null,null,null,null,null,null,null,null,null,null,null,null,null,null,null,null,null,null,null,null,null,null,null,null,null,null,null,null,null,null,null,null,"State System Resurfacing Crash Analysis - Urban"]
[null,null,null,null,null,null,null,null,null,null,null,null,null,null,null,null,null,null,{"$f":"IF(S7=\"\",\"Total Crashes (Excludes Animal Crashes)\",\"Intersection Related (Excludes Animal Crashes)\")","v":"Total Crashes (Excludes Animal Crashes)"},null,null,null,"Excludes Animal Crashes",null,null,"Count","LOCATION_TXT2","LOCATION_TXT",null,null,null,null,null,null,null,null,null,null,null,null,null,null,null,null,null,null,null,null,null,null,null,null,null,null,null,null,null,null,null,null,null,null,null,null,null,null,null,null,null,null,null,null,null,null,null,null,null,null,null,"ADT Range","Data Values"]
[null,null,null,null,null,null,null,null,null,null,"Threshold Values",null,null,null,null,null,null,null,"Count",null,null,null,"Count",null,null,null,null,null,null,null,null,null,null,null,null,"Count","Crash Type",null,null,null,null,null,null,null,null,null,null,null,null,null,null,null,null,null,null,null,null,null,null,null,null,null,null,null,null,null,null,null,null,null,null,null,null,null,null,null,null,null,null,null,"W","X","Y","Z"]
["Section Comments","Exception Indicator","Section","Section Type \n(Rural/Urban)","ADT","Non-Intersection Crashes\n(w/o Animal)","Intersection Related Crashes\n(w/o Animal)","Total Crashes\n(w/o Animal)","Crash Rate \"R\" - MVMT\n(w/o Animal)",null,{"$f":"IF(D13=\"\",\"\",IF(D13=\"Rural\",\"A\",\"W\"))","v":""},{"$f":"IF(D13=\"\",\"\",IF(D13=\"Rural\",\"B\",\"X\"))","v":""},{"$f":"IF(D13=\"\",\"\",IF(D13=\"Rural\",\"C\",\"Y\"))","v":""},{"$f":"IF(D13=\"\",\"\",IF(D13=\"Rural\",\"D\",\"Z\"))","v":""},null,{"$f":"IF(D13=\"\",\"\",IF(D13=\"Rural\",\"A & B Check\",\"W & X Check\"))","v":""},{"$f":"IF(D13=\"\",\"\",IF(D13=\"Rural\",\"C Check\",\"Y Check\"))","v":""},{"$f":"IF(D13=\"\",\"\",IF(D13=\"Rural\",\"D Check\",\"Z Check\"))","v":""},"LOGPOINT_SLM_NBR","Total",null,null,"LOGPOINT_SLM_NBR","Total",null,"LOGPOINT_SLM_NBR",null,null,null,null,null,null,null,null,null,"LOGPOINT_SLM_NBR","ANIMAL",null,null,null,null,null,null,null,null,null,null,null,null,null,null,null,null,null,null,null,null,null,null,null,null,null,null,null,null,null,null,null,null,null,null,null,null,null,null,null,null,"StateUrban",400,"400 - 6,000",4,4,4,3.5]
[null,{"$f":"IF(AND(P13=\"No\",Q13=\"No\"),\"\",IF(P13=\"Yes\",\"Send Crash Summary to \"&$CH$1,IF(AND(P13=\"No\",Q13=\"Yes\",R13=\"Yes\"),\"Send Crash Summary to \"&$CH$1,\"\")))","v":""},{"$f":"IF(W13=\"\",\"\",VLOOKUP(W13,$W$13:$X$500,1,FALSE))","v":"<99.77"},null,null,{"$f":"IF(C13=\"\",\"\",H13-G13)","v":0},{"$f":"IF(C13=\"\",\"\",IF($S$7=\"GCAT\",VLOOKUP(W13,$S$13:$T$500,2,FALSE),IF($AA$11=\"IntersectionRelated\",VLOOKUP(W13,$Z$13:$AF$500,2,FALSE),\"0\")))","v":"0"},{"$f":"IF(W13=\"\",\"\",VLOOKUP(W13,$W$13:$X$500,2,FALSE))","v":0},{"$f":"IF(C13=\"\",\"\",IF(C13=\"Total\",\"\",1000000*((H13))/(365*3*$D$7*E13)))","v":{"$error":"#DIV/0!"}},null,{"$f":"IF($C13=\"\",\"\",IF($E13<400,\"\",IF($D$3&$D13=\"StateRural\",VLOOKUP($E13,$CA$4:$CF$8,3,TRUE),IF($D$3&$D13=\"StateUrban\",VLOOKUP($E13,$CA$12:$CF$16,3,TRUE),IF($D$3&$D13=\"LocalRural\",VLOOKUP($E13,$CA$20:$CF$22,3,TRUE),IF($D$3&$D13=\"LocalUrban\",VLOOKUP($E13,$CA$26:$CF$30,3,TRUE)))))))","v":""},{"$f":"IF($C13=\"\",\"\",IF($E13<400,\"\",IF($D$3&$D13=\"StateRural\",VLOOKUP($E13,$CA$4:$CF$8,4,TRUE),IF($D$3&$D13=\"StateUrban\",VLOOKUP($E13,$CA$12:$CF$16,4,TRUE),IF($D$3&$D13=\"LocalRural\",VLOOKUP($E13,$CA$20:$CF$22,4,TRUE),IF($D$3&$D13=\"LocalUrban\",VLOOKUP($E13,$CA$26:$CF$30,4,TRUE)))))))","v":""},{"$f":"IF($C13=\"\",\"\",IF($E13<400,\"\",IF($D$3&$D13=\"StateRural\",VLOOKUP($E13,$CA$4:$CF$8,5,TRUE),IF($D$3&$D13=\"StateUrban\",VLOOKUP($E13,$CA$12:$CF$16,5,TRUE),IF($D$3&$D13=\"LocalRural\",VLOOKUP($E13,$CA$20:$CF$22,5,TRUE),IF($D$3&$D13=\"LocalUrban\",VLOOKUP($E13,$CA$26:$CF$30,5,TRUE)))))))","v":""},{"$f":"IF($C13=\"\",\"\",IF($E13<400,\"\",IF($D$3&$D13=\"StateRural\",VLOOKUP($E13,$CA$4:$CF$8,6,TRUE),IF($D$3&$D13=\"StateUrban\",VLOOKUP($E13,$CA$12:$CF$16,6,TRUE),IF($D$3&$D13=\"LocalRural\",VLOOKUP($E13,$CA$20:$CF$22,6,TRUE),IF($D$3&$D13=\"LocalUrban\",VLOOKUP($E13,$CA$26:$CF$30,6,TRUE)))))))","v":""},null,{"$f":"IF(K13=\"\",\"\",IF(AND(F13>K13,G13>L13),\"Yes\",\"No\"))","v":""},{"$f":"IF(M13=\"\",\"\",IF(H13>M13,\"Yes\",\"No\"))","v":""},{"$f":"IF(N13=\"\",\"\",IF(I13>N13,\"Yes\",\"No\"))","v":""},"<99.77",0,null,null,"<99.77",0,null,"<99.77",null,null,null,null,null,null,null,null,null,"<99.77",0,null,null,null,null,null,null,null,null,null,null,null,null,null,null,null,null,null,null,null,null,null,null,null,null,null,null,null,null,null,null,null,null,null,null,null,null,null,null,null,null,"StateUrban",6001,"6,001 - 10,000",6,7,4,3.5]
[null,"",{"$f":"IF(W14=\"\",\"\",VLOOKUP(W14,$W$13:$X$500,1,FALSE))","v":"99.77-100.27"},null,null,0,{"$f":"IF(C14=\"\",\"\",IF($S$7=\"GCAT\",VLOOKUP(W14,$S$13:$T$500,2,FALSE),IF($AA$11=\"IntersectionRelated\",VLOOKUP(W14,$Z$13:$AF$500,2,FALSE),\"0\")))","v":"0"},0,{"$error":"#DIV/0!"},null,"","","","",null,{"$f":"IF(K14=\"\",\"\",IF(AND(F14>K14,G14>L14),\"Yes\",\"No\"))","v":""},{"$f":"IF(M14=\"\",\"\",IF(H14>M14,\"Yes\",\"No\"))","v":""},{"$f":"IF(N14=\"\",\"\",IF(I14>N14,\"Yes\",\"No\"))","v":""},"99.77-100.27",0,null,null,"99.77-100.27",0,null,"99.77-100.27",null,null,null,null,null,null,null,null,null,"99.77-100.27",0,null,null,null,null,null,null,null,null,null,null,null,null,null,null,null,null,null,null,null,null,null,null,null,null,null,null,null,null,null,null,null,null,null,null,null,null,null,null,null,null,"StateUrban",10001,"10,001 - 15,000",11,14,4,4.25]
[null,"",">100.27",null,null,0,"0",0,{"$error":"#DIV/0!"},null,"","","","",null,"","","",">100.27",0,null,null,">100.27",0,null,">100.27",null,null,null,null,null,null,null,null,null,">100.27",0,null,null,null,null,null,null,null,null,null,null,null,null,null,null,null,null,null,null,null,null,null,null,null,null,null,null,null,null,null,null,null,null,null,null,null,null,null,null,null,null,"StateUrban",15001,"15,001 - 30,000",19,22,4,4.25]
[null,"","Total",null,null,0,"0",0,"",null,"","","","",null,"","","","Total",0,null,null,"Total",0,null,"Total",null,null,null,null,null,null,null,null,null,"Total",0,null,null,null,null,null,null,null,null,null,null,null,null,null,null,null,null,null,null,null,null,null,null,null,null,null,null,null,null,null,null,null,null,null,null,null,null,null,null,null,null,"StateUrban",30000.01,"> 30,000",35,9,4,1.25]
[null,"","",null,null,"","","","",null,"","","","",null,"","","",null,null,null,null,null,null,null,null,null,null,null,null,null,null,null,null,null,null,null,null,null,null,null,null,null,null,null,null,null,null,null,null,null,null,null,null,null,null,null,null,null,null,null,null,null,null,null,null,null,null,null,null,null,null,null,null,null,null,null,null,null,"Local Roads Resurfacing Crash Analysis - Rural"]
[null,"","",null,null,"","","","",null,"","","","",null,"","","",null,null,null,null,null,null,null,null,null,null,null,null,null,null,null,null,null,null,null,null,null,null,null,null,null,null,null,null,null,null,null,null,null,null,null,null,null,null,null,null,null,null,null,null,null,null,null,null,null,null,null,null,null,null,null,null,null,null,null,null,null,"ADT Range","Data Values"]
[null,"","",null,null,"","","","",null,"","","","",null,"","","",null,null,null,null,null,null,null,null,null,null,null,null,null,null,null,null,null,null,null,null,null,null,null,null,null,null,null,null,null,null,null,null,null,null,null,null,null,null,null,null,null,null,null,null,null,null,null,null,null,null,null,null,null,null,null,null,null,null,null,null,null,null,"A","B","C","D"]
[null,"","",null,null,"","","","",null,"","","","",null,"","","",null,null,null,null,null,null,null,null,null,null,null,null,null,null,null,null,null,null,null,null,null,null,null,null,null,null,null,null,null,null,null,null,null,null,null,null,null,null,null,null,null,null,null,null,null,null,null,null,null,null,null,null,null,null,null,null,null,null,null,"LocalRural",400,"400 - 1,000",4,4,4,5.5]
[null,"","",null,null,"","","","",null,"","","","",null,"","","",null,null,null,null,null,null,null,null,null,null,null,null,null,null,null,null,null,null,null,null,null,null,null,null,null,null,null,null,null,null,null,null,null,null,null,null,null,null,null,null,null,null,null,null,null,null,null,null,null,null,null,null,null,null,null,null,null,null,null,"LocalRural",1001,"1,001 - 1,500",4,4,4,3.25]
[null,"","",null,null,"","","","",null,"","","","",null,"","","",null,null,null,null,null,null,null,null,null,null,null,null,null,null,null,null,null,null,null,null,null,null,null,null,null,null,null,null,null,null,null,null,null,null,null,null,null,null,null,null,null,null,null,null,null,null,null,null,null,null,null,null,null,null,null,null,null,null,null,"LocalRural",1500.01,"> 1,500",4,4,4,2]
[null,"","",null,null,"","","","",null,"","","","",null,"","","",null,null,null,null,null,null,null,null,null,null,null,null,null,null,null,null,null,null,null,null,null,null,null,null,null,null,null,null,null,null,null,null,null,null,null,null,null,null,null,null,null,null,null,null,null,null,null,null,null,null,null,null,null,null,null,null,null,null,null,null,null,"Local Roads Resurfacing Crash Analysis - Urban"]
[null,"","",null,null,"","","","",null,"","","","",null,"","","",null,null,null,null,null,null,null,null,null,null,null,null,null,null,null,null,null,null,null,null,null,null,null,null,null,null,null,null,null,null,null,null,null,null,null,null,null,null,null,null,null,null,null,null,null,null,null,null,null,null,null,null,null,null,null,null,null,null,null,null,null,"ADT Range","Data Values"]
[null,"","",null,null,"","","","",null,"","","","",null,"","","",null,null,null,null,null,null,null,null,null,null,null,null,null,null,null,null,null,null,null,null,null,null,null,null,null,null,null,null,null,null,null,null,null,null,null,null,null,null,null,null,null,null,null,null,null,null,null,null,null,null,null,null,null,null,null,null,null,null,null,null,null,null,"W","X","Y","Z"]
[null,"","",null,null,"","","","",null,"","","","",null,"","","",null,null,null,null,null,null,null,null,null,null,null,null,null,null,null,null,null,null,null,null,null,null,null,null,null,null,null,null,null,null,null,null,null,null,null,null,null,null,null,null,null,null,null,null,null,null,null,null,null,null,null,null,null,null,null,null,null,null,null,"LocalUrban",400,"400 - 2,500",4,4,4,6.75]
[null,"","",null,null,"","","","",null,"","","","",null,"","","",null,null,null,null,null,null,null,null,null,null,null,null,null,null,null,null,null,null,null,null,null,null,null,null,null,null,null,null,null,null,null,null,null,null,null,null,null,null,null,null,null,null,null,null,null,null,null,null,null,null,null,null,null,null,null,null,null,null,null,"LocalUrban",2501,"2,501 - 5,000",4,4,4,4.25]
[null,"","",null,null,"","","","",null,"","","","",null,"","","",null,null,null,null,null,null,null,null,null,null,null,null,null,null,null,null,null,null,null,null,null,null,null,null,null,null,null,null,null,null,null,null,null,null,null,null,null,null,null,null,null,null,null,null,null,null,null,null,null,null,null,null,null,null,null,null,null,null,null,"LocalUrban",5001,"5,001 - 7,500",5,5,4,4.25]
[null,"","",null,null,"","","","",null,"","","","",null,"","","",null,null,null,null,null,null,null,null,null,null,null,null,null,null,null,null,null,null,null,null,null,null,null,null,null,null,null,null,null,null,null,null,null,null,null,null,null,null,null,null,null,null,null,null,null,null,null,null,null,null,null,null,null,null,null,null,null,null,null,"LocalUrban",7501,"7,501 - 10,000",7,7,4,3.75]
[null,"","",null,null,"","","","",null,"","","","",null,"","","",null,null,null,null,null,null,null,null,null,null,null,null,null,null,null,null,null,null,null,null,null,null,null,null,null,null,null,null,null,null,null,null,null,null,null,null,null,null,null,null,null,null,null,null,null,null,null,null,null,null,null,null,null,null,null,null,null,null,null,"LocalUrban",10000.01,"> 10,000",13,12,4,4]
[null,"","",null,null,"","","","",null,"","","","",null,"","",""]
[null,"","",null,null,"","","","",null,"","","","",null,"","",""]
[null,"","",null,null,"","","","",null,"","","","",null,"","",""]
[null,"","",null,null,"","","","",null,"","","","",null,"","",""]
[null,"","",null,null,"","","","",null,"","","","",null,"","",""]
[null,"","",null,null,"","","","",null,"","","","",null,"","",""]
[null,"","",null,null,"","","","",null,"","","","",null,"","",""]
[null,"","",null,null,"","","","",null,"","","","",null,"","",""]
[null,"","",null,null,"","","","",null,"","","","",null,"","",""]
[null,"","",null,null,"","","","",null,"","","","",null,"","",""]
[null,"","",null,null,"","","","",null,"","","","",null,"","",""]
[null,"","",null,null,"","","","",null,"","","","",null,"","",""]
[null,"","",null,null,"","","","",null,"","","","",null,"","",""]
[null,"","",null,null,"","","","",null,"","","","",null,"","",""]
[null,"","",null,null,"","","","",null,"","","","",null,"","",""]
[null,"","",null,null,"","","","",null,"","","","",null,"","",""]
[null,"","",null,null,"","","","",null,"","","","",null,"","",""]
[null,"","",null,null,"","","","",null,"","","","",null,"","",""]
[null,"","",null,null,"","","","",null,"","","","",null,"","",""]
[null,"","",null,null,"","","","",null,"","","","",null,"","",""]
[null,"","",null,null,"","","","",null,"","","","",null,"","",""]
[null,"","",null,null,"","","","",null,"","","","",null,"","",""]
[null,"","",null,null,"","","","",null,"","","","",null,"","",""]
[null,"","",null,null,"","","","",null,"","","","",null,"","",""]
[null,"","",null,null,"","","","",null,"","","","",null,"","",""]
[null,"","",null,null,"","","","",null,"","","","",null,"","",""]
[null,"","",null,null,"","","","",null,"","","","",null,"","",""]
[null,"","",null,null,"","","","",null,"","","","",null,"","",""]
[null,"","",null,null,"","","","",null,"","","","",null,"","",""]
[null,"","",null,null,"","","","",null,"","","","",null,"","",""]
[null,"","",null,null,"","","","",null,"","","","",null,"","",""]
[null,"","",null,null,"","","","",null,"","","","",null,"","",""]
[null,"","",null,null,"","","","",null,"","","","",null,"","",""]
[null,"","",null,null,"","","","",null,"","","","",null,"","",""]
[null,"","",null,null,"","","","",null,"","","","",null,"","",""]
[null,"","",null,null,"","","","",null,"","","","",null,"","",""]
[null,"","",null,null,"","","","",null,"","","","",null,"","",""]
[null,"","",null,null,"","","","",null,"","","","",null,"","",""]
[null,"","",null,null,"","","","",null,"","","","",null,"","",""]
[null,"","",null,null,"","","","",null,"","","","",null,"","",""]
[null,"","",null,null,"","","","",null,"","","","",null,"","",""]
[null,"","",null,null,"","","","",null,"","","","",null,"","",""]
[null,"","",null,null,"","","","",null,"","","","",null,"","",""]
[null,"","",null,null,"","","","",null,"","","","",null,"","",""]
[null,"","",null,null,"","","","",null,"","","","",null,"","",""]
[null,"","",null,null,"","","","",null,"","","","",null,"","",""]
[null,{"$f":"IF(AND(P77=\"No\",Q77=\"No\"),\"\",IF(P77=\"Yes\",\"Send Crash Summary to \"&$CH$1,IF(AND(P77=\"No\",Q77=\"Yes\",R77=\"Yes\"),\"Send Crash Summary to \"&$CH$1,\"\")))","v":""},"",null,null,{"$f":"IF(C77=\"\",\"\",H77-G77)","v":""},"",{"$f":"IF(W77=\"\",\"\",VLOOKUP(W77,$W$13:$X$500,2,FALSE))","v":""},{"$f":"IF(C77=\"\",\"\",IF(C77=\"Total\",\"\",1000000*((H77))/(365*3*$D$7*E77)))","v":""},null,{"$f":"IF($C77=\"\",\"\",IF($E77<400,\"\",IF($D$3&$D77=\"StateRural\",VLOOKUP($E77,$CA$4:$CF$8,3,TRUE),IF($D$3&$D77=\"StateUrban\",VLOOKUP($E77,$CA$12:$CF$16,3,TRUE),IF($D$3&$D77=\"LocalRural\",VLOOKUP($E77,$CA$20:$CF$22,3,TRUE),IF($D$3&$D77=\"LocalUrban\",VLOOKUP($E77,$CA$26:$CF$30,3,TRUE)))))))","v":""},{"$f":"IF($C77=\"\",\"\",IF($E77<400,\"\",IF($D$3&$D77=\"StateRural\",VLOOKUP($E77,$CA$4:$CF$8,4,TRUE),IF($D$3&$D77=\"StateUrban\",VLOOKUP($E77,$CA$12:$CF$16,4,TRUE),IF($D$3&$D77=\"LocalRural\",VLOOKUP($E77,$CA$20:$CF$22,4,TRUE),IF($D$3&$D77=\"LocalUrban\",VLOOKUP($E77,$CA$26:$CF$30,4,TRUE)))))))","v":""},{"$f":"IF($C77=\"\",\"\",IF($E77<400,\"\",IF($D$3&$D77=\"StateRural\",VLOOKUP($E77,$CA$4:$CF$8,5,TRUE),IF($D$3&$D77=\"StateUrban\",VLOOKUP($E77,$CA$12:$CF$16,5,TRUE),IF($D$3&$D77=\"LocalRural\",VLOOKUP($E77,$CA$20:$CF$22,5,TRUE),IF($D$3&$D77=\"LocalUrban\",VLOOKUP($E77,$CA$26:$CF$30,5,TRUE)))))))","v":""},{"$f":"IF($C77=\"\",\"\",IF($E77<400,\"\",IF($D$3&$D77=\"StateRural\",VLOOKUP($E77,$CA$4:$CF$8,6,TRUE),IF($D$3&$D77=\"StateUrban\",VLOOKUP($E77,$CA$12:$CF$16,6,TRUE),IF($D$3&$D77=\"LocalRural\",VLOOKUP($E77,$CA$20:$CF$22,6,TRUE),IF($D$3&$D77=\"LocalUrban\",VLOOKUP($E77,$CA$26:$CF$30,6,TRUE)))))))","v":""},null,"","",""]
[null,"",{"$f":"IF(W78=\"\",\"\",VLOOKUP(W78,$W$13:$X$500,1,FALSE))","v":""},null,null,"",{"$f":"IF(C78=\"\",\"\",IF($S$7=\"GCAT\",VLOOKUP(W78,$S$13:$T$500,2,FALSE),IF($AA$11=\"IntersectionRelated\",VLOOKUP(W78,$Z$13:$AF$500,2,FALSE),\"0\")))","v":""},"","",null,"","","","",null,{"$f":"IF(K78=\"\",\"\",IF(AND(F78>K78,G78>L78),\"Yes\",\"No\"))","v":""},{"$f":"IF(M78=\"\",\"\",IF(H78>M78,\"Yes\",\"No\"))","v":""},{"$f":"IF(N78=\"\",\"\",IF(I78>N78,\"Yes\",\"No\"))","v":""}]
[null,"","",null,null,"","","","",null,"","","","",null,"","",""]
[null,"","",null,null,"","","","",null,"","","","",null,"","",""]
[null,"","",null,null,"","","","",null,"","","","",null,"","",""]
[null,"","",null,null,"","","","",null,"","","","",null,"","",""]
[null,"","",null,null,"","","","",null,"","","","",null,"","",""]
[null,"","",null,null,"","","","",null,"","","","",null,"","",""]
[null,"","",null,null,"","","","",null,"","","","",null,"","",""]
[null,"","",null,null,"","","","",null,"","","","",null,"","",""]
[null,"","",null,null,"","","","",null,"","","","",null,"","",""]
[null,"","",null,null,"","","","",null,"","","","",null,"","",""]
[null,"","",null,null,"","","","",null,"","","","",null,"","",""]
[null,"","",null,null,"","","","",null,"","","","",null,"","",""]
[null,"","",null,null,"","","","",null,"","","","",null,"","",""]
[null,"","",null,null,"","","","",null,"","","","",null,"","",""]
[null,"","",null,null,"","","","",null,"","","","",null,"","",""]
[null,"","",null,null,"","","","",null,"","","","",null,"","",""]
[null,"","",null,null,"","","","",null,"","","","",null,"","",""]
[null,"","",null,null,"","","","",null,"","","","",null,"","",""]
[null,"","",null,null,"","","","",null,"","","","",null,"","",""]
[null,"","",null,null,"","","","",null,"","","","",null,"","",""]
[null,"","",null,null,"","","","",null,"","","","",null,"","",""]
[null,"","",null,null,"","","","",null,"","","","",null,"","",""]
[null,"","",null,null,"","","","",null,"","","","",null,"","",""]
[null,"","",null,null,"","","","",null,"","","","",null,"","",""]
[null,"","",null,null,"","","","",null,"","","","",null,"","",""]
[null,"","",null,null,"","","","",null,"","","","",null,"","",""]
[null,"","",null,null,"","","","",null,"","","","",null,"","",""]
[null,"","",null,null,"","","","",null,"","","","",null,"","",""]
[null,"","",null,null,"","","","",null,"","","","",null,"","",""]
[null,"","",null,null,"","","","",null,"","","","",null,"","",""]
[null,"","",null,null,"","","","",null,"","","","",null,"","",""]
[null,"","",null,null,"","","","",null,"","","","",null,"","",""]
[null,"","",null,null,"","","","",null,"","","","",null,"","",""]
[null,"","",null,null,"","","","",null,"","","","",null,"","",""]
[null,"","",null,null,"","","","",null,"","","","",null,"","",""]
[null,"","",null,null,"","","","",null,"","","","",null,"","",""]
[null,"","",null,null,"","","","",null,"","","","",null,"","",""]
[null,"","",null,null,"","","","",null,"","","","",null,"","",""]
[null,"","",null,null,"","","","",null,"","","","",null,"","",""]
[null,"","",null,null,"","","","",null,"","","","",null,"","",""]
[null,"","",null,null,"","","","",null,"","","","",null,"","",""]
[null,"","",null,null,"","","","",null,"","","","",null,"","",""]
[null,"","",null,null,"","","","",null,"","","","",null,"","",""]
[null,"","",null,null,"","","","",null,"","","","",null,"","",""]
[null,"","",null,null,"","","","",null,"","","","",null,"","",""]
[null,"","",null,null,"","","","",null,"","","","",null,"","",""]
[null,"","",null,null,"","","","",null,"","","","",null,"","",""]
[null,"","",null,null,"","","","",null,"","","","",null,"","",""]
[null,"","",null,null,"","","","",null,"","","","",null,"","",""]
[null,"","",null,null,"","","","",null,"","","","",null,"","",""]
[null,"","",null,null,"","","","",null,"","","","",null,"","",""]
[null,"","",null,null,"","","","",null,"","","","",null,"","",""]
[null,"","",null,null,"","","","",null,"","","","",null,"","",""]
[null,"","",null,null,"","","","",null,"","","","",null,"","",""]
[null,"","",null,null,"","","","",null,"","","","",null,"","",""]
[null,"","",null,null,"","","","",null,"","","","",null,"","",""]
[null,"","",null,null,"","","","",null,"","","","",null,"","",""]
[null,"","",null,null,"","","","",null,"","","","",null,"","",""]
[null,"","",null,null,"","","","",null,"","","","",null,"","",""]
[null,"","",null,null,"","","","",null,"","","","",null,"","",""]
[null,"","",null,null,"","","","",null,"","","","",null,"","",""]
[null,"","",null,null,"","","","",null,"","","","",null,"","",""]
[null,{"$f":"IF(AND(P141=\"No\",Q141=\"No\"),\"\",IF(P141=\"Yes\",\"Send Crash Summary to \"&$CH$1,IF(AND(P141=\"No\",Q141=\"Yes\",R141=\"Yes\"),\"Send Crash Summary to \"&$CH$1,\"\")))","v":""},"",null,null,{"$f":"IF(C141=\"\",\"\",H141-G141)","v":""},"",{"$f":"IF(W141=\"\",\"\",VLOOKUP(W141,$W$13:$X$500,2,FALSE))","v":""},{"$f":"IF(C141=\"\",\"\",IF(C141=\"Total\",\"\",1000000*((H141))/(365*3*$D$7*E141)))","v":""},null,{"$f":"IF($C141=\"\",\"\",IF($E141<400,\"\",IF($D$3&$D141=\"StateRural\",VLOOKUP($E141,$CA$4:$CF$8,3,TRUE),IF($D$3&$D141=\"StateUrban\",VLOOKUP($E141,$CA$12:$CF$16,3,TRUE),IF($D$3&$D141=\"LocalRural\",VLOOKUP($E141,$CA$20:$CF$22,3,TRUE),IF($D$3&$D141=\"LocalUrban\",VLOOKUP($E141,$CA$26:$CF$30,3,TRUE)))))))","v":""},{"$f":"IF($C141=\"\",\"\",IF($E141<400,\"\",IF($D$3&$D141=\"StateRural\",VLOOKUP($E141,$CA$4:$CF$8,4,TRUE),IF($D$3&$D141=\"StateUrban\",VLOOKUP($E141,$CA$12:$CF$16,4,TRUE),IF($D$3&$D141=\"LocalRural\",VLOOKUP($E141,$CA$20:$CF$22,4,TRUE),IF($D$3&$D141=\"LocalUrban\",VLOOKUP($E141,$CA$26:$CF$30,4,TRUE)))))))","v":""},{"$f":"IF($C141=\"\",\"\",IF($E141<400,\"\",IF($D$3&$D141=\"StateRural\",VLOOKUP($E141,$CA$4:$CF$8,5,TRUE),IF($D$3&$D141=\"StateUrban\",VLOOKUP($E141,$CA$12:$CF$16,5,TRUE),IF($D$3&$D141=\"LocalRural\",VLOOKUP($E141,$CA$20:$CF$22,5,TRUE),IF($D$3&$D141=\"LocalUrban\",VLOOKUP($E141,$CA$26:$CF$30,5,TRUE)))))))","v":""},{"$f":"IF($C141=\"\",\"\",IF($E141<400,\"\",IF($D$3&$D141=\"StateRural\",VLOOKUP($E141,$CA$4:$CF$8,6,TRUE),IF($D$3&$D141=\"StateUrban\",VLOOKUP($E141,$CA$12:$CF$16,6,TRUE),IF($D$3&$D141=\"LocalRural\",VLOOKUP($E141,$CA$20:$CF$22,6,TRUE),IF($D$3&$D141=\"LocalUrban\",VLOOKUP($E141,$CA$26:$CF$30,6,TRUE)))))))","v":""},null,"","",""]
[null,"",{"$f":"IF(W142=\"\",\"\",VLOOKUP(W142,$W$13:$X$500,1,FALSE))","v":""},null,null,"",{"$f":"IF(C142=\"\",\"\",IF($S$7=\"GCAT\",VLOOKUP(W142,$S$13:$T$500,2,FALSE),IF($AA$11=\"IntersectionRelated\",VLOOKUP(W142,$Z$13:$AF$500,2,FALSE),\"0\")))","v":""},"","",null,"","","","",null,{"$f":"IF(K142=\"\",\"\",IF(AND(F142>K142,G142>L142),\"Yes\",\"No\"))","v":""},{"$f":"IF(M142=\"\",\"\",IF(H142>M142,\"Yes\",\"No\"))","v":""},{"$f":"IF(N142=\"\",\"\",IF(I142>N142,\"Yes\",\"No\"))","v":""}]
[null,"","",null,null,"","","","",null,"","","","",null,"","",""]
[null,"","",null,null,"","","","",null,"","","","",null,"","",""]
[null,"","",null,null,"","","","",null,"","","","",null,"","",""]
[null,"","",null,null,"","","","",null,"","","","",null,"","",""]
[null,"","",null,null,"","","","",null,"","","","",null,"","",""]
[null,"","",null,null,"","","","",null,"","","","",null,"","",""]
[null,"","",null,null,"","","","",null,"","","","",null,"","",""]
[null,"","",null,null,"","","","",null,"","","","",null,"","",""]
[null,"","",null,null,"","","","",null,"","","","",null,"","",""]
[null,"","",null,null,"","","","",null,"","","","",null,"","",""]
[null,"","",null,null,"","","","",null,"","","","",null,"","",""]
[null,"","",null,null,"","","","",null,"","","","",null,"","",""]
[null,"","",null,null,"","","","",null,"","","","",null,"","",""]
[null,"","",null,null,"","","","",null,"","","","",null,"","",""]
[null,"","",null,null,"","","","",null,"","","","",null,"","",""]
[null,"","",null,null,"","","","",null,"","","","",null,"","",""]
[null,"","",null,null,"","","","",null,"","","","",null,"","",""]
[null,"","",null,null,"","","","",null,"","","","",null,"","",""]
[null,"","",null,null,"","","","",null,"","","","",null,"","",""]
[null,"","",null,null,"","","","",null,"","","","",null,"","",""]
[null,"","",null,null,"","","","",null,"","","","",null,"","",""]
[null,"","",null,null,"","","","",null,"","","","",null,"","",""]
[null,"","",null,null,"","","","",null,"","","","",null,"","",""]
[null,"","",null,null,"","","","",null,"","","","",null,"","",""]
[null,"","",null,null,"","","","",null,"","","","",null,"","",""]
[null,"","",null,null,"","","","",null,"","","","",null,"","",""]
[null,"","",null,null,"","","","",null,"","","","",null,"","",""]
[null,"","",null,null,"","","","",null,"","","","",null,"","",""]
[null,"","",null,null,"","","","",null,"","","","",null,"","",""]
[null,"","",null,null,"","","","",null,"","","","",null,"","",""]
[null,"","",null,null,"","","","",null,"","","","",null,"","",""]
[null,"","",null,null,"","","","",null,"","","","",null,"","",""]
[null,"","",null,null,"","","","",null,"","","","",null,"","",""]
[null,"","",null,null,"","","","",null,"","","","",null,"","",""]
[null,"","",null,null,"","","","",null,"","","","",null,"","",""]
[null,"","",null,null,"","","","",null,"","","","",null,"","",""]
[null,"","",null,null,"","","","",null,"","","","",null,"","",""]
[null,"","",null,null,"","","","",null,"","","","",null,"","",""]
[null,"","",null,null,"","","","",null,"","","","",null,"","",""]
[null,"","",null,null,"","","","",null,"","","","",null,"","",""]
[null,"","",null,null,"","","","",null,"","","","",null,"","",""]
[null,"","",null,null,"","","","",null,"","","","",null,"","",""]
[null,"","",null,null,"","","","",null,"","","","",null,"","",""]
[null,"","",null,null,"","","","",null,"","","","",null,"","",""]
[null,"","",null,null,"","","","",null,"","","","",null,"","",""]
[null,"","",null,null,"","","","",null,"","","","",null,"","",""]
[null,"","",null,null,"","","","",null,"","","","",null,"","",""]
[null,"","",null,null,"","","","",null,"","","","",null,"","",""]
[null,"","",null,null,"","","","",null,"","","","",null,"","",""]
[null,"","",null,null,"","","","",null,"","","","",null,"","",""]
[null,"","",null,null,"","","","",null,"","","","",null,"","",""]
[null,"","",null,null,"","","","",null,"","","","",null,"","",""]
[null,"","",null,null,"","","","",null,"","","","",null,"","",""]
[null,"","",null,null,"","","","",null,"","","","",null,"","",""]
[null,"","",null,null,"","","","",null,"","","","",null,"","",""]
[null,"","",null,null,"","","","",null,"","","","",null,"","",""]
[null,"","",null,null,"","","","",null,"","","","",null,"","",""]
[null,"","",null,null,"","","","",null,"","","","",null,"","",""]
[null,"","",null,null,"","","","",null,"","","","",null,"","",""]
[null,"","",null,null,"","","","",null,"","","","",null,"","",""]
[null,"","",null,null,"","","","",null,"","","","",null,"","",""]
[null,"","",null,null,"","","","",null,"","","","",null,"","",""]
[null,{"$f":"IF(AND(P205=\"No\",Q205=\"No\"),\"\",IF(P205=\"Yes\",\"Send Crash Summary to \"&$CH$1,IF(AND(P205=\"No\",Q205=\"Yes\",R205=\"Yes\"),\"Send Crash Summary to \"&$CH$1,\"\")))","v":""},"",null,null,{"$f":"IF(C205=\"\",\"\",H205-G205)","v":""},"",{"$f":"IF(W205=\"\",\"\",VLOOKUP(W205,$W$13:$X$500,2,FALSE))","v":""},{"$f":"IF(C205=\"\",\"\",IF(C205=\"Total\",\"\",1000000*((H205))/(365*3*$D$7*E205)))","v":""},null,{"$f":"IF($C205=\"\",\"\",IF($E205<400,\"\",IF($D$3&$D205=\"StateRural\",VLOOKUP($E205,$CA$4:$CF$8,3,TRUE),IF($D$3&$D205=\"StateUrban\",VLOOKUP($E205,$CA$12:$CF$16,3,TRUE),IF($D$3&$D205=\"LocalRural\",VLOOKUP($E205,$CA$20:$CF$22,3,TRUE),IF($D$3&$D205=\"LocalUrban\",VLOOKUP($E205,$CA$26:$CF$30,3,TRUE)))))))","v":""},{"$f":"IF($C205=\"\",\"\",IF($E205<400,\"\",IF($D$3&$D205=\"StateRural\",VLOOKUP($E205,$CA$4:$CF$8,4,TRUE),IF($D$3&$D205=\"StateUrban\",VLOOKUP($E205,$CA$12:$CF$16,4,TRUE),IF($D$3&$D205=\"LocalRural\",VLOOKUP($E205,$CA$20:$CF$22,4,TRUE),IF($D$3&$D205=\"LocalUrban\",VLOOKUP($E205,$CA$26:$CF$30,4,TRUE)))))))","v":""},{"$f":"IF($C205=\"\",\"\",IF($E205<400,\"\",IF($D$3&$D205=\"StateRural\",VLOOKUP($E205,$CA$4:$CF$8,5,TRUE),IF($D$3&$D205=\"StateUrban\",VLOOKUP($E205,$CA$12:$CF$16,5,TRUE),IF($D$3&$D205=\"LocalRural\",VLOOKUP($E205,$CA$20:$CF$22,5,TRUE),IF($D$3&$D205=\"LocalUrban\",VLOOKUP($E205,$CA$26:$CF$30,5,TRUE)))))))","v":""},{"$f":"IF($C205=\"\",\"\",IF($E205<400,\"\",IF($D$3&$D205=\"StateRural\",VLOOKUP($E205,$CA$4:$CF$8,6,TRUE),IF($D$3&$D205=\"StateUrban\",VLOOKUP($E205,$CA$12:$CF$16,6,TRUE),IF($D$3&$D205=\"LocalRural\",VLOOKUP($E205,$CA$20:$CF$22,6,TRUE),IF($D$3&$D205=\"LocalUrban\",VLOOKUP($E205,$CA$26:$CF$30,6,TRUE)))))))","v":""},null,"","",""]
[null,"",{"$f":"IF(W206=\"\",\"\",VLOOKUP(W206,$W$13:$X$500,1,FALSE))","v":""},null,null,"",{"$f":"IF(C206=\"\",\"\",IF($S$7=\"GCAT\",VLOOKUP(W206,$S$13:$T$500,2,FALSE),IF($AA$11=\"IntersectionRelated\",VLOOKUP(W206,$Z$13:$AF$500,2,FALSE),\"0\")))","v":""},"","",null,"","","","",null,{"$f":"IF(K206=\"\",\"\",IF(AND(F206>K206,G206>L206),\"Yes\",\"No\"))","v":""},{"$f":"IF(M206=\"\",\"\",IF(H206>M206,\"Yes\",\"No\"))","v":""},{"$f":"IF(N206=\"\",\"\",IF(I206>N206,\"Yes\",\"No\"))","v":""}]
[null,"","",null,null,"","","","",null,"","","","",null,"","",""]
[null,"","",null,null,"","","","",null,"","","","",null,"","",""]
[null,"","",null,null,"","","","",null,"","","","",null,"","",""]
[null,"","",null,null,"","","","",null,"","","","",null,"","",""]
[null,"","",null,null,"","","","",null,"","","","",null,"","",""]
[null,"","",null,null,"","","","",null,"","","","",null,"","",""]

{"sheet":"Rate Calc Sheet","index":22,"n_rows":37,"n_cols":25,"rows_kept":37,"cut":false,"hidden":false,"merged":[[7,16,7,17],[26,2,26,4],[4,2,4,4],[6,2,6,4],[5,2,5,4],[7,2,7,4],[22,2,22,4],[23,2,23,4],[24,2,24,4],[25,2,25,4],[34,8,35,10],[3,2,3,4],[9,24,9,25],[7,24,7,25],[3,24,3,25],[4,24,4,25],[5,24,5,25],[6,24,6,25],[3,20,3,21],[4,20,4,21],[5,20,5,21],[8,20,8,21],[6,20,6,21],[3,16,3,17],[4,16,4,17],[5,16,5,17]]}
[]
[]
[]
[null,"County:",{"$f":"'Crash Data'!D12","v":0},null,null,null,null,null,null,null,null,null,null,null,null,"Entering Leg 1 ",null,null,null,"Entering Leg 1 ",3400,null,null,"Entering Leg 1 "]
[null,"R1:",{"$f":"'Crash Data'!G21","v":"SR0608R"},null,null,null,null,null,null,null,null,null,null,null,null,"Entering Leg 2 ",null,null,null,"Entering Leg 2 ",5600,null,null,"Entering Leg 2 "]
[null,"R1 Log:",{"$f":"'Crash Data'!D15","v":0},null,null,null,null,null,null,null,null,null,null,null,null,"Entering Leg 3 ",null,null,null,"Entering Leg 3 ",6250,null,null,"Entering Leg 3 "]
[null,"R2:",{"$f":"'Crash Data'!H21","v":"MP004.00"},null,null,null,null,null,null,null,null,null,null,null,null,null,null,null,null,"Entering Leg 4 ",2300,null,null,"Entering Leg 4 "]
[null,"Crash Year Data:",{"$f":"LEFT('Crash Data'!D17,4)&\"-\"&LEFT('Crash Data'!D18,4)","v":"-"},null,null,null,null,null,null,null,null,null,null,null,null,"Entering Vehicles ",{"$f":"SUM(Q4:R6)","v":0},null,null,null,null,null,null,"Entering Leg 5 "]
[null,null,null,null,null,null,null,null,null,null,null,null,null,null,null,null,null,null,null,"Entering Vehicles ",{"$f":"SUM(U4:V7)","v":17550}]
[null,null,null,null,null,null,null,null,null,null,null,null,null,null,null,null,null,null,null,null,null,null,null,"Entering Vehicles ",{"$f":"SUM(Y4:Z8)","v":0}]
[]
["Enter Number of Crashes for Intersection:",null,null,null,null,{"$f":"GETPIVOTDATA(\"DAY_OF_WEEK\",'Data Analysis'!$A$4)","v":21}]
["Enter Number of Years for Crash Data:",null,null,null,null,3]
["Enter Number of Intersection Entering Vehicles:"]
["Number of Days in Year:",null,null,null,null,365]
[]
["Crash Rate per Million Entering Vehicles (MEV):",null,null,null,null,{"$f":"(F12*1000000)/(F14*F13*F15)","v":{"$error":"#DIV/0!"}}]
[]
[null,null,null,null,null,"         *Statewide crash Rates are only available for sections. Intersections are excluded."]
[]
[]
[]
[null,"County:",{"$f":"'Crash Data'!D12","v":0}]
[null,"Route:",{"$f":"'Crash Data'!G21","v":"SR0608R"}]
[null,"BLog:",{"$f":"'Crash Data'!D15","v":0}]
[null,"ELog:",{"$f":"'Crash Data'!D16","v":0}]
[null,"Crash Year Data:",{"$f":"LEFT('Crash Data'!D17,4)&\"-\"&LEFT('Crash Data'!D18,4)","v":"-"}]
[]
[]
[]
["Enter Number of Crashes on Section:",null,null,null,null,{"$f":"GETPIVOTDATA(\"DAY_OF_WEEK\",'Data Analysis'!$A$4)","v":21}]
["Enter Number of Years for Crash Data:",null,null,null,null,3]
["Enter Average Daily Traffic on Section (ADT):"]
["Enter Length of Section in Miles",null,null,null,null,{"$f":"C26-C25","v":0}]
["Number of Days in Year:",null,null,null,null,365,null,null,"*Statewide crash rates are only available for sections. Intersections are excluded."]
[]
["Crash Rate per Million Vehicle Miles Traveled (MVMT):",null,null,null,null,{"$f":"(F31*1000000)/(F33*F35*F32*F34)","v":{"$error":"#DIV/0!"}}]

{"sheet":"Severity Calc Sheet","index":23,"n_rows":49,"n_cols":10,"rows_kept":49,"cut":false,"hidden":false,"merged":[[3,3,3,7]]}
["Select Location Type:",null,"Rural Non-Freeway"]
[]
[null,"RSI Value = ",{"$f":"IFERROR(C25/(A25+B25),0)","v":39879.374313438006}]
[null,null,null,"2014 Relative Severity Index"]
["User Override","Auto Fill","Crash Type Severity Calc","Crash Type #","Crash Type","Rural Non-Freeway","Urban Non-Freeway","Freeway"]
[null,{"$f":"IF(A$6:A$24=\"\",COUNTIF('Crash Data'!M$21:M$64998,\"Not Stated*\"),\"\")","v":0},{"$f":"IF(C$1=F$5,IF(A6=\"\",B6*F6,A6*F6),IF(C$1=G$5,IF(A6=\"\",B6*G6,A6*G6),IF(C$1=H$5,IF(A6=\"\",B6*H6,A6*H6))))","v":0},0,"Not stated",47469.115923566882,35589.369230769233,19151.229906542056]
[null,{"$f":"IF(A$6:A$24=\"\",COUNTIF('Crash Data'!M$21:M$64998,\"Head On*\"),\"\")","v":0},0,1,"Head on",265345.47887323942,84093.529065489332,252797.72168284788]
[null,{"$f":"IF(A$6:A$24=\"\",COUNTIF('Crash Data'!M$21:M$64998,\"Rear End*\"),\"\")","v":4},113886.84558247172,2,"Rear end",28471.711395617931,19500.504708289569,23612.811333858048]
[null,{"$f":"IF(A$6:A$24=\"\",COUNTIF('Crash Data'!M$21:M$64998,\"Backing*\"),\"\")","v":0},0,3,"Backing",14031.511134307586,11254.049286000678,15691.369088811995]
[null,{"$f":"IF(A$6:A$24=\"\",COUNTIF('Crash Data'!M$21:M$64998,\"Sideswipe - meeting*\"),\"\")","v":0},0,4,"Sideswipe - meeting",59768.37824332116,32812.192071414858,60099.947666195192]
[null,{"$f":"IF(A$6:A$24=\"\",COUNTIF('Crash Data'!M$21:M$64998,\"Sideswipe - passing*\"),\"\")","v":2},53201.82080851603,5,"Sideswipe - passing",26600.910404258015,14670.515369315062,19298.564955647835]
[null,{"$f":"IF(A$6:A$24=\"\",COUNTIF('Crash Data'!M$21:M$64998,\"Angle*\")+COUNTIF('Crash Data'!M$21:M$64998,\"Right*\"),\"\")","v":4},223057.50002042067,6,"Angle",55764.375005105168,25322.615126717126,32709.094931271477]
[null,{"$f":"IF(A$6:A$24=\"\",COUNTIF('Crash Data'!M$21:M$64998,\"Parked vehicle*\"),\"\")","v":0},0,7,"Parked Vehicle",35409.759154203195,16188.491886890388,27492.291722118713]
[null,{"$f":"IF(A$6:A$24=\"\",COUNTIF('Crash Data'!M$21:M$64998,\"Pedestrian*\"),\"\")","v":0},0,8,"Pedestrian",215589.3358974359,119669.7435105068,341851.70466321241,null,"DO NOT MODIFY CELLS IN THIS COLUMN"]
[null,{"$f":"IF(A$6:A$24=\"\",COUNTIF('Crash Data'!M$21:M$64998,\"Animal*\"),\"\")","v":2},23495.717647058824,9,"Animal",11747.858823529412,10844.954466818905,11462.585786467487]
[null,{"$f":"IF(A$6:A$24=\"\",COUNTIF('Crash Data'!M$21:M$64998,\"Train*\"),\"\")","v":0},0,10,"Train",275021.59999999998,83116.81318681319,13861.555555555555,null,"Rural Non-Freeway"]
[null,{"$f":"IF(A$6:A$24=\"\",COUNTIF('Crash Data'!M$21:M$64998,\"Pedalcycles*\"),\"\")","v":0},0,11,"Pedalcycles",138768.82352941178,68156.19923371647,75538.3125,null,"Urban Non-Freeway"]
[null,{"$f":"IF(A$6:A$24=\"\",COUNTIF('Crash Data'!M$21:M$64998,\"Other non-vehicle*\"),\"\")","v":0},0,12,"Other non-vehicle",111369.76470588235,15371.714285714286,14486.357142857143,null,"Freeway"]
[null,{"$f":"IF(A$6:A$24=\"\",COUNTIF('Crash Data'!M$21:M$64998,\"Fixed object*\")+COUNTIF('Crash Data'!M$21:M$64998,\"Ran*\"),\"\")","v":5},219760.99474125623,13,"Fixed object",43952.198948251244,34873.371641774371,30764.119734268173]
[null,{"$f":"IF(A$6:A$24=\"\",COUNTIF('Crash Data'!M$21:M$64998,\"Other object*\"),\"\")","v":0},0,14,"Other object",20739.641410352589,21209.425699026076,12977.756317442972]
[null,{"$f":"IF(A$6:A$24=\"\",COUNTIF('Crash Data'!M$21:M$64998,\"Falling from or in vehicle*\"),\"\")","v":0},0,15,"Falling from or in vehicle",1669104,1669104,0]
[null,{"$f":"IF(A$6:A$24=\"\",COUNTIF('Crash Data'!M$21:M$64998,\"Overturning*\"),\"\")","v":0},0,16,"Overturning",85223.090938459049,77398.73698917219,75502.297431966275]
[null,{"$f":"IF(A$6:A$24=\"\",COUNTIF('Crash Data'!M$21:M$64998,\"Other non-collision*\"),\"\")","v":0},0,17,"Other non-collision",21573.397365884997,23556.73294884654,15716.822545053328]
[null,{"$f":"IF(A$6:A$24=\"\",COUNTIF('Crash Data'!M$21:M$64998,\"Left*\"),\"\")","v":2},{"$f":"IF(C$1=F$5,IF(A24=\"\",B24*F24,A24*F24),IF(C$1=G$5,IF(A24=\"\",B24*G24,A24*G24),IF(C$1=H$5,IF(A24=\"\",B24*H24,A24*H24))))","v":124305.23315559865},18,"Left Turn",62152.616577799323,32613.848726524313,31612.377993527509]
[{"$f":"SUM(A6:A24)","v":0},{"$f":"SUM(B6:B24)","v":19},{"$f":"SUM(C6:C24)","v":757708.11195532209}]
[]
[]
[]
[null,null,"   Select Appropriate \"Location Type\" and Modify the \"User Override\" Cells in Yellow if Necessary",null,null,null,null,null,null,"TYPE_OF_CRASH_TXT"]
[null,null,null,null,null,null,null,null,null,"LEFT TURN"]
[null,null,null,null,null,null,null,null,null,"RIGHT TURN"]
[null,null,null,null,null,null,null,null,null,"RAN OFF ROAD"]
[null,null,null,null,null,null,null,null,null,"SIDESWIPE - MEETING"]
[null,null,null,null,null,null,null,null,null,"HEAD ON"]
[null,null,null,null,null,null,null,null,null,"OTHER NON-VEHICLE"]
[null,null,null,null,null,null,null,null,null,"SIDESWIPE - PASSING"]
[null,null,null,null,null,null,null,null,null,"OVERTURNING"]
[null,null,null,null,null,null,null,null,null,"PARKED VEHICLE"]
[null,null,null,null,null,null,null,null,null,"FIXED OBJECT"]
[null,null,null,null,null,null,null,null,null,"NOT STATED"]
[null,null,null,null,null,null,null,null,null,"BACKING"]
[null,null,null,null,null,null,null,null,null,"PEDALCYCLES"]
[null,null,null,null,null,null,null,null,null,"ANGLE"]
[null,null,null,null,null,null,null,null,null,"PEDESTRIAN"]
[null,null,null,null,null,null,null,null,null,"TRAIN"]
[null,null,null,null,null,null,null,null,null,"ANIMAL"]
[null,null,null,null,null,null,null,null,null,"OTHER OBJECT"]
[null,null,null,null,null,null,null,null,null,"REAR END"]
[null,null,null,null,null,null,null,null,null,"OTHER NON-COLLISION"]

{"sheet":"ROR Analysis","index":24,"n_rows":56,"n_cols":69,"rows_kept":56,"cut":false,"hidden":false,"merged":[[22,19,22,20],[23,19,23,20],[24,19,24,20],[25,19,25,20],[33,31,33,32],[8,31,8,32],[31,28,31,30],[31,31,31,32],[22,31,22,32],[23,31,23,32],[24,31,24,32],[25,31,25,32],[28,28,28,30],[21,28,21,30],[32,28,32,30],[32,31,32,32],[24,21,24,22],[27,31,27,32],[8,23,8,24],[30,19,30,20],[29,19,29,20],[21,12,21,13],[22,12,22,13],[23,12,23,13],[21,1,21,11],[22,1,22,11],[23,1,23,11],[24,1,24,11],[28,12,28,13],[35,12,35,13],[31,12,31,13],[32,12,32,13],[34,12,34,13],[33,12,33,13],[24,12,24,13],[25,12,25,13],[26,12,26,13],[27,12,27,13],[25,1,25,11],[3,23,3,25],[20,12,20,13],[20,0,20,11],[20,14,20,22],[20,23,20,32],[8,13,8,14],[8,15,8,16],[8,17,8,18],[8,1,8,2],[8,3,8,4],[7,1,7,6],[7,7,7,12],[3,2,3,5],[5,2,5,5],[3,10,3,15],[4,10,4,15],[5,7,5,9],[3,18,3,20],[5,18,5,20],[5,23,5,25],[7,13,7,32],[46,28,46,30],[43,24,43,26],[44,24,44,26],[46,24,46,26],[48,0,48,32],[49,10,49,12],[23,28,23,30],[24,28,24,30],[8,25,8,26],[8,21,8,22],[8,11,8,12],[36,31,36,32],[36,21,36,22],[8,19,8,20],[28,31,28,32],[29,31,29,32],[29,28,29,30],[38,0,38,4],[36,14,36,20],[37,0,37,32],[26,31,26,32],[26,19,26,20],[27,19,27,20],[29,12,29,13],[50,10,50,12],[44,28,44,30],[49,17,49,19],[50,17,50,19],[7,33,7,34],[38,6,38,7],[8,29,8,30],[8,9,8,10],[8,7,8,8],[8,5,8,6],[8,27,8,28],[30,31,30,32],[29,21,29,22],[30,21,30,22],[8,33,8,34],[28,21,28,22],[22,21,22,22],[23,21,23,22],[25,21,25,22],[25,28,25,30],[26,28,26,30],[27,28,27,30],[26,21,26,22],[22,28,22,30],[51,0,51,9],[51,10,51,12],[49,0,49,9],[50,0,50,9],[45,28,45,30],[42,0,42,32],[39,26,39,27],[40,16,40,19],[43,14,43,19],[40,20,40,21],[40,23,40,24],[39,6,39,7],[39,23,39,24],[44,14,44,19],[39,0,39,4],[40,0,40,4],[51,17,51,19],[39,16,39,19],[40,6,40,7],[40,26,40,27],[39,20,39,21],[50,21,50,24],[44,21,44,22],[46,21,46,22],[36,23,36,30],[33,28,33,30],[30,28,30,30],[27,21,27,22],[28,19,28,20],[43,28,43,30],[43,21,43,22],[30,12,30,13],[31,19,31,20],[31,21,31,22],[32,19,32,20],[32,21,32,22],[33,19,33,20],[33,21,33,22]]}
[null,null,null,null,null,null,null,null,null,null,null,null,null,"RATE OF RETURN - ECONOMIC ANALYSIS WORKSHEET"]
["Cells in Yellow Require User Input"]
[]
["County",null,{"$f":"'Crash Data'!D12","v":0},null,null,null,"Main Roadway",null,null,null,{"$f":"'Crash Data'!D13","v":0},null,null,null,null,null,"Begin SLM",null,{"$f":"'Crash Data'!D15","v":0},null,null,"End SLM",null,{"$f":"'Crash Data'!D16","v":0},null,null,null,null,null,"Office of Systems Planning &"]
[null,null,null,null,null,null,"Intersecting Roadway",null,null,null,null,null,null,null,null,null,null,null,null,null,null,null,null,null,null,null,null,null,null," Program Management"]
["Prepared by ",null,"MM",null,null,null,"Date",{"$f":"NOW()","v":"2017-04-27T21:06:56.570"},null,null,null,null,null,null,null,null,"Crash BDate",null,{"$f":"'Crash Data'!D17","v":0},null,null,"Crash EDate",null,{"$f":"'Crash Data'!D18","v":0}]
[]
["Year","TIME OF DAY",null,null,null,null,null,"ROADWAY CONDITION",null,null,null,null,null,"CRASH TYPE"]
[null,"DAY",null,"DAWN/DUSK",null,"DARK",null,"DRY",null,"WET",null,"SNOW / ICE",null,"REAR END",null,"LEFT",null,"RIGHT",null,"ANGLE",null,"HEAD ON",null,"SS PASS",null,"FIXED OBJ",null,"RAN OFF RD",null,"PEDESTRIAN",null,"OTHER",null,"TOTAL"]
[null,"PDO","I/F","PDO","I/F","PDO","I/F","PDO","I/F","PDO","I/F","PDO","I/F","PDO","I/F","PDO","I/F","PDO","I/F","PDO","I/F","PDO","I/F","PDO","I/F","PDO","I/F","PDO","I/F","PDO","I/F","PDO","I/F","PDO","I/F"]
[2010,{"$f":"COUNTIF('Crash Data'!BJ$21:BJ$64998,\"=\"&$A11)","v":0},{"$f":"COUNTIF('Crash Data'!BK$21:BK$64998,\"=\"&$A11)","v":0},{"$f":"COUNTIF('Crash Data'!BL$21:BL$64998,\"=\"&$A11)","v":0},{"$f":"COUNTIF('Crash Data'!BM$21:BM$64998,\"=\"&$A11)","v":0},{"$f":"COUNTIF('Crash Data'!BN$21:BN$64998,\"=\"&$A11)","v":0},{"$f":"COUNTIF('Crash Data'!BO$21:BO$64998,\"=\"&$A11)","v":0},{"$f":"COUNTIF('Crash Data'!BP$21:BP$64998,\"=\"&$A11)","v":0},{"$f":"COUNTIF('Crash Data'!BQ$21:BQ$64998,\"=\"&$A11)","v":0},{"$f":"COUNTIF('Crash Data'!BR$21:BR$64998,\"=\"&$A11)","v":0},{"$f":"COUNTIF('Crash Data'!BS$21:BS$64998,\"=\"&$A11)","v":0},{"$f":"COUNTIF('Crash Data'!BT$21:BT$64998,\"=\"&$A11)","v":0},{"$f":"COUNTIF('Crash Data'!BU$21:BU$64998,\"=\"&$A11)","v":0},{"$f":"COUNTIF('Crash Data'!BV$21:BV$64998,\"=\"&$A11)","v":0},{"$f":"COUNTIF('Crash Data'!BW$21:BW$64998,\"=\"&$A11)","v":0},{"$f":"COUNTIF('Crash Data'!BX$21:BX$64998,\"=\"&$A11)","v":0},{"$f":"COUNTIF('Crash Data'!BY$21:BY$64998,\"=\"&$A11)","v":0},{"$f":"COUNTIF('Crash Data'!BZ$21:BZ$64998,\"=\"&$A11)","v":0},{"$f":"COUNTIF('Crash Data'!CA$21:CA$64998,\"=\"&$A11)","v":0},{"$f":"COUNTIF('Crash Data'!CB$21:CB$64998,\"=\"&$A11)","v":0},{"$f":"COUNTIF('Crash Data'!CC$21:CC$64998,\"=\"&$A11)","v":0},{"$f":"COUNTIF('Crash Data'!CD$21:CD$64998,\"=\"&$A11)","v":0},{"$f":"COUNTIF('Crash Data'!CE$21:CE$64998,\"=\"&$A11)","v":0},{"$f":"COUNTIF('Crash Data'!CF$21:CF$64998,\"=\"&$A11)","v":0},{"$f":"COUNTIF('Crash Data'!CG$21:CG$64998,\"=\"&$A11)","v":0},{"$f":"COUNTIF('Crash Data'!CH$21:CH$64998,\"=\"&$A11)","v":0},{"$f":"COUNTIF('Crash Data'!CI$21:CI$64998,\"=\"&$A11)","v":0},{"$f":"COUNTIF('Crash Data'!CJ$21:CJ$64998,\"=\"&$A11)","v":0},{"$f":"COUNTIF('Crash Data'!CK$21:CK$64998,\"=\"&$A11)","v":0},{"$f":"COUNTIF('Crash Data'!CL$21:CL$64998,\"=\"&$A11)","v":0},{"$f":"COUNTIF('Crash Data'!CM$21:CM$64998,\"=\"&$A11)","v":0},{"$f":"COUNTIF('Crash Data'!CN$21:CN$64998,\"=\"&$A11)","v":0},{"$f":"COUNTIF('Crash Data'!CO$21:CO$64998,\"=\"&$A11)","v":0},{"$f":"N11+P11+R11+T11+V11+X11+Z11+AB11+AD11+AF11","v":0},0]
[{"$f":"A11+1","v":2011},{"$f":"COUNTIF('Crash Data'!BJ$21:BJ$64998,\"=\"&$A12)","v":0},{"$f":"COUNTIF('Crash Data'!BK$21:BK$64998,\"=\"&$A12)","v":0},{"$f":"COUNTIF('Crash Data'!BL$21:BL$64998,\"=\"&$A12)","v":0},{"$f":"COUNTIF('Crash Data'!BM$21:BM$64998,\"=\"&$A12)","v":0},{"$f":"COUNTIF('Crash Data'!BN$21:BN$64998,\"=\"&$A12)","v":0},{"$f":"COUNTIF('Crash Data'!BO$21:BO$64998,\"=\"&$A12)","v":0},{"$f":"COUNTIF('Crash Data'!BP$21:BP$64998,\"=\"&$A12)","v":0},{"$f":"COUNTIF('Crash Data'!BQ$21:BQ$64998,\"=\"&$A12)","v":0},{"$f":"COUNTIF('Crash Data'!BR$21:BR$64998,\"=\"&$A12)","v":0},{"$f":"COUNTIF('Crash Data'!BS$21:BS$64998,\"=\"&$A12)","v":0},{"$f":"COUNTIF('Crash Data'!BT$21:BT$64998,\"=\"&$A12)","v":0},{"$f":"COUNTIF('Crash Data'!BU$21:BU$64998,\"=\"&$A12)","v":0},{"$f":"COUNTIF('Crash Data'!BV$21:BV$64998,\"=\"&$A12)","v":0},{"$f":"COUNTIF('Crash Data'!BW$21:BW$64998,\"=\"&$A12)","v":0},{"$f":"COUNTIF('Crash Data'!BX$21:BX$64998,\"=\"&$A12)","v":0},{"$f":"COUNTIF('Crash Data'!BY$21:BY$64998,\"=\"&$A12)","v":0},{"$f":"COUNTIF('Crash Data'!BZ$21:BZ$64998,\"=\"&$A12)","v":0},{"$f":"COUNTIF('Crash Data'!CA$21:CA$64998,\"=\"&$A12)","v":0},{"$f":"COUNTIF('Crash Data'!CB$21:CB$64998,\"=\"&$A12)","v":0},{"$f":"COUNTIF('Crash Data'!CC$21:CC$64998,\"=\"&$A12)","v":0},{"$f":"COUNTIF('Crash Data'!CD$21:CD$64998,\"=\"&$A12)","v":0},{"$f":"COUNTIF('Crash Data'!CE$21:CE$64998,\"=\"&$A12)","v":0},{"$f":"COUNTIF('Crash Data'!CF$21:CF$64998,\"=\"&$A12)","v":0},{"$f":"COUNTIF('Crash Data'!CG$21:CG$64998,\"=\"&$A12)","v":0},{"$f":"COUNTIF('Crash Data'!CH$21:CH$64998,\"=\"&$A12)","v":0},{"$f":"COUNTIF('Crash Data'!CI$21:CI$64998,\"=\"&$A12)","v":0},{"$f":"COUNTIF('Crash Data'!CJ$21:CJ$64998,\"=\"&$A12)","v":0},{"$f":"COUNTIF('Crash Data'!CK$21:CK$64998,\"=\"&$A12)","v":0},{"$f":"COUNTIF('Crash Data'!CL$21:CL$64998,\"=\"&$A12)","v":0},{"$f":"COUNTIF('Crash Data'!CM$21:CM$64998,\"=\"&$A12)","v":0},{"$f":"COUNTIF('Crash Data'!CN$21:CN$64998,\"=\"&$A12)","v":0},{"$f":"COUNTIF('Crash Data'!CO$21:CO$64998,\"=\"&$A12)","v":0},0,0]
[{"$f":"A12+1","v":2012},{"$f":"COUNTIF('Crash Data'!BJ$21:BJ$64998,\"=\"&$A13)","v":0},{"$f":"COUNTIF('Crash Data'!BK$21:BK$64998,\"=\"&$A13)","v":0},{"$f":"COUNTIF('Crash Data'!BL$21:BL$64998,\"=\"&$A13)","v":0},{"$f":"COUNTIF('Crash Data'!BM$21:BM$64998,\"=\"&$A13)","v":0},{"$f":"COUNTIF('Crash Data'!BN$21:BN$64998,\"=\"&$A13)","v":0},{"$f":"COUNTIF('Crash Data'!BO$21:BO$64998,\"=\"&$A13)","v":0},{"$f":"COUNTIF('Crash Data'!BP$21:BP$64998,\"=\"&$A13)","v":0},{"$f":"COUNTIF('Crash Data'!BQ$21:BQ$64998,\"=\"&$A13)","v":0},{"$f":"COUNTIF('Crash Data'!BR$21:BR$64998,\"=\"&$A13)","v":0},{"$f":"COUNTIF('Crash Data'!BS$21:BS$64998,\"=\"&$A13)","v":0},{"$f":"COUNTIF('Crash Data'!BT$21:BT$64998,\"=\"&$A13)","v":0},{"$f":"COUNTIF('Crash Data'!BU$21:BU$64998,\"=\"&$A13)","v":0},{"$f":"COUNTIF('Crash Data'!BV$21:BV$64998,\"=\"&$A13)","v":0},{"$f":"COUNTIF('Crash Data'!BW$21:BW$64998,\"=\"&$A13)","v":0},{"$f":"COUNTIF('Crash Data'!BX$21:BX$64998,\"=\"&$A13)","v":0},{"$f":"COUNTIF('Crash Data'!BY$21:BY$64998,\"=\"&$A13)","v":0},{"$f":"COUNTIF('Crash Data'!BZ$21:BZ$64998,\"=\"&$A13)","v":0},{"$f":"COUNTIF('Crash Data'!CA$21:CA$64998,\"=\"&$A13)","v":0},{"$f":"COUNTIF('Crash Data'!CB$21:CB$64998,\"=\"&$A13)","v":0},{"$f":"COUNTIF('Crash Data'!CC$21:CC$64998,\"=\"&$A13)","v":0},{"$f":"COUNTIF('Crash Data'!CD$21:CD$64998,\"=\"&$A13)","v":0},{"$f":"COUNTIF('Crash Data'!CE$21:CE$64998,\"=\"&$A13)","v":0},{"$f":"COUNTIF('Crash Data'!CF$21:CF$64998,\"=\"&$A13)","v":0},{"$f":"COUNTIF('Crash Data'!CG$21:CG$64998,\"=\"&$A13)","v":0},{"$f":"COUNTIF('Crash Data'!CH$21:CH$64998,\"=\"&$A13)","v":0},{"$f":"COUNTIF('Crash Data'!CI$21:CI$64998,\"=\"&$A13)","v":0},{"$f":"COUNTIF('Crash Data'!CJ$21:CJ$64998,\"=\"&$A13)","v":0},{"$f":"COUNTIF('Crash Data'!CK$21:CK$64998,\"=\"&$A13)","v":0},{"$f":"COUNTIF('Crash Data'!CL$21:CL$64998,\"=\"&$A13)","v":0},{"$f":"COUNTIF('Crash Data'!CM$21:CM$64998,\"=\"&$A13)","v":0},{"$f":"COUNTIF('Crash Data'!CN$21:CN$64998,\"=\"&$A13)","v":0},{"$f":"COUNTIF('Crash Data'!CO$21:CO$64998,\"=\"&$A13)","v":0},0,0]
[2013,{"$f":"COUNTIF('Crash Data'!BJ$21:BJ$64998,\"=\"&$A14)","v":0},{"$f":"COUNTIF('Crash Data'!BK$21:BK$64998,\"=\"&$A14)","v":0},{"$f":"COUNTIF('Crash Data'!BL$21:BL$64998,\"=\"&$A14)","v":0},{"$f":"COUNTIF('Crash Data'!BM$21:BM$64998,\"=\"&$A14)","v":0},{"$f":"COUNTIF('Crash Data'!BN$21:BN$64998,\"=\"&$A14)","v":0},{"$f":"COUNTIF('Crash Data'!BO$21:BO$64998,\"=\"&$A14)","v":0},{"$f":"COUNTIF('Crash Data'!BP$21:BP$64998,\"=\"&$A14)","v":0},{"$f":"COUNTIF('Crash Data'!BQ$21:BQ$64998,\"=\"&$A14)","v":0},{"$f":"COUNTIF('Crash Data'!BR$21:BR$64998,\"=\"&$A14)","v":0},{"$f":"COUNTIF('Crash Data'!BS$21:BS$64998,\"=\"&$A14)","v":0},{"$f":"COUNTIF('Crash Data'!BT$21:BT$64998,\"=\"&$A14)","v":0},{"$f":"COUNTIF('Crash Data'!BU$21:BU$64998,\"=\"&$A14)","v":0},{"$f":"COUNTIF('Crash Data'!BV$21:BV$64998,\"=\"&$A14)","v":0},{"$f":"COUNTIF('Crash Data'!BW$21:BW$64998,\"=\"&$A14)","v":0},{"$f":"COUNTIF('Crash Data'!BX$21:BX$64998,\"=\"&$A14)","v":0},{"$f":"COUNTIF('Crash Data'!BY$21:BY$64998,\"=\"&$A14)","v":0},{"$f":"COUNTIF('Crash Data'!BZ$21:BZ$64998,\"=\"&$A14)","v":0},{"$f":"COUNTIF('Crash Data'!CA$21:CA$64998,\"=\"&$A14)","v":0},{"$f":"COUNTIF('Crash Data'!CB$21:CB$64998,\"=\"&$A14)","v":0},{"$f":"COUNTIF('Crash Data'!CC$21:CC$64998,\"=\"&$A14)","v":0},{"$f":"COUNTIF('Crash Data'!CD$21:CD$64998,\"=\"&$A14)","v":0},{"$f":"COUNTIF('Crash Data'!CE$21:CE$64998,\"=\"&$A14)","v":0},{"$f":"COUNTIF('Crash Data'!CF$21:CF$64998,\"=\"&$A14)","v":0},{"$f":"COUNTIF('Crash Data'!CG$21:CG$64998,\"=\"&$A14)","v":0},{"$f":"COUNTIF('Crash Data'!CH$21:CH$64998,\"=\"&$A14)","v":0},{"$f":"COUNTIF('Crash Data'!CI$21:CI$64998,\"=\"&$A14)","v":0},{"$f":"COUNTIF('Crash Data'!CJ$21:CJ$64998,\"=\"&$A14)","v":0},{"$f":"COUNTIF('Crash Data'!CK$21:CK$64998,\"=\"&$A14)","v":0},{"$f":"COUNTIF('Crash Data'!CL$21:CL$64998,\"=\"&$A14)","v":0},{"$f":"COUNTIF('Crash Data'!CM$21:CM$64998,\"=\"&$A14)","v":0},{"$f":"COUNTIF('Crash Data'!CN$21:CN$64998,\"=\"&$A14)","v":0},{"$f":"COUNTIF('Crash Data'!CO$21:CO$64998,\"=\"&$A14)","v":0},0,0]
[2014,{"$f":"COUNTIF('Crash Data'!BJ$21:BJ$64998,\"=\"&$A15)","v":0},{"$f":"COUNTIF('Crash Data'!BK$21:BK$64998,\"=\"&$A15)","v":0},{"$f":"COUNTIF('Crash Data'!BL$21:BL$64998,\"=\"&$A15)","v":0},{"$f":"COUNTIF('Crash Data'!BM$21:BM$64998,\"=\"&$A15)","v":0},{"$f":"COUNTIF('Crash Data'!BN$21:BN$64998,\"=\"&$A15)","v":0},{"$f":"COUNTIF('Crash Data'!BO$21:BO$64998,\"=\"&$A15)","v":0},{"$f":"COUNTIF('Crash Data'!BP$21:BP$64998,\"=\"&$A15)","v":0},{"$f":"COUNTIF('Crash Data'!BQ$21:BQ$64998,\"=\"&$A15)","v":0},{"$f":"COUNTIF('Crash Data'!BR$21:BR$64998,\"=\"&$A15)","v":0},{"$f":"COUNTIF('Crash Data'!BS$21:BS$64998,\"=\"&$A15)","v":0},{"$f":"COUNTIF('Crash Data'!BT$21:BT$64998,\"=\"&$A15)","v":0},{"$f":"COUNTIF('Crash Data'!BU$21:BU$64998,\"=\"&$A15)","v":0},{"$f":"COUNTIF('Crash Data'!BV$21:BV$64998,\"=\"&$A15)","v":0},{"$f":"COUNTIF('Crash Data'!BW$21:BW$64998,\"=\"&$A15)","v":0},{"$f":"COUNTIF('Crash Data'!BX$21:BX$64998,\"=\"&$A15)","v":0},{"$f":"COUNTIF('Crash Data'!BY$21:BY$64998,\"=\"&$A15)","v":0},{"$f":"COUNTIF('Crash Data'!BZ$21:BZ$64998,\"=\"&$A15)","v":0},{"$f":"COUNTIF('Crash Data'!CA$21:CA$64998,\"=\"&$A15)","v":0},{"$f":"COUNTIF('Crash Data'!CB$21:CB$64998,\"=\"&$A15)","v":0},{"$f":"COUNTIF('Crash Data'!CC$21:CC$64998,\"=\"&$A15)","v":0},{"$f":"COUNTIF('Crash Data'!CD$21:CD$64998,\"=\"&$A15)","v":0},{"$f":"COUNTIF('Crash Data'!CE$21:CE$64998,\"=\"&$A15)","v":0},{"$f":"COUNTIF('Crash Data'!CF$21:CF$64998,\"=\"&$A15)","v":0},{"$f":"COUNTIF('Crash Data'!CG$21:CG$64998,\"=\"&$A15)","v":0},{"$f":"COUNTIF('Crash Data'!CH$21:CH$64998,\"=\"&$A15)","v":0},{"$f":"COUNTIF('Crash Data'!CI$21:CI$64998,\"=\"&$A15)","v":0},{"$f":"COUNTIF('Crash Data'!CJ$21:CJ$64998,\"=\"&$A15)","v":0},{"$f":"COUNTIF('Crash Data'!CK$21:CK$64998,\"=\"&$A15)","v":0},{"$f":"COUNTIF('Crash Data'!CL$21:CL$64998,\"=\"&$A15)","v":0},{"$f":"COUNTIF('Crash Data'!CM$21:CM$64998,\"=\"&$A15)","v":0},{"$f":"COUNTIF('Crash Data'!CN$21:CN$64998,\"=\"&$A15)","v":0},{"$f":"COUNTIF('Crash Data'!CO$21:CO$64998,\"=\"&$A15)","v":0},0,0]
[2015,{"$f":"COUNTIF('Crash Data'!BJ$21:BJ$64998,\"=\"&$A16)","v":0},{"$f":"COUNTIF('Crash Data'!BK$21:BK$64998,\"=\"&$A16)","v":0},{"$f":"COUNTIF('Crash Data'!BL$21:BL$64998,\"=\"&$A16)","v":0},{"$f":"COUNTIF('Crash Data'!BM$21:BM$64998,\"=\"&$A16)","v":0},{"$f":"COUNTIF('Crash Data'!BN$21:BN$64998,\"=\"&$A16)","v":0},{"$f":"COUNTIF('Crash Data'!BO$21:BO$64998,\"=\"&$A16)","v":0},{"$f":"COUNTIF('Crash Data'!BP$21:BP$64998,\"=\"&$A16)","v":0},{"$f":"COUNTIF('Crash Data'!BQ$21:BQ$64998,\"=\"&$A16)","v":0},{"$f":"COUNTIF('Crash Data'!BR$21:BR$64998,\"=\"&$A16)","v":0},{"$f":"COUNTIF('Crash Data'!BS$21:BS$64998,\"=\"&$A16)","v":0},{"$f":"COUNTIF('Crash Data'!BT$21:BT$64998,\"=\"&$A16)","v":0},{"$f":"COUNTIF('Crash Data'!BU$21:BU$64998,\"=\"&$A16)","v":0},{"$f":"COUNTIF('Crash Data'!BV$21:BV$64998,\"=\"&$A16)","v":0},{"$f":"COUNTIF('Crash Data'!BW$21:BW$64998,\"=\"&$A16)","v":0},{"$f":"COUNTIF('Crash Data'!BX$21:BX$64998,\"=\"&$A16)","v":0},{"$f":"COUNTIF('Crash Data'!BY$21:BY$64998,\"=\"&$A16)","v":0},{"$f":"COUNTIF('Crash Data'!BZ$21:BZ$64998,\"=\"&$A16)","v":0},{"$f":"COUNTIF('Crash Data'!CA$21:CA$64998,\"=\"&$A16)","v":0},{"$f":"COUNTIF('Crash Data'!CB$21:CB$64998,\"=\"&$A16)","v":0},{"$f":"COUNTIF('Crash Data'!CC$21:CC$64998,\"=\"&$A16)","v":0},{"$f":"COUNTIF('Crash Data'!CD$21:CD$64998,\"=\"&$A16)","v":0},{"$f":"COUNTIF('Crash Data'!CE$21:CE$64998,\"=\"&$A16)","v":0},{"$f":"COUNTIF('Crash Data'!CF$21:CF$64998,\"=\"&$A16)","v":0},{"$f":"COUNTIF('Crash Data'!CG$21:CG$64998,\"=\"&$A16)","v":0},{"$f":"COUNTIF('Crash Data'!CH$21:CH$64998,\"=\"&$A16)","v":0},{"$f":"COUNTIF('Crash Data'!CI$21:CI$64998,\"=\"&$A16)","v":0},{"$f":"COUNTIF('Crash Data'!CJ$21:CJ$64998,\"=\"&$A16)","v":0},{"$f":"COUNTIF('Crash Data'!CK$21:CK$64998,\"=\"&$A16)","v":0},{"$f":"COUNTIF('Crash Data'!CL$21:CL$64998,\"=\"&$A16)","v":0},{"$f":"COUNTIF('Crash Data'!CM$21:CM$64998,\"=\"&$A16)","v":0},{"$f":"COUNTIF('Crash Data'!CN$21:CN$64998,\"=\"&$A16)","v":0},{"$f":"COUNTIF('Crash Data'!CO$21:CO$64998,\"=\"&$A16)","v":0},0,0]
[]
["TOTAL",{"$f":"SUM(B13:B15)","v":0},{"$f":"SUM(C13:C15)","v":0},0,0,0,0,0,0,0,0,0,0,0,0,0,0,0,0,0,0,0,0,0,0,0,0,0,0,0,0,0,0,0,0]
["AVG.",{"$f":"AVERAGE(B13:B15)","v":0},{"$f":"AVERAGE(C13:C15)","v":0},0,0,0,0,0,0,0,0,0,0,0,0,0,0,0,0,0,0,0,0,0,0,0,0,0,0,0,0,0,0,0,0]
["--The \"TOTAL\" and \"AVERAGE\" row formulas are set to only use 2009-2011 crash data.  If the crash data is not for these three years, the formulas must be modified by the user to calculate the associated year data."]
["RECOMMENDED IMPROVEMENTS",null,null,null,null,null,null,null,null,null,null,null,"CRASH TYPE",null,"PDO CRASHES",null,null,null,null,null,null,null,null,"INJ. - FAT.  CRASHES",null,null,null,null,null,null,null,null,null,null,null,null,null,"When using multiple countermeasures, the total reduction fator is:"]
[null,"Select Countermeasures",null,null,null,null,null,null,null,null,null,null,null,null,"R1","R2","R3","R4","RT","AVG PDO",null,"EST. RED. ",null,"R1","R2","R3","R4","RT","AVG INJ-FAT",null,null,"EST. RED. ",null,null,null,null,null,"R1 + (1-R1)R2 + (1-R1)(1-R2)R3 + (1-R1) (1-R2)(1-R3)R4 + …….. = RT"]
["R1",null,null,null,null,null,null,null,null,null,null,null,{"$f":"P9","v":"LEFT"},null,{"$f":"IF($B$23=\"\",0,IF(OR($O$32>0,$O$33>0),,INDEX('CRF Table_Rev'!$D$5:$Z$60000,MATCH($B$23,'CRF Table_Rev'!$D$5:$D$60000,0),MATCH($M23,'CRF Table_Rev'!$D$5:$Z$5,0))))","v":0},{"$f":"IF($B$24=\"\",0,IF(OR($P$32>0,$P$33>0),,INDEX('CRF Table_Rev'!$D$5:$Z$60000,MATCH($B$24,'CRF Table_Rev'!$D$5:$D$60000,0),MATCH($M23,'CRF Table_Rev'!$D$5:$Z$5,0))))","v":0},{"$f":"IF($B$25=\"\",0,IF(OR($Q$32>0,$Q$33>0),,INDEX('CRF Table_Rev'!$D$5:$Z$60000,MATCH($B$25,'CRF Table_Rev'!$D$5:$D$60000,0),MATCH($M23,'CRF Table_Rev'!$D$5:$Z$5,0))))","v":0},{"$f":"IF($B$26=\"\",0,IF(OR($R$32>0,$R$33>0),,INDEX('CRF Table_Rev'!$D$5:$Z$60000,MATCH($B$26,'CRF Table_Rev'!$D$5:$D$60000,0),MATCH($M23,'CRF Table_Rev'!$D$5:$Z$5,0))))","v":0},{"$f":"O23+(1-O23)*P23+(1-O23)*(1-P23)*Q23+(1-O23)*(1-P23)*(1-Q23)*R23","v":0},{"$f":"P19","v":0},null,{"$f":"S23*T23","v":0},null,{"$f":"IF($B$23=\"\",0,IF(OR($X$32>0,$X$33>0),,INDEX('CRF Table_Rev'!$AA$5:$AM$60000,MATCH($B$23,'CRF Table_Rev'!$D$5:$D$60000,0),MATCH($M23,'CRF Table_Rev'!$AA$5:$AM$5,0))))","v":0},{"$f":"IF($B$24=\"\",0,IF(OR($Y$32>0,$Y$33>0),,INDEX('CRF Table_Rev'!$AA$5:$AM$60000,MATCH($B$24,'CRF Table_Rev'!$D$5:$D$60000,0),MATCH($M23,'CRF Table_Rev'!$AA$5:$AM$5,0))))","v":0},{"$f":"IF($B$25=\"\",0,IF(OR($Z$32>0,$Z$33>0),,INDEX('CRF Table_Rev'!$AA$5:$AM$60000,MATCH($B$25,'CRF Table_Rev'!$D$5:$D$60000,0),MATCH($M23,'CRF Table_Rev'!$AA$5:$AM$5,0))))","v":0},{"$f":"IF($B$26=\"\",0,IF(OR($AA$32>0,$AA$33>0),,INDEX('CRF Table_Rev'!$AA$5:$AM$60000,MATCH($B$26,'CRF Table_Rev'!$D$5:$D$60000,0),MATCH($M23,'CRF Table_Rev'!$AA$5:$AM$5,0))))","v":0},{"$f":"X23+(1-X23)*Y23+(1-X23)*(1-Y23)*Z23+(1-X23)*(1-Y23)*(1-Z23)*AA23","v":0},{"$f":"Q19","v":0},null,null,{"$f":"AB23*AC23","v":0}]
["R2",null,null,null,null,null,null,null,null,null,null,null,{"$f":"R9","v":"RIGHT"},null,{"$f":"IF($B$23=\"\",0,IF(OR($O$32>0,$O$33>0),,INDEX('CRF Table_Rev'!$D$5:$Z$60000,MATCH($B$23,'CRF Table_Rev'!$D$5:$D$60000,0),MATCH($M24,'CRF Table_Rev'!$D$5:$Z$5,0))))","v":0},{"$f":"IF($B$24=\"\",0,IF(OR($P$32>0,$P$33>0),,INDEX('CRF Table_Rev'!$D$5:$Z$60000,MATCH($B$24,'CRF Table_Rev'!$D$5:$D$60000,0),MATCH($M24,'CRF Table_Rev'!$D$5:$Z$5,0))))","v":0},{"$f":"IF($B$25=\"\",0,IF(OR($Q$32>0,$Q$33>0),,INDEX('CRF Table_Rev'!$D$5:$Z$60000,MATCH($B$25,'CRF Table_Rev'!$D$5:$D$60000,0),MATCH($M24,'CRF Table_Rev'!$D$5:$Z$5,0))))","v":0},{"$f":"IF($B$26=\"\",0,IF(OR($R$32>0,$R$33>0),,INDEX('CRF Table_Rev'!$D$5:$Z$60000,MATCH($B$26,'CRF Table_Rev'!$D$5:$D$60000,0),MATCH($M24,'CRF Table_Rev'!$D$5:$Z$5,0))))","v":0},0,{"$f":"R19","v":0},null,0,null,{"$f":"IF($B$23=\"\",0,IF(OR($X$32>0,$X$33>0),,INDEX('CRF Table_Rev'!$AA$5:$AM$60000,MATCH($B$23,'CRF Table_Rev'!$D$5:$D$60000,0),MATCH($M24,'CRF Table_Rev'!$AA$5:$AM$5,0))))","v":0},{"$f":"IF($B$24=\"\",0,IF(OR($Y$32>0,$Y$33>0),,INDEX('CRF Table_Rev'!$AA$5:$AM$60000,MATCH($B$24,'CRF Table_Rev'!$D$5:$D$60000,0),MATCH($M24,'CRF Table_Rev'!$AA$5:$AM$5,0))))","v":0},{"$f":"IF($B$25=\"\",0,IF(OR($Z$32>0,$Z$33>0),,INDEX('CRF Table_Rev'!$AA$5:$AM$60000,MATCH($B$25,'CRF Table_Rev'!$D$5:$D$60000,0),MATCH($M24,'CRF Table_Rev'!$AA$5:$AM$5,0))))","v":0},{"$f":"IF($B$26=\"\",0,IF(OR($AA$32>0,$AA$33>0),,INDEX('CRF Table_Rev'!$AA$5:$AM$60000,MATCH($B$26,'CRF Table_Rev'!$D$5:$D$60000,0),MATCH($M24,'CRF Table_Rev'!$AA$5:$AM$5,0))))","v":0},0,{"$f":"S19","v":0},null,null,0,null,null,null,null,null,"Cost of crashes for determing ROR (Updated - 2012)"]
["R3",null,null,null,null,null,null,null,null,null,null,null,{"$f":"T9","v":"ANGLE"},null,{"$f":"IF($B$23=\"\",0,IF(OR($O$32>0,$O$33>0),,INDEX('CRF Table_Rev'!$D$5:$Z$60000,MATCH($B$23,'CRF Table_Rev'!$D$5:$D$60000,0),MATCH($M25,'CRF Table_Rev'!$D$5:$Z$5,0))))","v":0},{"$f":"IF($B$24=\"\",0,IF(OR($P$32>0,$P$33>0),,INDEX('CRF Table_Rev'!$D$5:$Z$60000,MATCH($B$24,'CRF Table_Rev'!$D$5:$D$60000,0),MATCH($M25,'CRF Table_Rev'!$D$5:$Z$5,0))))","v":0},{"$f":"IF($B$25=\"\",0,IF(OR($Q$32>0,$Q$33>0),,INDEX('CRF Table_Rev'!$D$5:$Z$60000,MATCH($B$25,'CRF Table_Rev'!$D$5:$D$60000,0),MATCH($M25,'CRF Table_Rev'!$D$5:$Z$5,0))))","v":0},{"$f":"IF($B$26=\"\",0,IF(OR($R$32>0,$R$33>0),,INDEX('CRF Table_Rev'!$D$5:$Z$60000,MATCH($B$26,'CRF Table_Rev'!$D$5:$D$60000,0),MATCH($M25,'CRF Table_Rev'!$D$5:$Z$5,0))))","v":0},0,{"$f":"T19","v":0},null,0,null,{"$f":"IF($B$23=\"\",0,IF(OR($X$32>0,$X$33>0),,INDEX('CRF Table_Rev'!$AA$5:$AM$60000,MATCH($B$23,'CRF Table_Rev'!$D$5:$D$60000,0),MATCH($M25,'CRF Table_Rev'!$AA$5:$AM$5,0))))","v":0},{"$f":"IF($B$24=\"\",0,IF(OR($Y$32>0,$Y$33>0),,INDEX('CRF Table_Rev'!$AA$5:$AM$60000,MATCH($B$24,'CRF Table_Rev'!$D$5:$D$60000,0),MATCH($M25,'CRF Table_Rev'!$AA$5:$AM$5,0))))","v":0},{"$f":"IF($B$25=\"\",0,IF(OR($Z$32>0,$Z$33>0),,INDEX('CRF Table_Rev'!$AA$5:$AM$60000,MATCH($B$25,'CRF Table_Rev'!$D$5:$D$60000,0),MATCH($M25,'CRF Table_Rev'!$AA$5:$AM$5,0))))","v":0},{"$f":"IF($B$26=\"\",0,IF(OR($AA$32>0,$AA$33>0),,INDEX('CRF Table_Rev'!$AA$5:$AM$60000,MATCH($B$26,'CRF Table_Rev'!$D$5:$D$60000,0),MATCH($M25,'CRF Table_Rev'!$AA$5:$AM$5,0))))","v":0},0,{"$f":"U19","v":0},null,null,0,null,null,null,null,null,"PDO ","INJ/FAT","SYSTEM "]
["R4",null,null,null,null,null,null,null,null,null,null,null,{"$f":"N9","v":"REAR END"},null,{"$f":"IF($B$23=\"\",0,IF(OR($O$32>0,$O$33>0),,INDEX('CRF Table_Rev'!$D$5:$Z$60000,MATCH($B$23,'CRF Table_Rev'!$D$5:$D$60000,0),MATCH($M26,'CRF Table_Rev'!$D$5:$Z$5,0))))","v":0},{"$f":"IF($B$24=\"\",0,IF(OR($P$32>0,$P$33>0),,INDEX('CRF Table_Rev'!$D$5:$Z$60000,MATCH($B$24,'CRF Table_Rev'!$D$5:$D$60000,0),MATCH($M26,'CRF Table_Rev'!$D$5:$Z$5,0))))","v":0},{"$f":"IF($B$25=\"\",0,IF(OR($Q$32>0,$Q$33>0),,INDEX('CRF Table_Rev'!$D$5:$Z$60000,MATCH($B$25,'CRF Table_Rev'!$D$5:$D$60000,0),MATCH($M26,'CRF Table_Rev'!$D$5:$Z$5,0))))","v":0},{"$f":"IF($B$26=\"\",0,IF(OR($R$32>0,$R$33>0),,INDEX('CRF Table_Rev'!$D$5:$Z$60000,MATCH($B$26,'CRF Table_Rev'!$D$5:$D$60000,0),MATCH($M26,'CRF Table_Rev'!$D$5:$Z$5,0))))","v":0},0,{"$f":"N19","v":0},null,0,null,{"$f":"IF($B$23=\"\",0,IF(OR($X$32>0,$X$33>0),,INDEX('CRF Table_Rev'!$AA$5:$AM$60000,MATCH($B$23,'CRF Table_Rev'!$D$5:$D$60000,0),MATCH($M26,'CRF Table_Rev'!$AA$5:$AM$5,0))))","v":0},{"$f":"IF($B$24=\"\",0,IF(OR($Y$32>0,$Y$33>0),,INDEX('CRF Table_Rev'!$AA$5:$AM$60000,MATCH($B$24,'CRF Table_Rev'!$D$5:$D$60000,0),MATCH($M26,'CRF Table_Rev'!$AA$5:$AM$5,0))))","v":0},{"$f":"IF($B$25=\"\",0,IF(OR($Z$32>0,$Z$33>0),,INDEX('CRF Table_Rev'!$AA$5:$AM$60000,MATCH($B$25,'CRF Table_Rev'!$D$5:$D$60000,0),MATCH($M26,'CRF Table_Rev'!$AA$5:$AM$5,0))))","v":0},{"$f":"IF($B$26=\"\",0,IF(OR($AA$32>0,$AA$33>0),,INDEX('CRF Table_Rev'!$AA$5:$AM$60000,MATCH($B$26,'CRF Table_Rev'!$D$5:$D$60000,0),MATCH($M26,'CRF Table_Rev'!$AA$5:$AM$5,0))))","v":0},0,{"$f":"O19","v":0},null,null,0,null,null,null,null,null,8576,78201,"Rural State Highways"]
[null,null,null,null,null,null,null,null,null,null,null,null,{"$f":"V9","v":"HEAD ON"},null,{"$f":"IF($B$23=\"\",0,IF(OR($O$32>0,$O$33>0),,INDEX('CRF Table_Rev'!$D$5:$Z$60000,MATCH($B$23,'CRF Table_Rev'!$D$5:$D$60000,0),MATCH($M27,'CRF Table_Rev'!$D$5:$Z$5,0))))","v":0},{"$f":"IF($B$24=\"\",0,IF(OR($P$32>0,$P$33>0),,INDEX('CRF Table_Rev'!$D$5:$Z$60000,MATCH($B$24,'CRF Table_Rev'!$D$5:$D$60000,0),MATCH($M27,'CRF Table_Rev'!$D$5:$Z$5,0))))","v":0},{"$f":"IF($B$25=\"\",0,IF(OR($Q$32>0,$Q$33>0),,INDEX('CRF Table_Rev'!$D$5:$Z$60000,MATCH($B$25,'CRF Table_Rev'!$D$5:$D$60000,0),MATCH($M27,'CRF Table_Rev'!$D$5:$Z$5,0))))","v":0},{"$f":"IF($B$26=\"\",0,IF(OR($R$32>0,$R$33>0),,INDEX('CRF Table_Rev'!$D$5:$Z$60000,MATCH($B$26,'CRF Table_Rev'!$D$5:$D$60000,0),MATCH($M27,'CRF Table_Rev'!$D$5:$Z$5,0))))","v":0},0,{"$f":"V19","v":0},null,0,null,{"$f":"IF($B$23=\"\",0,IF(OR($X$32>0,$X$33>0),,INDEX('CRF Table_Rev'!$AA$5:$AM$60000,MATCH($B$23,'CRF Table_Rev'!$D$5:$D$60000,0),MATCH($M27,'CRF Table_Rev'!$AA$5:$AM$5,0))))","v":0},{"$f":"IF($B$24=\"\",0,IF(OR($Y$32>0,$Y$33>0),,INDEX('CRF Table_Rev'!$AA$5:$AM$60000,MATCH($B$24,'CRF Table_Rev'!$D$5:$D$60000,0),MATCH($M27,'CRF Table_Rev'!$AA$5:$AM$5,0))))","v":0},{"$f":"IF($B$25=\"\",0,IF(OR($Z$32>0,$Z$33>0),,INDEX('CRF Table_Rev'!$AA$5:$AM$60000,MATCH($B$25,'CRF Table_Rev'!$D$5:$D$60000,0),MATCH($M27,'CRF Table_Rev'!$AA$5:$AM$5,0))))","v":0},{"$f":"IF($B$26=\"\",0,IF(OR($AA$32>0,$AA$33>0),,INDEX('CRF Table_Rev'!$AA$5:$AM$60000,MATCH($B$26,'CRF Table_Rev'!$D$5:$D$60000,0),MATCH($M27,'CRF Table_Rev'!$AA$5:$AM$5,0))))","v":0},0,{"$f":"W19","v":0},null,null,0,null,null,null,null,null,8576,78201,"Counties and Unincorporated Villages"]
[null,null,null,null,null,null,null,null,null,null,null,null,{"$f":"X9","v":"SS PASS"},null,{"$f":"IF($B$23=\"\",0,IF(OR($O$32>0,$O$33>0),,INDEX('CRF Table_Rev'!$D$5:$Z$60000,MATCH($B$23,'CRF Table_Rev'!$D$5:$D$60000,0),MATCH($M28,'CRF Table_Rev'!$D$5:$Z$5,0))))","v":0},{"$f":"IF($B$24=\"\",0,IF(OR($P$32>0,$P$33>0),,INDEX('CRF Table_Rev'!$D$5:$Z$60000,MATCH($B$24,'CRF Table_Rev'!$D$5:$D$60000,0),MATCH($M28,'CRF Table_Rev'!$D$5:$Z$5,0))))","v":0},{"$f":"IF($B$25=\"\",0,IF(OR($Q$32>0,$Q$33>0),,INDEX('CRF Table_Rev'!$D$5:$Z$60000,MATCH($B$25,'CRF Table_Rev'!$D$5:$D$60000,0),MATCH($M28,'CRF Table_Rev'!$D$5:$Z$5,0))))","v":0},{"$f":"IF($B$26=\"\",0,IF(OR($R$32>0,$R$33>0),,INDEX('CRF Table_Rev'!$D$5:$Z$60000,MATCH($B$26,'CRF Table_Rev'!$D$5:$D$60000,0),MATCH($M28,'CRF Table_Rev'!$D$5:$Z$5,0))))","v":0},0,{"$f":"X19","v":0},null,0,null,{"$f":"IF($B$23=\"\",0,IF(OR($X$32>0,$X$33>0),,INDEX('CRF Table_Rev'!$AA$5:$AM$60000,MATCH($B$23,'CRF Table_Rev'!$D$5:$D$60000,0),MATCH($M28,'CRF Table_Rev'!$AA$5:$AM$5,0))))","v":0},{"$f":"IF($B$24=\"\",0,IF(OR($Y$32>0,$Y$33>0),,INDEX('CRF Table_Rev'!$AA$5:$AM$60000,MATCH($B$24,'CRF Table_Rev'!$D$5:$D$60000,0),MATCH($M28,'CRF Table_Rev'!$AA$5:$AM$5,0))))","v":0},{"$f":"IF($B$25=\"\",0,IF(OR($Z$32>0,$Z$33>0),,INDEX('CRF Table_Rev'!$AA$5:$AM$60000,MATCH($B$25,'CRF Table_Rev'!$D$5:$D$60000,0),MATCH($M28,'CRF Table_Rev'!$AA$5:$AM$5,0))))","v":0},{"$f":"IF($B$26=\"\",0,IF(OR($AA$32>0,$AA$33>0),,INDEX('CRF Table_Rev'!$AA$5:$AM$60000,MATCH($B$26,'CRF Table_Rev'!$D$5:$D$60000,0),MATCH($M28,'CRF Table_Rev'!$AA$5:$AM$5,0))))","v":0},0,{"$f":"Y19","v":0},null,null,0,null,null,null,null,null,8576,78201,"Cities and Incorporated Villages"]
[null,null,null,null,null,null,null,null,null,null,null,null,{"$f":"Z9","v":"FIXED OBJ"},null,{"$f":"IF($B$23=\"\",0,IF(OR($O$32>0,$O$33>0),,INDEX('CRF Table_Rev'!$D$5:$Z$60000,MATCH($B$23,'CRF Table_Rev'!$D$5:$D$60000,0),MATCH($M29,'CRF Table_Rev'!$D$5:$Z$5,0))))","v":0},{"$f":"IF($B$24=\"\",0,IF(OR($P$32>0,$P$33>0),,INDEX('CRF Table_Rev'!$D$5:$Z$60000,MATCH($B$24,'CRF Table_Rev'!$D$5:$D$60000,0),MATCH($M29,'CRF Table_Rev'!$D$5:$Z$5,0))))","v":0},{"$f":"IF($B$25=\"\",0,IF(OR($Q$32>0,$Q$33>0),,INDEX('CRF Table_Rev'!$D$5:$Z$60000,MATCH($B$25,'CRF Table_Rev'!$D$5:$D$60000,0),MATCH($M29,'CRF Table_Rev'!$D$5:$Z$5,0))))","v":0},{"$f":"IF($B$26=\"\",0,IF(OR($R$32>0,$R$33>0),,INDEX('CRF Table_Rev'!$D$5:$Z$60000,MATCH($B$26,'CRF Table_Rev'!$D$5:$D$60000,0),MATCH($M29,'CRF Table_Rev'!$D$5:$Z$5,0))))","v":0},0,{"$f":"Z19","v":0},null,0,null,{"$f":"IF($B$23=\"\",0,IF(OR($X$32>0,$X$33>0),,INDEX('CRF Table_Rev'!$AA$5:$AM$60000,MATCH($B$23,'CRF Table_Rev'!$D$5:$D$60000,0),MATCH($M29,'CRF Table_Rev'!$AA$5:$AM$5,0))))","v":0},{"$f":"IF($B$24=\"\",0,IF(OR($Y$32>0,$Y$33>0),,INDEX('CRF Table_Rev'!$AA$5:$AM$60000,MATCH($B$24,'CRF Table_Rev'!$D$5:$D$60000,0),MATCH($M29,'CRF Table_Rev'!$AA$5:$AM$5,0))))","v":0},{"$f":"IF($B$25=\"\",0,IF(OR($Z$32>0,$Z$33>0),,INDEX('CRF Table_Rev'!$AA$5:$AM$60000,MATCH($B$25,'CRF Table_Rev'!$D$5:$D$60000,0),MATCH($M29,'CRF Table_Rev'!$AA$5:$AM$5,0))))","v":0},{"$f":"IF($B$26=\"\",0,IF(OR($AA$32>0,$AA$33>0),,INDEX('CRF Table_Rev'!$AA$5:$AM$60000,MATCH($B$26,'CRF Table_Rev'!$D$5:$D$60000,0),MATCH($M29,'CRF Table_Rev'!$AA$5:$AM$5,0))))","v":0},0,{"$f":"AA19","v":0},null,null,0]
[null,null,null,null,null,null,null,null,null,null,null,null,{"$f":"AB9","v":"RAN OFF RD"},null,{"$f":"IF($B$23=\"\",,IF(VLOOKUP($B$23,'CRF Table_Rev'!$D:$I,6,FALSE)=\"Yes\",VLOOKUP($B$23,'CRF Table_Rev'!$D$5:$Q$60000,14,FALSE),0))","v":0},{"$f":"IF($B$24=\"\",,IF(VLOOKUP($B$24,'CRF Table_Rev'!$D:$I,6,FALSE)=\"Yes\",VLOOKUP($B$24,'CRF Table_Rev'!$D$5:$Q$60000,14,FALSE),0))","v":0},{"$f":"IF($B$25=\"\",,IF(VLOOKUP($B$25,'CRF Table_Rev'!$D:$I,6,FALSE)=\"Yes\",VLOOKUP($B$25,'CRF Table_Rev'!$D$5:$Q$60000,14,FALSE),0))","v":0},{"$f":"IF($B$26=\"\",,IF(VLOOKUP($B$26,'CRF Table_Rev'!$D:$I,6,FALSE)=\"Yes\",VLOOKUP($B$26,'CRF Table_Rev'!$D$5:$Q$60000,14,FALSE),0))","v":0},0,{"$f":"AB19","v":0},null,0,null,{"$f":"IF($B$23=\"\",,IF(VLOOKUP($B$23,'CRF Table_Rev'!$D:$I,6,FALSE)=\"Yes\",VLOOKUP($B$23,'CRF Table_Rev'!$AA$5:$AD$60000,4,FALSE),0))","v":0},{"$f":"IF($B$24=\"\",,IF(VLOOKUP($B$24,'CRF Table_Rev'!$D:$I,6,FALSE)=\"Yes\",VLOOKUP($B$24,'CRF Table_Rev'!$AA$5:$AD$60000,4,FALSE),0))","v":0},{"$f":"IF($B$25=\"\",,IF(VLOOKUP($B$25,'CRF Table_Rev'!$D:$I,6,FALSE)=\"Yes\",VLOOKUP($B$25,'CRF Table_Rev'!$AA$5:$AD$60000,4,FALSE),0))","v":0},{"$f":"IF($B$26=\"\",,IF(VLOOKUP($B$26,'CRF Table_Rev'!$D:$I,6,FALSE)=\"Yes\",VLOOKUP($B$26,'CRF Table_Rev'!$AA$5:$AD$60000,4,FALSE),0))","v":0},0,{"$f":"AC19","v":0},null,null,0]
[null,null,null,null,null,null,null,null,null,null,null,null,{"$f":"AF9","v":"OTHER"},null,{"$f":"IF($B$23=\"\",0,IF(OR($O$32>0,$O$33>0),,INDEX('CRF Table_Rev'!$D$5:$Z$60000,MATCH($B$23,'CRF Table_Rev'!$D$5:$D$60000,0),MATCH($M31,'CRF Table_Rev'!$D$5:$Z$5,0))))","v":0},{"$f":"IF($B$24=\"\",0,IF(OR($P$32>0,$P$33>0),,INDEX('CRF Table_Rev'!$D$5:$Z$60000,MATCH($B$24,'CRF Table_Rev'!$D$5:$D$60000,0),MATCH($M31,'CRF Table_Rev'!$D$5:$Z$5,0))))","v":0},{"$f":"IF($B$25=\"\",0,IF(OR($Q$32>0,$Q$33>0),,INDEX('CRF Table_Rev'!$D$5:$Z$60000,MATCH($B$25,'CRF Table_Rev'!$D$5:$D$60000,0),MATCH($M31,'CRF Table_Rev'!$D$5:$Z$5,0))))","v":0},{"$f":"IF($B$26=\"\",0,IF(OR($R$32>0,$R$33>0),,INDEX('CRF Table_Rev'!$D$5:$Z$60000,MATCH($B$26,'CRF Table_Rev'!$D$5:$D$60000,0),MATCH($M31,'CRF Table_Rev'!$D$5:$Z$5,0))))","v":0},0,{"$f":"AF19","v":0},null,0,null,{"$f":"IF($B$23=\"\",0,IF(OR($X$32>0,$X$33>0),,INDEX('CRF Table_Rev'!$AA$5:$AM$60000,MATCH($B$23,'CRF Table_Rev'!$D$5:$D$60000,0),MATCH($M31,'CRF Table_Rev'!$AA$5:$AM$5,0))))","v":0},{"$f":"IF($B$24=\"\",0,IF(OR($Y$32>0,$Y$33>0),,INDEX('CRF Table_Rev'!$AA$5:$AM$60000,MATCH($B$24,'CRF Table_Rev'!$D$5:$D$60000,0),MATCH($M31,'CRF Table_Rev'!$AA$5:$AM$5,0))))","v":0},{"$f":"IF($B$25=\"\",0,IF(OR($Z$32>0,$Z$33>0),,INDEX('CRF Table_Rev'!$AA$5:$AM$60000,MATCH($B$25,'CRF Table_Rev'!$D$5:$D$60000,0),MATCH($M31,'CRF Table_Rev'!$AA$5:$AM$5,0))))","v":0},{"$f":"IF($B$26=\"\",0,IF(OR($AA$32>0,$AA$33>0),,INDEX('CRF Table_Rev'!$AA$5:$AM$60000,MATCH($B$26,'CRF Table_Rev'!$D$5:$D$60000,0),MATCH($M31,'CRF Table_Rev'!$AA$5:$AM$5,0))))","v":0},0,{"$f":"AG19","v":0},null,null,0,null,null,null,null,null,"Do Not Modify Cells Below"]
[null,null,null,null,null,null,null,null,null,null,null,null,"NIGHT",null,{"$f":"IF($B$23=\"\",,IF(VLOOKUP($B$23,'CRF Table_Rev'!$D:$I,5,FALSE)=\"Yes\",VLOOKUP($B$23,'CRF Table_Rev'!$D$5:$Q$60000,12,FALSE),0))","v":0},{"$f":"IF($B$24=\"\",,IF(VLOOKUP($B$24,'CRF Table_Rev'!$D:$I,5,FALSE)=\"Yes\",VLOOKUP($B$24,'CRF Table_Rev'!$D$5:$Q$60000,12,FALSE),0))","v":0},{"$f":"IF($B$25=\"\",,IF(VLOOKUP($B$25,'CRF Table_Rev'!$D:$I,5,FALSE)=\"Yes\",VLOOKUP($B$25,'CRF Table_Rev'!$D$5:$Q$60000,12,FALSE),0))","v":0},{"$f":"IF($B$26=\"\",,IF(VLOOKUP($B$26,'CRF Table_Rev'!$D:$I,5,FALSE)=\"Yes\",VLOOKUP($B$26,'CRF Table_Rev'!$D$5:$Q$60000,12,FALSE),0))","v":0},0,{"$f":"F19","v":0},null,0,null,{"$f":"IF($B$23=\"\",,IF(VLOOKUP($B$23,'CRF Table_Rev'!$D:$I,5,FALSE)=\"Yes\",VLOOKUP($B$23,'CRF Table_Rev'!$AA$5:$AD$60000,2,FALSE),0))","v":0},{"$f":"IF($B$24=\"\",,IF(VLOOKUP($B$24,'CRF Table_Rev'!$D:$I,5,FALSE)=\"Yes\",VLOOKUP($B$24,'CRF Table_Rev'!$AA$5:$AD$60000,2,FALSE),0))","v":0},{"$f":"IF($B$25=\"\",,IF(VLOOKUP($B$25,'CRF Table_Rev'!$D:$I,5,FALSE)=\"Yes\",VLOOKUP($B$25,'CRF Table_Rev'!$AA$5:$AD$60000,2,FALSE),0))","v":0},{"$f":"IF($B$26=\"\",,IF(VLOOKUP($B$26,'CRF Table_Rev'!$D:$I,5,FALSE)=\"Yes\",VLOOKUP($B$26,'CRF Table_Rev'!$AA$5:$AD$60000,2,FALSE),0))","v":0},0,{"$f":"G19","v":0},null,null,0,null,null,null,null,null,3]
[null,null,null,null,null,null,null,null,null,null,null,null,{"$f":"J9","v":"WET"},null,{"$f":"IF($B$23=\"\",,IF(VLOOKUP($B$23,'CRF Table_Rev'!$D:$I,4,FALSE)=\"Yes\",VLOOKUP($B$23,'CRF Table_Rev'!$D$5:$Q$60000,13,FALSE),0))","v":0},{"$f":"IF($B$24=\"\",,IF(VLOOKUP($B$24,'CRF Table_Rev'!$D:$I,4,FALSE)=\"Yes\",VLOOKUP($B$24,'CRF Table_Rev'!$D$5:$Q$60000,13,FALSE),0))","v":0},{"$f":"IF($B$25=\"\",,IF(VLOOKUP($B$25,'CRF Table_Rev'!$D:$I,4,FALSE)=\"Yes\",VLOOKUP($B$25,'CRF Table_Rev'!$D$5:$Q$60000,13,FALSE),0))","v":0},{"$f":"IF($B$26=\"\",,IF(VLOOKUP($B$26,'CRF Table_Rev'!$D:$I,4,FALSE)=\"Yes\",VLOOKUP($B$26,'CRF Table_Rev'!$D$5:$Q$60000,13,FALSE),0))","v":0},0,{"$f":"J19","v":0},null,0,null,{"$f":"IF($B$23=\"\",,IF(VLOOKUP($B$23,'CRF Table_Rev'!$D:$I,4,FALSE)=\"Yes\",VLOOKUP($B$23,'CRF Table_Rev'!$AA$5:$AD$60000,3,FALSE),0))","v":0},{"$f":"IF($B$24=\"\",,IF(VLOOKUP($B$24,'CRF Table_Rev'!$D:$I,4,FALSE)=\"Yes\",VLOOKUP($B$24,'CRF Table_Rev'!$AA$5:$AD$60000,3,FALSE),0))","v":0},{"$f":"IF($B$25=\"\",,IF(VLOOKUP($B$25,'CRF Table_Rev'!$D:$I,4,FALSE)=\"Yes\",VLOOKUP($B$25,'CRF Table_Rev'!$AA$5:$AD$60000,3,FALSE),0))","v":0},{"$f":"IF($B$26=\"\",,IF(VLOOKUP($B$26,'CRF Table_Rev'!$D:$I,4,FALSE)=\"Yes\",VLOOKUP($B$26,'CRF Table_Rev'!$AA$5:$AD$60000,3,FALSE),0))","v":0},0,{"$f":"K19","v":0},null,null,0,null,null,null,null,null,5]
[null,null,null,null,null,null,null,null,null,null,null,null,{"$f":"AD9","v":"PEDESTRIAN"},null,{"$f":"IF($B$23=\"\",0,IF(OR($O$32>0,$O$33>0),,INDEX('CRF Table_Rev'!$D$5:$Z$60000,MATCH($B$23,'CRF Table_Rev'!$D$5:$D$60000,0),MATCH($M34,'CRF Table_Rev'!$D$5:$Z$5,0))))","v":0},{"$f":"IF($B$24=\"\",0,IF(OR($P$32>0,$P$33>0),,INDEX('CRF Table_Rev'!$D$5:$Z$60000,MATCH($B$24,'CRF Table_Rev'!$D$5:$D$60000,0),MATCH($M34,'CRF Table_Rev'!$D$5:$Z$5,0))))","v":0},{"$f":"IF($B$25=\"\",0,IF(OR($Q$32>0,$Q$33>0),,INDEX('CRF Table_Rev'!$D$5:$Z$60000,MATCH($B$25,'CRF Table_Rev'!$D$5:$D$60000,0),MATCH($M34,'CRF Table_Rev'!$D$5:$Z$5,0))))","v":0},{"$f":"IF($B$26=\"\",0,IF(OR($R$32>0,$R$33>0),,INDEX('CRF Table_Rev'!$D$5:$Z$60000,MATCH($B$26,'CRF Table_Rev'!$D$5:$D$60000,0),MATCH($M34,'CRF Table_Rev'!$D$5:$Z$5,0))))","v":0},0,{"$f":"AD19","v":0},null,0,null,{"$f":"IF($B$23=\"\",0,IF(OR($X$32>0,$X$33>0),,INDEX('CRF Table_Rev'!$AA$5:$AM$60000,MATCH($B$23,'CRF Table_Rev'!$D$5:$D$60000,0),MATCH($M34,'CRF Table_Rev'!$AA$5:$AM$5,0))))","v":0},{"$f":"IF($B$24=\"\",0,IF(OR($Y$32>0,$Y$33>0),,INDEX('CRF Table_Rev'!$AA$5:$AM$60000,MATCH($B$24,'CRF Table_Rev'!$D$5:$D$60000,0),MATCH($M34,'CRF Table_Rev'!$AA$5:$AM$5,0))))","v":0},{"$f":"IF($B$25=\"\",0,IF(OR($Z$32>0,$Z$33>0),,INDEX('CRF Table_Rev'!$AA$5:$AM$60000,MATCH($B$25,'CRF Table_Rev'!$D$5:$D$60000,0),MATCH($M34,'CRF Table_Rev'!$AA$5:$AM$5,0))))","v":0},{"$f":"IF($B$26=\"\",0,IF(OR($AA$32>0,$AA$33>0),,INDEX('CRF Table_Rev'!$AA$5:$AM$60000,MATCH($B$26,'CRF Table_Rev'!$D$5:$D$60000,0),MATCH($M34,'CRF Table_Rev'!$AA$5:$AM$5,0))))","v":0},0,{"$f":"AE19","v":0},null,null,0,null,null,null,null,null,10]
[null,null,null,null,null,null,null,null,null,null,null,null,null,null,null,null,null,null,null,null,null,null,null,null,null,null,null,null,null,null,null,null,null,null,null,null,null,15]
[null,null,null,null,null,null,null,null,null,null,null,null,null,null,null,null,null,null,null,null,null,null,null,null,null,null,null,null,null,null,null,null,null,null,null,null,null,20]
[null,null,null,null,null,null,null,null,null,null,null,null,null,null,"ESTIMATED PDO CRASH REDUCTION = ",null,null,null,null,null,null,{"$f":"SUM(V23:W34)","v":0},null,"ESTIMATED INJ. - FAT.   CRASH REDUCTION = ",null,null,null,null,null,null,null,{"$f":"SUM(AF23:AG34)","v":0},null,null,null,null,null,25]
["ADT Factor",null,null,null,null,null,null,null,null,null,null,null,null,null,null,null,null,null,null,null,null,null,null,null,null,null,null,null,null,null,null,null,null,null,null,null,null,30]
["Project Service Life",null,null,null,null,{"$f":"IF($B$23=\"\",0,VLOOKUP(B23,'CRF Table_Rev'!$D$5:$E$60000,2,FALSE))","v":0},"years"]
["Present ADT (PADT)",null,null,null,null,22465,"veh / day",null,null,null,null,null,null,"Average ADT = ",null,null,"(PADT + FADT)/2   =  (",null,null,null,{"$f":"F40","v":22465},null,"+",{"$f":"F41","v":24560},null,") =",{"$f":"(U40+X40)/2","v":23512.5}]
["Future ADT (FADT)",null,null,null,null,24560,"veh / day",null,null,null,null,null,null,"ADT Factor =",null,null,"Average ADT / PADT =",null,null,null,{"$f":"AA40","v":23512.5},null,"/",{"$f":"F40","v":22465},null,"=",{"$f":"U41/X41","v":1.0466280881371022},null,null,null,null,null,null,null,null,null,null,"NPV",0,1,2,3,4,5,6,7,8,9,10,11,12,13,14,15,16,17,18,19,20,21,22,23,24,25,26,27,28,29,30]
[null,null,null,null,null,null,null,null,null,null,null,null,null,null,null,null,null,null,null,null,null,null,null,null,null,null,null,null,null,null,null,null,null,null,null,null,"3 Years",{"$f":"NPV($Z$51,AN42:BG42,$K$52)-$K$50","v":{"$error":"#VALUE!"}},{"$f":"-$K$50","v":-1300000},{"$f":"$AC$47-$K$51","v":0},0,{"$f":"$AC$47-$K$51+$K$52","v":0}]
["Average Annual Benefits",null,null,null,null,null,null,null,null,null,null,null,null,null,null,null,null,null,null,null,null,null,null,null,null,null,null,null,null,null,null,null,null,null,null,null,"5 Years",{"$f":"NPV($Z$51,AN43:BG43,$K$52)-$K$50","v":{"$error":"#VALUE!"}},-1300000,0,0,{"$f":"$AC$47-$K$51","v":0},0,{"$f":"$AC$47-$K$51+$K$52","v":0}]
["Annual PDO Benefits = Estimated PDO Crash Reduction * Avg PDO Cost",null,null,null,null,null,null,null,null,null,null,null,null,null,"Select Facility Type Below:",null,null,null,null,null,"=",{"$f":"V37","v":0},null,"*",{"$f":"IF(O45=\"Rural State Highways\",AL26,IF(O45=\"Counties and Unincorporated Villages\",AL27,AL28))","v":8576},null,null,"=",{"$f":"V44*Y44","v":0},null,null,null,null,null,null,null,"10 Years",{"$f":"NPV(Z51,AN44:AW44,K52)-K50","v":{"$error":"#VALUE!"}},-1300000,0,0,0,0,{"$f":"$AC$47-$K$51","v":0},0,0,0,0,{"$f":"$AC$47-$K$51+$K$52","v":0}]
["Annual INJ.-FAT. Benefits = Estimated INJ.-FAT. Crash Reduction * Avg INJ.-FAT. Cost",null,null,null,null,null,null,null,null,null,null,null,null,null,"Rural State Highways",null,null,null,null,null,"=",{"$f":"AF37","v":0},null,"*",{"$f":"IF(O45=\"Rural State Highways\",AM26,IF(O45=\"Counties and Unincorporated Villages\",AM27,AM28))","v":78201},null,null,"=",{"$f":"V45*Y45","v":0},null,null,null,null,null,null,null,"15 Years",{"$f":"NPV(Z51,AN45:BB45,K52)-K50","v":{"$error":"#VALUE!"}},-1300000,0,0,0,0,0,0,0,0,0,{"$f":"$AC$47-$K$51","v":0},0,0,0,0,{"$f":"$AC$47-$K$51+$K$52","v":0}]
["Total Benefits",null,null,null,null,null,null,null,null,null,null,null,null,null,null,null,null,null,null,null,null,null,null,null,null,null,null,"=",{"$f":"SUM(AC44:AE45)","v":0},null,null,null,null,null,null,null,"20 Years",{"$f":"NPV($Z$51,AN46:BG46,$K$52)-$K$50","v":{"$error":"#VALUE!"}},-1300000,0,0,0,0,0,0,0,0,0,0,0,0,0,0,{"$f":"$AC$47-$K$51","v":0},0,0,0,0,{"$f":"$AC$47-$K$51+$K$52","v":0}]
["AverageAnnual Benefits = Total Benefits *  ADT Factor",null,null,null,null,null,null,null,null,null,null,null,null,null,null,null,null,null,null,null,"=",{"$f":"AA41","v":1.0466280881371022},null,"*",{"$f":"AC46","v":0},null,null,"=",{"$f":"Y47*V47","v":0},null,null,null,null,null,null,null,"25 Years",{"$f":"NPV(Z51,AN47:BL47,K52)-K50","v":{"$error":"#VALUE!"}},-1300000,0,0,0,0,0,0,0,0,0,0,0,0,0,0,0,0,0,0,0,{"$f":"$AC$47-$K$51","v":0},0,0,0,0,{"$f":"$AC$47-$K$51+$K$52","v":0}]
[null,null,null,null,null,null,null,null,null,null,null,null,null,null,null,null,null,null,null,null,null,null,null,null,null,null,null,null,null,null,null,null,null,null,null,null,"30 Years",{"$f":"NPV(Z51,AN48:BQ48,K52)-K50","v":{"$error":"#VALUE!"}},-1300000,0,0,0,0,0,0,0,0,0,0,0,0,0,0,0,0,0,0,0,0,0,0,0,0,{"$f":"$AC$47-$K$51","v":0},{"$f":"$AC$47-$K$51","v":0},{"$f":"$AC$47-$K$51","v":0},{"$f":"$AC$47-$K$51","v":0},{"$f":"$AC$47-$K$51","v":0},{"$f":"$AC$47-$K$51+$K$52","v":0}]
["Rate of Return"]
["Total Safety Project Cost (Design, Right-of-Way, and Construction)",null,null,null,null,null,null,null,null,null,{"$f":"R50+R51+R52","v":1300000},null,null,null,"Design (PE)",null,null,{"$f":"IF(R52<100000,0,R52*0.1)","v":100000}]
["Annual Maintenance and Energy Costs",null,null,null,null,null,null,null,null,null,0,null,null,null,"Right-of-Way",null,null,200000,null,null,null,"Rate of Return",null,null,null,{"$f":"IF(F39=20,IRR(AM46:BG46,-0.2),IF(F39=10,IRR(AM44:AW44,-0.2),IF(F39=15,IRR(AM45:BB45,-0.2),IF(F39=25,IRR(AM47:BL47,-0.2),IF(F39=30,IRR(AM48:BQ48,-0.2),IF(F39=5,IRR(AM43:AR43,-0.2),IF(F39=3,IRR(AM42:AP42,-0.2),\"Invalid Service Life\")))))))","v":"Invalid Service Life"}]
["Salvage Value",null,null,null,null,null,null,null,null,null,0,null,null,null,"Construction",null,null,1000000]
["See Text Box Below for Additional Details on Project Costs for ODOT Safety Projects"]
[null,null,null,null,null,null,null,null,null,null,null,null,null,null,null,null,null,null,null,null,null,"Please note:  if the ROR value is displayed as #NUM! or #DIV/0!, the ROR is "]
[null,null,null,null,null,null,null,null,null,null,null,null,null,null,null,null,null,null,null,null,null,"either an extremely large positive or negative value and cannot be calculated "]
[null,null,null,null,null,null,null,null,null,null,null,null,null,null,null,null,null,null,null,null,null,"within a reasonable number of iterations."]

{"sheet":"Safety App","index":25,"n_rows":51,"n_cols":38,"rows_kept":51,"cut":false,"hidden":false,"merged":[[20,10,20,11],[20,12,20,13],[20,14,20,15],[13,10,13,12],[11,10,11,12],[18,0,18,15],[20,0,20,1],[20,2,20,3],[20,4,20,5],[20,6,20,7],[20,8,20,9]]}
[]
[]
[]
[]
[]
["Location","Location Type","Facility Type","Begin Log","End Log","Length","Fatal Crashes","Injury Crashes","PDO Crashes","Total Crashes","Fatalities","Incapacitating Injuries","# of Years","ADT (Or Intersection Entering Volume)","Truck ADT","V/C"]
[{"$f":"'Crash Data'!D12&\"-\"&'Crash Data'!D13&'Crash Data'!D14","v":"-"},null,{"$f":"G34","v":"Rural Non-Freeway"},{"$f":"'Crash Data'!D15","v":0},{"$f":"'Crash Data'!D16","v":0},{"$f":"IF(B7=\"Section\",E7-D7,1)","v":1},{"$f":"IF(ISERROR(VLOOKUP(\"FATAL CRASH\",'Data Analysis'!$A$10:$B$12,2,FALSE)),VALUE(0),VLOOKUP(\"FATAL CRASH\",'Data Analysis'!$A$10:$B$12,2,FALSE))","v":0},{"$f":"IF(ISERROR(VLOOKUP(\"INJURY CRASH\",'Data Analysis'!$A$10:$B$12,2,FALSE)),VALUE(0),VLOOKUP(\"INJURY CRASH\",'Data Analysis'!$A$10:$B$12,2,FALSE))","v":7},{"$f":"IF(ISERROR(VLOOKUP(\"PROPERTY DAMAGE CRASH\",'Data Analysis'!$A$10:$B$12,2,FALSE)),VALUE(0),VLOOKUP(\"PROPERTY DAMAGE CRASH\",'Data Analysis'!$A$10:$B$12,2,FALSE))","v":14},{"$f":"SUM(G7:I7)","v":21},{"$f":"VLOOKUP(\"Grand Total\",'Data Analysis'!$K$23:$M$39,2,FALSE)","v":0},{"$f":"VLOOKUP(\"Grand Total\",'Data Analysis'!$K$23:$M$39,3,FALSE)","v":0},3]
[]
["Year",2012,null,"Rate of Return:  ",{"$f":"IF('ROR Analysis'!Z51=\"Invalid Service Life\",\"\",IF(ISERROR('ROR Analysis'!Z51),VALUE(0),'ROR Analysis'!Z51))","v":""},null,null,null,null,null,"High Risk Rural Road Calculation:  ",{"$f":"IF(ISERROR(((K7+L7)*100000000)/(M7*365*F7*N7)),VALUE(0),((K7+L7)*100000000)/(M7*365*F7*N7))","v":0}]
["SafetyAnalyst Rank",null,null,null,null,null,null,null," (Fatalities & Incapacitating Injuries per 100 MVMT or Entering Vehicles)"]
["HRRR Rank"]
[null,null,null,null,null,null,null,null,null,"Functional Class :  "]
[null,null,null,null,null,null,null,null,"(Must be Rural Major Collector, Minor Collector, or Rural Local Road for HRRR Funding)"]
[null,null,null,null,null,null,null,null,null,"HRRR Eligible :  ",{"$f":"IF(K12=0,\"\",IF(L9>VLOOKUP(K12,$AK$36:$AL$38,2,FALSE),\"Yes\",\"No\"))","v":""}]
[]
[]
[]
[]
["Safety Project Scoring"]
[]
["Crash Frequency (10)",null,"Crash Density (10)",null,"Crash Rate (10)",null,"RSI (15)",null,"EPDO Rate (5)",null,"% Trucks (5)",null,"Rate of Return (5)",null,"V/C Ratio (5)"]
["Value","Score","Value","Score","Value","Score","Value","Score","Value","Score","Value","Score","Value","Score","Value","Score"]
[{"$f":"IF(ISERROR(IF(B7=\"Intersection\",J7,\"\")),VALUE(0),IF(B7=\"Intersection\",J7,\"\"))","v":""},{"$f":"IF(ISERROR(IF($B$7=\"Section\",\"\",VLOOKUP(A23,$Q$36:$R$46,2,TRUE))),VALUE(0),IF($B$7=\"Section\",\"\",VLOOKUP(A23,$Q$36:$R$46,2,TRUE)))","v":0},{"$f":"IF(ISERROR(IF(B7=\"Section\",J7/F7,\"\")),VALUE(0),IF(B7=\"Section\",J7/F7,\"\"))","v":""},{"$f":"IF(ISERROR(IF($B$7=\"Intersection\",\"\",VLOOKUP(C23,$S$36:$T$46,2,TRUE))),VALUE(0),IF($B$7=\"Intersection\",\"\",VLOOKUP(C23,$S$36:$T$46,2,TRUE)))","v":0},{"$f":"IF(ISERROR((J7*1000000)/(M7*365*F7*N7)),VALUE(0),(J7*1000000)/(M7*365*F7*N7))","v":0},{"$f":"IF(ISERROR(VLOOKUP(E23,$U$36:$V$46,2,TRUE)),VALUE(0),(VLOOKUP(E23,$U$36:$V$46,2,TRUE)))","v":0},{"$f":"IF(ISERROR(G32),VALUE(0),G32)","v":39879.374313438006},{"$f":"IF(ISERROR(VLOOKUP(G23,$W$36:$X$51,2,TRUE)),VALUE(0),VLOOKUP(G23,$W$36:$X$51,2,TRUE))","v":15},{"$f":"IF(ISERROR(((AI36*G7+AI37*H7+AI38*I7)*1000000)/(N7*M7*365*F7)),VALUE(0),((AI36*G7+AI37*H7+AI38*I7)*1000000)/(N7*M7*365*F7))","v":0},{"$f":"IF(ISERROR(VLOOKUP(I23,$Y$36:$Z$51,2,TRUE)),VALUE(0),VLOOKUP(I23,$Y$36:$Z$51,2,TRUE))","v":0},{"$f":"IF(ISERROR(O7/N7),VALUE(0),O7/N7)","v":0},{"$f":"IF(ISERROR(VLOOKUP(K23,$AA$36:$AB$51,2,TRUE)),VALUE(0),VLOOKUP(K23,$AA$36:$AB$51,2,TRUE))","v":0},{"$f":"IF(ISERROR(E9),VALUE(0),E9)","v":""},{"$f":"IF(ISERROR(VLOOKUP(M23,$AC$36:$AD$51,2,TRUE)),VALUE(0),VLOOKUP(M23,$AC$36:$AD$51,2,TRUE))","v":0},{"$f":"IF(ISERROR(P7),VALUE(0),P7)","v":0},{"$f":"IF(ISERROR(VLOOKUP(O23,$AE$36:$AF$51,2,TRUE)),VALUE(0),VLOOKUP(O23,$AE$36:$AF$51,2,TRUE))","v":0}]
[]
["Total Score =",{"$f":"IF(B7=\"Section\",D23+F23+H23+J23+L23+N23+P23,IF(B7=\"Intersection\",B23+F23+H23+J23+L23+N23+P23,\"\"))","v":""}]
[]
[]
[]
[]
[]
[]
[null,null,null,null,null,"RSI Value = ",{"$f":"'Severity Calc Sheet'!C3","v":39879.374313438006}]
[]
[null,null,null,null,null,null,{"$f":"'Severity Calc Sheet'!C1","v":"Rural Non-Freeway"}]
[null,null,null,null,null,null,null,null,null,null,null,null,null,null,null,null,"Crash Frequency","Points","Crash Density","Points","Crash Rate","Points","RSI","Points","EPDO Rate","Points","% Trucks","Points","Rate of Return","Points","V/C","Points",null,"2012 EPDO Factors",null,null,null,"2011 HRRR Local Values"]
[null,null,null,null,null,null,null,null,null,null,null,null,null,null,null,null,0,0,0,0,0,0,0,0,0,0,0,0,0,0,0,0,"Rural Non-Freeway","Fatal Crash",194.63,"Section","Rural Major Collector",10.44]
[null,null,null,null,null,null,null,null,null,null,null,null,null,null,null,null,10,1,10,1,1,1,21000,1,5,1,0.05,1,0.05,1,0.6,1,"Urban Non-Freeway","Injury Crash",6.58,"Intersection","Rural Minor Collector",12.65]
[null,null,null,null,null,null,null,null,null,null,null,null,null,null,null,null,15,2,20,2,1.5,2,22000,2,10,2,0.1,2,0.1,2,0.7,2,"Freeway","PDO Crash",1,null,"Rural Local Road",4.59]
[null,null,null,null,null,null,null,null,null,null,null,null,null,null,null,null,20,3,30,3,2,3,23000,3,20,3,0.15,3,0.15,3,0.8,3]
[null,null,null,null,null,null,null,null,null,null,null,null,null,null,null,null,25,4,40,4,2.5,4,24000,4,30,4,0.2,4,0.2,4,0.9,4]
[null,null,null,null,null,null,null,null,null,null,null,null,null,null,null,null,30,5,50,5,3,5,25000,5,40,5,0.25,5,0.25,5,1,5]
[null,null,null,null,null,null,null,null,null,null,null,null,null,null,null,null,35,6,60,6,3.5,6,26000,6]
[null,null,null,null,null,null,null,null,null,null,null,null,null,null,null,null,40,7,70,7,4,7,27000,7]
[null,null,null,null,null,null,null,null,null,null,null,null,null,null,null,null,45,8,80,8,4.5,8,28000,8]
[null,null,null,null,null,null,null,null,null,null,null,null,null,null,null,null,50,9,90,9,5,9,29000,9]
[null,null,null,null,null,null,null,null,null,null,null,null,null,null,null,null,55,10,100,10,5.5,10,30000,10]
[null,null,null,null,null,null,null,null,null,null,null,null,null,null,null,null,null,null,null,null,null,null,31000,11]
[null,null,null,null,null,null,null,null,null,null,null,null,null,null,null,null,null,null,null,null,null,null,32000,12]
[null,null,null,null,null,null,null,null,null,null,null,null,null,null,null,null,null,null,null,null,null,null,33000,13]
[null,null,null,null,null,null,null,null,null,null,null,null,null,null,null,null,null,null,null,null,null,null,34000,14]
[null,null,null,null,null,null,null,null,null,null,null,null,null,null,null,null,null,null,null,null,null,null,35000,15]

{"sheet":"CRF Table_Rev","index":26,"n_rows":123,"n_cols":39,"rows_kept":123,"cut":false,"hidden":false,"merged":[[1,14,3,25],[1,27,3,38]]}
["Estimates of Countermeasure Effectiveness Reduction (CRF) Factors"]
[null,null,null,null,null,null,null,null,null,null,null,null,null,null,"Property Damage Only Crashes",null,null,null,null,null,null,null,null,null,null,null,null,"Injury / Fatal Crashes"]
[]
[]
["CMF ID","Study Title","Countermeasure Category","Countermeasure","Service Life","Intersection Related (Y/N)","Wet Pavement Related","Night Related","Ran off Road","Publication Year","Star Quality Rating","All","PDO","INJ/FAT","Night","WET","RAN OFF RD","LEFT","RIGHT","ANGLE","REAR END","HEAD ON","SS PASS","FIXED OBJ","PEDESTRIAN","OTHER",{"$f":"D5","v":"Countermeasure"},"Night","WET","RAN OFF RD","LEFT","RIGHT","ANGLE","REAR END","HEAD ON","SS PASS","FIXED OBJ","PEDESTRIAN","OTHER"]
[87,"Handbook of Road Safety Measures","Roadway delineation","Add centerlines on roadway segments (2 lane roadway)",5,"No",null,null,null,2004,3,null,-0.01,0.01,null,null,null,{"$f":"$M6","v":-0.01},-0.01,-0.01,-0.01,-0.01,-0.01,-0.01,-0.01,-0.01,"Add centerlines on roadway segments (2 lane roadway)",null,null,null,{"$f":"$N6","v":0.01},0.01,0.01,0.01,0.01,0.01,0.01,0.01,0.01]
[272,"Safety Effectiveness of Intersection Left- and Right-Turn Lanes","Intersection geometry","Add left-turn lanes to major road approaches at intersections - Rural",20,"Yes",null,null,null,2002,5,null,null,0.57999999999999996,null,null,null,{"$f":"$L7","v":0},0,0,0,0,0,0,0,0,"Add left-turn lanes to major road approaches at intersections - Rural",null,null,null,0.57999999999999996,0.57999999999999996,0.57999999999999996,0.57999999999999996,0.57999999999999996,0.57999999999999996,0.57999999999999996,0.57999999999999996,0.57999999999999996]
[269,"Safety Effectiveness of Intersection Left- and Right-Turn Lanes","Intersection geometry","Add left-turn lanes to major road approaches at intersections - Urban",20,"Yes",null,null,null,2002,5,0.47,null,0.17,null,null,null,0.47,0.47,0.47,0.47,0.47,0.47,0.47,0.47,0.47,"Add left-turn lanes to major road approaches at intersections - Urban",null,null,null,0.17,0.17,0.17,0.17,0.17,0.17,0.17,0.17,0.17]
[40,"Handbook of Road Safety Measures","Roadside","Change barrier along embankment to less rigid type",20,"No",null,null,"Yes",2004,3,null,null,null,null,null,null,null,null,null,null,null,null,null,null,null,"Change barrier along embankment to less rigid type",null,null,0.32,null,null,null,null,null,null,0.32]
[333,"Accident Modification Factors for Traffic Engineering and ITS Improvements","Intersection traffic control","Change from permitted or permitted-protected to protected - Urban",5,"Yes",null,null,"Yes",2008,5,0.01,null,null,null,null,{"$f":"$L10","v":0.01},{"$f":"$L10","v":0.01},{"$f":"$L10","v":0.01},0.99,{"$f":"$L10","v":0.01},0.01,0.01,0.01,0.01,0.01,"Change from permitted or permitted-protected to protected - Urban",null,null,null,{"$f":"$L10","v":0.01},{"$f":"$L10","v":0.01},0.99,{"$f":"$L10","v":0.01},0.01,0.01,0.01,0.01,0.01]
[209,"Observational Before-After Study of the Safety Effect of U.S. Roundabout Conversions Using the Empirical Bayes Method","Intersection traffic control","Conversion of signalized intersection into single- or multi-lane roundabout - Urban",20,"Yes",null,null,null,2001,3,0.35,null,0.74,null,null,null,{"$f":"$L11","v":0.35},0.35,0.35,0.35,0.35,0.35,0.35,0.35,0.35,"Conversion of signalized intersection into single- or multi-lane roundabout - Urban",null,null,null,{"$f":"$N11","v":0.74},0.74,0.74,0.74,0.74,0.74,0.74,0.74,0.74]
[208,"Observational Before-After Study of the Safety Effect of U.S. Roundabout Conversions Using the Empirical Bayes Method","Intersection traffic control","Conversion of stop-controlled intersection into multi-lane roundabout - Urban",20,"Yes",null,null,null,2001,3,0.05,null,null,null,null,null,0.05,0.05,0.05,0.05,0.05,0.05,0.05,0.05,0.05,"Conversion of stop-controlled intersection into multi-lane roundabout - Urban",null,null,null,{"$f":"$L12","v":0.05},0.05,0.05,0.05,0.05,0.05,0.05,0.05,0.05]
[459,"Revision of the Hand Book of Road Safety Measures","Interchange design","Convert at-grade intersection to grade-separated interchange",30,"Yes",null,null,null,2007,4,0.42,0.36,0.56999999999999995,null,null,null,{"$f":"$M13","v":0.36},0.36,0.36,0.36,0.36,0.36,0.36,0.36,0.36,"Convert at-grade intersection to grade-separated interchange",null,null,null,{"$f":"$N13","v":0.56999999999999995},0.56999999999999995,0.56999999999999995,0.56999999999999995,0.56999999999999995,0.56999999999999995,0.56999999999999995,0.56999999999999995,0.56999999999999995]
[325,"Accident Modification Factors for Traffic Engineering and ITS Improvements","Intersection traffic control","Convert stop-control to signal",10,"Yes",null,null,"Yes",2008,5,0.44,null,null,null,null,{"$f":"$L14","v":0.44},{"$f":"$L14","v":0.44},{"$f":"$L14","v":0.44},0.77,-0.57999999999999996,{"$f":"$L14","v":0.44},0.44,0.44,0.44,{"$f":"$L14","v":0.44},"Convert stop-control to signal",null,null,null,{"$f":"$L14","v":0.44},{"$f":"$L14","v":0.44},0.77,-0.57999999999999996,{"$f":"$L14","v":0.44},{"$f":"$L14","v":0.44},{"$f":"$L14","v":0.44},{"$f":"$L14","v":0.44},{"$f":"$L14","v":0.44}]
[227,"NCHRP Report 572: Applying Roundabouts in the United States","Intersection traffic control","Convert two-way stop-controlled intersection to roundabout",20,"Yes",null,null,null,2007,5,0.44,null,0.82,null,null,null,{"$f":"$L15","v":0.44},0.44,0.44,0.44,0.44,0.44,0.44,{"$f":"$L15","v":0.44},0.44,"Convert two-way stop-controlled intersection to roundabout",null,null,null,{"$f":"$N15","v":0.82},0.82,0.82,0.82,0.82,0.82,0.82,0.82,0.82]
[229,"NCHRP Report 572: Applying Roundabouts in the United States","Intersection traffic control","Convert two-way stop-controlled intersection to roundabout - Rural",20,"Yes",null,null,null,2007,5,0.71,null,0.87,null,null,null,0.71,0.71,0.71,0.71,0.71,0.71,0.71,{"$f":"$L16","v":0.71},0.71,"Convert two-way stop-controlled intersection to roundabout - Rural",null,null,null,0.87,0.87,0.87,0.87,0.87,0.87,0.87,0.87,0.87]
[315,"Prediction of the Expected Safety Performance of Rural Two-Lane Highways","Intersection traffic control","Convert two-way to all-way stop control",10,"Yes",null,null,"Yes",1986,5,0.48,null,0.77,null,null,{"$f":"$L17","v":0.48},{"$f":"$L17","v":0.48},{"$f":"$L17","v":0.48},0.75,0.18,0.48,0.48,0.48,0.43,0.48,"Convert two-way to all-way stop control",null,null,null,{"$f":"$N17","v":0.77},{"$f":"$N17","v":0.77},0.75,0.18,{"$f":"$N17","v":0.77},{"$f":"$N17","v":0.77},{"$f":"$N17","v":0.77},0.43,{"$f":"$N17","v":0.77}]
[2841,"Comparison of empirical Bayes and full Bayes approaches for before\u0013after road safety evaluations","Roadway","Converting four-lane roadways to three-lane roadways with center turn lane (road diet) - Suburban",5,null,null,null,null,2010,4,0.53,null,null,null,null,null,{"$f":"$L18","v":0.53},0.53,0.53,0.53,0.53,0.53,0.53,{"$f":"$L18","v":0.53},0.53,"Converting four-lane roadways to three-lane roadways with center turn lane (road diet) - Suburban",null,null,null,{"$f":"$L18","v":0.53},0.53,0.53,0.53,0.53,0.53,0.53,0.53,0.53]
[473,"Revision of the Hand Book of Road Safety Measures","Interchange design","Design diamond, trumpet or cloverleaf interchange with crossroad above freeway",30,"Yes",null,null,null,2007,3,0.04,null,null,null,null,null,0.04,0.04,0.04,0.04,0.04,0.04,0.04,0.04,0.04,"Design diamond, trumpet or cloverleaf interchange with crossroad above freeway",null,null,null,0.04,0.04,0.04,0.04,0.04,0.04,0.04,0.04,0.04]
[474,"Handbook of Road Safety Measures","Interchange design","Extend acceleration lane by approx. 98 ft (30 m)",20,null,null,null,null,2004,5,0.11,null,null,null,null,null,0.11,0.11,0.11,0.11,0.11,0.11,0.11,0.11,0.11,"Extend acceleration lane by approx. 98 ft (30 m)",null,null,null,0.11,0.11,0.11,0.11,0.11,0.11,0.11,0.11,0.11]
[475,"Handbook of Road Safety Measures","Interchange design","Extend deceleration lane by approx. 98 ft (30 m)",20,null,null,null,null,2004,3,7.0000000000000007E-2,null,null,null,null,null,7.0000000000000007E-2,7.0000000000000007E-2,7.0000000000000007E-2,7.0000000000000007E-2,7.0000000000000007E-2,7.0000000000000007E-2,7.0000000000000007E-2,7.0000000000000007E-2,7.0000000000000007E-2,"Extend deceleration lane by approx. 98 ft (30 m)",null,null,null,7.0000000000000007E-2,7.0000000000000007E-2,7.0000000000000007E-2,7.0000000000000007E-2,7.0000000000000007E-2,7.0000000000000007E-2,7.0000000000000007E-2,7.0000000000000007E-2,7.0000000000000007E-2]
[446,"Safety Evaluation of Flashing Beacons at Stop Controlled Intersections","Intersection traffic control","Flashing beacons at four leg stop controlled intersections on two lane roads; Standard and actuated beacons",10,"Yes",null,null,null,2008,3,0.05,null,0.1,null,null,null,{"$f":"$L22","v":0.05},{"$f":"$L22","v":0.05},0.57999999999999996,0.08,0.05,0.05,0.05,0.05,0.05,"Flashing beacons at four leg stop controlled intersections on two lane roads; Standard and actuated beacons",null,null,null,{"$f":"$L22","v":0.05},{"$f":"$L22","v":0.05},0.13,0.08,{"$f":"$L22","v":0.05},{"$f":"$L22","v":0.05},{"$f":"$L22","v":0.05},{"$f":"$L22","v":0.05},{"$f":"$L22","v":0.05}]
[721,"Development of Crash Reduction Factors","Alignment","Flatten crest vertical curve",30,null,null,null,null,2005,3,0.2,null,0.51,null,null,null,{"$f":"$L23","v":0.2},{"$f":"$L23","v":0.2},{"$f":"$L23","v":0.2},{"$f":"$L23","v":0.2},0.2,0.2,0.2,0.2,0.2,"Flatten crest vertical curve",null,null,null,{"$f":"$N23","v":0.51},0.51,0.51,0.51,0.51,0.51,0.51,0.51,0.51]
[307,"Handbook of Road Safety Measures","Intersection geometry","Increase triangle sight distance",10,"Yes",null,null,null,2004,3,null,0.11,0.48,null,null,null,{"$f":"$M24","v":0.11},0.11,0.11,0.11,0.11,0.11,0.11,0.11,0.11,"Increase triangle sight distance",null,null,null,0.48,0.48,0.48,0.48,0.48,0.48,0.48,0.48,0.48]
[194,"Crash Reduction Factors for Traffic Engineering and ITS Improvements","Roadway","Increased pavement friction",10,null,"Yes",null,null,2008,5,0.24,null,null,null,0.56999999999999995,null,{"$f":"$L25","v":0.24},{"$f":"$L25","v":0.24},{"$f":"$L25","v":0.24},0.17,{"$f":"$L25","v":0.24},{"$f":"$L25","v":0.24},{"$f":"$L25","v":0.24},{"$f":"$L25","v":0.24},{"$f":"$L25","v":0.24},"Increased pavement friction",null,0.56999999999999995,null,{"$f":"$L25","v":0.24},{"$f":"$L25","v":0.24},{"$f":"$L25","v":0.24},0.17,{"$f":"$L25","v":0.24},{"$f":"$L25","v":0.24},{"$f":"$L25","v":0.24},{"$f":"$L25","v":0.24},{"$f":"$L25","v":0.24}]
[102,"Handbook of Road Safety Measures","Roadway delineation","Install a combination of edgelines, centerlines and delineators on roadway segments",5,"No",null,null,null,2004,4,null,null,0.45,null,null,null,null,null,null,null,null,null,null,null,null,"Install a combination of edgelines, centerlines and delineators on roadway segments",null,null,null,{"$f":"$N26","v":0.45},0.45,0.45,0.45,0.45,0.45,0.45,0.45,0.45]
[1965,"Safety Impact of Cable Barriers on Rural Interstates","Roadway delineation","Install cable median barrier (low or high tension) - Rural",20,"No",null,null,"Yes",2009,5,null,null,null,null,null,0.25,null,null,null,0.14000000000000001,0.94,0.14000000000000001,null,null,null,"Install cable median barrier (low or high tension) - Rural",null,null,null,null,null,null,0.14000000000000001,0.94,0.14000000000000001,0.25,null,0.25]
[3341,"NCHRP Report 641: Guidance for the Design and Application of Shoulder and Centerline Rumble Strips","Roadway","Install centerline rumble strips - Rural",20,"No",null,null,null,2009,5,0.11,null,0.09,null,null,null,{"$f":"$L28","v":0.11},0.11,0.11,0.11,0.49,0.49,{"$f":"$L28","v":0.11},0.11,0.11,"Install centerline rumble strips - Rural",null,null,null,{"$f":"$N28","v":0.09},0.09,0.09,0.09,0.49,0.49,{"$f":"$N28","v":0.09},0.09,0.09]
[3341,"NCHRP Report 641: Guidance for the Design and Application of Shoulder and Centerline Rumble Strips","Roadway","Install centerline rumble strips - Urban",20,"No",null,null,null,2009,5,-0.02,null,0.09,null,null,null,-0.02,-0.02,-0.02,-0.02,0.4,0.4,-0.02,-0.02,-0.02,"Install centerline rumble strips - Urban",null,null,null,0.09,0.09,0.09,0.09,0.4,0.4,0.09,0.09,0.09]
[78,"Handbook of Road Safety Measures","Advanced technology and ITS","Install changeable speed warning signs for individual drivers",5,"Yes",null,null,null,2004,4,0.46,null,null,null,null,null,0.46,0.46,0.46,0.46,{"$f":"$L30","v":0.46},{"$f":"$L30","v":0.46},0.46,0.46,0.46,"Install changeable speed warning signs for individual drivers",null,null,null,{"$f":"$L30","v":0.46},0.46,0.46,0.46,0.46,0.46,0.46,0.46,0.46]
[2436,"Safety Evaluation of Improved Curve Delineation","Roadway signs and traffic control","Install chevron signs on horizontal curves - Rural",5,"No",null,"Yes","Yes",2009,4,0.04,null,0.16,0.25,null,0.06,0.04,0.04,0.04,0.04,0.06,0.06,0.06,{"$f":"$L31","v":0.04},{"$f":"$L31","v":0.04},"Install chevron signs on horizontal curves - Rural",0.25,null,null,{"$f":"$N31","v":0.16},{"$f":"$N31","v":0.16},{"$f":"$N31","v":0.16},{"$f":"$N31","v":0.16},0.06,0.06,0.06,{"$f":"$N31","v":0.16},0.06]
[55,"Handbook of Road Safety Measures","Roadside","Install crash cushions at permanent objects",20,"No",null,null,null,2004,3,null,null,null,null,null,null,null,null,null,null,null,null,0.46,null,null,"Install crash cushions at permanent objects",null,null,null,null,null,null,null,null,null,0.69]
[3388,"NCHRP Report 641: Guidance for the Design and Application of Shoulder and Centerline Rumble Strips","Roadway","Install edgeline rumble strips - Undivided",20,"No",null,null,null,2009,4,null,null,0.25,null,null,null,null,null,null,null,null,null,null,null,null,"Install edgeline rumble strips - Undivided",null,null,null,{"$f":"$N33","v":0.25},0.25,0.25,0.25,0.25,0.25,0.25,0.25,0.25]
[974,"Development of Crash Reduction Factors","Roadside","Install median barrier",20,"No",null,null,null,2005,3,0.86,null,0.88,null,null,null,{"$f":"$L34","v":0.86},0.86,0.86,0.86,0.86,0.86,0.86,0.86,0.86,"Install median barrier",null,null,null,0.88,0.88,0.88,0.88,0.88,0.88,0.88,0.88,0.88]
[42,"Handbook of Road Safety Measures","Roadside","Install median guardrails on divided highways",20,"No",null,null,null,2004,4,null,-0.24,0.3,null,null,null,{"$f":"$M35","v":-0.24},-0.24,-0.24,-0.24,-0.24,-0.24,-0.24,-0.24,-0.24,"Install median guardrails on divided highways",null,null,null,0.3,0.3,0.3,0.3,0.3,0.3,0.3,0.3,0.3]
[2431,"Safety Evaluation of Improved Curve Delineation","Roadway signs and traffic control","Install new fluorescent curve signs or upgrade existing curve signs to fluorescent sheeting - Rural",5,"No",null,"Yes","Yes",2009,4,0.18,null,0.25,0.35,null,0.34,{"$f":"$L36","v":0.18},0.18,0.18,0.18,0.34,0.34,0.34,{"$f":"$L36","v":0.18},0.18,"Install new fluorescent curve signs or upgrade existing curve signs to fluorescent sheeting - Rural",0.35,null,null,{"$f":"$N36","v":0.25},0.25,0.25,0.25,0.34,0.34,0.34,{"$f":"$N36","v":0.25},0.34]
[3034,"Analyzing Raised Median Safety Impacts Using Bayesian Methods","Access management","Install raised median",20,null,null,null,null,2011,4,0.39,null,0.44,null,null,null,0.39,0.39,0.39,0.39,{"$f":"$L37","v":0.39},0.39,0.39,0.39,0.39,{"$f":"D37","v":"Install raised median"},null,null,null,0.44,0.44,0.44,0.44,{"$f":"$N37","v":0.44},0.44,0.44,{"$f":"$N37","v":0.44},{"$f":"$N37","v":0.44}]
[2341,"Safety Evaluation of Installing Center Two-Way Left-Turn Lanes on Two-Lane Roads","Roadway","Install TWLTL (two-way left turn lane) on two lane road",20,null,null,null,null,2008,5,0.20300000000000001,null,0.26100000000000001,null,null,null,{"$f":"$L38","v":0.20300000000000001},0.20300000000000001,0.20300000000000001,0.38700000000000001,0.20300000000000001,0.20300000000000001,0.20300000000000001,0.20300000000000001,0.20300000000000001,"Install TWLTL (two-way left turn lane) on two lane road",null,null,null,{"$f":"$N38","v":0.26100000000000001},0.26100000000000001,0.26100000000000001,0.38700000000000001,0.26100000000000001,0.26100000000000001,0.26100000000000001,{"$f":"$N38","v":0.26100000000000001},{"$f":"$N38","v":0.26100000000000001}]
[2341,"Safety Evaluation of Installing Center Two-Way Left-Turn Lanes on Two-Lane Roads","Roadway","Install TWLTL (two-way left turn lane) on two lane road",20,null,null,null,null,2008,5,0.20300000000000001,null,0.26100000000000001,null,null,null,0.20300000000000001,0.20300000000000001,0.20300000000000001,0.49399999999999999,0.20300000000000001,0.20300000000000001,0.20300000000000001,0.20300000000000001,0.20300000000000001,"Install TWLTL (two-way left turn lane) on two lane road",null,null,null,0.26100000000000001,0.26100000000000001,0.26100000000000001,0.49399999999999999,0.26100000000000001,0.26100000000000001,0.26100000000000001,{"$f":"$N39","v":0.26100000000000001},{"$f":"$N39","v":0.26100000000000001}]
[2911,"Safety Effectiveness of the HAWK Pedestrian Crossing Treatment","Pedestrians and bicyclists","Installation of a High intensity Activated crossWalK (HAWK) pedestrian-activated beacon at an intersection - Urban",10,null,null,null,null,2010,4,0.28999999999999998,null,null,null,null,null,0.28999999999999998,0.28999999999999998,0.28999999999999998,{"$f":"$L40","v":0.28999999999999998},0.28999999999999998,0.28999999999999998,0.28999999999999998,0.28999999999999998,0.28999999999999998,"Installation of a High intensity Activated crossWalK (HAWK) pedestrian-activated beacon at an intersection - Urban",null,null,null,{"$f":"$L40","v":0.28999999999999998},0.28999999999999998,0.28999999999999998,0.28999999999999998,0.28999999999999998,0.28999999999999998,0.28999999999999998,0.28999999999999998,0.28999999999999998]
[3172,"Hierarchical Bayesian Modeling for Before and After Studies","Roadside","Installation of cable barriers in freeway medians",20,"No",null,null,null,2011,3,null,null,0.44,null,null,null,null,null,null,null,null,null,null,null,null,"Installation of cable barriers in freeway medians",null,null,null,{"$f":"$N41","v":0.44},0.44,0.44,0.44,0.44,0.44,0.44,0.44,0.44]
[265,"Safety Effectiveness of Intersection Left- and Right-Turn Lanes","Intersection geometry","Installation of left-turn lane on single major road approach - Rural",20,"Yes",null,null,null,2002,5,0.28000000000000003,null,0.35,null,null,null,{"$f":"$L42","v":0.28000000000000003},0.28000000000000003,0.28000000000000003,0.28000000000000003,0.28000000000000003,0.28000000000000003,0.28000000000000003,0.28000000000000003,0.28000000000000003,"Installation of left-turn lane on single major road approach - Rural",null,null,null,0.35,0.35,0.35,0.35,0.35,0.35,0.35,0.35,0.35]
[255,"Safety Effectiveness of Intersection Left- and Right-Turn Lanes","Intersection geometry","Installation of left-turn lane on single major road approach - Urban",20,"Yes",null,null,null,2002,5,0.27,null,0.28999999999999998,null,null,null,0.27,0.27,0.27,0.27,0.27,0.27,0.27,0.27,0.27,"Installation of left-turn lane on single major road approach - Urban",null,null,null,0.28999999999999998,0.28999999999999998,0.28999999999999998,0.28999999999999998,0.28999999999999998,0.28999999999999998,0.28999999999999998,0.28999999999999998,0.28999999999999998]
[290,"Safety Effectiveness of Intersection Left- and Right-Turn Lanes","Intersection geometry","Installation of right-turn lane on both major road approaches - Signalized",20,"Yes",null,null,null,2002,5,0.08,null,null,null,null,null,0.08,0.08,0.08,0.08,0.08,0.08,0.08,0.08,0.08,"Installation of right-turn lane on both major road approaches - Signalized",null,null,null,{"$f":"$L44","v":0.08},0.08,0.08,0.08,0.08,0.08,0.08,0.08,0.08]
[285,"Safety Effectiveness of Intersection Left- and Right-Turn Lanes","Intersection geometry","Installation of right-turn lane on single major road approach - Stop Controlled",20,"Yes",null,null,null,2002,4,0.14000000000000001,null,0.23,null,null,null,0.14000000000000001,0.14000000000000001,0.14000000000000001,0.14000000000000001,0.14000000000000001,0.14000000000000001,0.14000000000000001,0.14000000000000001,0.14000000000000001,"Installation of right-turn lane on single major road approach - Stop Controlled",null,null,null,{"$f":"$N45","v":0.23},0.23,0.23,0.23,0.23,0.23,0.23,0.23,0.23]
[494,"Handbook of Road Safety Measures","Railroad grade crossings","Installing gates at crossings with flashing lights and sound signals",20,null,null,null,null,2004,4,0.45,null,null,null,null,null,0.45,0.45,0.45,0.45,0.45,0.45,0.45,0.45,0.45,"Installing gates at crossings with flashing lights and sound signals",null,null,null,{"$f":"$L46","v":0.45},0.45,0.45,0.45,0.45,0.45,0.45,0.45,0.45]
[493,"Collision Frequency Analysis Using Tree-Based Stratification","Railroad grade crossings","Installing gates at crossings with signs",20,null,null,null,null,2005,5,0.93,null,null,null,null,null,0.93,0.93,0.93,0.93,0.93,0.93,0.93,0.93,0.93,"Installing gates at crossings with signs",null,null,null,0.93,0.93,0.93,0.93,0.93,0.93,0.93,0.93,0.93]
[583,"Safety Evaluation of Installing Center Two-Way Left-Turn Lanes on Two-Lane Roads","Roadway","Introduce TWLTL (two-way left turn lanes) on rural two lane roads",20,null,null,null,null,2008,5,0.36,null,0.35,null,null,null,{"$f":"$L48","v":0.36},{"$f":"$L48","v":0.36},{"$f":"$L48","v":0.36},0.47,{"$f":"$L48","v":0.36},{"$f":"$L48","v":0.36},{"$f":"$L48","v":0.36},{"$f":"$L48","v":0.36},{"$f":"$L48","v":0.36},"Introduce TWLTL (two-way left turn lanes) on rural two lane roads",null,null,null,{"$f":"$N48","v":0.35},{"$f":"$N48","v":0.35},{"$f":"$N48","v":0.35},0.47,{"$f":"$N48","v":0.35},{"$f":"$N48","v":0.35},{"$f":"$N48","v":0.35},{"$f":"$N48","v":0.35},{"$f":"$N48","v":0.35}]
[276,"Right-Angle Crash Occurance at Signalized Intersections","Intersection geometry","Introducing zero or positive offset left-turn lane on crossing roadway",20,"Yes",null,null,null,2007,3,null,null,null,null,null,null,0.2,null,0.26,null,null,null,null,null,null,"Introducing zero or positive offset left-turn lane on crossing roadway",null,null,null,0.2,null,0.26]
[433,"Handbook of Road Safety Measures","Highway lighting","Lighting in intersections",10,"Yes",null,null,null,2004,4,null,0.31,0.38,null,null,null,{"$f":"$M50","v":0.31},0.31,0.31,0.31,0.31,0.31,0.31,0.31,0.31,"Lighting in intersections",null,null,null,{"$f":"$N50","v":0.38},0.38,0.38,0.38,0.38,0.38,0.38,0.42,{"$f":"$N50","v":0.38}]
[476,"Revision of the Hand Book of Road Safety Measures","Interchange design","Modify two-lane to one-lane merge/ diverge area",20,null,null,null,null,2007,5,0.32,null,null,null,null,null,{"$f":"$L51","v":0.32},0.32,0.32,0.32,0.32,0.32,0.32,0.32,0.32,"Modify two-lane to one-lane merge/ diverge area",null,null,null,{"$f":"$L51","v":0.32},0.32,0.32,0.32,0.32,0.32,0.32,0.32,0.32]
[38,"Handbook of Road Safety Measures","Roadside","New guardrail along embankment",20,"No",null,null,"Yes",2004,5,null,null,null,null,null,7.0000000000000007E-2,null,null,null,null,null,null,null,null,null,"New guardrail along embankment",null,null,0.47,null,null,null,null,null,null,0.47]
[16,"Paved Highway Shoulders and Accident Experience","Shoulder treatments","Pave a 3 to 4 ft sod shoulder",20,null,null,null,null,2009,3,0.19,0.22,0.14000000000000001,null,null,null,{"$f":"$M53","v":0.22},0.22,0.22,0.22,0.22,0.22,0.22,0.22,0.22,"Pave a 3 to 4 ft sod shoulder",null,null,null,{"$f":"$N53","v":0.14000000000000001},0.14000000000000001,0.14000000000000001,0.14000000000000001,0.14000000000000001,0.14000000000000001,0.14000000000000001,0.14000000000000001,0.14000000000000001]
[377,"Handbook of Road Safety Measures","Intersection traffic control","Permit Right-Turn-On-Red",5,"Yes",null,null,"Yes",2004,5,-0.05,null,null,null,null,{"$f":"$L54","v":-0.05},{"$f":"$L54","v":-0.05},{"$f":"$L54","v":-0.05},-0.1,{"$f":"$L54","v":-0.05},-0.05,-0.05,-0.05,-0.05,-0.05,"Permit Right-Turn-On-Red",null,null,null,{"$f":"$L54","v":-0.05},{"$f":"$L54","v":-0.05},-0.1,{"$f":"$L54","v":-0.05},-0.05,-0.05,-0.05,-0.05,-0.05]
[153,"Handbook of Road Safety Measures","On-street parking","Prohibit on-street parking - Minor Arterial",10,"No",null,null,null,2004,5,null,0.27,0.2,null,null,null,{"$f":"$M55","v":0.27},0.27,0.27,0.27,0.27,0.27,0.27,0.27,0.27,"Prohibit on-street parking - Minor Arterial",null,null,null,{"$f":"$N55","v":0.2},0.2,0.2,0.2,0.2,0.2,0.2,0.2,0.2]
[153,"Handbook of Road Safety Measures","On-street parking","Prohibit on-street parking - Principal Arterial",10,"No",null,null,null,2004,4,0.42,0.48,0.35,null,null,null,0.48,0.48,0.48,0.48,0.48,0.48,0.48,0.48,0.48,"Prohibit on-street parking - Principal Arterial",null,null,null,0.35,0.35,0.35,0.35,0.35,0.35,0.35,0.35,0.35]
[24,"Handbook of Road Safety Measures","Access management","Provide a median - Rural",20,null,null,null,null,2004,4,null,0.18,0.12,null,null,null,0.18,0.18,0.18,0.18,0.18,0.18,0.18,0.18,0.18,"Provide a median - Rural",null,null,null,0.12,0.12,0.12,0.12,0.12,0.12,0.12,0.12,0.12]
[22,"Handbook of Road Safety Measures","Access management","Provide a median - Urban",20,null,null,null,null,2004,4,null,-0.09,0.39,null,null,null,-0.09,-0.09,-0.09,-0.09,-0.09,-0.09,-0.09,-0.09,-0.09,"Provide a median - Urban",null,null,null,0.39,0.39,0.39,0.39,0.39,0.39,0.39,0.39,0.39]
[192,"Handbook of Road Safety Measures","Highway lighting","Provide highway lighting",10,null,null,null,null,2004,4,null,0.18,0.28000000000000003,null,null,null,0.18,0.18,0.18,0.18,0.18,0.18,0.18,0.18,0.18,"Provide highway lighting",null,null,null,0.28000000000000003,0.28000000000000003,0.28000000000000003,0.28000000000000003,0.28000000000000003,0.28000000000000003,0.28000000000000003,0.28000000000000003,0.28000000000000003]
[73,"Handbook of Road Safety Measures","Roadway signs and traffic control","Provide static combination horizontal alignment / advisory speed signs",5,"No",null,null,null,2004,3,null,0.28999999999999998,0.13,null,null,null,0.28999999999999998,0.28999999999999998,0.28999999999999998,0.28999999999999998,0.28999999999999998,0.28999999999999998,0.28999999999999998,0.28999999999999998,0.28999999999999998,"Provide static combination horizontal alignment / advisory speed signs",null,null,null,0.13,0.13,0.13,0.13,0.13,0.13,0.13,0.13,0.13]
[329,"Crash Reductions Related to Traffic Signal Removal in Philadelphia","Intersection traffic control","Remove an unwarranted signal (one-way streets)",5,"Yes",null,null,null,1997,4,0.24,null,null,null,null,null,{"$f":"$L61","v":0.24},{"$f":"$L61","v":0.24},{"$f":"$L61","v":0.24},0.28999999999999998,{"$f":"$L61","v":0.24},0.24,0.24,0.18,{"$f":"$L61","v":0.24},"Remove an unwarranted signal (one-way streets)",null,null,null,{"$f":"$L61","v":0.24},{"$f":"$L61","v":0.24},{"$f":"$L61","v":0.24},0.28999999999999998,{"$f":"$L61","v":0.24},0.24,0.24,0.18,{"$f":"$L61","v":0.24}]
[2333,"Evaluation of the Safety Effectiveness of Selected Treatments at Urban Signalized Intersections","Intersection traffic control","Replace 8-inch red signal heads with 12-inch",10,"Yes",null,null,null,2008,4,0.03,null,null,null,null,null,{"$f":"$L62","v":0.03},{"$f":"$L62","v":0.03},0.42,{"$f":"$L62","v":0.03},0.03,0.03,0.03,{"$f":"$L62","v":0.03},{"$f":"$L62","v":0.03},{"$f":"D62","v":"Replace 8-inch red signal heads with 12-inch"},null,null,null,{"$f":"$L62","v":0.03},{"$f":"$L62","v":0.03},0.42,{"$f":"$L62","v":0.03},0.03,0.03,0.03,{"$f":"$L62","v":0.03},{"$f":"$L62","v":0.03}]
[388,"Accident Modification Factors for Traffic Engineering and ITS Improvements","Intersection traffic control","Replace Night-Time Flash with Steady Operation",5,"Yes",null,"Yes",null,2008,3,0.27,null,0.23,0.35,null,null,{"$f":"$L63","v":0.27},{"$f":"$L63","v":0.27},{"$f":"$L63","v":0.27},{"$f":"$L63","v":0.27},0.27,0.27,0.27,{"$f":"$L63","v":0.27},{"$f":"$L63","v":0.27},{"$f":"D63","v":"Replace Night-Time Flash with Steady Operation"},0.35,null,null,{"$f":"$N63","v":0.23},0.23,0.23,0.23,0.23,0.23,0.23,0.23,0.23]
[2514,"Modeling and Evaluating the Safety Impacts of Access Management (AM) Features in the Las Vegas Valley","Access management","Replace TWLTL with raised median - Urban Only",20,null,null,null,"Yes",2010,3,null,null,null,null,null,0.33,0.36,null,0.36,0.19,0.47,0.21,0.33,null,null,{"$f":"D64","v":"Replace TWLTL with raised median - Urban Only"},null,null,0.33,0.36,null,0.36,0.19,0.47,0.21,0.21]
[2975,"Safety Evaluation of Multilane Arterials in Florida","Roadway","Resurface pavement",20,"No",null,null,null,2009,4,-0.01,null,0.05,null,null,null,{"$f":"$L65","v":-0.01},{"$f":"$L65","v":-0.01},{"$f":"$L65","v":-0.01},0.01,{"$f":"$L65","v":-0.01},{"$f":"$L65","v":-0.01},{"$f":"$L65","v":-0.01},{"$f":"$L65","v":-0.01},{"$f":"$L65","v":-0.01},{"$f":"D65","v":"Resurface pavement"},null,null,null,{"$f":"$N65","v":0.05},{"$f":"$N65","v":0.05},{"$f":"$N65","v":0.05},0.01,{"$f":"$N65","v":0.05},{"$f":"$N65","v":0.05},{"$f":"$N65","v":0.05},{"$f":"$N65","v":0.05},{"$f":"$N65","v":0.05}]
[380,"Field Evaluation of Two Methods for Restricting Right Turn on Red to Promote Pedestrian Safety","Intersection traffic control","Retiming signal change intervals to ITE standards",5,"Yes",null,null,null,2002,3,0.08,null,0.12,null,null,null,{"$f":"$L66","v":0.08},0.08,0.04,-0.12,{"$f":"$L66","v":0.08},0.08,0.08,0.39,{"$f":"$L66","v":0.08},"Retiming signal change intervals to ITE standards",null,null,null,{"$f":"$N66","v":0.12},{"$f":"$N66","v":0.12},0.04,-0.08,{"$f":"$N66","v":0.12},{"$f":"$N66","v":0.12},{"$f":"$N66","v":0.12},0.37,{"$f":"$N66","v":0.12}]
[199,"Crash Reduction Factors for Traffic Engineering and ITS Improvements","Roadway","Road diet (Convert 4-lane undivided road to 2-lanes plus turning lane) - Minor Arterial",5,null,null,null,null,2008,5,0.28999999999999998,null,null,null,null,null,0.28999999999999998,0.28999999999999998,{"$f":"$L67","v":0.28999999999999998},0.28999999999999998,0.28999999999999998,0.28999999999999998,0.28999999999999998,{"$f":"$L67","v":0.28999999999999998},0.28999999999999998,{"$f":"D67","v":"Road diet (Convert 4-lane undivided road to 2-lanes plus turning lane) - Minor Arterial"},null,null,null,{"$f":"$L67","v":0.28999999999999998},0.28999999999999998,0.28999999999999998,0.28999999999999998,0.28999999999999998,0.28999999999999998,0.28999999999999998,0.28999999999999998,0.28999999999999998]
[487,"Collision Frequency Analysis Using Tree-Based Stratification","Railroad grade crossings","Upgrade signs to flashing lights",5,null,null,null,null,2005,5,0.77,null,null,null,null,null,0.77,0.77,0.77,0.77,0.77,0.77,0.77,0.77,0.77,"Upgrade signs to flashing lights",null,null,null,0.77,0.77,0.77,0.77,0.77,0.77,0.77,0.77,0.77]
[482,"Handbook of Road Safety Measures","Railroad grade crossings","Upgrading signs to flashing lights and sound signals",5,null,null,null,null,2004,5,0.5,null,null,null,null,null,0.5,0.5,0.5,0.5,0.5,0.5,0.5,0.5,0.5,"Upgrading signs to flashing lights and sound signals",null,null,null,0.5,0.5,0.5,0.5,0.5,0.5,0.5,0.5,0.5]
[10,"Highway Safety Manual Knowledge Document","Shoulder treatments","Widen paved shoulder from 3 ft to 4 ft",20,null,null,null,null,2009,3,0.03,null,null,null,null,null,0.03,0.03,0.03,0.03,0.03,0.03,0.03,0.03,0.03,"Widen paved shoulder from 3 ft to 4 ft",null,null,null,0.03,0.03,0.03,0.03,0.03,0.03,0.03,0.03,0.03]
[11,"Highway Safety Manual Knowledge Document","Shoulder treatments","Widen paved shoulder from 3 ft to 5 ft",20,null,null,null,null,2009,3,0.05,null,null,null,null,null,0.05,0.05,0.05,0.05,0.05,0.05,0.05,0.05,0.05,"Widen paved shoulder from 3 ft to 5 ft",null,null,null,0.05,0.05,0.05,0.05,0.05,0.05,0.05,0.05,0.05]
[12,"Highway Safety Manual Knowledge Document","Shoulder treatments","Widen paved shoulder from 3 ft to 6 ft",20,null,null,null,null,2009,3,7.0000000000000007E-2,null,null,null,null,null,7.0000000000000007E-2,7.0000000000000007E-2,7.0000000000000007E-2,7.0000000000000007E-2,7.0000000000000007E-2,7.0000000000000007E-2,7.0000000000000007E-2,7.0000000000000007E-2,7.0000000000000007E-2,"Widen paved shoulder from 3 ft to 6 ft",null,null,null,7.0000000000000007E-2,7.0000000000000007E-2,7.0000000000000007E-2,7.0000000000000007E-2,7.0000000000000007E-2,7.0000000000000007E-2,7.0000000000000007E-2,7.0000000000000007E-2,7.0000000000000007E-2]
[13,"Highway Safety Manual Knowledge Document","Shoulder treatments","Widen paved shoulder from 3 ft to 7 ft",20,null,null,null,null,2009,3,0.1,null,null,null,null,null,0.1,0.1,0.1,0.1,0.1,0.1,0.1,0.1,0.1,"Widen paved shoulder from 3 ft to 7 ft",null,null,null,0.1,0.1,0.1,0.1,0.1,0.1,0.1,0.1,0.1]
[14,"Highway Safety Manual Knowledge Document","Shoulder treatments","Widen paved shoulder from 3 ft to 8 ft",20,null,null,null,null,2009,3,0.12,null,null,null,null,null,0.12,0.12,0.12,0.12,0.12,0.12,0.12,0.12,0.12,"Widen paved shoulder from 3 ft to 8 ft",null,null,null,0.12,0.12,0.12,0.12,0.12,0.12,0.12,0.12,0.12]
[null,null,null,null,null,null,null,null,null,null,null,null,null,null,null,null,null,null,null,null,null,null,null,null,null,null,0]
[null,null,null,null,null,null,null,null,null,null,null,null,null,null,null,null,null,null,null,null,null,null,null,null,null,null,0]
[null,null,null,null,null,null,null,null,null,null,null,null,null,null,null,null,null,null,null,null,null,null,null,null,null,null,0]
[null,null,null,null,null,null,null,null,null,null,null,null,null,null,null,null,null,null,null,null,null,null,null,null,null,null,0]
[null,null,null,null,null,null,null,null,null,null,null,null,null,null,null,null,null,null,null,null,null,null,null,null,null,null,0]
[null,null,null,null,null,null,null,null,null,null,null,null,null,null,null,null,null,null,null,null,null,null,null,null,null,null,0]
[null,null,null,null,null,null,null,null,null,null,null,null,null,null,null,null,null,null,null,null,null,null,null,null,null,null,0]
[null,null,null,null,null,null,null,null,null,null,null,null,null,null,null,null,null,null,null,null,null,null,null,null,null,null,0]
[null,null,null,null,null,null,null,null,null,null,null,null,null,null,null,null,null,null,null,null,null,null,null,null,null,null,0]
[null,null,null,null,null,null,null,null,null,null,null,null,null,null,null,null,null,null,null,null,null,null,null,null,null,null,0]
[null,null,null,null,null,null,null,null,null,null,null,null,null,null,null,null,null,null,null,null,null,null,null,null,null,null,0]
[null,null,null,null,null,null,null,null,null,null,null,null,null,null,null,null,null,null,null,null,null,null,null,null,null,null,0]
[null,null,null,null,null,null,null,null,null,null,null,null,null,null,null,null,null,null,null,null,null,null,null,null,null,null,0]
[null,null,null,null,null,null,null,null,null,null,null,null,null,null,null,null,null,null,null,null,null,null,null,null,null,null,0]
[null,null,null,null,null,null,null,null,null,null,null,null,null,null,null,null,null,null,null,null,null,null,null,null,null,null,0]
[null,null,null,null,null,null,null,null,null,null,null,null,null,null,null,null,null,null,null,null,null,null,null,null,null,null,0]
[null,null,null,null,null,null,null,null,null,null,null,null,null,null,null,null,null,null,null,null,null,null,null,null,null,null,0]
[null,null,null,null,null,null,null,null,null,null,null,null,null,null,null,null,null,null,null,null,null,null,null,null,null,null,0]
[null,null,null,null,null,null,null,null,null,null,null,null,null,null,null,null,null,null,null,null,null,null,null,null,null,null,0]
[null,null,null,null,null,null,null,null,null,null,null,null,null,null,null,null,null,null,null,null,null,null,null,null,null,null,0]
[null,null,null,null,null,null,null,null,null,null,null,null,null,null,null,null,null,null,null,null,null,null,null,null,null,null,0]
[null,null,null,null,null,null,null,null,null,null,null,null,null,null,null,null,null,null,null,null,null,null,null,null,null,null,0]
[null,null,null,null,null,null,null,null,null,null,null,null,null,null,null,null,null,null,null,null,null,null,null,null,null,null,0]
[null,null,null,null,null,null,null,null,null,null,null,null,null,null,null,null,null,null,null,null,null,null,null,null,null,null,0]
[null,null,null,null,null,null,null,null,null,null,null,null,null,null,null,null,null,null,null,null,null,null,null,null,null,null,{"$f":"D99","v":0}]
[null,null,null,null,null,null,null,null,null,null,null,null,null,null,null,null,null,null,null,null,null,null,null,null,null,null,0]
[null,null,null,null,null,null,null,null,null,null,null,null,null,null,null,null,null,null,null,null,null,null,null,null,null,null,0]
[null,null,null,null,null,null,null,null,null,null,null,null,null,null,null,null,null,null,null,null,null,null,null,null,null,null,0]
[null,null,null,null,null,null,null,null,null,null,null,null,null,null,null,null,null,null,null,null,null,null,null,null,null,null,0]
[null,null,null,null,null,null,null,null,null,null,null,null,null,null,null,null,null,null,null,null,null,null,null,null,null,null,0]
[null,null,null,null,null,null,null,null,null,null,null,null,null,null,null,null,null,null,null,null,null,null,null,null,null,null,0]
[null,null,null,null,null,null,null,null,null,null,null,null,null,null,null,null,null,null,null,null,null,null,null,null,null,null,0]
[null,null,null,null,null,null,null,null,null,null,null,null,null,null,null,null,null,null,null,null,null,null,null,null,null,null,0]
[null,null,null,null,null,null,null,null,null,null,null,null,null,null,null,null,null,null,null,null,null,null,null,null,null,null,0]
[null,null,null,null,null,null,null,null,null,null,null,null,null,null,null,null,null,null,null,null,null,null,null,null,null,null,0]
[null,null,null,null,null,null,null,null,null,null,null,null,null,null,null,null,null,null,null,null,null,null,null,null,null,null,0]
[null,null,null,null,null,null,null,null,null,null,null,null,null,null,null,null,null,null,null,null,null,null,null,null,null,null,0]
[null,null,null,null,null,null,null,null,null,null,null,null,null,null,null,null,null,null,null,null,null,null,null,null,null,null,0]
[null,null,null,null,null,null,null,null,null,null,null,null,null,null,null,null,null,null,null,null,null,null,null,null,null,null,0]
[null,null,null,null,null,null,null,null,null,null,null,null,null,null,null,null,null,null,null,null,null,null,null,null,null,null,0]
[null,null,null,null,null,null,null,null,null,null,null,null,null,null,null,null,null,null,null,null,null,null,null,null,null,null,0]
[null,null,null,null,null,null,null,null,null,null,null,null,null,null,null,null,null,null,null,null,null,null,null,null,null,null,0]
[null,null,null,null,null,null,null,null,null,null,null,null,null,null,null,null,null,null,null,null,null,null,null,null,null,null,0]
[null,null,null,null,null,null,null,null,null,null,null,null,null,null,null,null,null,null,null,null,null,null,null,null,null,null,0]
[null,null,null,null,null,null,null,null,null,null,null,null,null,null,null,null,null,null,null,null,null,null,null,null,null,null,0]
[null,null,null,null,null,null,null,null,null,null,null,null,null,null,null,null,null,null,null,null,null,null,null,null,null,null,0]
[null,null,null,null,null,null,null,null,null,null,null,null,null,null,null,null,null,null,null,null,null,null,null,null,null,null,0]
[null,null,null,null,null,null,null,null,null,null,null,null,null,null,null,null,null,null,null,null,null,null,null,null,null,null,0]
[null,null,null,null,null,null,null,null,null,null,null,null,null,null,null,null,null,null,null,null,null,null,null,null,null,null,0]